{"text_format":"1","workbook":"xlsx","n_sheets":9,"sheets":["Overview","Autism Spectrum Disorder","Hearing Impairment","Intellectual Disability","Physical Impairment","Speech-Language Impairment","Vision Impairment","Social Emotional Disorder","Working Sheet"],"not_rendered":{"charts":0,"images":7,"macros":1,"external_links":0,"defined_names":8,"comments":0,"pivot_tables":0},"unopened":[],"bounds":{"document_bytes":16777216,"sheet_cells":100000,"rows_first":2000,"rows_last":500,"rows_between":2000,"halvings":0,"cell_chars":16384,"cell_head_chars":4096},"cells_cut":0,"cells_raw":0,"read":"whole","date_system":"1900"}

{"sheet":"Overview","index":0,"n_rows":14,"n_cols":4,"rows_kept":14,"cut":false,"hidden":false,"merged":[[1,0,1,3],[2,0,2,3],[4,0,4,3],[3,0,3,3],[5,0,5,3]]}
["PART TWO - School Support Services"]
["SPECIALIST DISABILITY SUPPORT IN SCHOOLS (SDSS) PROGRAM"]
["Student and School Data for 2022"]
["Organisation Name: "]
["Instructions:\nImpairment categories are provided in the worksheets as follows: \n\nAutism Spectrum Disorder\nHearing Impairment\nIntellectual Disability\nPhysical Impairment\nSpeech-Language Impairment\nVision Impairment\nSocial Emotional Disorder\n\nPlease complete the student numbers and school details for each impairment category.\nPlease provide the number of unique eligible students for each schooling sector."]
["Program Student and School Data Summary"]
["Autism Spectrum Disorder",{"$f":"'Autism Spectrum Disorder'!A17","v":0},"Number of Unique Students  - State Schools",0]
["Hearing Impairment",{"$f":"'Hearing Impairment'!A17","v":0},"Number of Unique Students  - Catholic Schools",0]
["Intellectual Disability",{"$f":"'Intellectual Disability'!A17","v":0},"Number of Unique Students  - Independent Schools",0]
["Physical Impairment",{"$f":"'Physical Impairment'!A17","v":0},"Total",{"$f":"SUM(D7:D9)","v":0}]
["Speech-Language Impairment",{"$f":"'Speech-Language Impairment'!A17","v":0}]
["Vision Impairment",{"$f":"'Vision Impairment'!A17","v":0}]
["Social Emotional Disorder",{"$f":"'Social Emotional Disorder'!A17","v":0}]
["Total ",{"$f":"SUM(B7:B13)","v":0}]

{"sheet":"Autism Spectrum Disorder","index":1,"n_rows":17,"n_cols":5,"rows_kept":17,"cut":false,"hidden":false,"merged":[[1,0,1,4]]}
["PART TWO - School Support Services"]
["SPECIALIST DISABILITY SUPPORT IN SCHOOLS (SDSS) PROGRAM\nSCHOOL SUPPORT SERVICES\nAUTISM SPECTRUM DISORDER"]
[]
["Number of Students","Name of School Serviced","Address",null,"Education Sector"]
[null," ",{"$f":"VLOOKUP(B5,'Working Sheet'!$B:$H,5,FALSE)","v":" "},{"$f":"IF(B5=\" \",\"0\", \"1\")","v":"0"}," "]
[null," ",{"$f":"VLOOKUP(B6,'Working Sheet'!$B:$H,5,FALSE)","v":" "},{"$f":"IF(B6=\" \",\"0\", \"1\")","v":"0"}]
[" "," ",{"$f":"VLOOKUP(B7,'Working Sheet'!$B:$H,5,FALSE)","v":" "},"0"," "]
[" "," ",{"$f":"VLOOKUP(B8,'Working Sheet'!$B:$H,5,FALSE)","v":" "},"0"]
[" "," ",{"$f":"VLOOKUP(B9,'Working Sheet'!$B:$H,5,FALSE)","v":" "},"0"," "]
[null," ",{"$f":"VLOOKUP(B10,'Working Sheet'!$B:$H,5,FALSE)","v":" "},"0"]
[" "," ",{"$f":"VLOOKUP(B11,'Working Sheet'!$B:$H,5,FALSE)","v":" "},"0"]
[" "," ",{"$f":"VLOOKUP(B12,'Working Sheet'!$B:$H,5,FALSE)","v":" "},"0"]
[null," ",{"$f":"VLOOKUP(B13,'Working Sheet'!$B:$H,5,FALSE)","v":" "},"0"]
[" "," ",{"$f":"VLOOKUP(B14,'Working Sheet'!$B:$H,5,FALSE)","v":" "},{"$f":"IF(B14=\" \",\"0\", \"1\")","v":"0"}]
[null," ",{"$f":"VLOOKUP(B15,'Working Sheet'!$B:$H,5,FALSE)","v":" "},{"$f":"IF(B15=\" \",\"0\", \"1\")","v":"0"}]
[null," "]
[{"$f":"SUM(A5:A15)","v":0},null,null,{"$f":"COUNTIFS(D5:D15, \"=1\")","v":0}]

{"sheet":"Hearing Impairment","index":2,"n_rows":17,"n_cols":5,"rows_kept":17,"cut":false,"hidden":false,"merged":[[1,0,1,4]]}
["PART TWO - School Support Services"]
["SPECIALIST DISABILITY SUPPORT IN SCHOOLS (SDSS) PROGRAM\nSCHOOL SUPPORT SERVICES\nHEARING IMPAIRMENT"]
[]
["Number of Students","Name of School Serviced","Address",null,"Education Sector"]
[null," ",{"$f":"VLOOKUP(B5,'Working Sheet'!$B:$H,5,FALSE)","v":" "},{"$f":"IF(B5=\" \", \"0\", \"1\")","v":"0"}]
[null," ",{"$f":"VLOOKUP(B6,'Working Sheet'!$B:$H,5,FALSE)","v":" "},{"$f":"IF(B6=\" \", \"0\", \"1\")","v":"0"}]
[null," ",{"$f":"VLOOKUP(B7,'Working Sheet'!$B:$H,5,FALSE)","v":" "},"0"]
[null," ",{"$f":"VLOOKUP(B8,'Working Sheet'!$B:$H,5,FALSE)","v":" "},"0"]
[null," ",{"$f":"VLOOKUP(B9,'Working Sheet'!$B:$H,5,FALSE)","v":" "},"0"]
[null," ",{"$f":"VLOOKUP(B10,'Working Sheet'!$B:$H,5,FALSE)","v":" "},"0"]
[" "," ",{"$f":"VLOOKUP(B11,'Working Sheet'!$B:$H,5,FALSE)","v":" "},"0"]
[" "," ",{"$f":"VLOOKUP(B12,'Working Sheet'!$B:$H,5,FALSE)","v":" "},"0"]
[null," ",{"$f":"VLOOKUP(B13,'Working Sheet'!$B:$H,5,FALSE)","v":" "},"0"]
[" "," ",{"$f":"VLOOKUP(B14,'Working Sheet'!$B:$H,5,FALSE)","v":" "},"0"]
[" "," ",{"$f":"VLOOKUP(B15,'Working Sheet'!$B:$H,5,FALSE)","v":" "},{"$f":"IF(B15=\" \", \"0\", \"1\")","v":"0"}]
[null," "]
[{"$f":"SUM(A5:A15)","v":0},null,null,{"$f":"COUNTIF(D5:D14, \"=1\")","v":0}]

{"sheet":"Intellectual Disability","index":3,"n_rows":17,"n_cols":5,"rows_kept":17,"cut":false,"hidden":false,"merged":[[1,0,1,4]]}
["PART TWO - School Support Services"]
["SPECIALIST DISABILITY SUPPORT IN SCHOOLS (SDSS) PROGRAM\nSCHOOL SUPPORT SERVICES\nINTELLECTUAL DISABILITY"]
[]
["Number of Students","Name of School Serviced","Address",null,"Education Sector"]
[null," ",{"$f":"VLOOKUP(B5,'Working Sheet'!$B:$H,5,FALSE)","v":" "},{"$f":"IF(B5=\" \", \"0\", \"1\")","v":"0"}]
[null," ",{"$f":"VLOOKUP(B6,'Working Sheet'!$B:$H,5,FALSE)","v":" "},{"$f":"IF(B6=\" \", \"0\", \"1\")","v":"0"}]
[null," ",{"$f":"VLOOKUP(B7,'Working Sheet'!$B:$H,5,FALSE)","v":" "},"0"]
[null," ",{"$f":"VLOOKUP(B8,'Working Sheet'!$B:$H,5,FALSE)","v":" "},"0"]
[null," ",{"$f":"VLOOKUP(B9,'Working Sheet'!$B:$H,5,FALSE)","v":" "},"0"]
[null," ",null,"0"]
[" "," ",{"$f":"VLOOKUP(B11,'Working Sheet'!$B:$H,5,FALSE)","v":" "},"0"]
[" "," ",{"$f":"VLOOKUP(B12,'Working Sheet'!$B:$H,5,FALSE)","v":" "},"0"]
[" "," ",{"$f":"VLOOKUP(B13,'Working Sheet'!$B:$H,5,FALSE)","v":" "},"0"]
[" "," ",{"$f":"VLOOKUP(B14,'Working Sheet'!$B:$H,5,FALSE)","v":" "},"0"]
[null," ",{"$f":"VLOOKUP(B15,'Working Sheet'!$B:$H,5,FALSE)","v":" "}]
[" "," ",{"$f":"VLOOKUP(B16,'Working Sheet'!$B:$H,5,FALSE)","v":" "},"0"]
[{"$f":"SUM(A5:A15)","v":0},null,null,{"$f":"COUNTIF(D5:D16,\"=1\")","v":0}]

{"sheet":"Physical Impairment","index":4,"n_rows":17,"n_cols":5,"rows_kept":17,"cut":false,"hidden":false,"merged":[[1,0,1,4]]}
["PART TWO - School Support Services"]
["SPECIALIST DISABILITY SUPPORT IN SCHOOLS (SDSS) PROGRAM\nSCHOOL SUPPORT SERVICES\nPHYSICAL IMPAIRMENT"]
[]
["Number of Students","Name of School Serviced","Address",null,"Education Sector"]
[null," ",{"$f":"VLOOKUP(B5,'Working Sheet'!$B:$H,5,FALSE)","v":" "},{"$f":"IF(B5=\" \", \"0\", \"1\")","v":"0"}]
[" "," ",{"$f":"VLOOKUP(B6,'Working Sheet'!$B:$H,5,FALSE)","v":" "},"0"]
[" "," ",{"$f":"VLOOKUP(B7,'Working Sheet'!$B:$H,5,FALSE)","v":" "},"0"]
[null," ",{"$f":"VLOOKUP(B8,'Working Sheet'!$B:$H,5,FALSE)","v":" "},"0"]
[null," ",{"$f":"VLOOKUP(B9,'Working Sheet'!$B:$H,5,FALSE)","v":" "},"0"]
[null," ",{"$f":"VLOOKUP(B10,'Working Sheet'!$B:$H,5,FALSE)","v":" "},"0"]
[" "," ",{"$f":"VLOOKUP(B11,'Working Sheet'!$B:$H,5,FALSE)","v":" "},"0"]
[" "," ",{"$f":"VLOOKUP(B12,'Working Sheet'!$B:$H,5,FALSE)","v":" "},"0"]
[null," ",{"$f":"VLOOKUP(B13,'Working Sheet'!$B:$H,5,FALSE)","v":" "},"0"]
[" "," ",{"$f":"VLOOKUP(B14,'Working Sheet'!$B:$H,5,FALSE)","v":" "},"0"]
[" "," ",{"$f":"VLOOKUP(B15,'Working Sheet'!$B:$H,5,FALSE)","v":" "},"0"]
[null," ",{"$f":"VLOOKUP(B16,'Working Sheet'!$B:$H,5,FALSE)","v":" "},"0"]
[{"$f":"SUM(A5:A15)","v":0},null,null,{"$f":"COUNTIF(D5:D16,\"=1\")","v":0}]

{"sheet":"Speech-Language Impairment","index":5,"n_rows":17,"n_cols":5,"rows_kept":17,"cut":false,"hidden":false,"merged":[[1,0,1,4]]}
["PART TWO - School Support Services"]
["SPECIALIST DISABILITY SUPPORT IN SCHOOLS (SDSS) PROGRAM\nSCHOOL SUPPORT SERVICES\nSPEECH-LANGUAGE IMPAIRMENT"]
[]
["Number of Students","Name of School Serviced","Address",null,"Education Sector"]
[null," ",{"$f":"VLOOKUP(B5,'Working Sheet'!$B:$H,5,FALSE)","v":" "},{"$f":"IF(B5=\" \",\"0\", \"1\")","v":"0"}," "]
[null," ",{"$f":"VLOOKUP(B6,'Working Sheet'!$B:$H,5,FALSE)","v":" "},{"$f":"IF(B6=\" \",\"0\", \"1\")","v":"0"}," "]
[null," ",{"$f":"VLOOKUP(B7,'Working Sheet'!$B:$H,5,FALSE)","v":" "},"0"]
[null," ",{"$f":"VLOOKUP(B8,'Working Sheet'!$B:$H,5,FALSE)","v":" "},"0"]
[null," ",{"$f":"VLOOKUP(B9,'Working Sheet'!$B:$H,5,FALSE)","v":" "},"0"]
[null," ",{"$f":"VLOOKUP(B10,'Working Sheet'!$B:$H,5,FALSE)","v":" "},"0"]
[" "," ",{"$f":"VLOOKUP(B11,'Working Sheet'!$B:$H,5,FALSE)","v":" "},"0"]
[" "," ",{"$f":"VLOOKUP(B12,'Working Sheet'!$B:$H,5,FALSE)","v":" "},"0"]
[null," ",{"$f":"VLOOKUP(B13,'Working Sheet'!$B:$H,5,FALSE)","v":" "},"0"]
[" "," ",{"$f":"VLOOKUP(B14,'Working Sheet'!$B:$H,5,FALSE)","v":" "},"0"]
[" "," ",{"$f":"VLOOKUP(B15,'Working Sheet'!$B:$H,5,FALSE)","v":" "},"0"]
[" "," ",{"$f":"VLOOKUP(B16,'Working Sheet'!$B:$H,5,FALSE)","v":" "},"0"," "]
[{"$f":"SUM(A5:A15)","v":0},null,null,{"$f":"COUNTIF(D5:D16,\"=1\")","v":0}]

{"sheet":"Vision Impairment","index":6,"n_rows":17,"n_cols":5,"rows_kept":17,"cut":false,"hidden":false,"merged":[[1,0,1,4]]}
["PART TWO - School Support Services"]
["SPECIALIST DISABILITY SUPPORT IN SCHOOLS (SDSS) PROGRAM\nSCHOOL SUPPORT SERVICES\nVISION IMPAIRMENT"]
[]
["Number of Students","Name of School Serviced","Address",null,"Education Sector"]
[null," ",{"$f":"VLOOKUP(B5,'Working Sheet'!$B:$H,5,FALSE)","v":" "},{"$f":"IF(B5=\" \", \"0\", \"1\")","v":"0"}]
[null," ",{"$f":"VLOOKUP(B6,'Working Sheet'!$B:$H,5,FALSE)","v":" "},{"$f":"IF(B6=\" \", \"0\", \"1\")","v":"0"}]
[null," ",{"$f":"VLOOKUP(B7,'Working Sheet'!$B:$H,5,FALSE)","v":" "},"0"]
[null," ",{"$f":"VLOOKUP(B8,'Working Sheet'!$B:$H,5,FALSE)","v":" "},"0"]
[null," ",{"$f":"VLOOKUP(B9,'Working Sheet'!$B:$H,5,FALSE)","v":" "},"0"]
[null," ",{"$f":"VLOOKUP(B10,'Working Sheet'!$B:$H,5,FALSE)","v":" "},"0"]
[" "," ",{"$f":"VLOOKUP(B11,'Working Sheet'!$B:$H,5,FALSE)","v":" "},"0"]
[" "," ",{"$f":"VLOOKUP(B12,'Working Sheet'!$B:$H,5,FALSE)","v":" "},"0"]
[" "," ",{"$f":"VLOOKUP(B13,'Working Sheet'!$B:$H,5,FALSE)","v":" "},"0"]
[null," ",{"$f":"VLOOKUP(B14,'Working Sheet'!$B:$H,5,FALSE)","v":" "},"0"]
[" "," ",{"$f":"VLOOKUP(B15,'Working Sheet'!$B:$H,5,FALSE)","v":" "},"0"]
[null," ",{"$f":"VLOOKUP(B16,'Working Sheet'!$B:$H,5,FALSE)","v":" "},"0"]
[{"$f":"SUM(A5:A15)","v":0},null,null,{"$f":"COUNTIF(D5:D16,\"=1\")","v":0}]

{"sheet":"Social Emotional Disorder","index":7,"n_rows":18,"n_cols":5,"rows_kept":18,"cut":false,"hidden":false,"merged":[[1,0,1,4],[17,0,17,1]]}
["PART TWO - School Support Services"]
["SPECIALIST DISABILITY SUPPORT IN SCHOOLS (SDSS) PROGRAM\nSCHOOL SUPPORT SERVICES\nSOCIAL EMOTIONAL DISORDER*"]
[]
["Number of Students","Name of School Serviced","Address",null,"Education Sector"]
[null," ",{"$f":"VLOOKUP(B5,'Working Sheet'!$B:$H,5,FALSE)","v":" "},{"$f":"IF(B5=\" \", \"0\", \"1\")","v":"0"}]
[" "," ",{"$f":"VLOOKUP(B6,'Working Sheet'!$B:$H,5,FALSE)","v":" "},{"$f":"IF(B6=\" \", \"0\", \"1\")","v":"0"}]
[" ",null,null,"1"," "]
[null,null,null,"1"]
[null,null,null,"1"]
[null,null,null,"1"]
[null,null,null,"1"]
[" ",null,null,"1"]
[" ",null,null,"1"]
[]
[" ",null,null,"1"]
[null,null,null,"1"]
[{"$f":"SUM(A5:A15)","v":0},null,null,{"$f":"COUNTIF(D5:D16,\"=1\")","v":9}]
["* Students of State schools will only be considered in very limited circumstances where clear demonstration can be shown that existing State resources do not exist for the school/s identified. Please contact the SDSS Team to discuss prior to submitting an application."]

{"sheet":"Working Sheet","index":8,"n_rows":2753,"n_cols":11,"rows_kept":2753,"cut":false,"hidden":true,"merged":[]}
["Centre_Code","Centre_Name","Actual_Address_Line_1","Actual_Address_Line_2","Actual_Address_Post_Code","Merged Address","Geographical_Region_Code","Centre_Type","# of Students"]
[null," ",null,null,null," "," "," ","  "]
[null,null,null,null,null,"Address will populate automatically when school is selected"]
[null," ",null,null,null,null,null,null," "]
[5817,"A B Paterson College (Arundel)","10 A B Paterson Drive","Arundel",4214,"10 A B Paterson Drive, Arundel, 4214","SER","Non-State School",0," "," "]
[591,"Abercorn State School","957 Wuruma Dam Road","Abercorn",4627,"957 Wuruma Dam Road, Abercorn, 4627","CQR","State School",1,"State","*State"]
[1275,"Abergowrie State School","5 Venables Road","Abergowrie",4850,"5 Venables Road, Abergowrie, 4850","NQR","State School",2,"Catholic","Catholic"]
[5588,"Aboriginal & Islander Independent Community School (Acacia Ridge)","1277 Beaudesert Road","Acacia Ridge",4110,"1277 Beaudesert Road, Acacia Ridge, 4110","MER","Non-State School",3,"Independent","Independent"]
[3454,"Acacia Ridge SS - Special Education Program","c/- State School, Nyngam Street","Acacia Ridge",4110,"c/- State School, Nyngam Street, Acacia Ridge, 4110","MER","Special Education Program",4]
[25,"Acacia Ridge State School","Nyngam Street","Acacia Ridge",4110,"Nyngam Street, Acacia Ridge, 4110","MER","State School",5]
[5676,"ACE Positive Learning Centre","Edmund Street","Kippa-Ring",4021,"Edmund Street, Kippa-Ring, 4021","NCR","Positive Learning Centre",6]
[1983,"Agnes Water State School","1 Donohue Drive","Agnes Water",4677,"1 Donohue Drive, Agnes Water, 4677","NCR","State School",7]
[2423,"Agnew School (Maryborough)","19 Fazio Road","St Helens",4650,"19 Fazio Road, St Helens, 4650","NCR","Associated Facility",8]
[2424,"Agnew School (Nambour)","281 Windsor Road","Nambour",4560,"281 Windsor Road, Nambour, 4560","NCR","Associated Facility",9]
[2425,"Agnew School (Toowoomba)","40 Gerrard Street","Toowoomba",4350,"40 Gerrard Street, Toowoomba, 4350","DSR","Associated Facility",10]
[598,"Airville State School","Old Clare Road","Airville",4807,"Old Clare Road, Airville, 4807","NQR","State School",11]
[7559,"Aitkenvale SS Special Education Unit (ESL)","67-85 Wotton Street","Aitkenvale",4814,"67-85 Wotton Street, Aitkenvale, 4814","NQR","Intensive English Centre",12]
[801,"Aitkenvale State School","67-85 Wotton Street","Aitkenvale",4814,"67-85 Wotton Street, Aitkenvale, 4814","NQR","State School",13]
[5661,"Albany Creek SHS - Special Education Program","c/- Albany Creek SHS, Albany Forest Drive","Albany Creek",4035,"c/- Albany Creek SHS, Albany Forest Drive, Albany Creek, 4035","MER","Special Education Program",14]
[5804,"Albany Creek SS - Special Education Program","696 Albany Creek Road","Albany Creek",4035,"696 Albany Creek Road, Albany Creek, 4035","MER","Special Education Program",15]
[2155,"Albany Creek State High School","Albany Forest Drive","Albany Creek",4035,"Albany Forest Drive, Albany Creek, 4035","MER","State High School",16]
[190,"Albany Creek State School","696 Albany Creek Road","Albany Creek",4035,"696 Albany Creek Road, Albany Creek, 4035","MER","State School",17]
[5805,"Albany Hills SS - Special Education Program","Keong Road","Albany Creek",4035,"Keong Road, Albany Creek, 4035","MER","Special Education Program",18]
[1892,"Albany Hills State School","Keong Road","Albany Creek",4035,"Keong Road, Albany Creek, 4035","MER","State School",19]
[5636,"Albert Park Flexible Learning Centre (Milton)","1 Hale Street","Milton",4064,"1 Hale Street, Milton, 4064","MER","Non-State School",20]
[38,"Albert State School","210-220 Albert Street","Maryborough",4650,"210-220 Albert Street, Maryborough, 4650","NCR","State School",21]
[2321,"Aldridge SHS - Special Education Program","Boys Avenue","Maryborough",4650,"Boys Avenue, Maryborough, 4650","NCR","Special Education Program",22]
[2017,"Aldridge State High School","Boys Avenue","Maryborough",4650,"Boys Avenue, Maryborough, 4650","NCR","State High School",23]
[1963,"Alexandra Bay State School","Lot 1 Cape Tribulation Road","Diwan",4873,"Lot 1 Cape Tribulation Road, Diwan, 4873","FNR","State School",24]
[1642,"Alexandra Hills SHS - Special Education Program","Windemere Road","Alexandra Hills",4161,"Windemere Road, Alexandra Hills, 4161","SER","Special Education Program",25]
[5163,"Alexandra Hills SS - Special Education Program","12 Princeton Avenue","Alexandra Hills",4161,"12 Princeton Avenue, Alexandra Hills, 4161","SER","Special Education Program",26]
[2175,"Alexandra Hills State High School","Windemere Road","Alexandra Hills",4161,"Windemere Road, Alexandra Hills, 4161","SER","State High School",27]
[405,"Alexandra Hills State School","12 Princeton Avenue","Alexandra Hills",4161,"12 Princeton Avenue, Alexandra Hills, 4161","SER","State School",28]
[5806,"Algester SS - Special Education Program","19 Endiandra Street","Algester",4115,"19 Endiandra Street, Algester, 4115","MER","Special Education Program",29]
[1866,"Algester State School","19 Endiandra Street","Algester",4115,"19 Endiandra Street, Algester, 4115","MER","State School",30]
[5369,"All Hallows' School (Brisbane)","547 Ann Street","Brisbane",4000,"547 Ann Street, Brisbane, 4000","MER","Non-State School",31]
[5452,"All Saints Anglican School (Merrimac)","Highfield Drive","Merrimac",4226,"Highfield Drive, Merrimac, 4226","SER","Non-State School",32]
[5600,"All Saints Primary School (Albany Creek)","4 Faheys Road East","Albany Creek",4035,"4 Faheys Road East, Albany Creek, 4035","MER","Non-State School",33]
[5111,"All Saints' School (Boonah)","15 Oliver Street","Boonah",4310,"15 Oliver Street, Boonah, 4310","SER","Non-State School",34]
[5451,"All Souls St Gabriels School (Charters Towers)","30 Dr George Ellis Drive","Charters Towers",4820,"30 Dr George Ellis Drive, Charters Towers, 4820","NQR","Non-State School",35]
[2206,"Allenstown SS - Special Education Program","Allenstown State School, Upper Dawson Road","Allenstown",4700,"Allenstown State School, Upper Dawson Road, Allenstown, 4700","CQR","Special Education Program",36]
[155,"Allenstown State School","Upper Dawson Road","Allenstown",4700,"Upper Dawson Road, Allenstown, 4700","CQR","State School",37]
["A006","Alligator Creek SS - Special Education Program","50 Grasstree Road","Alligator Creek",4740,"50 Grasstree Road, Alligator Creek, 4740","CQR","Special Education Program",38]
[773,"Alligator Creek State School","50 Grasstree Road","Alligator Creek",4740,"50 Grasstree Road, Alligator Creek, 4740","CQR","State School",39]
[3,"Allora P-10 State School","21 Warwick Street","Allora",4362,"21 Warwick Street, Allora, 4362","DSR","State School",40]
[5807,"Allora SS - Special Education Program","21 Warwick Street","Allora",4362,"21 Warwick Street, Allora, 4362","DSR","Special Education Program",41]
[430,"Alloway State School","4334 Goodwood Road","Alloway",4670,"4334 Goodwood Road, Alloway, 4670","NCR","State School",42]
[870,"Aloomba State School","Nielsen Street","Aloomba",4871,"Nielsen Street, Aloomba, 4871","FNR","State School",43]
[517,"Alpha State School","Milton Street","Alpha",4724,"Milton Street, Alpha, 4724","CQR","State School",44]
[9628,"Alta-1 College (Caboolture)","Destiny Church, 94 Parish Road","Caboolture",4510,"Destiny Church, 94 Parish Road, Caboolture, 4510","NCR","Non-State School",45]
["A010","Alta-1 College (Distance)","Destiny Church, 94 Parish Road","Caboolture",4510,"Destiny Church, 94 Parish Road, Caboolture, 4510","NCR","Non State School Distance Education",46]
[1719,"Amamoor State School","2 Elizabeth Street","Amamoor",4570,"2 Elizabeth Street, Amamoor, 4570","NCR","State School",47]
[3553,"Amaroo Environmental Education Centre","90 Kleinton School Road","Kleinton",4352,"90 Kleinton School Road, Kleinton, 4352","DSR","Outdoor and Environmental Education Centre",48]
[6590,"Amberley District SS - Special Education Program","37 Deebing Creek Road","Yamanto",4305,"37 Deebing Creek Road, Yamanto, 4305","MER","Special Education Program",49]
[115,"Amberley District State School","37 Deebing Creek Road","Yamanto",4305,"37 Deebing Creek Road, Yamanto, 4305","MER","State School",50]
[1415,"Ambrose State School","39 Gentle Annie Road","Ambrose",4695,"39 Gentle Annie Road, Ambrose, 4695","CQR","State School",51]
[5077,"Ambrose Treacy College (Indooroopilly)","Twigg Street","Indooroopilly",4068,"Twigg Street, Indooroopilly, 4068","MER","Non-State School",52]
[1629,"Amiens State School","1337 Amiens Road","Amiens",4380,"1337 Amiens Road, Amiens, 4380","DSR","State School",53]
[474,"Anakie State School","Cook Street","The Gemfields",4702,"Cook Street, The Gemfields, 4702","CQR","State School",54]
[9933,"Andergrove SS - Special Education Program","Fernleigh Avenue","Andergrove",4740,"Fernleigh Avenue, Andergrove, 4740","CQR","Special Education Program",55]
[1572,"Andergrove State School","Fernleigh Avenue","Andergrove",4740,"Fernleigh Avenue, Andergrove, 4740","CQR","State School",56]
["A086","Angelorum College (Distance)","377 St Pauls Terrace","Fortitude Valley",4006,"377 St Pauls Terrace, Fortitude Valley, 4006","MER","Non State School Distance Education",57]
["A057","Angelorum College (Fortitude Valley)","377 St Pauls Terrace","Fortitude Valley",4006,"377 St Pauls Terrace, Fortitude Valley, 4006","MER","Non-State School",58]
[5446,"Anglican Church Grammar School (East Brisbane)","Oaklands Parade","East Brisbane",4169,"Oaklands Parade, East Brisbane, 4169","MER","Non-State School",59]
[5573,"Annandale Christian College (Annandale)","104-156 Yolanda Drive","Annandale",4814,"104-156 Yolanda Drive, Annandale, 4814","NQR","Non-State School",60]
[5809,"Annandale SS - Special Education Program","Cnr Oleander Street & Yolanda Drive","Annandale",4814,"Cnr Oleander Street & Yolanda Drive, Annandale, 4814","NQR","Special Education Program",61]
[440,"Annandale State School","Cnr Oleander Street & Yolanda Drive","Annandale",4814,"Cnr Oleander Street & Yolanda Drive, Annandale, 4814","NQR","State School",62]
[1294,"Applethorpe State School","25576 New England Highway","Applethorpe",4378,"25576 New England Highway, Applethorpe, 4378","DSR","State School",63]
[5316,"Aquinas College (Ashmore)","Edmund Rice Drive","Ashmore",4214,"Edmund Rice Drive, Ashmore, 4214","SER","Non-State School",64]
[312,"Aramac State School","69 Porter Street","Aramac",4726,"69 Porter Street, Aramac, 4726","CQR","State School",65]
[1266,"Aratula State School","41 Elizabeth Street","Aratula",4309,"41 Elizabeth Street, Aratula, 4309","SER","State School",66]
[9087,"Arcadia College (Varsity Lakes)","1 Bellvue Drive","Varsity Lakes",4227,"1 Bellvue Drive, Varsity Lakes, 4227","SER","Non-State School",67]
[813,"Arcadia Valley State School","4831 Arcadia Valley Road","Arcadia Valley",4454,"4831 Arcadia Valley Road, Arcadia Valley, 4454","DSR","State School",68]
["A740","Arethusa College (Deception Bay)","1-83 Deception Bay Road","Deception Bay",4508,"1-83 Deception Bay Road, Deception Bay, 4508","NCR","Non-State School",69]
["A741","Arethusa College (Spring Hill)","25 Quarry Street","Spring Hill",4004,"25 Quarry Street, Spring Hill, 4004","MER","Associated Facility",70]
["A742","Arethusa College (Windsor)","356 Lutwyche Road","Windsor",4030,"356 Lutwyche Road, Windsor, 4030","MER","Associated Facility",71]
[6604,"Arundel Early Intervention Centre","9a Byth Street","Arundel",4214,"9a Byth Street, Arundel, 4214","SER","Support Unit (Other)",72]
[3288,"Arundel SS - Special Education Program","Cnr Napper Road & Arundel Drive","Arundel",4214,"Cnr Napper Road & Arundel Drive, Arundel, 4214","SER","Special Education Program",73]
[1997,"Arundel State School","Cnr Napper Road & Arundel Drive","Arundel",4214,"Cnr Napper Road & Arundel Drive, Arundel, 4214","SER","State School",74]
[9988,"Ascot SS - Special Education Program","Pringle Street","Ascot",4007,"Pringle Street, Ascot, 4007","MER","Special Education Program",75]
[296,"Ascot State School","Pringle Street","Ascot",4007,"Pringle Street, Ascot, 4007","MER","State School",76]
[9782,"Ashgrove SS - Special Education Program","31 Glory Street","Ashgrove",4060,"31 Glory Street, Ashgrove, 4060","MER","Special Education Program",77]
[186,"Ashgrove State School","31 Glory Street","Ashgrove",4060,"31 Glory Street, Ashgrove, 4060","MER","State School",78]
[6159,"Ashmore SS - Special Education Program","Currumburra Road","Ashmore",4214,"Currumburra Road, Ashmore, 4214","SER","Special Education Program",79]
[1871,"Ashmore State School","Currumburra Road","Ashmore",4214,"Currumburra Road, Ashmore, 4214","SER","State School",80]
[512,"Ashwell State School","35 Reinke Road","Ashwell",4340,"35 Reinke Road, Ashwell, 4340","MER","State School",81]
[3515,"Aspley East SS - Special Education Program","31 Helena Street","Aspley",4034,"31 Helena Street, Aspley, 4034","MER","Special Education Program",82]
[1004,"Aspley East State School","31 Helena Street","Aspley",4034,"31 Helena Street, Aspley, 4034","MER","State School",83]
[534,"Aspley SHS - Special Education Program","651 Zillmere Road","Aspley",4034,"651 Zillmere Road, Aspley, 4034","MER","Special Education Program",84]
[9920,"Aspley SHS Intensive English Centre","Aspley State High School, 651 Zillmere Road","Aspley",4034,"Aspley State High School, 651 Zillmere Road, Aspley, 4034","MER","Intensive English Centre",85]
[3031,"Aspley Special School","751 Zillmere Road","Aspley",4034,"751 Zillmere Road, Aspley, 4034","MER","Special School",86]
[6053,"Aspley SS - Special Education Program","Maundrell Terrace","Aspley",4034,"Maundrell Terrace, Aspley, 4034","MER","Special Education Program",87]
[2076,"Aspley State High School","651 Zillmere Road","Aspley",4034,"651 Zillmere Road, Aspley, 4034","MER","State High School",88]
[610,"Aspley State School","Maundrell Terrace","Aspley",4034,"Maundrell Terrace, Aspley, 4034","MER","State School",89]
[5313,"Assisi Catholic College (Upper Coomera)","173 Billinghurst Crescent","Upper Coomera",4209,"173 Billinghurst Crescent, Upper Coomera, 4209","SER","Non-State School",90]
[5393,"Assumption College (Warwick)","6 Locke Street","Warwick",4370,"6 Locke Street, Warwick, 4370","DSR","Non-State School",91]
[3257,"Atherton SHS - Special Education Program","Maunds Road","Atherton",4883,"Maunds Road, Atherton, 4883","FNR","Special Education Program",92]
[3430,"Atherton SS - Special Education Program","Armstrong Street","Atherton",4883,"Armstrong Street, Atherton, 4883","FNR","Special Education Program",93]
[2051,"Atherton State High School","Maunds Road","Atherton",4883,"Maunds Road, Atherton, 4883","FNR","State High School",94]
[789,"Atherton State School","Armstrong Street","Atherton",4883,"Armstrong Street, Atherton, 4883","FNR","State School",95]
[357,"Augathella State School","Cavanagh Street","Augathella",4477,"Cavanagh Street, Augathella, 4477","DSR","State School",96]
[7351,"Augusta SS - Special Education Program","60-100 Brittains Road","Augustine Heights",4300,"60-100 Brittains Road, Augustine Heights, 4300","MER","Special Education Program",97]
[7120,"Augusta State School","60-100 Brittains Road","Augustine Heights",4300,"60-100 Brittains Road, Augustine Heights, 4300","MER","State School",98]
["A073","Aurukun SS - Special Education Program","Wuungkam Street","Aurukun",4892,"Wuungkam Street, Aurukun, 4892","FNR","Special Education Program",99]
[274,"Aurukun State School","Wuungkam Street","Aurukun",4892,"Wuungkam Street, Aurukun, 4892","FNR","State School",100]
[1677,"Australian Christian College - Moreton (Caboolture)","34 Cottrill Road","Caboolture",4510,"34 Cottrill Road, Caboolture, 4510","NCR","Non-State School",101]
[6143,"Australian Christian College Moreton (Distance)","34 Cottrill Road","Caboolture",4510,"34 Cottrill Road, Caboolture, 4510","NCR","Non State School Distance Education",102]
["A818","Australian Industry Trade College - Ipswich (North Ipswich)","17 Lowry Street","North Ipswich",4305,"17 Lowry Street, North Ipswich, 4305","MER","Non-State School",103]
[9979,"Australian Industry Trade College - Redlands (Cleveland)","233 Middle Street","Cleveland",4163,"233 Middle Street, Cleveland, 4163","SER","Non-State School",104]
["A798","Australian Industry Trade College - Toowoomba (Toowoomba City)","1-3 Russell Street","Toowoomba City",4350,"1-3 Russell Street, Toowoomba City, 4350","DSR","Non-State School",105]
["A682","Australian Industry Trade College (Maroochydore)","170 Horton Parade","Maroochydore",4558,"170 Horton Parade, Maroochydore, 4558","NCR","Associated Facility",106]
[5740,"Australian Industry Trade College (Robina)","281 Scottsdale Drive","Robina",4226,"281 Scottsdale Drive, Robina, 4226","SER","Non-State School",107]
[2357,"Australian International Islamic College (Buranda)","6 Agnes Street","Buranda",4102,"6 Agnes Street, Buranda, 4102","MER","Associated Facility",108]
[6057,"Australian International Islamic College (Carrara)","19 Chisholm Road","Carrara",4211,"19 Chisholm Road, Carrara, 4211","SER","Associated Facility",109]
[5396,"Australian International Islamic College (Durack)","724 Blunder Road","Durack",4077,"724 Blunder Road, Durack, 4077","MER","Non-State School",110]
[9977,"Australian Technology and Agricultural College (North Maclean)","Cnr Mt Lindesay Highway and Trace Road","North Maclean",4280,"Cnr Mt Lindesay Highway and Trace Road, North Maclean, 4280","SER","Non-State School",111]
[5690,"Australian Trade College North Brisbane (Scarborough)","294 Scarborough Road","Scarborough",4020,"294 Scarborough Road, Scarborough, 4020","NCR","Non-State School",112]
[5894,"Autism Queensland Education & Therapy Centre (Brighton)","136 North Road","Brighton",4017,"136 North Road, Brighton, 4017","MER","Associated Facility",113]
["A756","Autism Queensland Education & Therapy Centre (Edmonton)","15-17  Marr Street","Edmonton",4869,"15-17  Marr Street, Edmonton, 4869","FNR","Associated Facility",114]
[5893,"Autism Queensland Education & Therapy Centre (Sunnybank Hills)","437 Hellawell Road","Sunnybank Hills",4109,"437 Hellawell Road, Sunnybank Hills, 4109","MER","Non-State School",115]
[2078,"Aviation High","Widdop Street","Hendra",4011,"Widdop Street, Hendra, 4011","MER","State High School",116]
[6160,"Avoca SS - Special Education Program","Twyford Street","Avoca",4670,"Twyford Street, Avoca, 4670","NCR","Special Education Program",117]
[1901,"Avoca State School","Twyford Street","Avoca",4670,"Twyford Street, Avoca, 4670","NCR","State School",118]
[572,"Avondale State School","371 Avondale Road","Avondale",4670,"371 Avondale Road, Avondale, 4670","NCR","State School",119]
[5289,"Ayr SHS - Special Education Program","Cnr Edwards & Wickham Streets","Ayr",4807,"Cnr Edwards & Wickham Streets, Ayr, 4807","NQR","Special Education Program",120]
[2008,"Ayr State High School","Cnr Edwards & Wickham Streets","Ayr",4807,"Cnr Edwards & Wickham Streets, Ayr, 4807","NQR","State High School",121]
[451,"Ayr State School","141 Graham Street","Ayr",4807,"141 Graham Street, Ayr, 4807","NQR","State School",122]
[5813,"Babinda SS - Special Education Program","Boulders Road","Babinda",4861,"Boulders Road, Babinda, 4861","FNR","Special Education Program",123]
[1466,"Babinda State School","Boulders Road","Babinda",4861,"Boulders Road, Babinda, 4861","FNR","State School",124]
[317,"Back Plains State School","874 Clifton-Pittsworth Highway","Back Plains",4361,"874 Clifton-Pittsworth Highway, Back Plains, 4361","DSR","State School",125]
[906,"Bajool State School","Toonda Street","Bajool",4699,"Toonda Street, Bajool, 4699","CQR","State School",126]
[5818,"Balaclava SS - Special Education Program","418 Mulgrave Road","Mooroobool",4870,"418 Mulgrave Road, Mooroobool, 4870","FNR","Special Education Program",127]
[1689,"Balaclava State School","418 Mulgrave Road","Mooroobool",4870,"418 Mulgrave Road, Mooroobool, 4870","FNR","State School",128]
[6161,"Bald Hills SS - Special Education Program","2156 Gympie Road","Bald Hills",4036,"2156 Gympie Road, Bald Hills, 4036","MER","Special Education Program",129]
[4,"Bald Hills State School","2156 Gympie Road","Bald Hills",4036,"2156 Gympie Road, Bald Hills, 4036","MER","State School",130]
[1164,"Ballandean State School","Bent's Road","Ballandean",4382,"Bent's Road, Ballandean, 4382","DSR","State School",131]
[5819,"Balmoral SHS - Special Education Program","Cnr Thynne & Lytton Roads","Balmoral",4171,"Cnr Thynne & Lytton Roads, Balmoral, 4171","MER","Special Education Program",132]
[2043,"Balmoral State High School","Cnr Thynne & Lytton Roads","Balmoral",4171,"Cnr Thynne & Lytton Roads, Balmoral, 4171","MER","State High School",133]
[521,"Banana State School","32 Bramston Street","Banana",4702,"32 Bramston Street, Banana, 4702","CQR","State School",134]
[3542,"Banksia Beach SS - Special Education Program","c/- Banksia Beach SS, Sunderland Road","Banksia Beach",4507,"c/- Banksia Beach SS, Sunderland Road, Banksia Beach, 4507","NCR","Special Education Program",135]
[1989,"Banksia Beach State School","Sunderland Road","Banksia Beach",4507,"Sunderland Road, Banksia Beach, 4507","NCR","State School",136]
[1605,"Baralaba State School","1 Power Street","Baralaba",4702,"1 Power Street, Baralaba, 4702","CQR","State School",137]
[3469,"Barambah Cluster - Special Education Program","91 Gore Street","Murgon",4605,"91 Gore Street, Murgon, 4605","DSR","Special Education Program",138]
[3562,"Barambah Environmental Education Centre","301 A Flat Road","Wrattens Forest",4601,"301 A Flat Road, Wrattens Forest, 4601","NCR","Outdoor and Environmental Education Centre",139]
[531,"Barcaldine Prep-12 State School","Gidyea Street","Barcaldine",4725,"Gidyea Street, Barcaldine, 4725","CQR","State School",140]
[5820,"Barcaldine SS - Special Education Program","Gidyea Street","Barcaldine",4725,"Gidyea Street, Barcaldine, 4725","CQR","Special Education Program",141]
[3409,"Bardon Road Behaviour Support Unit","165 Bardon Road","Berrinba",4117,"165 Bardon Road, Berrinba, 4117","SER","Support Unit (Other)",142]
[1041,"Bardon State School","330 Simpsons Road","Bardon",4065,"330 Simpsons Road, Bardon, 4065","MER","State School",143]
[702,"Bargara State School","591 Bargara Road","Mon Repos",4670,"591 Bargara Road, Mon Repos, 4670","NCR","State School",144]
["A630","Baringa SS - Special Education Program","30 Baringa Drive","Caloundra South",4551,"30 Baringa Drive, Caloundra South, 4551","NCR","Special Education Program",145]
["A109","Baringa State Primary School","30 Baringa Drive","Caloundra South",4551,"30 Baringa Drive, Caloundra South, 4551","NCR","State School",146]
[3393,"Barkly Highway SS - Special Education Program","3-17 Bougainville Street","Soldiers Hill",4825,"3-17 Bougainville Street, Soldiers Hill, 4825","NQR","Special Education Program",147]
[777,"Barkly Highway State School","3-17 Bougainville Street","Mount Isa",4825,"3-17 Bougainville Street, Mount Isa, 4825","NQR","State School",148]
[3056,"Barrett Adolescent Centre Special School","38 Lofter Street","Tennyson",4105,"38 Lofter Street, Tennyson, 4105","MER","Specific Purpose School",149]
[1730,"Bartle Frere State School","29 Price Road","Bartle Frere",4861,"29 Price Road, Bartle Frere, 4861","FNR","State School",150]
[387,"Bauhinia State School","11559 Fitzroy Development Road","Bauhinia",4718,"11559 Fitzroy Development Road, Bauhinia, 4718","CQR","State School",151]
[966,"Bauple State School","44 Forestry Road","Bauple",4650,"44 Forestry Road, Bauple, 4650","NCR","State School",152]
[1798,"Bay View State School","77 Ziegenfusz Road","Thornlands",4164,"77 Ziegenfusz Road, Thornlands, 4164","SER","State School",153]
[6630,"Bay View State School - Special Education Program","77 Ziegenfusz Road","Thornlands",4164,"77 Ziegenfusz Road, Thornlands, 4164","SER","Special Education Program",154]
[5579,"Bayside Christian College Hervey Bay (Urraween)","171 Pantlins Lane","Urraween",4655,"171 Pantlins Lane, Urraween, 4655","NCR","Non-State School",155]
[7959,"Beachmere SS - Special Education Program","James Road","Beachmere",4510,"James Road, Beachmere, 4510","NCR","Special Education Program",156]
[1961,"Beachmere State School","James Road","Beachmere",4510,"James Road, Beachmere, 4510","NCR","State School",157]
[5821,"Beaconsfield SS Cluster - Special Education Program","Nadina Street","Beaconsfield",4740,"Nadina Street, Beaconsfield, 4740","CQR","Special Education Program",158]
[1672,"Beaconsfield State School","Nadina Street","Beaconsfield",4740,"Nadina Street, Beaconsfield, 4740","CQR","State School",159]
[2192,"Beaudesert SHS - Special Education Program","Beaudesert SHS, 271-297 Brisbane Street","Beaudesert",4285,"Beaudesert SHS, 271-297 Brisbane Street, Beaudesert, 4285","SER","Special Education Program",160]
[3431,"Beaudesert SS - Special Education Program","Beaudesert Special Ed Unit, Eaglesfield Street","Beaudesert",4285,"Beaudesert Special Ed Unit, Eaglesfield Street, Beaudesert, 4285","SER","Special Education Program",161]
[2083,"Beaudesert State High School","271-297 Brisbane Street","Beaudesert",4285,"271-297 Brisbane Street, Beaudesert, 4285","SER","State High School",162]
[158,"Beaudesert State School","17 Tina Street","Beaudesert",4285,"17 Tina Street, Beaudesert, 4285","SER","State School",163]
[1019,"Bedourie State School","Timor Street","Bedourie",4829,"Timor Street, Bedourie, 4829","CQR","State School",164]
["A763","Beechmont SS - Special Education Program","1922 Beechmont Road","Beechmont",4211,"1922 Beechmont Road, Beechmont, 4211","SER","Special Education Program",165]
[681,"Beechmont State School","1922 Beechmont Road","Beechmont",4211,"1922 Beechmont Road, Beechmont, 4211","SER","State School",166]
[2281,"Beenleigh SHS - Special Education Program","Alamein Street","Beenleigh",4207,"Alamein Street, Beenleigh, 4207","SER","Special Education Program",167]
[3051,"Beenleigh Special School","52-74 Mount Warren Boulevard","Mount Warren Park",4207,"52-74 Mount Warren Boulevard, Mount Warren Park, 4207","SER","Special School",168]
[5822,"Beenleigh SS - Special Education Program","22 James Street","Beenleigh",4207,"22 James Street, Beenleigh, 4207","SER","Special Education Program",169]
[2084,"Beenleigh State High School","Alamein Street","Beenleigh",4207,"Alamein Street, Beenleigh, 4207","SER","State High School",170]
[6,"Beenleigh State School","22 James Street","Beenleigh",4207,"22 James Street, Beenleigh, 4207","SER","State School",171]
[1598,"Beerburrum State School","8 Beerburrum Road","Beerburrum",4517,"8 Beerburrum Road, Beerburrum, 4517","NCR","State School",172]
[5823,"Beerwah SHS - Special Education Program","35 Roberts Road","Beerwah",4519,"35 Roberts Road, Beerwah, 4519","NCR","Special Education Program",173]
[3296,"Beerwah SS - Special Education Program","2788 Old Gympie Road","Beerwah",4519,"2788 Old Gympie Road, Beerwah, 4519","NCR","Special Education Program",174]
[2109,"Beerwah State High School","35 Roberts Road","Beerwah",4519,"35 Roberts Road, Beerwah, 4519","NCR","State High School",175]
[569,"Beerwah State School","2788 Old Gympie Road","Beerwah",4519,"2788 Old Gympie Road, Beerwah, 4519","NCR","State School",176]
[187,"Begonia State School","St George-Mitchell Road","Begonia",4487,"St George-Mitchell Road, Begonia, 4487","DSR","State School",177]
[5824,"Belgian Gardens SS - Special Education Program","43 Potts Street","Belgian Gardens",4810,"43 Potts Street, Belgian Gardens, 4810","NQR","Special Education Program",178]
[509,"Belgian Gardens State School","43 Potts Street","Belgian Gardens",4810,"43 Potts Street, Belgian Gardens, 4810","NQR","State School",179]
[781,"Bell State School","90 Dennis Street","Bell",4408,"90 Dennis Street, Bell, 4408","DSR","State School",180]
["A862","Bellbird Park SSC - Special Education Program","2 Alesana Drive","Bellbird Park ",4300,"2 Alesana Drive, Bellbird Park , 4300","MER","Special Education Program",181]
[9322,"Bellbird Park State Secondary College","2 Alesana Drive","Bellbird Park",4300,"2 Alesana Drive, Bellbird Park, 4300","MER","State High School",182]
[1768,"Bellenden Ker State School","Harvey Creek Road","Bellenden Ker",4871,"Harvey Creek Road, Bellenden Ker, 4871","FNR","State School",183]
[6163,"Bellevue Park SS - Special Education Program","Sapium Road","Ashmore",4214,"Sapium Road, Ashmore, 4214","SER","Special Education Program",184]
[1925,"Bellevue Park State School","Sapium Road","Ashmore",4214,"Sapium Road, Ashmore, 4214","SER","State School",185]
[9997,"Bellmere SS - Special Education Program","176 Dobson Lane","Bellmere",4510,"176 Dobson Lane, Bellmere, 4510","NCR","Special Education Program",186]
[9319,"Bellmere State School","176 Dobson Lane","Bellmere",4510,"176 Dobson Lane, Bellmere, 4510","NCR","State School",187]
[5257,"Belmont SS - Special Education Program","Old Cleveland Road","Carindale",4152,"Old Cleveland Road, Carindale, 4152","MER","Special Education Program",188]
[226,"Belmont State School","Old Cleveland Road","Carindale",4152,"Old Cleveland Road, Carindale, 4152","MER","State School",189]
[393,"Benaraby State School","17 O'Connor Road","Benaraby",4680,"17 O'Connor Road, Benaraby, 4680","CQR","State School",190]
[1631,"Benarkin State School","Scott Street","Benarkin",4306,"Scott Street, Benarkin, 4306","DSR","State School",191]
[6164,"Benowa SHS - Special Education Program","Mediterranean Drive","Benowa",4217,"Mediterranean Drive, Benowa, 4217","SER","Special Education Program",192]
[6054,"Benowa SS - Special Education Program","314-358 Benowa Road","Benowa",4217,"314-358 Benowa Road, Benowa, 4217","SER","Special Education Program",193]
[2150,"Benowa State High School","Mediterranean Drive","Benowa",4217,"Mediterranean Drive, Benowa, 4217","SER","State High School",194]
[481,"Benowa State School","314-358 Benowa Road","Benowa",4217,"314-358 Benowa Road, Benowa, 4217","SER","State School",195]
[452,"Bentley Park College","McLaughlin Road","Bentley Park",4869,"McLaughlin Road, Bentley Park, 4869","FNR","State School",196]
[2239,"Bentley Park College - Special Education Program","McLaughlin Road","Bentley Park",4869,"McLaughlin Road, Bentley Park, 4869","FNR","Special Education Program",197]
[5725,"Berrinba East SS - Special Education Program","c/- Berrinba East SS, 165 Bardon Road","Berrinba",4117,"c/- Berrinba East SS, 165 Bardon Road, Berrinba, 4117","SER","Special Education Program",198]
[1867,"Berrinba East State School","165 Bardon Road","Berrinba",4117,"165 Bardon Road, Berrinba, 4117","SER","State School",199]
[5272,"Berserker Street SS - Special Education Program","Berserker Street","Berserker",4701,"Berserker Street, Berserker, 4701","CQR","Special Education Program",200]
[1546,"Berserker Street State School","Berserker Street","Berserker",4701,"Berserker Street, Berserker, 4701","CQR","State School",201]
[5491,"Bethania Lutheran Primary School (Bethania)","66 Glastonbury Drive","Bethania",4205,"66 Glastonbury Drive, Bethania, 4205","SER","Non-State School",202]
[5761,"Bethany Lutheran Primary School (Raceview)","126 Cascade Street","Raceview",4305,"126 Cascade Street, Raceview, 4305","MER","Non-State School",203]
[996,"Biboohra State School","Petersen Street","Biboohra",4880,"Petersen Street, Biboohra, 4880","FNR","State School",204]
[1663,"Biddeston State School","2425 Cecil Plains Road","Biddeston",4401,"2425 Cecil Plains Road, Biddeston, 4401","DSR","State School",205]
[666,"Biggenden State School","Frederick Street","Biggenden",4621,"Frederick Street, Biggenden, 4621","CQR","State School",206]
[6165,"Biggera Waters SS - Special Education Program","Cnr Morala Avenue & Coombabah Road","Biggera Waters",4216,"Cnr Morala Avenue & Coombabah Road, Biggera Waters, 4216","SER","Special Education Program",207]
[65,"Biggera Waters State School","Cnr Morala Avenue & Coombabah Road","Biggera Waters",4216,"Cnr Morala Avenue & Coombabah Road, Biggera Waters, 4216","SER","State School",208]
[5825,"Biloela SHS - Special Education Program","Cnr Scoria Street & Gladstone Road","Biloela",4715,"Cnr Scoria Street & Gladstone Road, Biloela, 4715","CQR","Special Education Program",209]
[3433,"Biloela SS - Special Education Program","48 Rainbow Street","Biloela",4715,"48 Rainbow Street, Biloela, 4715","CQR","Special Education Program",210]
[2085,"Biloela State High School","Cnr Scoria Street & Gladstone Road","Biloela",4715,"Cnr Scoria Street & Gladstone Road, Biloela, 4715","CQR","State High School",211]
[1822,"Biloela State School","48 Rainbow Street","Biloela",4715,"48 Rainbow Street, Biloela, 4715","CQR","State School",212]
[1397,"Binjour Plateau State School","18401 Burnett Highway","Binjour",4625,"18401 Burnett Highway, Binjour, 4625","CQR","State School",213]
["A737","Birali Steiner School (Beachmere)","670 Beachmere Road","Beachmere",4510,"670 Beachmere Road, Beachmere, 4510","NCR","Non-State School",214]
[1679,"Birdsville State School","Adelaide Street","Birdsville",4482,"Adelaide Street, Birdsville, 4482","CQR","State School",215]
[6166,"Birkdale South SS - Special Education Program","451 Old Cleveland Road East","Birkdale",4159,"451 Old Cleveland Road East, Birkdale, 4159","SER","Special Education Program",216]
[1915,"Birkdale South State School","451 Old Cleveland Road East","Birkdale",4159,"451 Old Cleveland Road East, Birkdale, 4159","SER","State School",217]
[3452,"Birkdale SS - Special Education Program","74 Agnes Street","Birkdale",4159,"74 Agnes Street, Birkdale, 4159","SER","Special Education Program",218]
[1545,"Birkdale State School","74 Agnes Street","Birkdale",4159,"74 Agnes Street, Birkdale, 4159","SER","State School",219]
[5500,"Blackall Range Independent School (Kureelpa)","551 Mapleton Road","Kureelpa",4560,"551 Mapleton Road, Kureelpa, 4560","NCR","Non-State School",220]
[299,"Blackall State School","Cnr Hawthorne & Shamrock Streets","Blackall",4472,"Cnr Hawthorne & Shamrock Streets, Blackall, 4472","CQR","State School",221]
[739,"Blackbutt State School","Crofton Street","Blackbutt",4314,"Crofton Street, Blackbutt, 4314","DSR","State School",222]
[5800,"Blackheath and Thornburgh College (Charters Towers)","55 King Street","Charters Towers",4820,"55 King Street, Charters Towers, 4820","NQR","Non-State School",223]
[3468,"Blackwater North SS - Special Education Program","William Street","Blackwater",4717,"William Street, Blackwater, 4717","CQR","Special Education Program",224]
[1891,"Blackwater North State School","William Street","Blackwater",4717,"William Street, Blackwater, 4717","CQR","State School",225]
[7352,"Blackwater SHS - Special Education Program","Elm Street","Blackwater",4717,"Elm Street, Blackwater, 4717","CQR","Special Education Program",226]
[2134,"Blackwater State High School","Elm Street","Blackwater",4717,"Elm Street, Blackwater, 4717","CQR","State High School",227]
[396,"Blackwater State School","Wey Street","Blackwater",4717,"Wey Street, Blackwater, 4717","CQR","State School",228]
[9943,"Blair SS - Special Education Program","Cribb Street","Sadliers Crossing",4305,"Cribb Street, Sadliers Crossing, 4305","MER","Special Education Program",229]
[1565,"Blair State School","Cribb Street","Sadliers Crossing",4305,"Cribb Street, Sadliers Crossing, 4305","MER","State School",230]
[316,"Blenheim State School","81 Blenheim Road","Blenheim",4341,"81 Blenheim Road, Blenheim, 4341","DSR","State School",231]
[5827,"Bli Bli SS - Special Education Program","School Road","Bli Bli",4560,"School Road, Bli Bli, 4560","NCR","Special Education Program",232]
[952,"Bli Bli State School","School Road","Bli Bli",4560,"School Road, Bli Bli, 4560","NCR","State School",233]
[1173,"Bloomfield River State School","3202 Rossville-Bloomfield Road","Bloomfield",4895,"3202 Rossville-Bloomfield Road, Bloomfield, 4895","FNR","State School",234]
[981,"Bloomsbury State School","8545 Bruce Highway","Bloomsbury",4799,"8545 Bruce Highway, Bloomsbury, 4799","CQR","State School",235]
[612,"Bluewater State School","Buckby Street","Bluewater",4818,"Buckby Street, Bluewater, 4818","NQR","State School",236]
[344,"Bluff State School","Main Street","Bluff",4702,"Main Street, Bluff, 4702","CQR","State School",237]
[5828,"Bohlevale SS - Special Education Program","Bohlevale School Road","Burdell",4818,"Bohlevale School Road, Burdell, 4818","NQR","Special Education Program",238]
[1299,"Bohlevale State School","Bohlevale School Road","Burdell",4818,"Bohlevale School Road, Burdell, 4818","NQR","State School",239]
[425,"Bollon State School","Main Street","Bollon",4488,"Main Street, Bollon, 4488","DSR","State School",240]
[2305,"Boonah SHS - Special Education Program","32 Macquarie Street","Boonah",4310,"32 Macquarie Street, Boonah, 4310","SER","Special Education Program",241]
[5829,"Boonah SS - Special Education Program","Park Street","Boonah",4310,"Park Street, Boonah, 4310","SER","Special Education Program",242]
[2105,"Boonah State High School","32 Macquarie Street","Boonah",4310,"32 Macquarie Street, Boonah, 4310","SER","State High School",243]
[333,"Boonah State School","Park Street","Boonah",4310,"Park Street, Boonah, 4310","SER","State School",244]
[5974,"Boondall SS - Special Education Program","c/- State School, Cnr Sandgate & Roscommon Roads","Boondall",4034,"c/- State School, Cnr Sandgate & Roscommon Roads, Boondall, 4034","MER","Special Education Program",245]
[1603,"Boondall State School","Cnr Sandgate & Roscommon Roads","Boondall",4034,"Cnr Sandgate & Roscommon Roads, Boondall, 4034","MER","State School",246]
[1542,"Booyal Central State School","31620 Bruce Highway","Booyal",4671,"31620 Bruce Highway, Booyal, 4671","NCR","State School",247]
["A015","Border Rivers Christian College (Goondiwindi)","194 Marshall Street","Goondiwindi",4390,"194 Marshall Street, Goondiwindi, 4390","DSR","Non-State School",248]
[3299,"Boronia Heights SS - Special Education Program","194 Middle Road","Boronia Heights",4124,"194 Middle Road, Boronia Heights, 4124","SER","Special Education Program",249]
[1981,"Boronia Heights State School","194 Middle Road","Boronia Heights",4124,"194 Middle Road, Boronia Heights, 4124","SER","State School",250]
[899,"Bororen State School","1 Kent Street","Bororen",4678,"1 Kent Street, Bororen, 4678","CQR","State School",251]
[57,"Bouldercombe State School","52599 Burnett Highway","Bouldercombe",4702,"52599 Burnett Highway, Bouldercombe, 4702","CQR","State School",252]
[595,"Boulia State School","Templeton Street","Boulia",4829,"Templeton Street, Boulia, 4829","NQR","State School",253]
[6167,"Bounty Boulevard SS - Special Education Program","195 Bounty Boulevard","North Lakes",4509,"195 Bounty Boulevard, North Lakes, 4509","NCR","Special Education Program",254]
[6134,"Bounty Boulevard State School","195 Bounty Boulevard","North Lakes",4509,"195 Bounty Boulevard, North Lakes, 4509","NCR","State School",255]
[2395,"Bowen SHS - Special Education Program","1-9 Argyle Park Road","Bowen",4805,"1-9 Argyle Park Road, Bowen, 4805","NQR","Special Education Program",256]
[3447,"Bowen SS - Special Education Program","29 Kennedy Street","Bowen",4805,"29 Kennedy Street, Bowen, 4805","NQR","Special Education Program",257]
[2065,"Bowen State High School","1-9 Argyle Park Road","Bowen",4805,"1-9 Argyle Park Road, Bowen, 4805","NQR","State High School",258]
[10,"Bowen State School","29 Kennedy Street","Bowen",4805,"29 Kennedy Street, Bowen, 4805","NQR","State School",259]
[815,"Bowenville State School","Irvingdale Road","Bowenville",4404,"Irvingdale Road, Bowenville, 4404","DSR","State School",260]
[3561,"Boyne Island Environmental Education Centre","61 Malpas Street","Boyne Island",4680,"61 Malpas Street, Boyne Island, 4680","CQR","Outdoor and Environmental Education Centre",261]
[9934,"Boyne Island SS - Special Education Program","151 Malpas Street","Boyne Island",4680,"151 Malpas Street, Boyne Island, 4680","CQR","Special Education Program",262]
[1191,"Boyne Island State School","151 Malpas Street","Boyne Island",4680,"151 Malpas Street, Boyne Island, 4680","CQR","State School",263]
[1465,"Boynewood State School","1138 Durong Road","Boynewood",4626,"1138 Durong Road, Boynewood, 4626","CQR","State School",264]
[5708,"Bracken Ridge SHS - Special Education Program","68 Barfoot Street","Bracken Ridge",4017,"68 Barfoot Street, Bracken Ridge, 4017","MER","Special Education Program",265]
[5464,"Bracken Ridge SS - Special Education Program","c/- State School, 1 Binburra Street","Bracken Ridge",4017,"c/- State School, 1 Binburra Street, Bracken Ridge, 4017","MER","Special Education Program",266]
[2118,"Bracken Ridge State High School","68 Barfoot Street","Bracken Ridge",4017,"68 Barfoot Street, Bracken Ridge, 4017","MER","State High School",267]
[772,"Bracken Ridge State School","1 Binburra Street","Bracken Ridge",4017,"1 Binburra Street, Bracken Ridge, 4017","MER","State School",268]
[466,"Brandon State School","Drysdale Street","Brandon",4808,"Drysdale Street, Brandon, 4808","NQR","State School",269]
[1066,"Branyan Road State School","Branyan Drive","Branyan",4670,"Branyan Drive, Branyan, 4670","NCR","State School",270]
[2405,"Brassall SS - Special Education Program","Pine Mountain Road","Brassall",4305,"Pine Mountain Road, Brassall, 4305","MER","Special Education Program",271]
[571,"Brassall State School","Pine Mountain Road","Brassall",4305,"Pine Mountain Road, Brassall, 4305","MER","State School",272]
[2310,"Bray Park SHS - Special Education Program","Lavarack Road","Bray Park",4500,"Lavarack Road, Bray Park, 4500","NCR","Special Education Program",273]
[3467,"Bray Park SS - Special Education Program","Hopetoun Street","Bray Park",4500,"Hopetoun Street, Bray Park, 4500","NCR","Special Education Program",274]
[2173,"Bray Park State High School","Lavarack Road","Bray Park",4500,"Lavarack Road, Bray Park, 4500","NCR","State High School",275]
[339,"Bray Park State School","Hopetoun Street","Bray Park",4500,"Hopetoun Street, Bray Park, 4500","NCR","State School",276]
[2322,"Bremer SHS - Special Education Program","133-153 Warwick Road","Ipswich",4304,"133-153 Warwick Road, Ipswich, 4304","MER","Special Education Program",277]
[2050,"Bremer State High School","133-153 Warwick Road","Ipswich",4305,"133-153 Warwick Road, Ipswich, 4305","MER","State High School",278]
[2193,"Bribie Island SHS - Special Education Program","c/- Bribie Island SHS, First Avenue","Bongaree",4507,"c/- Bribie Island SHS, First Avenue, Bongaree, 4507","NCR","Special Education Program",279]
[5830,"Bribie Island SS - Special Education Program","31-63 First Avenue","Bongaree",4507,"31-63 First Avenue, Bongaree, 4507","NCR","Special Education Program",280]
[2181,"Bribie Island State High School","First Avenue","Bongaree",4507,"First Avenue, Bongaree, 4507","NCR","State High School",281]
[540,"Bribie Island State School","31-63 First Avenue","Bongaree",4507,"31-63 First Avenue, Bongaree, 4507","NCR","State School",282]
[1133,"Brigalow State School","Warrego Highway","Brigalow",4412,"Warrego Highway, Brigalow, 4412","DSR","State School",283]
[1669,"Brighton State School","2 North Road","Brighton",4017,"2 North Road, Brighton, 4017","MER","State School",284]
[7955,"Brightwater SS - Special Education Program","20 Dianella Drive","Mountain Creek",4557,"20 Dianella Drive, Mountain Creek, 4557","NCR","Special Education Program",285]
[7573,"Brightwater State School","20 Dianella Drive","Mountain Creek",4557,"20 Dianella Drive, Mountain Creek, 4557","NCR","State School",286]
[5345,"Brigidine College (Indooroopilly)","53 Ward Street","Indooroopilly",4068,"53 Ward Street, Indooroopilly, 4068","MER","Non-State School",287]
[2073,"Brisbane Adventist College (Mansfield)","303A Broadwater Road","Mansfield",4122,"303A Broadwater Road, Mansfield, 4122","MER","Non-State School",288]
[2104,"Brisbane Bayside State College","Network Drive","Wynnum West",4178,"Network Drive, Wynnum West, 4178","MER","State High School",289]
[2338,"Brisbane Bayside State College - Special Education Program","Network Drive","Wynnum West",4178,"Network Drive, Wynnum West, 4178","MER","Special Education Program",290]
[5465,"Brisbane Boys' College (Toowong)","Kensington Terrace","Toowong",4066,"Kensington Terrace, Toowong, 4066","MER","Non-State School",291]
[207,"Brisbane Central State School","Rogers Street","Spring Hill",4000,"Rogers Street, Spring Hill, 4000","MER","State School",292]
[9949,"Brisbane Christian College (Fairlie Tce, Salisbury)","63 Fairlie Terrace","Salisbury",4107,"63 Fairlie Terrace, Salisbury, 4107","MER","Associated Facility",293]
[5883,"Brisbane Christian College (Golda Ave, Salisbury)","109 Golda Avenue","Salisbury",4107,"109 Golda Avenue, Salisbury, 4107","MER","Non-State School",294]
[5510,"Brisbane Girls Grammar School (Brisbane)","Gregory Terrace","Brisbane",4000,"Gregory Terrace, Brisbane, 4000","MER","Non-State School",295]
[5509,"Brisbane Grammar School (Brisbane)","24 Gregory Terrace","Brisbane",4000,"24 Gregory Terrace, Brisbane, 4000","MER","Non-State School",296]
[5503,"Brisbane Independent School (Pullenvale)","2447 Moggill Road","Pullenvale",4069,"2447 Moggill Road, Pullenvale, 4069","MER","Non-State School",297]
[5791,"Brisbane Montessori School (Fig Tree Pocket)","Mactier Street","Fig Tree Pocket",4069,"Mactier Street, Fig Tree Pocket, 4069","MER","Non-State School",298]
[3605,"Brisbane School of Distance Education","Cnr Stanley Street & Cavendish Road","Coorparoo",4151,"Cnr Stanley Street & Cavendish Road, Coorparoo, 4151","MER","School of Distance Education",299]
[7353,"Brisbane SDE - Special Education Program","Coorparoo State College, Cnr Stanley Street & Cavendish Road","Coorparoo",4151,"Coorparoo State College, Cnr Stanley Street & Cavendish Road, Coorparoo, 4151","MER","Special Education Program",300]
[7354,"Brisbane SHS - Special Education Program","150 Vulture Street","South Brisbane",4101,"150 Vulture Street, South Brisbane, 4101","MER","Special Education Program"]
[2003,"Brisbane State High School","Cnr Cordelia and Glenelg Streets","South Brisbane",4101,"Cnr Cordelia and Glenelg Streets, South Brisbane, 4101","MER","State High School"]
[3554,"Brisbane Urban Environmental Education Centre","Newmarket School Campus, 15 Banks Street","Newmarket",4051,"Newmarket School Campus, 15 Banks Street, Newmarket, 4051","MER","Outdoor and Environmental Education Centre"]
[2319,"Brisbane Valley Cluster -  Special Education Program","76 Old Mount Beppo Road","Toogoolawah",4313,"76 Old Mount Beppo Road, Toogoolawah, 4313","DSR","Special Education Program"]
[2294,"Brisbane Youth Education and Training Centre","99 Wolston Park Road","Wacol",4076,"99 Wolston Park Road, Wacol, 4076","MER","Educational Unit"]
["A807","Brisbane Youth Education and Training Centre - Inner City","Brisbane City Watch House, 240 Roma Street","Brisbane City",4000,"Brisbane City Watch House, 240 Roma Street, Brisbane City, 4000","MER","Support Unit (Other)"]
[5831,"Broadbeach SS - Special Education Program","Alexandra Avenue","Broadbeach",4218,"Alexandra Avenue, Broadbeach, 4218","SER","Special Education Program"]
[1381,"Broadbeach State School","Alexandra Avenue","Broadbeach",4218,"Alexandra Avenue, Broadbeach, 4218","SER","State School"]
[1071,"Broadwater State School","638 Texas Road","Broadwater",4380,"638 Texas Road, Broadwater, 4380","DSR","State School"]
[7355,"Brookfield SS - Special Education Program","36 Boscombe Road","Brookfield",4069,"36 Boscombe Road, Brookfield, 4069","MER","Special Education Program"]
[16,"Brookfield State School","36 Boscombe Road","Brookfield",4069,"36 Boscombe Road, Brookfield, 4069","MER","State School"]
[311,"Brookstead State School","30 Ware Street","Brookstead",4364,"30 Ware Street, Brookstead, 4364","DSR","State School"]
[1035,"Brooweena State School","Lahey Street","Brooweena",4620,"Lahey Street, Brooweena, 4620","NCR","State School"]
[2253,"Browns Plains SHS - Special Education Program","Ivor Street","Browns Plains",4118,"Ivor Street, Browns Plains, 4118","SER","Special Education Program"]
[1641,"Browns Plains SS - Early Childhood Development Program","1-29 Mayfair Drive","Browns Plains",4118,"1-29 Mayfair Drive, Browns Plains, 4118","SER","Special Education Program"]
[5709,"Browns Plains SS - Special Education Program","1-29 Mayfair Drive","Browns Plains",4118,"1-29 Mayfair Drive, Browns Plains, 4118","SER","Special Education Program"]
[2164,"Browns Plains State High School","Ivor Street","Browns Plains",4118,"Ivor Street, Browns Plains, 4118","SER","State High School"]
[1922,"Browns Plains State School","1-29 Mayfair Drive","Browns Plains",4118,"1-29 Mayfair Drive, Browns Plains, 4118","SER","State School"]
[1939,"Bucasia State School","13 Kemp Street","Bucasia",4750,"13 Kemp Street, Bucasia, 4750","CQR","State School"]
[3470,"Buddina SS - Special Education Program","Cnr Tumut Street & Iluka Avenue","Buddina",4575,"Cnr Tumut Street & Iluka Avenue, Buddina, 4575","NCR","Special Education Program"]
[1888,"Buddina State School","Cnr Tumut Street & Iluka Avenue","Buddina",4575,"Cnr Tumut Street & Iluka Avenue, Buddina, 4575","NCR","State School"]
[5833,"Buderim Mountain SS - Special Education Program","8-42 Main Street","Buderim",4556,"8-42 Main Street, Buderim, 4556","NCR","Special Education Program"]
[223,"Buderim Mountain State School","8-42 Main Street","Buderim",4556,"8-42 Main Street, Buderim, 4556","NCR","State School"]
[1124,"Builyan State School","Gladstone Road","Boyne Valley",4680,"Gladstone Road, Boyne Valley, 4680","CQR","State School"]
[6596,"Bulimba SS - Special Education Program","Oxford Street","Bulimba",4171,"Oxford Street, Bulimba, 4171","MER","Special Education Program"]
[17,"Bulimba State School","Oxford Street","Bulimba",4171,"Oxford Street, Bulimba, 4171","MER","State School"]
[962,"Bullyard State School","2358 Bucca Road","Bullyard",4671,"2358 Bucca Road, Bullyard, 4671","NCR","State School"]
[18,"Bundaberg Central State School","13 Crofton Street","Bundaberg Central",4670,"13 Crofton Street, Bundaberg Central, 4670","NCR","State School"]
[384,"Bundaberg Christian College (Bundaberg)","234 Ashfield Road","Bundaberg",4670,"234 Ashfield Road, Bundaberg, 4670","NCR","Non-State School"]
[6168,"Bundaberg East SS - Special Education Program","33 Scotland Street","Bundaberg East",4670,"33 Scotland Street, Bundaberg East, 4670","NCR","Special Education Program"]
[497,"Bundaberg East State School","33 Scotland Street","Bundaberg East",4670,"33 Scotland Street, Bundaberg East, 4670","NCR","State School"]
[5834,"Bundaberg North SHS - Special Education Program","9 Marks Street","Bundaberg North",4670,"9 Marks Street, Bundaberg North, 4670","NCR","Special Education Program"]
[5835,"Bundaberg North SS - Special Education Program","Mount Perry Road","Bundaberg North",4670,"Mount Perry Road, Bundaberg North, 4670","NCR","Special Education Program"]
[2019,"Bundaberg North State High School","9 Marks Street","Bundaberg North",4670,"9 Marks Street, Bundaberg North, 4670","NCR","State High School"]
[161,"Bundaberg North State School","Mount Perry Road","Bundaberg North",4670,"Mount Perry Road, Bundaberg North, 4670","NCR","State School"]
[8388,"Bundaberg Regional Trade Training Centre","Level 3 Bundaberg TAFE D Block, 118 Walker Street","Norville",4670,"Level 3 Bundaberg TAFE D Block, 118 Walker Street, Norville, 4670","NCR","Associated Unit (Other)"]
["A692","Bundaberg SHS - Ignite Program","669 Moore Park Road","Welcome Creek",4670,"669 Moore Park Road, Welcome Creek, 4670","NCR","Support Unit (Other)"]
[542,"Bundaberg SHS - Special Education Program","37 Maryborough Street","Bundaberg South",4670,"37 Maryborough Street, Bundaberg South, 4670","NCR","Special Education Program"]
[637,"Bundaberg South State School","Walla Street","Bundaberg South",4670,"Walla Street, Bundaberg South, 4670","NCR","State School"]
[3029,"Bundaberg Special School","Dr Mays Road","Norville",4670,"Dr Mays Road, Norville, 4670","NCR","Special School"]
[2004,"Bundaberg State High School","37 Maryborough Street","Bundaberg South",4670,"37 Maryborough Street, Bundaberg South, 4670","NCR","State High School"]
[3487,"Bundaberg West SS - Special Education Program","George Street","Bundaberg West",4670,"George Street, Bundaberg West, 4670","NCR","Special Education Program"]
[1836,"Bundaberg West State School","George Street","Bundaberg West",4670,"George Street, Bundaberg West, 4670","NCR","State School"]
[326,"Bundamba SS - Special Education Program","221 Brisbane Road","Bundamba",4304,"221 Brisbane Road, Bundamba, 4304","MER","Special Education Program"]
["A061","Bundamba SSC Intensive English Centre","15a Naomai Street","Bundamba",4304,"15a Naomai Street, Bundamba, 4304","MER","Intensive English Centre"]
[19,"Bundamba State School","221 Brisbane Road","Bundamba",4304,"221 Brisbane Road, Bundamba, 4304","MER","State School"]
[2130,"Bundamba State Secondary College","15a Naomai Street","Bundamba",4304,"15a Naomai Street, Bundamba, 4304","MER","State High School"]
[3232,"Bundamba State Secondary College - Special Education Program","15a Naomai Street","Bundamba",4304,"15a Naomai Street, Bundamba, 4304","MER","Special Education Program"]
[1508,"Bungunya State School","George Street","Bungunya",4494,"George Street, Bungunya, 4494","DSR","State School"]
[853,"Bunker's Hill State School","315 Bunkers Hill School Road","Westbrook",4350,"315 Bunkers Hill School Road, Westbrook, 4350","DSR","State School"]
[3556,"Bunyaville Environmental Education Centre","Bunyaville Conservation Park, Old Northern Road","Everton Hills",4053,"Bunyaville Conservation Park, Old Northern Road, Everton Hills, 4053","MER","Outdoor and Environmental Education Centre"]
[894,"Buranda State School","24 Cowley Street","Woolloongabba",4102,"24 Cowley Street, Woolloongabba, 4102","MER","State School"]
[5422,"Burdekin Catholic High School (Ayr)","45 Gibson Street","Ayr",4807,"45 Gibson Street, Ayr, 4807","NQR","Non-State School"]
[5880,"Burdekin Christian College (Melbourne St, Ayr)","2-12 Melbourne Street","Ayr",4807,"2-12 Melbourne Street, Ayr, 4807","NQR","Non-State School"]
[3003,"Burdekin School","159 Young Street","Ayr",4807,"159 Young Street, Ayr, 4807","NQR","Special School"]
[9726,"Burdekin School - Early Childhood Development Program","159 Young Street","Ayr",4807,"159 Young Street, Ayr, 4807","NQR","Special Education Program"]
[530,"Burketown State School","Beames Street","Burketown",4830,"Beames Street, Burketown, 4830","NQR","State School"]
[3342,"Burleigh Heads SS - Early Childhood Development Program","34 Acanthus Avenue","Burleigh Heads",4220,"34 Acanthus Avenue, Burleigh Heads, 4220","SER","Special Education Program"]
[3262,"Burleigh Heads SS - Special Education Program","Lower Gold Coast Highway","Burleigh Heads",4220,"Lower Gold Coast Highway, Burleigh Heads, 4220","SER","Special Education Program"]
[1568,"Burleigh Heads State School","Lower Gold Coast Highway","Burleigh Heads",4220,"Lower Gold Coast Highway, Burleigh Heads, 4220","SER","State School"]
[319,"Burnett Heads State School","Burnett Heads Road","Burnett Heads",4670,"Burnett Heads Road, Burnett Heads, 4670","NCR","State School"]
[2089,"Burnett State College","65 Pineapple Street","Gayndah",4625,"65 Pineapple Street, Gayndah, 4625","CQR","State High School"]
[5680,"Burnett Youth Learning Centre (Elliott)","3693 Goodwood Road","Elliott",4670,"3693 Goodwood Road, Elliott, 4670","NCR","Non-State School"]
[5269,"Burnside SHS - Special Education Program","Blaxland Road","Burnside",4560,"Blaxland Road, Burnside, 4560","NCR","Special Education Program"]
[3535,"Burnside SS - Special Education Program","51 Blaxland Road","Burnside",4560,"51 Blaxland Road, Burnside, 4560","NCR","Special Education Program"]
[2145,"Burnside State High School","Blaxland Road","Burnside",4560,"Blaxland Road, Burnside, 4560","NCR","State High School"]
[1873,"Burnside State School","51 Blaxland Road","Burnside",4560,"51 Blaxland Road, Burnside, 4560","NCR","State School"]
[7939,"Burpengary Meadows SS - Special Education Program","153 Rowley Road","Burpengary",4505,"153 Rowley Road, Burpengary, 4505","NCR","Special Education Program"]
[5553,"Burpengary Meadows State School","153 Rowley Road","Burpengary",4505,"153 Rowley Road, Burpengary, 4505","NCR","State School"]
[8788,"Burpengary SS - Special Education Program","35 Station Road","Burpengary",4505,"35 Station Road, Burpengary, 4505","NCR","Special Education Program"]
[6323,"Burpengary SS Intensive English Centre","35 Station Road","Burpengary",4505,"35 Station Road, Burpengary, 4505","NCR","Intensive English Centre"]
[9936,"Burpengary SSC - Special Education Program","196 Pitt Road","Burpengary",4505,"196 Pitt Road, Burpengary, 4505","NCR","Special Education Program"]
[601,"Burpengary State School","35 Station Road","Burpengary",4505,"35 Station Road, Burpengary, 4505","NCR","State School"]
[9676,"Burpengary State Secondary College","196 Pitt Road","Burpengary",4505,"196 Pitt Road, Burpengary, 4505","NCR","State High School"]
[1129,"Burra Burri State School","3173 Burra Burri Creek Road","Burra Burri",4413,"3173 Burra Burri Creek Road, Burra Burri, 4413","DSR","State School"]
[5656,"Burrowes SS - Special Education Program","Third Avenue","Marsden",4132,"Third Avenue, Marsden, 4132","SER","Special Education Program"]
[1966,"Burrowes State School","Third Avenue","Marsden",4132,"Third Avenue, Marsden, 4132","SER","State School"]
[9932,"Butchers Creek SS - Special Education Program","Cnr Topaz & Gadaloff Roads","Butchers Creek",4885,"Cnr Topaz & Gadaloff Roads, Butchers Creek, 4885","FNR","Special Education Program"]
[1427,"Butchers Creek State School","Cnr Topaz & Gadaloff Roads","Butchers Creek",4885,"Cnr Topaz & Gadaloff Roads, Butchers Creek, 4885","FNR","State School"]
[5836,"Bwgcolman Community S - Special Education Program","Creek Road","Palm Island",4816,"Creek Road, Palm Island, 4816","NQR","Special Education Program"]
[379,"Bwgcolman Community School","Creek Road","Palm Island",4816,"Creek Road, Palm Island, 4816","NQR","Community School"]
[1318,"Byfield State School","2233 Byfield Road","Byfield",4703,"2233 Byfield Road, Byfield, 4703","CQR","State School"]
[1047,"Bymount East State School","6441 Carnarvon Highway","Bymount",4455,"6441 Carnarvon Highway, Bymount, 4455","DSR","State School"]
[3377,"Caboolture East SS - Early Childhood Developmental Program","44 Manley Street","Caboolture",4510,"44 Manley Street, Caboolture, 4510","NCR","Special Education Program"]
[3266,"Caboolture East SS - Special Education Program","44 Manley Street","Caboolture",4510,"44 Manley Street, Caboolture, 4510","NCR","Special Education Program"]
[1903,"Caboolture East State School","44 Manley Street","Caboolture",4510,"44 Manley Street, Caboolture, 4510","NCR","State School"]
[1693,"Caboolture Montessori School (Caboolture)","200 Old Gympie Road","Caboolture",4510,"200 Old Gympie Road, Caboolture, 4510","NCR","Non-State School"]
[348,"Caboolture SHS - Special Education Program","Lee Street","Caboolture",4510,"Lee Street, Caboolture, 4510","NCR","Special Education Program"]
[3045,"Caboolture Special School","Torrens Road","Caboolture South",4510,"Torrens Road, Caboolture South, 4510","NCR","Special School"]
[6169,"Caboolture SS - Special Education Program","12 George Street","Caboolture",4510,"12 George Street, Caboolture, 4510","NCR","Special Education Program"]
[2066,"Caboolture State High School","Lee Street","Caboolture",4510,"Lee Street, Caboolture, 4510","NCR","State High School"]
[369,"Caboolture State School","12 George Street","Caboolture",4510,"12 George Street, Caboolture, 4510","NCR","State School"]
[5486,"Cairns Adventist College (Gordonvale)","42 Crossland Road","Gordonvale",4865,"42 Crossland Road, Gordonvale, 4865","FNR","Non-State School"]
[3378,"Cairns Early Childhood Development Program","122 Mulgrave Road","Parramatta Park",4870,"122 Mulgrave Road, Parramatta Park, 4870","FNR","Special Education Program"]
[2286,"Cairns Flexible Learning Centre","90 Clarke Street","Manunda",4870,"90 Clarke Street, Manunda, 4870","FNR","Positive Learning Centre"]
[2419,"Cairns Hinterland Steiner School (Kuranda)","46 Boyles Road","Kuranda",4881,"46 Boyles Road, Kuranda, 4881","FNR","Non-State School"]
["A803","Cairns Hospital Class","Cairns Hospital, 165 The Esplanade","Cairns",4870,"Cairns Hospital, 165 The Esplanade, Cairns, 4870","FNR","Support Unit (Other)"]
[3601,"Cairns School of Distance Education","62 Hoare Street","Manunda",4870,"62 Hoare Street, Manunda, 4870","FNR","School of Distance Education"]
[6170,"Cairns SDE - Special Education Program","62 Hoare Street","Manunda",4870,"62 Hoare Street, Manunda, 4870","FNR","Special Education Program"]
[3228,"Cairns SHS - Special Education Program","Cnr Sheridan & Upward Streets","Cairns North",4870,"Cnr Sheridan & Upward Streets, Cairns North, 4870","FNR","Special Education Program"]
["A110","Cairns Specialist HUB","c/ Balaclava State School, 418 Mulgrave Road","Mooroobool",4870,"c/ Balaclava State School, 418 Mulgrave Road, Mooroobool, 4870","FNR","Support Unit (Other)"]
[2005,"Cairns State High School","Cnr Sheridan & Upward Streets","Cairns North",4870,"Cnr Sheridan & Upward Streets, Cairns North, 4870","FNR","State High School"]
["A029","Cairns State Special School","Windarra Street","Woree",4868,"Windarra Street, Woree, 4868","FNR","Special School"]
[3492,"Cairns West SS - Special Education Program","Mayers Street","Manunda",4870,"Mayers Street, Manunda, 4870","FNR","Special Education Program"]
[6484,"Cairns West SS Intensive English Centre","Mayers Street","Manunda",4870,"Mayers Street, Manunda, 4870","FNR","Intensive English Centre"]
[1522,"Cairns West State School","Mayers Street","Manunda",4870,"Mayers Street, Manunda, 4870","FNR","State School"]
[2381,"Calamvale College - Special Education Program","11 Hamish Street","Calamvale",4116,"11 Hamish Street, Calamvale, 4116","MER","Special Education Program"]
[1699,"Calamvale Community College","11 Hamish Street","Calamvale",4116,"11 Hamish Street, Calamvale, 4116","MER","State School"]
[3055,"Calamvale Special School","29 Nottingham Road","Calamvale",4116,"29 Nottingham Road, Calamvale, 4116","MER","Special School"]
[1550,"Calen District State College","38 McIntyre Street","Calen",4798,"38 McIntyre Street, Calen, 4798","CQR","State School"]
[5837,"Calen District State College - Special Education Program","38 McIntyre Street","Calen",4798,"38 McIntyre Street, Calen, 4798","CQR","Special Education Program"]
[6171,"Calliope SS - Special Education Program","Stirrat Street","Calliope",4680,"Stirrat Street, Calliope, 4680","CQR","Special Education Program"]
[9790,"Calliope State High School","55 Don Cameron Drive","Calliope",4680,"55 Don Cameron Drive, Calliope, 4680","CQR","State High School"]
["A888","Calliope State High School - Special Education Program","55 Don Cameron Drive","Calliope ",4680,"55 Don Cameron Drive, Calliope , 4680","CQR","Special Education Program"]
[20,"Calliope State School","Stirrat Street","Calliope",4680,"Stirrat Street, Calliope, 4680","CQR","State School"]
[5585,"Caloundra Christian College (Caloundra)","7 Gregson Place","Caloundra",4551,"7 Gregson Place, Caloundra, 4551","NCR","Non-State School"]
[5301,"Caloundra City Private School (Pelican Waters)","200 Pelican Waters Boulevard","Pelican Waters",4551,"200 Pelican Waters Boulevard, Pelican Waters, 4551","NCR","Non-State School"]
[2396,"Caloundra SHS - Special Education Program","88 Queen Street","Caloundra",4551,"88 Queen Street, Caloundra, 4551","NCR","Special Education Program"]
[7941,"Caloundra SS - Special Education Program","56A Queen Street","Caloundra",4551,"56A Queen Street, Caloundra, 4551","NCR","Special Education Program"]
[2116,"Caloundra State High School","88 Queen Street","Caloundra",4551,"88 Queen Street, Caloundra, 4551","NCR","State High School"]
[859,"Caloundra State School","56A Queen Street","Caloundra",4551,"56A Queen Street, Caloundra, 4551","NCR","State School"]
[2482,"Calvary Christian College (Carbrook)","559-581 Beenleigh-Redland Bay Road","Carbrook",4130,"559-581 Beenleigh-Redland Bay Road, Carbrook, 4130","SER","Associated Facility"]
[5884,"Calvary Christian College (Mount Louisa)","569 Bayswater Road","Mount Louisa",4814,"569 Bayswater Road, Mount Louisa, 4814","NQR","Non-State School"]
[5540,"Calvary Christian College (Springwood)","161 Dennis Road","Springwood",4127,"161 Dennis Road, Springwood, 4127","SER","Non-State School"]
[196,"Cambooya State School","Harrow Street","Cambooya",4358,"Harrow Street, Cambooya, 4358","DSR","State School"]
[483,"Cameron Downs State School","Cameron Downs Station, Hughenden-Muttaburra Road","Tangorin",4821,"Cameron Downs Station, Hughenden-Muttaburra Road, Tangorin, 4821","NQR","State School"]
[2203,"Camira SS - Special Education Program","c/- Camira SS, 184-202 Old Logan Road","Camira",4300,"c/- Camira SS, 184-202 Old Logan Road, Camira, 4300","MER","Special Education Program"]
[352,"Camira State School","184-202 Old Logan Road","Camira",4300,"184-202 Old Logan Road, Camira, 4300","MER","State School"]
[714,"Camooweal State School","Nowranie Street","Camooweal",4828,"Nowranie Street, Camooweal, 4828","NQR","State School"]
[3572,"Camp Fairbairn Outdoor Education Centre","Fairbairn Dam","Gindie",4702,"Fairbairn Dam, Gindie, 4702","CQR","Outdoor and Environmental Education Centre"]
[434,"Camp Hill SS - Special Education Program","Bendigo Demountable (Block A), 676 Old Cleveland Road","Camp Hill",4152,"Bendigo Demountable (Block A), 676 Old Cleveland Road, Camp Hill, 4152","MER","Special Education Program"]
[1854,"Camp Hill State Infants and Primary School","676 Old Cleveland Road","Camp Hill",4152,"676 Old Cleveland Road, Camp Hill, 4152","MER","State School"]
[5547,"Canecutters Cluster SS - Special Education Program","7 Emily Street","Innisfail",4860,"7 Emily Street, Innisfail, 4860","FNR","Special Education Program"]
[5838,"Caningeraba SS - Special Education Program","Whistler Drive","Burleigh Waters",4220,"Whistler Drive, Burleigh Waters, 4220","SER","Special Education Program"]
[1967,"Caningeraba State School","Whistler Drive","Burleigh Waters",4220,"Whistler Drive, Burleigh Waters, 4220","SER","State School"]
[5797,"Cannon Hill Anglican College (Cannon Hill)","Cnr Junction and Krupp Roads","Cannon Hill",4170,"Cnr Junction and Krupp Roads, Cannon Hill, 4170","MER","Non-State School"]
["A860","Cannon Hill SS - Special Education Program","845 Wynnum Road","Cannon Hill",4170,"845 Wynnum Road, Cannon Hill, 4170","MER","Special Education Program"]
[1476,"Cannon Hill State School","845 Wynnum Road","Cannon Hill",4170,"845 Wynnum Road, Cannon Hill, 4170","MER","State School"]
[6172,"Cannonvale SS - Special Education Program","56 Coral Esplanade","Cannonvale",4802,"56 Coral Esplanade, Cannonvale, 4802","NQR","Special Education Program"]
[589,"Cannonvale State School","56 Coral Esplanade","Cannonvale",4802,"56 Coral Esplanade, Cannonvale, 4802","NQR","State School"]
[5445,"Canterbury College (Waterford)","Old Logan Village Road","Waterford",4133,"Old Logan Village Road, Waterford, 4133","SER","Non-State School"]
[6173,"Canungra SS - Special Education Program","Christie Street","Canungra",4275,"Christie Street, Canungra, 4275","SER","Special Education Program"]
[566,"Canungra State School","Christie Street","Canungra",4275,"Christie Street, Canungra, 4275","SER","State School"]
[5534,"Capalaba State College","School Road","Capalaba",4157,"School Road, Capalaba, 4157","SER","State School"]
[5538,"Capalaba State College - Early Childhood Development Program","School Road","Capalaba",4157,"School Road, Capalaba, 4157","SER","Special Education Program"]
[3459,"Capalaba State College - Special Education Program","School Road","Capalaba",4157,"School Road, Capalaba, 4157","SER","Special Education Program"]
[8009,"Cape York Aboriginal Australian Academy","Cnr Thiele & Poland Streets","Hope Vale",4895,"Cnr Thiele & Poland Streets, Hope Vale, 4895","FNR","State School"]
[2182,"Capella State High School","35-45 Gordon Street","Capella",4723,"35-45 Gordon Street, Capella, 4723","CQR","State High School"]
[410,"Capella State School","41 Huntley Street","Capella",4723,"41 Huntley Street, Capella, 4723","CQR","State School"]
[3612,"Capricornia (Emerald Campus) School of Distance Education","Cnr Gray & Gladstone Streets","Emerald",4720,"Cnr Gray & Gladstone Streets, Emerald, 4720","CQR","School of Distance Education"]
[3613,"Capricornia (Rockhampton Campus) School of Dist Ed","241-259 Farm Street","Kawana",4701,"241-259 Farm Street, Kawana, 4701","CQR","Campus"]
[7927,"Capricornia SDE - Special Education Program","241-259  Farm Street","Kawana",4701,"241-259  Farm Street, Kawana, 4701","CQR","Special Education Program"]
[5975,"Caravonica SS - Special Education Program","A Block, Lot 3 Kamerunga Road","Caravonica",4878,"A Block, Lot 3 Kamerunga Road, Caravonica, 4878","FNR","Special Education Program"]
[927,"Caravonica State School","Lot 3 Kamerunga Road","Caravonica",4878,"Lot 3 Kamerunga Road, Caravonica, 4878","FNR","State School"]
["A759","Carbrook Animal Assisted Learning Centre (Carbrook)","597-605 Beenleigh Redland Bay Road","Carbrook",4130,"597-605 Beenleigh Redland Bay Road, Carbrook, 4130","SER","Non-State School"]
[6174,"Carbrook SS - Special Education Program","Redland Bay Road","Carbrook",4130,"Redland Bay Road, Carbrook, 4130","SER","Special Education Program"]
[278,"Carbrook State School","Redland Bay Road","Carbrook",4130,"Redland Bay Road, Carbrook, 4130","SER","State School"]
[136,"Cardwell State School","43 Victoria Street","Cardwell",4849,"43 Victoria Street, Cardwell, 4849","FNR","State School"]
[1552,"Carina State School","1413 Creek Road","Carindale",4152,"1413 Creek Road, Carindale, 4152","MER","State School"]
[2416,"Carinity Education - Glendyne (Nikenbah)","72 Nikenbah-Dundowran Road","Nikenbah",4655,"72 Nikenbah-Dundowran Road, Nikenbah, 4655","NCR","Non-State School"]
["A719","Carinity Education - Rockhampton (Glen Eden)","803 Glenlyon Road","Glen Eden",4680,"803 Glenlyon Road, Glen Eden, 4680","CQR","Associated Facility"]
[9964,"Carinity Education - Rockhampton (Glenlee)","46 Dawson Road","Glenlee",4711,"46 Dawson Road, Glenlee, 4711","CQR","Non-State School"]
[2225,"Carinity Education - Southside (Sunnybank)","153 Lister Street","Sunnybank",4109,"153 Lister Street, Sunnybank, 4109","MER","Non-State School"]
[5489,"Carlisle Adventist Christian College (Beaconsfield)","17 Holts Road","Beaconsfield",4740,"17 Holts Road, Beaconsfield, 4740","CQR","Non-State School"]
[5596,"Carmel College (Thornlands)","20 Ziegenfusz Road","Thornlands",4164,"20 Ziegenfusz Road, Thornlands, 4164","SER","Non-State School"]
[5558,"Carmichael College (Morayfield)","793-833 Oakey Flat Road","Morayfield",4506,"793-833 Oakey Flat Road, Morayfield, 4506","NCR","Non-State School"]
[1806,"Carmila State School","Carmila West Road","Carmila",4739,"Carmila West Road, Carmila, 4739","CQR","State School"]
["A641","Carole Park SS - Special Education Program","260 Waterford Road","Wacol",4076,"260 Waterford Road, Wacol, 4076","MER","Special Education Program"]
[1044,"Carole Park State School","260 Waterford Road","Wacol",4076,"260 Waterford Road, Wacol, 4076","MER","State School"]
[3245,"Cavendish Road SHS - Special Education Program","Cnr Cavendish & Holland Roads","Holland Park",4121,"Cnr Cavendish & Holland Roads, Holland Park, 4121","MER","Special Education Program"]
[2025,"Cavendish Road State High School","Cnr Cavendish & Holland Roads","Holland Park",4121,"Cnr Cavendish & Holland Roads, Holland Park, 4121","MER","State High School"]
[135,"Cawarral State School","125 Annie Drive","Cawarral",4702,"125 Annie Drive, Cawarral, 4702","CQR","State School"]
[734,"Cecil Plains State School","Taylor Street","Cecil Plains",4407,"Taylor Street, Cecil Plains, 4407","DSR","State School"]
["A636","Cedar Creek SS - Special Education Program","1a Chardon Bridge Road","Cedar Creek",4207,"1a Chardon Bridge Road, Cedar Creek, 4207","SER","Special Education Program"]
[160,"Cedar Creek State School","1a Chardon Bridge Road","Cedar Creek",4207,"1a Chardon Bridge Road, Cedar Creek, 4207","SER","State School"]
[6156,"Centenary Heights SHS - Flexi School Campus","Lot 1 Chalk Drive","Toowoomba",4350,"Lot 1 Chalk Drive, Toowoomba, 4350","DSR","Support Unit (Other)"]
[3244,"Centenary Heights SHS - Special Education Program","60 Ramsay Street","Centenary Heights",4350,"60 Ramsay Street, Centenary Heights, 4350","DSR","Special Education Program"]
[2121,"Centenary Heights State High School","60 Ramsay Street","Centenary Heights",4350,"60 Ramsay Street, Centenary Heights, 4350","DSR","State High School"]
[2250,"Centenary SHS - Special Education Program","1 Moolanda Street","Jindalee",4074,"1 Moolanda Street, Jindalee, 4074","MER","Special Education Program"]
[1668,"Centenary State High School","1 Moolanda Street","Jindalee",4074,"1 Moolanda Street, Jindalee, 4074","MER","State High School"]
["A893","Central West Cluster - Special Education Program","Sir James Walker Drive","Longreach",4730,"Sir James Walker Drive, Longreach, 4730","CQR","Special Education Program"]
["A750","Centre for Learning and Wellbeing - Atherton","2 Whiting Street","Atherton",4883,"2 Whiting Street, Atherton, 4883","FNR","Support Unit (Other)"]
["A751","Centre for Learning and Wellbeing - Emerald","c/o Emerald North State School, Campbell Street","Emerald",4720,"c/o Emerald North State School, Campbell Street, Emerald, 4720","CQR","Support Unit (Other)"]
["A897","Centre for Learning and Wellbeing - Longreach","10357 Landsborough Highway","Longreach",4730,"10357 Landsborough Highway, Longreach, 4730","CQR","Support Unit (Other)"]
["A715","Centre for Learning and Wellbeing - Mount Isa","51 Miles Street","Mount Isa",4825,"51 Miles Street, Mount Isa, 4825","NQR","Support Unit (Other)"]
["A714","Centre for Learning and Wellbeing - Roma","Cnr Mayne & Feather Streets","Roma",4455,"Cnr Mayne & Feather Streets, Roma, 4455","DSR","Support Unit (Other)"]
[5670,"Centre for Learning Management","F- Block, Woondooma Street","Bundaberg Central",4670,"F- Block, Woondooma Street, Bundaberg Central, 4670","NCR","Positive Learning Centre"]
[2282,"Chancellor State College","Secondary Campus, 164 Sippy Downs Drive","Sippy Downs",4556,"Secondary Campus, 164 Sippy Downs Drive, Sippy Downs, 4556","NCR","State School"]
[5839,"Chancellor State College - Special Education Program","Sippy Downs Drive","Sippy Downs",4556,"Sippy Downs Drive, Sippy Downs, 4556","NCR","Special Education Program"]
[5409,"Chanel College (Gladstone)","11 Paterson Street","Gladstone",4680,"11 Paterson Street, Gladstone, 4680","CQR","Non-State School"]
[5976,"Chapel Hill SS - Special Education Program","c/- State School, Ironbark Road","Chapel Hill",4069,"c/- State School, Ironbark Road, Chapel Hill, 4069","MER","Special Education Program"]
[1872,"Chapel Hill State School","Ironbark Road","Chapel Hill",4069,"Ironbark Road, Chapel Hill, 4069","MER","State School"]
[3602,"Charleville School of Distance Education","Parry Street","Charleville",4470,"Parry Street, Charleville, 4470","DSR","School of Distance Education"]
[5840,"Charleville SHS - Special Education Program","Cnr Partridge & Hunter Streets","Charleville",4470,"Cnr Partridge & Hunter Streets, Charleville, 4470","DSR","Special Education Program"]
[5841,"Charleville SS - Special Education Program","Wills Street","Charleville",4470,"Wills Street, Charleville, 4470","DSR","Special Education Program"]
[2068,"Charleville State High School","Cnr Partridge & Hunter Streets","Charleville",4470,"Cnr Partridge & Hunter Streets, Charleville, 4470","DSR","State High School"]
[185,"Charleville State School","Wills Street","Charleville",4470,"Wills Street, Charleville, 4470","DSR","State School"]
["A114","Charlotte Mason College (Kallangur)","30 Narangba Road","Kallangur",4503,"30 Narangba Road, Kallangur, 4503","NCR","Non-State School"]
["A613","Charlotte Mason College Distance Education","30 Narangba Road","Kallangur",4503,"30 Narangba Road, Kallangur, 4503","NCR","Non State School Distance Education"]
[3436,"Charters Towers Central SS - Special Education Program","Aland Street","Charters Towers",4820,"Aland Street, Charters Towers, 4820","NQR","Special Education Program"]
[215,"Charters Towers Central State School","High Street","Charters Towers",4820,"High Street, Charters Towers, 4820","NQR","State School"]
[3610,"Charters Towers School of Distance Education","15-23 Brisk Street","Millchester",4820,"15-23 Brisk Street, Millchester, 4820","NQR","School of Distance Education"]
["A003","Charters Towers SDE - Special Education Program","15-23 Brisk Street","Millchester",4820,"15-23 Brisk Street, Millchester, 4820","NQR","Special Education Program"]
[5290,"Charters Towers SHS - Special Education Program","97-113 Towers Street","Charters Towers",4820,"97-113 Towers Street, Charters Towers, 4820","NQR","Special Education Program"]
[2006,"Charters Towers State High School","97-113 Towers Street","Charters Towers",4820,"97-113 Towers Street, Charters Towers, 4820","NQR","State High School"]
[5977,"Chatswood Hills SS - Special Education Program","c/- Chatswood Hills SS, Raleigh Street","Springwood",4127,"c/- Chatswood Hills SS, Raleigh Street, Springwood, 4127","SER","Special Education Program"]
[1924,"Chatswood Hills State School","Raleigh Street","Springwood",4127,"Raleigh Street, Springwood, 4127","SER","State School"]
[5842,"Chatsworth SS - Special Education Program","15 Rammutt Road","Chatsworth",4570,"15 Rammutt Road, Chatsworth, 4570","NCR","Special Education Program"]
[915,"Chatsworth State School","15 Rammutt Road","Chatsworth",4570,"15 Rammutt Road, Chatsworth, 4570","NCR","State School"]
[677,"Chelona State School","13 Chelona School Access Road","Chelona",4740,"13 Chelona School Access Road, Chelona, 4740","CQR","State School"]
[5712,"Cherbourg SS - Special Education Program","Fisher Street","Cherbourg",4605,"Fisher Street, Cherbourg, 4605","DSR","Special Education Program"]
[989,"Cherbourg State School","Fisher Street","Cherbourg",4605,"Fisher Street, Cherbourg, 4605","DSR","State School"]
[5843,"Chevallum SS - Special Education Program","460 Chevallum Road","Chevallum",4555,"460 Chevallum Road, Chevallum, 4555","NCR","Special Education Program"]
[1722,"Chevallum State School","460 Chevallum Road","Chevallum",4555,"460 Chevallum Road, Chevallum, 4555","NCR","State School"]
[5544,"Childers SS - Special Education Program","Mungomery Street","Childers",4660,"Mungomery Street, Childers, 4660","NCR","Special Education Program"]
[568,"Childers State School","Mungomery Street","Childers",4660,"Mungomery Street, Childers, 4660","NCR","State School"]
[866,"Chillagoe State School","Cathedral Street","Chillagoe",4871,"Cathedral Street, Chillagoe, 4871","FNR","State School"]
[5792,"Chinchilla Christian College (Chinchilla)","88 Oak Street","Chinchilla",4413,"88 Oak Street, Chinchilla, 4413","DSR","Non-State School"]
[5844,"Chinchilla SHS - Special Education Program","7 Tara Road","Chinchilla",4413,"7 Tara Road, Chinchilla, 4413","DSR","Special Education Program"]
[3479,"Chinchilla SS - Special Education Program","34-40 Bell Street","Chinchilla",4413,"34-40 Bell Street, Chinchilla, 4413","DSR","Special Education Program"]
[2087,"Chinchilla State High School","7 Tara Road","Chinchilla",4413,"7 Tara Road, Chinchilla, 4413","DSR","State High School"]
[244,"Chinchilla State School","34-40 Bell Street","Chinchilla",4413,"34-40 Bell Street, Chinchilla, 4413","DSR","State School"]
[5380,"Chisholm Catholic College (Cornubia)","204 California Creek Road","Cornubia",4130,"204 California Creek Road, Cornubia, 4130","SER","Non-State School"]
[5106,"Christ the King Catholic Primary School (Deception Bay)","54 Thompson Street","Deception Bay",4508,"54 Thompson Street, Deception Bay, 4508","NCR","Non-State School"]
[5003,"Christ the King School (Graceville)","7 Randolph Street","Graceville",4075,"7 Randolph Street, Graceville, 4075","MER","Non-State School"]
[6175,"Churchill SS - Special Education Program","Warwick Road","Churchill",4305,"Warwick Road, Churchill, 4305","MER","Special Education Program"]
[1789,"Churchill State School","Warwick Road","Churchill",4305,"Warwick Road, Churchill, 4305","MER","State School"]
[5871,"Citipointe Christian College (Carindale)","322 Wecker Road","Carindale",4152,"322 Wecker Road, Carindale, 4152","MER","Non-State School"]
[7561,"City Alternative Program","84a Kedron Park Road","Wooloowin",4053,"84a Kedron Park Road, Wooloowin, 4053","MER","Support Unit (Other)"]
[5376,"Clairvaux Mackillop College (Upper Mount Gravatt)","Klumpp Road","Upper Mount Gravatt",4122,"Klumpp Road, Upper Mount Gravatt, 4122","MER","Non-State School"]
[171,"Clare State School","Larkin Street","Clare",4807,"Larkin Street, Clare, 4807","NQR","State School"]
[3066,"Claremont Special School","138 Robertson Road","Silkstone",4304,"138 Robertson Road, Silkstone, 4304","MER","Special School"]
[1732,"Clarendon State School","507 Clarendon Road","Clarendon",4311,"507 Clarendon Road, Clarendon, 4311","MER","State School"]
[606,"Clarke Creek State School","May Downs Road","Clarke Creek",4705,"May Downs Road, Clarke Creek, 4705","CQR","State School"]
[5466,"Clayfield College (Clayfield)","23 Gregory Street","Clayfield",4011,"23 Gregory Street, Clayfield, 4011","MER","Non-State School"]
[2185,"Clermont State High School","1 Kitchener Street","Clermont",4721,"1 Kitchener Street, Clermont, 4721","CQR","State High School"]
[21,"Clermont State School","Hetherington Street","Clermont",4721,"Hetherington Street, Clermont, 4721","CQR","State School"]
[528,"Cleveland District SHS - Special Education Program","Russell Street","Cleveland",4163,"Russell Street, Cleveland, 4163","SER","Special Education Program"]
[2070,"Cleveland District State High School","Russell Street","Cleveland",4163,"Russell Street, Cleveland, 4163","SER","State High School"]
[3160,"Cleveland Education and Training Centre","Cleveland Youth Detention, Old Common Road","Belgian Gardens",4810,"Cleveland Youth Detention, Old Common Road, Belgian Gardens, 4810","NQR","Educational Unit"]
[6176,"Cleveland SS - Special Education Program","Queen Street","Cleveland",4163,"Queen Street, Cleveland, 4163","SER","Special Education Program"]
[22,"Cleveland State School","Queen Street","Cleveland",4163,"Queen Street, Cleveland, 4163","SER","State School"]
[3087,"Clifford Park Special School","Rob Street","Newtown",4350,"Rob Street, Newtown, 4350","DSR","Special School"]
[9716,"Clifton Cluster - Special Education Program","32 East Street","Clifton",4361,"32 East Street, Clifton, 4361","DSR","Special Education Program"]
[2111,"Clifton State High School","32 East Street","Clifton",4361,"32 East Street, Clifton, 4361","DSR","State High School"]
[687,"Clifton State School","Tooth Street","Clifton",4361,"Tooth Street, Clifton, 4361","DSR","State School"]
[2247,"Clinton SS - Special Education Program","Harvey Road","Clinton",4680,"Harvey Road, Clinton, 4680","CQR","Special Education Program"]
[172,"Clinton State School","Harvey Road","Clinton",4680,"Harvey Road, Clinton, 4680","CQR","State School"]
[5845,"Cloncurry SS - Special Education Program","Daintree Street","Cloncurry",4824,"Daintree Street, Cloncurry, 4824","NQR","Special Education Program"]
[411,"Cloncurry State School P-12","Daintree Street","Cloncurry",4824,"Daintree Street, Cloncurry, 4824","NQR","State School"]
[5715,"Clontarf Beach SHS - Special Education Program","Cnr Elizabeth Avenue & King Street","Clontarf",4019,"Cnr Elizabeth Avenue & King Street, Clontarf, 4019","NCR","Special Education Program"]
[5846,"Clontarf Beach SS - Special Education Program","Elizabeth Avenue","Clontarf",4019,"Elizabeth Avenue, Clontarf, 4019","NCR","Special Education Program"]
[2091,"Clontarf Beach State High School","Cnr Elizabeth Avenue & King Street","Clontarf",4019,"Cnr Elizabeth Avenue & King Street, Clontarf, 4019","NCR","State High School"]
[162,"Clontarf Beach State School","Elizabeth Avenue","Clontarf",4019,"Elizabeth Avenue, Clontarf, 4019","NCR","State School"]
[5847,"Clover Hill SS - Special Education Program","Clover Hill Drive","Mudgeeraba",4213,"Clover Hill Drive, Mudgeeraba, 4213","SER","Special Education Program"]
[2345,"Clover Hill State School","Clover Hill Drive","Mudgeeraba",4213,"Clover Hill Drive, Mudgeeraba, 4213","SER","State School"]
[1254,"Cloyna State School","8 William Webber Road","Cloyna",4605,"8 William Webber Road, Cloyna, 4605","DSR","State School"]
[5747,"Coalfields Training Excellence Centre","Mills Avenue","Moranbah",4744,"Mills Avenue, Moranbah, 4744","CQR","Support Unit (Other)"]
[1225,"Coalstoun Lakes State School","3 Main Street","Coalstoun Lakes",4621,"3 Main Street, Coalstoun Lakes, 4621","CQR","State School"]
[1480,"Coen Campus of CYAAA","Peninsula Developmental Road","Coen",4892,"Peninsula Developmental Road, Coen, 4892","FNR","Campus"]
[6177,"Collingwood Park SS - Special Education Program","Cnr Burrel & Hannant Streets","Collingwood Park",4301,"Cnr Burrel & Hannant Streets, Collingwood Park, 4301","MER","Special Education Program"]
[1956,"Collingwood Park State School","Cnr Burrel & Hannant Streets","Collingwood Park",4301,"Cnr Burrel & Hannant Streets, Collingwood Park, 4301","MER","State School"]
[6178,"Collinsville SHS - Special Education Program","Walker Street","Collinsville",4804,"Walker Street, Collinsville, 4804","NQR","Special Education Program"]
[2171,"Collinsville State High School","Walker Street","Collinsville",4804,"Walker Street, Collinsville, 4804","NQR","State High School"]
[1691,"Collinsville State School","Devlin Street","Collinsville",4804,"Devlin Street, Collinsville, 4804","NQR","State School"]
[1653,"Columba Catholic College (Hackett Tce, Charters Towers)","6-8 Hackett Terrace","Charters Towers",4820,"6-8 Hackett Terrace, Charters Towers, 4820","NQR","Non-State School"]
[2476,"Columba Catholic College (Mary St, Charters Towers)","59 - 69 Mary Street","Charters Towers",4820,"59 - 69 Mary Street, Charters Towers, 4820","NQR","Associated Facility"]
[3564,"Columboola Environmental Education Centre","25 Boort-Koi Road","Columboola",4415,"25 Boort-Koi Road, Columboola, 4415","DSR","Outdoor and Environmental Education Centre"]
[173,"Comet State School","Off Capricorn Highway","Comet",4702,"Off Capricorn Highway, Comet, 4702","CQR","State School"]
[5702,"Concordia Lutheran College (Hume St, Toowoomba)","402 Hume Street","Toowoomba",4350,"402 Hume Street, Toowoomba, 4350","DSR","Associated Facility"]
[5498,"Concordia Lutheran College (Stephen St, Toowoomba)","154 Stephen Street","Toowoomba",4350,"154 Stephen Street, Toowoomba, 4350","DSR","Non-State School"]
[5701,"Concordia Lutheran College (Warwick St, Toowoomba)","67 Warwick Street","Toowoomba",4350,"67 Warwick Street, Toowoomba, 4350","DSR","Associated Facility"]
[24,"Condamine State School","Kennedy Street","Condamine",4416,"Kennedy Street, Condamine, 4416","DSR","State School"]
[439,"Coningsby State School","1312 Bruce Highway","Farleigh",4741,"1312 Bruce Highway, Farleigh, 4741","CQR","State School"]
[7942,"Conondale SS - Special Education Program","1700 Maleny-Kenilworth Road","Conondale",4552,"1700 Maleny-Kenilworth Road, Conondale, 4552","NCR","Special Education Program"]
[1352,"Conondale State School","1700 Maleny-Kenilworth Road","Conondale",4552,"1700 Maleny-Kenilworth Road, Conondale, 4552","NCR","State School"]
[5848,"Cooktown SS - Special Education Program","Cnr May & Charles Streets","Cooktown",4895,"Cnr May & Charles Streets, Cooktown, 4895","FNR","Special Education Program"]
[177,"Cooktown State School","Cnr May & Charles Streets","Cooktown",4895,"Cnr May & Charles Streets, Cooktown, 4895","FNR","State School"]
[638,"Coolabunia State School","Mary Street","Coolabunia",4610,"Mary Street, Coolabunia, 4610","DSR","State School"]
["A765","Coolangatta SS - Special Education Program","Stapylton Street","Coolangatta",4225,"Stapylton Street, Coolangatta, 4225","SER","Special Education Program"]
[1630,"Coolangatta State School","Stapylton Street","Coolangatta",4225,"Stapylton Street, Coolangatta, 4225","SER","State School"]
[328,"Coolnwynpin SS - Special Education Program","6 Telaska Court","Capalaba",4157,"6 Telaska Court, Capalaba, 4157","SER","Special Education Program"]
[1927,"Coolnwynpin State School","6 Telaska Court","Capalaba",4157,"6 Telaska Court, Capalaba, 4157","SER","State School"]
[5855,"Cooloola Christian College (Gympie)","1 College Road","Gympie",4570,"1 College Road, Gympie, 4570","NCR","Non-State School"]
[5414,"Coolum Beach Christian College (Coolum Beach)","2 Arcoona Road","Coolum Beach",4573,"2 Arcoona Road, Coolum Beach, 4573","NCR","Non-State School"]
[5849,"Coolum SHS - Special Education Program","Havana Road East","Coolum Beach",4573,"Havana Road East, Coolum Beach, 4573","NCR","Special Education Program"]
[2314,"Coolum SS - Special Education Program","School Road","Coolum Beach",4573,"School Road, Coolum Beach, 4573","NCR","Special Education Program"]
[2165,"Coolum State High School","Havana Road East","Coolum Beach",4573,"Havana Road East, Coolum Beach, 4573","NCR","State High School"]
[1571,"Coolum State School","School Road","Coolum Beach",4573,"School Road, Coolum Beach, 4573","NCR","State School"]
[5294,"Coombabah SHS - Special Education Program","Pine Ridge Road","Coombabah",4216,"Pine Ridge Road, Coombabah, 4216","SER","Special Education Program"]
[5853,"Coombabah SS - Special Education Program","164-172 Oxley Drive","Coombabah",4216,"164-172 Oxley Drive, Coombabah, 4216","SER","Special Education Program"]
[2166,"Coombabah State High School","Pine Ridge Road","Coombabah",4216,"Pine Ridge Road, Coombabah, 4216","SER","State High School"]
[1909,"Coombabah State School","164-172 Oxley Drive","Coombabah",4216,"164-172 Oxley Drive, Coombabah, 4216","SER","State School"]
[594,"Coomera Anglican College (Upper Coomera)","8 Days Road","Upper Coomera",4209,"8 Days Road, Upper Coomera, 4209","SER","Non-State School"]
[7363,"Coomera Rivers SS - Special Education Program","81-87 Finnegan Way","Coomera",4209,"81-87 Finnegan Way, Coomera, 4209","SER","Special Education Program"]
[7122,"Coomera Rivers State School","81-87 Finnegan Way","Coomera",4209,"81-87 Finnegan Way, Coomera, 4209","SER","State School"]
[7956,"Coomera Springs SS - Special Education Program","Old Coach Road","Upper Coomera",4209,"Old Coach Road, Upper Coomera, 4209","SER","Special Education Program"]
[5730,"Coomera Springs State School","Old Coach Road","Upper Coomera",4209,"Old Coach Road, Upper Coomera, 4209","SER","State School"]
[3272,"Coomera SS - Special Education Program","Coomera SS, Dreamworld Parkway","Coomera",4209,"Coomera SS, Dreamworld Parkway, Coomera, 4209","SER","Special Education Program"]
[124,"Coomera State School","Dreamworld Parkway","Coomera",4209,"Dreamworld Parkway, Coomera, 4209","SER","State School"]
[1359,"Coominya State School","7 Cornhill Street","Coominya",4311,"7 Cornhill Street, Coominya, 4311","MER","State School"]
[1247,"Coopers Plains State School","61 Orange Grove Road","Coopers Plains",4108,"61 Orange Grove Road, Coopers Plains, 4108","MER","State School"]
[602,"Cooran State School","31 James Street","Cooran",4569,"31 James Street, Cooran, 4569","NCR","State School"]
[2245,"Cooroy Hub Special Education Program","59 Elm Street","Cooroy",4563,"59 Elm Street, Cooroy, 4563","NCR","Special Education Program"]
[1165,"Cooroy State School","59 Elm Street","Cooroy",4563,"59 Elm Street, Cooroy, 4563","NCR","State School"]
[3701,"Coorparoo Centre for Continuing Secondary Education","Cnr Stanley Street East & Cavendish Road","Coorparoo",4151,"Cnr Stanley Street East & Cavendish Road, Coorparoo, 4151","MER","Centre for Continuing Secondary Education"]
[9941,"Coorparoo SC - Special Education Program","Cnr Stanley Street East & Cavendish Road","Coorparoo",4151,"Cnr Stanley Street East & Cavendish Road, Coorparoo, 4151","MER","Special Education Program"]
[2077,"Coorparoo Secondary College","Cnr Stanley Street East & Cavendish Road","Coorparoo",4151,"Cnr Stanley Street East & Cavendish Road, Coorparoo, 4151","MER","State High School"]
[9720,"Coorparoo SS - Special Education Program","327 Old Cleveland Road","Coorparoo",4151,"327 Old Cleveland Road, Coorparoo, 4151","MER","Special Education Program"]
[219,"Coorparoo State School","327 Old Cleveland Road","Coorparoo",4151,"327 Old Cleveland Road, Coorparoo, 4151","MER","State School"]
[32,"Coowonga State School","269 Coowonga Road","Coowonga",4702,"269 Coowonga Road, Coowonga, 4702","CQR","State School"]
[1084,"Cooyar State School","1 Gracey Street","Cooyar",4402,"1 Gracey Street, Cooyar, 4402","DSR","State School"]
[1898,"Coppabella State School","Mathieson Street","Coppabella",4741,"Mathieson Street, Coppabella, 4741","CQR","State School"]
[117,"Cordalba State School","Cemetery Road","Cordalba",4660,"Cemetery Road, Cordalba, 4660","NCR","State School"]
[3240,"Corinda SHS - Special Education Program","G Block, 46 Pratten Street","Corinda",4075,"G Block, 46 Pratten Street, Corinda, 4075","MER","Special Education Program"]
[6179,"Corinda SS - Special Education Program","330 Cliveden Avenue","Corinda",4075,"330 Cliveden Avenue, Corinda, 4075","MER","Special Education Program"]
[2055,"Corinda State High School","46 Pratten Street","Corinda",4075,"46 Pratten Street, Corinda, 4075","MER","State High School"]
[1025,"Corinda State School","330 Cliveden Avenue","Corinda",4075,"330 Cliveden Avenue, Corinda, 4075","MER","State School"]
[7308,"Craigslea Sensitivity Unit","Craiglea State School, Hamilton Road","Chermside West",4032,"Craiglea State School, Hamilton Road, Chermside West, 4032","MER","Support Unit (Other)"]
[5460,"Craigslea SHS - Special Education Program","685 Hamilton Road","Chermside West",4032,"685 Hamilton Road, Chermside West, 4032","MER","Special Education Program"]
[5856,"Craigslea SS - Special Education Program","Hamilton Road","Chermside West",4032,"Hamilton Road, Chermside West, 4032","MER","Special Education Program"]
[2023,"Craigslea State High School","685 Hamilton Road","Chermside West",4032,"685 Hamilton Road, Chermside West, 4032","MER","State High School"]
[60,"Craigslea State School","Hamilton Road","Chermside West",4032,"Hamilton Road, Chermside West, 4032","MER","State School"]
[2317,"Cranbrook SS - Special Education Program","Alice Street","Cranbrook",4814,"Alice Street, Cranbrook, 4814","NQR","Special Education Program"]
[1907,"Cranbrook State School","Alice Street","Cranbrook",4814,"Alice Street, Cranbrook, 4814","NQR","State School"]
[399,"Crawford State School","215-227 Siefert Street","Crawford",4610,"215-227 Siefert Street, Crawford, 4610","DSR","State School"]
[6180,"Crescent Lagoon SS - Special Education Program","North Street Extended","West Rockhampton",4700,"North Street Extended, West Rockhampton, 4700","CQR","Special Education Program"]
[762,"Crescent Lagoon State School","North Street Extended","West Rockhampton",4700,"North Street Extended, West Rockhampton, 4700","CQR","State School"]
[2393,"Crestmead SS - Special Education Program","27-61 Augusta Street","Crestmead",4132,"27-61 Augusta Street, Crestmead, 4132","SER","Special Education Program"]
[1928,"Crestmead State School","27-61 Augusta Street","Crestmead",4132,"27-61 Augusta Street, Crestmead, 4132","SER","State School"]
[3517,"Crow's Nest SS - Special Education Program","1 Littleton Street","Crows Nest",4355,"1 Littleton Street, Crows Nest, 4355","DSR","Special Education Program"]
[293,"Crow's Nest State School","1 Littleton Street","Crows Nest",4355,"1 Littleton Street, Crows Nest, 4355","DSR","State School"]
[165,"Croydon State School","Brown Street","Croydon",4871,"Brown Street, Croydon, 4871","FNR","State School"]
[5857,"Cunnamulla P-12 SS - Early Childhood Development Program","17 Francis Street","Cunnamulla",4490,"17 Francis Street, Cunnamulla, 4490","DSR","Special Education Program"]
[289,"Cunnamulla P-12 State School","17 Francis Street","Cunnamulla",4490,"17 Francis Street, Cunnamulla, 4490","DSR","State School"]
[5858,"Currajong SS - Special Education Program","140 Palmerston Street","Gulliver",4812,"140 Palmerston Street, Gulliver, 4812","NQR","Special Education Program"]
[355,"Currajong State School","140 Palmerston Street","Gulliver",4812,"140 Palmerston Street, Gulliver, 4812","NQR","State School"]
[3054,"Currimundi Special School","Buderim Street","Dicky Beach",4551,"Buderim Street, Dicky Beach, 4551","NCR","Special School"]
[5861,"Currimundi SS - Special Education Program","17 Buderim Street","Currimundi",4551,"17 Buderim Street, Currimundi, 4551","NCR","Special Education Program"]
[1868,"Currimundi State School","17 Buderim Street","Currimundi",4551,"17 Buderim Street, Currimundi, 4551","NCR","State School"]
[6588,"Currumbin Community Farm Campus","1226 Currumbin Creek Road","Currumbin Valley",4223,"1226 Currumbin Creek Road, Currumbin Valley, 4223","SER","Support Unit (Other)"]
[3043,"Currumbin Community Special School","5 Hammersford Drive","Currumbin Waters",4223,"5 Hammersford Drive, Currumbin Waters, 4223","SER","Special School"]
[6181,"Currumbin SS - Special Education Program","6 Philip Street","Currumbin",4223,"6 Philip Street, Currumbin, 4223","SER","Special Education Program"]
[1168,"Currumbin State School","6 Philip Street","Currumbin",4223,"6 Philip Street, Currumbin, 4223","SER","State School"]
["A764","Currumbin Valley SS - Special Education Program","1223 Currumbin Creek Road","Currumbin Valley",4223,"1223 Currumbin Creek Road, Currumbin Valley, 4223","SER","Special Education Program"]
[775,"Currumbin Valley State School","1223 Currumbin Creek Road","Currumbin Valley",4223,"1223 Currumbin Creek Road, Currumbin Valley, 4223","SER","State School"]
[892,"Dagun State School","39 Dagun Road","Dagun",4570,"39 Dagun Road, Dagun, 4570","NCR","State School"]
[1022,"Daintree State School","Osborne Street","Daintree",4873,"Osborne Street, Daintree, 4873","FNR","State School"]
[6228,"Daisy Hill SS - Special Education Program","Daisy Hill Road","Daisy Hill",4127,"Daisy Hill Road, Daisy Hill, 4127","SER","Special Education Program"]
[99,"Daisy Hill State School","20-50 Daisy Hill Road","Daisy Hill",4127,"20-50 Daisy Hill Road, Daisy Hill, 4127","SER","State School"]
[1670,"Dajarra State School","Matheson Street","Dajarra",4825,"Matheson Street, Dajarra, 4825","NQR","State School"]
[5264,"Dakabin SHS - Special Education Program","Marsden Road","Dakabin",4503,"Marsden Road, Dakabin, 4503","NCR","Special Education Program"]
[6321,"Dakabin SHS Intensive English Centre","Marsden Road","Dakabin",4503,"Marsden Road, Dakabin, 4503","NCR","Intensive English Centre"]
[3267,"Dakabin SS - Special Education Program","Sheaves Road","Kallangur",4503,"Sheaves Road, Kallangur, 4503","NCR","Special Education Program"]
[2142,"Dakabin State High School","Marsden Road","Dakabin",4503,"Marsden Road, Dakabin, 4503","NCR","State High School"]
[1988,"Dakabin State School","Sheaves Road","Kallangur",4503,"Sheaves Road, Kallangur, 4503","NCR","State School"]
[5583,"Dalby Christian College (Dalby)","14 Irvingdale Road","Dalby",4405,"14 Irvingdale Road, Dalby, 4405","DSR","Non-State School"]
[3237,"Dalby SHS - Special Education Program","26 Nicholson Street","Dalby",4405,"26 Nicholson Street, Dalby, 4405","DSR","Special Education Program"]
[3518,"Dalby South SS - Special Education Program","Bunya Street","Dalby",4405,"Bunya Street, Dalby, 4405","DSR","Special Education Program"]
[671,"Dalby South State School","Cnr Owen & Bunya Streets","Dalby",4405,"Cnr Owen & Bunya Streets, Dalby, 4405","DSR","State School"]
[3437,"Dalby SS - Special Education Program","155 Cunningham Street","Dalby",4405,"155 Cunningham Street, Dalby, 4405","DSR","Special Education Program"]
[2033,"Dalby State High School","26 Nicholson Street","Dalby",4405,"26 Nicholson Street, Dalby, 4405","DSR","State High School"]
[7362,"Dalby State High School - Bunya Campus","463 Bunya highway","Dalby",4405,"463 Bunya highway, Dalby, 4405","DSR","Campus"]
[7596,"Dalby State High School - Student Residential","463 Bunya Highway","Dalby",4405,"463 Bunya Highway, Dalby, 4405","DSR","Student Residential"]
[28,"Dalby State School","155 Cunningham Street","Dalby",4405,"155 Cunningham Street, Dalby, 4405","DSR","State School"]
[950,"Dallarnil State School","3 Main Street","Dallarnil",4621,"3 Main Street, Dallarnil, 4621","CQR","State School"]
[9679,"Dalrymple Trade Training Centre","1-13 Macpherson Street","Columbia",4820,"1-13 Macpherson Street, Columbia, 4820","NQR","Associated Unit (Other)"]
[318,"Dalveen State School","40 Pine Crescent","Dalveen",4374,"40 Pine Crescent, Dalveen, 4374","DSR","State School"]
[3581,"Daradgee Environmental Education Centre","McAvoy Street","Daradgee",4860,"McAvoy Street, Daradgee, 4860","FNR","Outdoor and Environmental Education Centre"]
[5482,"Darling Downs Christian School (Toowoomba)","451 McDougall Street","Toowoomba",4350,"451 McDougall Street, Toowoomba, 4350","DSR","Non-State School"]
[3412,"Darling Heights SS - Special Education Program","Wuth Street","Darling Heights",4350,"Wuth Street, Darling Heights, 4350","DSR","Special Education Program"]
[9060,"Darling Heights SS Intensive English Centre","Wuth Street","Darling Heights",4350,"Wuth Street, Darling Heights, 4350","DSR","Intensive English Centre"]
[1900,"Darling Heights State School","Wuth Street","Darling Heights",4350,"Wuth Street, Darling Heights, 4350","DSR","State School"]
[3025,"Darling Point Special School","368 Upper Esplanade","Manly",4179,"368 Upper Esplanade, Manly, 4179","MER","Special School"]
[520,"Darlington State School","2744 Kerry Road","Darlington",4285,"2744 Kerry Road, Darlington, 4285","SER","State School"]
[1520,"Darra State School","Winslow Street","Darra",4076,"Winslow Street, Darra, 4076","MER","State School"]
[5863,"Dayboro SS - Special Education Program","58 McKenzie Street","Dayboro",4521,"58 McKenzie Street, Dayboro, 4521","NCR","Special Education Program"]
[191,"Dayboro State School","58 McKenzie Street","Dayboro",4521,"58 McKenzie Street, Dayboro, 4521","NCR","State School"]
[5637,"Deception Bay Flexible Learning Centre (Grosvenor Tce & Silver St, Deception Bay)","17 Silver Street","Deception Bay",4508,"17 Silver Street, Deception Bay, 4508","NCR","Non-State School"]
["A784","Deception Bay Flexible Learning Centre (Grosvenor Tce, Deception Bay)","45 Grosvenor Terrace","Deception Bay",4508,"45 Grosvenor Terrace, Deception Bay, 4508","NCR","Associated Facility"]
[3524,"Deception Bay North SS - Special Education Program","Old Bay Road","Deception Bay",4508,"Old Bay Road, Deception Bay, 4508","NCR","Special Education Program"]
[1884,"Deception Bay North State School","Old Bay Road","Deception Bay",4508,"Old Bay Road, Deception Bay, 4508","NCR","State School"]
[492,"Deception Bay SHS - Special Education Program","Government Street","Deception Bay",4508,"Government Street, Deception Bay, 4508","NCR","Special Education Program"]
[7943,"Deception Bay SS - Special Education Program","King Street","Deception Bay",4508,"King Street, Deception Bay, 4508","NCR","Special Education Program"]
[2107,"Deception Bay State High School","Phillip Parade","Deception Bay",4508,"Phillip Parade, Deception Bay, 4508","NCR","State High School"]
["A785","Deception Bay State High School - Futures Program","Cnr Phillip Parade and Government Street","Deception Bay",4508,"Cnr Phillip Parade and Government Street, Deception Bay, 4508","NCR","Support Unit (Other)"]
[237,"Deception Bay State School","King Street","Deception Bay",4508,"King Street, Deception Bay, 4508","NCR","State School"]
[9916,"Deebing Heights State School","81 Rawlings Road","Deebing Heights",4306,"81 Rawlings Road, Deebing Heights, 4306","MER","State School"]
[683,"Delaneys Creek State School","Mount Mee Road","Delaneys Creek",4514,"Mount Mee Road, Delaneys Creek, 4514","NCR","State School"]
[3295,"Denise Kable Support Unit","Denise Kable Campus, 58 Ramsay Street","Centenary Heights",4350,"Denise Kable Campus, 58 Ramsay Street, Centenary Heights, 4350","DSR","Support Unit (Other)"]
[5865,"Denison SS - Special Education Program","16 Gray Street","Emerald",4720,"16 Gray Street, Emerald, 4720","CQR","Special Education Program"]
[392,"Denison State School","16 Gray Street","Emerald",4720,"16 Gray Street, Emerald, 4720","CQR","State School"]
[837,"Depot Hill State School","O'Connell Street","Depot Hill",4700,"O'Connell Street, Depot Hill, 4700","CQR","State School"]
[1226,"Dimbulah State School","48-50 Kennedy Street","Dimbulah",4872,"48-50 Kennedy Street, Dimbulah, 4872","FNR","State School"]
[266,"Dingo State School","Cnr Kennedy & Normanby Streets","Dingo",4702,"Cnr Kennedy & Normanby Streets, Dingo, 4702","CQR","State School"]
[1001,"Dirranbandi P-10 State School","Jane Street","Dirranbandi",4486,"Jane Street, Dirranbandi, 4486","DSR","State School"]
[9729,"Discovery Christian College (Agnes Water)","2873 Round Hill Road","Agnes Water",4677,"2873 Round Hill Road, Agnes Water, 4677","NCR","Non-State School"]
[5892,"Djarragun College (Gordonvale)","1 Maher Road","Gordonvale",4865,"1 Maher Road, Gordonvale, 4865","FNR","Non-State School"]
[6601,"Doomadgee SS - Special Education Program","Goodeedawa Road","Doomadgee",4830,"Goodeedawa Road, Doomadgee, 4830","NQR","Special Education Program"]
[330,"Doomadgee State School","Goodeedawa Road","Doomadgee",4830,"Goodeedawa Road, Doomadgee, 4830","NQR","State School"]
[5395,"Downlands College (Toowoomba)","72 Ruthven Street","Toowoomba",4350,"72 Ruthven Street, Toowoomba, 4350","DSR","Non-State School"]
[9954,"Drayton SS - Special Education Program","55 Brisbane Street","Drayton",4350,"55 Brisbane Street, Drayton, 4350","DSR","Special Education Program"]
[31,"Drayton State School","55 Brisbane Street","Drayton",4350,"55 Brisbane Street, Drayton, 4350","DSR","State School"]
[889,"Drillham State School","13 Jardine Street","Drillham",4424,"13 Jardine Street, Drillham, 4424","DSR","State School"]
[342,"Duaringa State School","Charlotte Street","Duaringa",4712,"Charlotte Street, Duaringa, 4712","CQR","State School"]
[1170,"Dulacca State School","North Road","Dulacca",4425,"North Road, Dulacca, 4425","DSR","State School"]
[1779,"Dundula State School","1 Main Street","Bakers Creek",4740,"1 Main Street, Bakers Creek, 4740","CQR","State School"]
[934,"Dunkeld State School","Mitchell-St George Road","Dunkeld",4465,"Mitchell-St George Road, Dunkeld, 4465","DSR","State School"]
["A637","Dunwich SS - Special Education Program","North Stradbroke Island, Bingle Road","Dunwich",4183,"North Stradbroke Island, Bingle Road, Dunwich, 4183","SER","Special Education Program"]
[784,"Dunwich State School","North Stradbroke Island, Bingle Road","Dunwich",4183,"North Stradbroke Island, Bingle Road, Dunwich, 4183","SER","State School"]
[5978,"Durack SS - Special Education Program","69 Inala Avenue","Durack",4077,"69 Inala Avenue, Durack, 4077","MER","Special Education Program"]
[959,"Durack State School","69 Inala Avenue","Durack",4077,"69 Inala Avenue, Durack, 4077","MER","State School"]
[1667,"Durong South State School","10463 Mundubbera Durong Road","Durong",4610,"10463 Mundubbera Durong Road, Durong, 4610","DSR","State School"]
[118,"Dutton Park SS - Special Education Program","112 Annerley Road","Dutton Park",4102,"112 Annerley Road, Dutton Park, 4102","MER","Special Education Program"]
[506,"Dutton Park State School","112 Annerley Road","Dutton Park",4102,"112 Annerley Road, Dutton Park, 4102","MER","State School"]
[2156,"Dysart State High School","Edgerley Street","Dysart",4745,"Edgerley Street, Dysart, 4745","CQR","State High School"]
[97,"Dysart State School","Garnham Drive","Dysart",4745,"Garnham Drive, Dysart, 4745","CQR","State School"]
[6183,"Eagle Junction SS - Special Education Program","49 Roseby Avenue","Clayfield",4011,"49 Roseby Avenue, Clayfield, 4011","MER","Special Education Program"]
[726,"Eagle Junction State School","49 Roseby Avenue","Clayfield",4011,"49 Roseby Avenue, Clayfield, 4011","MER","State School"]
[3711,"Eagleby Learning Centre - Centre for Continuing Secondary Education","161 Herses Road","Eagleby",4207,"161 Herses Road, Eagleby, 4207","SER","Centre for Continuing Secondary Education"]
[3263,"Eagleby South SS - Special Education Program","Cnr Fryar & River Hills Roads","Eagleby",4207,"Cnr Fryar & River Hills Roads, Eagleby, 4207","SER","Special Education Program"]
[1876,"Eagleby South State School","Cnr Fryar & River Hills Roads","Eagleby",4207,"Cnr Fryar & River Hills Roads, Eagleby, 4207","SER","State School"]
[5870,"Eagleby SS - Special Education Program","Cnr Herses & Fryar Roads","Eagleby",4207,"Cnr Herses & Fryar Roads, Eagleby, 4207","SER","Special Education Program"]
[1974,"Eagleby State School","Cnr Herses & Fryar Roads","Eagleby",4207,"Cnr Herses & Fryar Roads, Eagleby, 4207","SER","State School"]
[5180,"Earnshaw State College","Cnr Earnshaw & Tufnell Roads","Banyo",4014,"Cnr Earnshaw & Tufnell Roads, Banyo, 4014","MER","State School"]
[5872,"Earnshaw State College - Special Education Program","Cnr Earnshaw & Tufnell Roads","Banyo",4014,"Cnr Earnshaw & Tufnell Roads, Banyo, 4014","MER","Special Education Program"]
[5973,"East Ayr SS - Special Education Program","c/- State School, 43-73 Ross Street","Ayr",4807,"c/- State School, 43-73 Ross Street, Ayr, 4807","NQR","Special Education Program"]
[908,"East Ayr State School","43-73 Ross Street","Ayr",4807,"43-73 Ross Street, Ayr, 4807","NQR","State School"]
[877,"East Brisbane State School","56 Wellington Road","East Brisbane",4169,"56 Wellington Road, East Brisbane, 4169","MER","State School"]
[5873,"Eatons Hill SS - Special Education Program","Marylin Terrace","Eatons Hill",4037,"Marylin Terrace, Eatons Hill, 4037","MER","Special Education Program"]
[593,"Eatons Hill State School","Marylin Terrace","Eatons Hill",4037,"Marylin Terrace, Eatons Hill, 4037","MER","State School"]
[5874,"Edens Landing SS - Special Education Program","Jamie Nicolson Avenue","Edens Landing",4207,"Jamie Nicolson Avenue, Edens Landing, 4207","SER","Special Education Program"]
[301,"Edens Landing State School","Jamie Nicolson Avenue","Edens Landing",4207,"Jamie Nicolson Avenue, Edens Landing, 4207","SER","State School"]
[5875,"Edge Hill SS - Special Education Program","254 Pease Street","Edge Hill",4870,"254 Pease Street, Edge Hill, 4870","FNR","Special Education Program"]
[235,"Edge Hill State School","254 Pease Street","Edge Hill",4870,"254 Pease Street, Edge Hill, 4870","FNR","State School"]
[581,"Eidsvold State School","7 Hodgkinson Street","Eidsvold",4627,"7 Hodgkinson Street, Eidsvold, 4627","CQR","State School"]
[9990,"Eight Mile Plains SS - Special Education Program","480 Underwood Road","Eight Mile Plains",4113,"480 Underwood Road, Eight Mile Plains, 4113","MER","Special Education Program"]
[34,"Eight Mile Plains State School","480 Underwood Road","Eight Mile Plains",4113,"480 Underwood Road, Eight Mile Plains, 4113","MER","State School"]
[6184,"Eimeo Road SS - Special Education Program","21 Eimeo Road","Rural View",4740,"21 Eimeo Road, Rural View, 4740","CQR","Special Education Program"]
[545,"Eimeo Road State School","21 Eimeo Road","Rural View",4740,"21 Eimeo Road, Rural View, 4740","CQR","State School"]
[1758,"El Arish State School","28 Chauvel Street","El Arish",4855,"28 Chauvel Street, El Arish, 4855","FNR","State School"]
[5543,"Elanora SHS - Special Education Program","c/- Elanora SHS, Cnr 19th Avenue & Avocado Street","Elanora",4221,"c/- Elanora SHS, Cnr 19th Avenue & Avocado Street, Elanora, 4221","SER","Special Education Program"]
[3443,"Elanora SS - Special Education Program","K P McGrath Drive","Elanora",4221,"K P McGrath Drive, Elanora, 4221","SER","Special Education Program"]
[2183,"Elanora State High School","Cnr 19th Avenue & Avocado Street","Elanora",4221,"Cnr 19th Avenue & Avocado Street, Elanora, 4221","SER","State High School"]
[1923,"Elanora State School","K P McGrath Drive","Elanora",4221,"K P McGrath Drive, Elanora, 4221","SER","State School"]
[9995,"Elimbah SS - Special Education Program","School Road","Elimbah",4516,"School Road, Elimbah, 4516","NCR","Special Education Program"]
[953,"Elimbah State School","School Road","Elimbah",4516,"School Road, Elimbah, 4516","NCR","State School"]
[1347,"Elliott Heads State School","143 Breusch Road","Elliott Heads",4670,"143 Breusch Road, Elliott Heads, 4670","NCR","State School"]
[2288,"Emerald Christian College (Emerald)","6373 Gregory Highway","Emerald",4720,"6373 Gregory Highway, Emerald, 4720","CQR","Non-State School"]
[3465,"Emerald North SS - Special Education Program","Special Education Unit, Campbell Street","Emerald",4720,"Special Education Unit, Campbell Street, Emerald, 4720","CQR","Special Education Program"]
[1904,"Emerald North State School","Campbell Street","Emerald",4720,"Campbell Street, Emerald, 4720","CQR","State School"]
[1646,"Emerald SHS - Special Education Program","Old Airport Drive","Emerald",4720,"Old Airport Drive, Emerald, 4720","CQR","Special Education Program"]
[2122,"Emerald State High School","Old Airport Drive","Emerald",4720,"Old Airport Drive, Emerald, 4720","CQR","State High School"]
[354,"Emerald State School","Anakie Street","Emerald",4720,"Anakie Street, Emerald, 4720","CQR","State School"]
[367,"Emmanuel Catholic Primary School (Mount Pleasant)","Baxter Drive","Mount Pleasant",4740,"Baxter Drive, Mount Pleasant, 4740","CQR","Non-State School"]
[5814,"Emmanuel College (Carrara)","Birmingham Road","Carrara",4211,"Birmingham Road, Carrara, 4211","SER","Non-State School"]
[2358,"Emmaus College (Jimboomba)","48 East Street","Jimboomba",4280,"48 East Street, Jimboomba, 4280","SER","Non-State School"]
[2469,"Emmaus College (North Rockhampton)","362 Yaamba Road","North Rockhampton",4701,"362 Yaamba Road, North Rockhampton, 4701","CQR","Associated Facility"]
[5408,"Emmaus College (Park Avenue)","185 Main Street","Park Avenue",4701,"185 Main Street, Park Avenue, 4701","CQR","Non-State School"]
[154,"Emu Creek State School","14534 New England Highway","East Greenmount",4359,"14534 New England Highway, East Greenmount, 4359","DSR","State School"]
[7928,"Emu Park SS - Special Education Program","26 Fountain Street","Emu Park",4710,"26 Fountain Street, Emu Park, 4710","CQR","Special Education Program"]
[473,"Emu Park State School","26 Fountain Street","Emu Park",4710,"26 Fountain Street, Emu Park, 4710","CQR","State School"]
[7107,"Endeavour Christian College (Cooktown)","12 Charles Street","Cooktown",4895,"12 Charles Street, Cooktown, 4895","FNR","Non-State School"]
["A736","Enkindle Village School (Douglas)","Building 30, JCU, James Cook Drive","Douglas",4814,"Building 30, JCU, James Cook Drive, Douglas, 4814","NQR","Non-State School"]
[35,"Enoggera State School","235 South Pine Road","Enoggera",4051,"235 South Pine Road, Enoggera, 4051","MER","State School"]
[6126,"EQIP Technical College - Gladstone Region","30 Dawson Road","West Gladstone",4680,"30 Dawson Road, West Gladstone, 4680","CQR","Associated Unit (Other)"]
[1179,"Eromanga State School","Donald Street","Eromanga",4480,"Donald Street, Eromanga, 4480","DSR","State School"]
[199,"Esk State School","49 East Street","Esk",4312,"49 East Street, Esk, 4312","DSR","State School"]
[310,"Eton State School","Prospect Street","Eton",4741,"Prospect Street, Eton, 4741","CQR","State School"]
[682,"Eudlo State School","Cnr Highlands Road & Rosebed Street","Eudlo",4554,"Cnr Highlands Road & Rosebed Street, Eudlo, 4554","NCR","State School"]
[222,"Eulo State School","Leo Street","Eulo",4491,"Leo Street, Eulo, 4491","DSR","State School"]
["A080","Eumundi SS - Special Education Program","22 Caplick Way","Eumundi",4562,"22 Caplick Way, Eumundi, 4562","NCR","Special Education Program"]
[698,"Eumundi State School","22 Caplick Way","Eumundi",4562,"22 Caplick Way, Eumundi, 4562","NCR","State School"]
[1353,"Eungella State School","36 Eungella Dam Road","Eungella",4757,"36 Eungella Dam Road, Eungella, 4757","CQR","State School"]
[327,"Everton Park SHS - Special Education Program","668 Stafford Road","Everton Park",4053,"668 Stafford Road, Everton Park, 4053","MER","Special Education Program"]
[2315,"Everton Park SS - Special Education Program","Deakin Street","Everton Park",4053,"Deakin Street, Everton Park, 4053","MER","Special Education Program"]
[2061,"Everton Park State High School","668 Stafford Road","Everton Park",4053,"668 Stafford Road, Everton Park, 4053","MER","State High School"]
[1185,"Everton Park State School","Deakin Street","Everton Park",4053,"Deakin Street, Everton Park, 4053","MER","State School"]
[5473,"Fairholme College (Toowoomba)","40 Wirra Wirra Street","Toowoomba",4350,"40 Wirra Wirra Street, Toowoomba, 4350","DSR","Non-State School"]
[121,"Fairview Heights SS - Special Education Program","75 McDougall Street","Wilsonton",4350,"75 McDougall Street, Wilsonton, 4350","DSR","Special Education Program"]
[1751,"Fairview Heights State School","75 McDougall Street","Wilsonton",4350,"75 McDougall Street, Wilsonton, 4350","DSR","State School"]
[736,"Faith Baptist Christian School (Burua)","1315 Dawson Highway","Burua",4680,"1315 Dawson Highway, Burua, 4680","CQR","Non-State School"]
[8013,"Faith Christian School of Distance Education (Karawatha)","129 Garfield Road","Karawatha",4114,"129 Garfield Road, Karawatha, 4114","MER","Non State School Distance Education"]
["A776","Faith Christian School of Distance Education (Woodridge)","15 Geonic Street","Woodridge",4114,"15 Geonic Street, Woodridge, 4114","SER","Non-State School"]
[2222,"Faith Lutheran College - Plainland (Plainland)","5 Faith Avenue","Plainland",4341,"5 Faith Avenue, Plainland, 4341","DSR","Non-State School"]
[5312,"Faith Lutheran College - Redlands (Thornlands)","1-15 Beveridge Road","Thornlands",4164,"1-15 Beveridge Road, Thornlands, 4164","SER","Associated Facility"]
[5763,"Faith Lutheran College - Redlands (Victoria Point)","132 Link Road","Victoria Point",4165,"132 Link Road, Victoria Point, 4165","SER","Non-State School"]
[1172,"Farleigh State School","Chidlow Street","Farleigh",4741,"Chidlow Street, Farleigh, 4741","CQR","State School"]
[1027,"Farnborough State School","8 Hinz Avenue","Farnborough",4703,"8 Hinz Avenue, Farnborough, 4703","CQR","State School"]
[1205,"Federal State School","40 Middle Creek Road","Federal",4568,"40 Middle Creek Road, Federal, 4568","NCR","State School"]
[810,"Feluga State School","Feluga Road","Feluga",4854,"Feluga Road, Feluga, 4854","FNR","State School"]
["A824","Fernbrooke SS - Special Education Program","8 Regents Drive","Redbank Plains",4301,"8 Regents Drive, Redbank Plains, 4301","MER","Special Education Program"]
[9969,"Fernbrooke State School","8 Regents Drive","Redbank Plains",4301,"8 Regents Drive, Redbank Plains, 4301","MER","State School"]
[7558,"Fernvale SS - Special Education Program","Brisbane Valley Highway","Fernvale",4306,"Brisbane Valley Highway, Fernvale, 4306","MER","Special Education Program"]
[170,"Fernvale State School","Brisbane Valley Highway","Fernvale",4306,"Brisbane Valley Highway, Fernvale, 4306","MER","State School"]
[5876,"Ferny Grove SHS - Special Education Program","McGinn Road","Ferny Grove",4055,"McGinn Road, Ferny Grove, 4055","MER","Special Education Program"]
[2200,"Ferny Grove SS - Special Education Program","Finvoy Street","Ferny Grove",4055,"Finvoy Street, Ferny Grove, 4055","MER","Special Education Program"]
[2148,"Ferny Grove State High School","McGinn Road","Ferny Grove",4055,"McGinn Road, Ferny Grove, 4055","MER","State High School"]
[227,"Ferny Grove State School","Finvoy Street","Ferny Grove",4055,"Finvoy Street, Ferny Grove, 4055","MER","State School"]
[5877,"Ferny Hills SS - Special Education Program","Illuta Avenue","Ferny Hills",4055,"Illuta Avenue, Ferny Hills, 4055","MER","Special Education Program"]
[250,"Ferny Hills State School","Illuta Avenue","Ferny Hills",4055,"Illuta Avenue, Ferny Hills, 4055","MER","State School"]
[36,"Fig Tree Pocket State School","Cubberla Street","Fig Tree Pocket",4069,"Cubberla Street, Fig Tree Pocket, 4069","MER","State School"]
[1175,"Finch Hatton State School","Eungella Road","Finch Hatton",4756,"Eungella Road, Finch Hatton, 4756","CQR","State School"]
[5878,"Fitzgerald SS - Special Education Program","Norris Road","North Mackay",4740,"Norris Road, North Mackay, 4740","CQR","Special Education Program"]
[1883,"Fitzgerald State School","Norris Road","North Mackay",4740,"Norris Road, North Mackay, 4740","CQR","State School"]
[489,"Flagstone Creek State School","56 Flagstone School Road","Flagstone Creek",4344,"56 Flagstone School Road, Flagstone Creek, 4344","DSR","State School"]
[5229,"Flagstone SS - Special Education Program","Poinciana Drive","Jimboomba",4280,"Poinciana Drive, Jimboomba, 4280","SER","Special Education Program"]
[2323,"Flagstone State Community College","Cnr Homestead Drive & Poinciana Drive","Jimboomba",4280,"Cnr Homestead Drive & Poinciana Drive, Jimboomba, 4280","SER","State High School"]
[5879,"Flagstone State Community College - Special Education Program","Cnr Homestead Drive & Poinciana Drive","Jimboomba",4280,"Cnr Homestead Drive & Poinciana Drive, Jimboomba, 4280","SER","Special Education Program"]
[471,"Flagstone State School","Poinciana Drive","Jimboomba",4280,"Poinciana Drive, Jimboomba, 4280","SER","State School"]
[845,"Flying Fish Point State School","Maud Street","Flying Fish Point",4860,"Maud Street, Flying Fish Point, 4860","FNR","State School"]
[697,"Forest Hill State School","Church Street","Forest Hill",4342,"Church Street, Forest Hill, 4342","DSR","State School"]
[2248,"Forest Lake SHS - Special Education Program","High Street","Forest Lake",4078,"High Street, Forest Lake, 4078","MER","Special Education Program"]
[3268,"Forest Lake SS - Special Education Program","Kauri Place","Forest Lake",4078,"Kauri Place, Forest Lake, 4078","MER","Special Education Program"]
[1726,"Forest Lake State High School","High Street","Forest Lake",4078,"High Street, Forest Lake, 4078","MER","State High School"]
[1998,"Forest Lake State School","Kauri Place","Forest Lake",4078,"Kauri Place, Forest Lake, 4078","MER","State School"]
[1897,"Forrest Beach State School","40 Pandanus Street","Forrest Beach",4850,"40 Pandanus Street, Forrest Beach, 4850","NQR","State School"]
[523,"Forsayth State School","Third Street","Forsayth",4871,"Third Street, Forsayth, 4871","FNR","State School"]
["A886","Fortitude Valley SSC - Special Education Program","585 St Pauls Terrace","Fortitude Valley ",4006,"585 St Pauls Terrace, Fortitude Valley , 4006","MER","Special Education Program"]
["A722","Fortitude Valley State Secondary College","585 St Pauls Terrace","Fortitude Valley",4006,"585 St Pauls Terrace, Fortitude Valley, 4006","MER","State High School"]
["A856","Foxwell SSC - Special Education Program","282 Foxwell Road","Coomera",4209,"282 Foxwell Road, Coomera, 4209","SER","Special Education Program"]
["A788","Foxwell State Secondary College","282 Foxwell Road","Coomera",4209,"282 Foxwell Road, Coomera, 4209","SER","State High School"]
[5,"Fraser Coast Anglican College (Wondunna)","Doolong South Road","Wondunna",4655,"Doolong South Road, Wondunna, 4655","NCR","Non-State School"]
[40,"Freestone State School","82 School Road","Freestone",4370,"82 School Road, Freestone, 4370","DSR","State School"]
[5443,"Frenchville SS - Special Education Program","Frenchville State School, Frenchville Road","Frenchville",4701,"Frenchville State School, Frenchville Road, Frenchville, 4701","CQR","Special Education Program"]
[940,"Frenchville State School","Frenchville Road","Frenchville",4701,"Frenchville Road, Frenchville, 4701","CQR","State School"]
[5887,"Freshwater Christian College (Brinsmead)","369-401 Brinsmead Road","Brinsmead",4870,"369-401 Brinsmead Road, Brinsmead, 4870","FNR","Non-State School"]
[1812,"Freshwater State School","10 Corkill Street","Freshwater",4870,"10 Corkill Street, Freshwater, 4870","FNR","State School"]
[3541,"Gabbinbar SS - Special Education Program","189 Stenner Street","Centenary Heights",4350,"189 Stenner Street, Centenary Heights, 4350","DSR","Special Education Program"]
[84,"Gabbinbar State School","189 Stenner Street","Centenary Heights",4350,"189 Stenner Street, Centenary Heights, 4350","DSR","State School"]
[1434,"Garbutt State School","76 Chandler Street","Garbutt",4814,"76 Chandler Street, Garbutt, 4814","NQR","State School"]
[1460,"Gargett State School","Tom Lynch Street","Gargett",4741,"Tom Lynch Street, Gargett, 4741","CQR","State School"]
[3448,"Gatton SS - Special Education Program","26 William Street","Gatton",4343,"26 William Street, Gatton, 4343","DSR","Special Education Program"]
[41,"Gatton State School","26 William Street","Gatton",4343,"26 William Street, Gatton, 4343","DSR","State School"]
[6186,"Gaven SS - Special Education Program","Universal Street","Oxenford",4210,"Universal Street, Oxenford, 4210","SER","Special Education Program"]
[1752,"Gaven State School","Universal Street","Oxenford",4210,"Universal Street, Oxenford, 4210","SER","State School"]
[42,"Gayndah State School","33 Meson Street","Gayndah",4625,"33 Meson Street, Gayndah, 4625","CQR","State School"]
[133,"Geebung SPEC S - Early Childhood Development Program","Beau Vista Street","Geebung",4034,"Beau Vista Street, Geebung, 4034","MER","Special Education Program"]
[3077,"Geebung Special School","Beau Vista Street","Geebung",4034,"Beau Vista Street, Geebung, 4034","MER","Special School"]
[2201,"Geebung SS - Special Education Program","250 Newman Road","Geebung",4034,"250 Newman Road, Geebung, 4034","MER","Special Education Program"]
[1257,"Geebung State School","250 Newman Road","Geebung",4034,"250 Newman Road, Geebung, 4034","MER","State School"]
[54,"Geham State School","9625 New England Highway","Geham",4352,"9625 New England Highway, Geham, 4352","DSR","State School"]
[5592,"Genesis Christian College (Bray Park)","10 - 16 Youngs Crossing Road","Bray Park",4500,"10 - 16 Youngs Crossing Road, Bray Park, 4500","NCR","Non-State School"]
[178,"Georgetown State School","High Street","Georgetown",4871,"High Street, Georgetown, 4871","FNR","State School"]
[5328,"Gilroy Santa Maria College (Ingham)","17 Chamberlain Street","Ingham",4850,"17 Chamberlain Street, Ingham, 4850","NQR","Non-State School"]
[6187,"Gilston SS - Special Education Program","588 Worongary Road","Gilston",4211,"588 Worongary Road, Gilston, 4211","SER","Special Education Program"]
[50,"Gilston State School","588 Worongary Road","Gilston",4211,"588 Worongary Road, Gilston, 4211","SER","State School"]
[5662,"Gin Gin SHS - Special Education Program","c/- Gin Gin SHS, 30 High School Road","Gin Gin",4671,"c/- Gin Gin SHS, 30 High School Road, Gin Gin, 4671","NCR","Special Education Program"]
[5896,"Gin Gin SS - Special Education Program","13 May Street","Gin Gin",4671,"13 May Street, Gin Gin, 4671","NCR","Special Education Program"]
[2131,"Gin Gin State High School","30 High School Road","Gin Gin",4671,"30 High School Road, Gin Gin, 4671","NCR","State High School"]
[298,"Gin Gin State School","13 May Street","Gin Gin",4671,"13 May Street, Gin Gin, 4671","NCR","State School"]
[709,"Gindie State School","Cnr Old Cullen-la-ringo Road & Gregory Hwy","Gindie",4702,"Cnr Old Cullen-la-ringo Road & Gregory Hwy, Gindie, 4702","CQR","State School"]
[9968,"Girl Academy (Wangetti Beach)","4099 Captain Cook Highway","Wangetti Beach",4877,"4099 Captain Cook Highway, Wangetti Beach, 4877","FNR","Non-State School"]
[1258,"Giru State School","Luxton Street","Giru",4809,"Luxton Street, Giru, 4809","NQR","State School"]
["A917","Givelda Alternative Program Support Unit (Other)","754 Pine Creek Road","Givelda",4670,"754 Pine Creek Road, Givelda, 4670","NCR","Support Unit (Other)"]
[749,"Givelda State School","754 Pine Creek Road","Givelda",4670,"754 Pine Creek Road, Givelda, 4670","NCR","State School"]
["A004","Gladstone Central SS - Special Education Program","74 Auckland Street","Gladstone Central",4680,"74 Auckland Street, Gladstone Central, 4680","CQR","Special Education Program"]
[44,"Gladstone Central State School","74 Auckland Street","Gladstone Central",4680,"74 Auckland Street, Gladstone Central, 4680","CQR","State School"]
["A892","Gladstone Region - Special Education Program","17 O'Connor Road","Benaraby",4680,"17 O'Connor Road, Benaraby, 4680","CQR","Special Education Program"]
[5654,"Gladstone Schools Engineering Skills Centre","NRG Power Station, Hanson Road","Callemondah",4680,"NRG Power Station, Hanson Road, Callemondah, 4680","CQR","Support Unit (Other)"]
[2255,"Gladstone SHS - Special Education Program","30 Dawson Road","West Gladstone",4680,"30 Dawson Road, West Gladstone, 4680","CQR","Special Education Program"]
[6188,"Gladstone South SS - Special Education Program","153 Toolooa Street","South Gladstone",4680,"153 Toolooa Street, South Gladstone, 4680","CQR","Special Education Program"]
[825,"Gladstone South State School","153 Toolooa Street","South Gladstone",4680,"153 Toolooa Street, South Gladstone, 4680","CQR","State School"]
[2030,"Gladstone State High School","30 Dawson Road","West Gladstone",4680,"30 Dawson Road, West Gladstone, 4680","CQR","State High School"]
[5706,"Gladstone West SS - Special Education Program","Boles Street","West Gladstone",4680,"Boles Street, West Gladstone, 4680","CQR","Special Education Program"]
[740,"Gladstone West State School","Boles Street","West Gladstone",4680,"Boles Street, West Gladstone, 4680","CQR","State School"]
[149,"Glamorgan Vale State School","750 Glamorgan Vale Road","Glamorgan Vale",4306,"750 Glamorgan Vale Road, Glamorgan Vale, 4306","MER","State School"]
[1242,"Glass House Mountains State School","58 Coonowrin Road","Glass House Mountains",4518,"58 Coonowrin Road, Glass House Mountains, 4518","NCR","State School"]
[2257,"Glasshouse Christian College (Beerwah)","58 Roberts Road","Beerwah",4519,"58 Roberts Road, Beerwah, 4519","NCR","Non-State School"]
[544,"Glen Aplin State School","54 Mount Stirling Road","Glen Aplin",4381,"54 Mount Stirling Road, Glen Aplin, 4381","DSR","State School"]
[2081,"Glenala SHS - Special Education Program","c/- Glenala SHS, Glenala Road","Durack",4077,"c/- Glenala SHS, Glenala Road, Durack, 4077","MER","Special Education Program"]
[1592,"Glenala State High School","Glenala Road","Durack",4077,"Glenala Road, Durack, 4077","MER","State High School"]
[1918,"Glenden State School","Gillham Terrace","Glenden",4743,"Gillham Terrace, Glenden, 4743","CQR","State School"]
["A766","Gleneagle SS - Special Education Program","126-146 Mount Lindesay Highway","Gleneagle",4285,"126-146 Mount Lindesay Highway, Gleneagle, 4285","SER","Special Education Program"]
[1006,"Gleneagle State School","126-146 Mount Lindesay Highway","Gleneagle",4285,"126-146 Mount Lindesay Highway, Gleneagle, 4285","SER","State School"]
["A007","Glenella SS - Special Education Program","35-55 Hill End Road","Glenella",4740,"35-55 Hill End Road, Glenella, 4740","CQR","Special Education Program"]
[313,"Glenella State School","35-55 Hill End Road","Glenella",4740,"35-55 Hill End Road, Glenella, 4740","CQR","State School"]
[3247,"Glenmore SHS - Special Education Program","Cnr Bruce Highway & Farm Street","Kawana",4701,"Cnr Bruce Highway & Farm Street, Kawana, 4701","CQR","Special Education Program"]
[3495,"Glenmore SS - Special Education Program","241-259 Farm Street","Kawana",4701,"241-259 Farm Street, Kawana, 4701","CQR","Special Education Program"]
[2028,"Glenmore State High School","Cnr Bruce Highway & Farm Street","Kawana",4701,"Cnr Bruce Highway & Farm Street, Kawana, 4701","CQR","State High School"]
[574,"Glenmore State School","241-259 Farm Street","Kawana",4701,"241-259 Farm Street, Kawana, 4701","CQR","State School"]
[917,"Glenmorgan State School","Clive Street","Glenmorgan",4423,"Clive Street, Glenmorgan, 4423","DSR","State School"]
[8784,"Glennie Heights SS - Special Education Program","5-12 Gillam Street","Warwick",4370,"5-12 Gillam Street, Warwick, 4370","DSR","Special Education Program"]
[770,"Glennie Heights State School","5-12 Gillam Street","Warwick",4370,"5-12 Gillam Street, Warwick, 4370","DSR","State School"]
[1089,"Glenore Grove State School","3 Brightview Road","Glenore Grove",4342,"3 Brightview Road, Glenore Grove, 4342","DSR","State School"]
[741,"Glenvale Christian School (Glenvale)","623-661 Boundary Street","Glenvale",4350,"623-661 Boundary Street, Glenvale, 4350","DSR","Non-State School"]
[5900,"Glenvale SS - Special Education Program","224 Glenvale Road","Glenvale",4350,"224 Glenvale Road, Glenvale, 4350","DSR","Special Education Program"]
[126,"Glenvale State School","224 Glenvale Road","Glenvale",4350,"224 Glenvale Road, Glenvale, 4350","DSR","State School"]
[337,"Glenview State School","6 Leeding Road","Glenview",4553,"6 Leeding Road, Glenview, 4553","NCR","State School"]
[1617,"Glenwood State School","13 Glenwood School Road","Glenwood",4570,"13 Glenwood School Road, Glenwood, 4570","NCR","State School"]
[552,"Gogango State School","10 Wills Street","Gogango",4702,"10 Wills Street, Gogango, 4702","CQR","State School"]
[5477,"Gold Coast Christian College (Reedy Creek)","7-9 Bridgman Drive","Reedy Creek",4227,"7-9 Bridgman Drive, Reedy Creek, 4227","SER","Non-State School"]
[6327,"Gold Coast University Hospital Class","Gold Coast University Hospital, 1 Hospital Boulevard","Southport",4215,"Gold Coast University Hospital, 1 Hospital Boulevard, Southport, 4215","SER","Support Unit (Other)"]
[2313,"Golden Beach SS - Special Education Program","Gregory Street","Golden Beach",4551,"Gregory Street, Golden Beach, 4551","NCR","Special Education Program"]
[1920,"Golden Beach State School","Gregory Street","Golden Beach",4551,"Gregory Street, Golden Beach, 4551","NCR","State School"]
[407,"Gooburrum State School","14 Gooburrum Road","Gooburrum",4670,"14 Gooburrum Road, Gooburrum, 4670","NCR","State School"]
[5437,"Good Counsel College (Innisfail)","66 Owen Street","Innisfail",4860,"66 Owen Street, Innisfail, 4860","FNR","Non-State School"]
[5263,"Good Counsel Primary School (Innisfail)","96 Rankin Street","Innisfail",4860,"96 Rankin Street, Innisfail, 4860","FNR","Non-State School"]
[5768,"Good News Lutheran School (Middle Park)","49 Horizon Drive","Middle Park",4074,"49 Horizon Drive, Middle Park, 4074","MER","Non-State School"]
["A106","Good Samaritan Catholic College (Bli Bli)","185 Parklakes Drive","Bli Bli",4560,"185 Parklakes Drive, Bli Bli, 4560","NCR","Non-State School"]
[5421,"Good Shepherd Catholic College (Mount Isa)","Cnr Mary and Camooweal Streets","Mount Isa",4825,"Cnr Mary and Camooweal Streets, Mount Isa, 4825","NQR","Non-State School"]
[7612,"Good Shepherd Catholic Primary School (Springfield Lakes)","58 Opperman Drive","Springfield Lakes",4300,"58 Opperman Drive, Springfield Lakes, 4300","MER","Non-State School"]
[308,"Good Shepherd Catholic School (Rasmussen)","65 Allambie Lane","Rasmussen",4815,"65 Allambie Lane, Rasmussen, 4815","NQR","Non-State School"]
[5161,"Good Shepherd Christian School (Albany Creek)","185 Old Northern Road","Albany Creek",4035,"185 Old Northern Road, Albany Creek, 4035","MER","Non-State School"]
[5520,"Good Shepherd Lutheran College (Noosaville)","115 Eumundi Road","Noosaville",4566,"115 Eumundi Road, Noosaville, 4566","NCR","Non-State School"]
[3034,"Goodna Special School","65 Queen Street","Goodna",4300,"65 Queen Street, Goodna, 4300","MER","Special School"]
[2391,"Goodna SS - Special Education Program","1 Albert Street","Goodna",4300,"1 Albert Street, Goodna, 4300","MER","Special Education Program"]
[45,"Goodna State School","1 Albert Street","Goodna",4300,"1 Albert Street, Goodna, 4300","MER","State School"]
[939,"Goodwood State School","1802 Goodwood Road","Goodwood",4660,"1802 Goodwood Road, Goodwood, 4660","NCR","State School"]
[111,"Goombungee State School","52 Mocatta Street","Goombungee",4354,"52 Mocatta Street, Goombungee, 4354","DSR","State School"]
[1310,"Goomeri State School","5 Munro Street","Goomeri",4601,"5 Munro Street, Goomeri, 4601","DSR","State School"]
[807,"Goondi State School","78 Maple Street","Goondi Bend",4860,"78 Maple Street, Goondi Bend, 4860","FNR","State School"]
[9926,"Goondiwindi SHS - Special Education Program","3 Sandhurst Street","Goondiwindi",4390,"3 Sandhurst Street, Goondiwindi, 4390","DSR","Special Education Program"]
[3491,"Goondiwindi SS - Special Education Program","34 George Street","Goondiwindi",4390,"34 George Street, Goondiwindi, 4390","DSR","Special Education Program"]
[2092,"Goondiwindi State High School","3 Sandhurst Street","Goondiwindi",4390,"3 Sandhurst Street, Goondiwindi, 4390","DSR","State High School"]
[46,"Goondiwindi State School","34 George Street","Goondiwindi",4390,"34 George Street, Goondiwindi, 4390","DSR","State School"]
["A659","Goora Gan Steiner School (Agnes Water)","1 Surf Club Avenue","Agnes Water",4677,"1 Surf Club Avenue, Agnes Water, 4677","NCR","Non-State School"]
[1839,"Goovigen State School","Rannes Road","Goovigen",4702,"Rannes Road, Goovigen, 4702","CQR","State School"]
[5901,"Gordonvale SHS - Special Education Program","85 Sheppards Street","Gordonvale",4865,"85 Sheppards Street, Gordonvale, 4865","FNR","Special Education Program"]
[5902,"Gordonvale SS - Special Education Program","28 George Street","Gordonvale",4865,"28 George Street, Gordonvale, 4865","FNR","Special Education Program"]
[2106,"Gordonvale State High School","85 Sheppards Street","Gordonvale",4865,"85 Sheppards Street, Gordonvale, 4865","FNR","State High School"]
[790,"Gordonvale State School","28 George Street","Gordonvale",4865,"28 George Street, Gordonvale, 4865","FNR","State School"]
["A889","Gore Highway Cluster - Special Education Program","Hume Street","Pittsworth",4356,"Hume Street, Pittsworth, 4356","DSR","Special Education Program"]
[297,"Gowrie State School","Old Homebush Road","Gowrie Junction",4352,"Old Homebush Road, Gowrie Junction, 4352","DSR","State School"]
[5652,"Grace Lutheran College (Caboolture)","129 Toohey Street","Caboolture",4510,"129 Toohey Street, Caboolture, 4510","NCR","Associated Facility"]
[5780,"Grace Lutheran College (Rothwell)","Anzac Avenue and Mewes Road","Rothwell",4022,"Anzac Avenue and Mewes Road, Rothwell, 4022","NCR","Non-State School"]
[5760,"Grace Lutheran Primary School (Clontarf)","38 Maine Road","Clontarf",4019,"38 Maine Road, Clontarf, 4019","NCR","Non-State School"]
[7930,"Gracemere SS Cluster - Special Education Program","O'Shanesy Street","Gracemere",4702,"O'Shanesy Street, Gracemere, 4702","CQR","Special Education Program"]
[47,"Gracemere State School","O'Shanesy Street","Gracemere",4702,"O'Shanesy Street, Gracemere, 4702","CQR","State School"]
[1515,"Graceville State School","23 Acacia Avenue","Graceville",4075,"23 Acacia Avenue, Graceville, 4075","MER","State School"]
[2244,"Grand Avenue SS - Special Education Program","Cnr Centennial Way & Grand Avenue","Forest Lake",4078,"Cnr Centennial Way & Grand Avenue, Forest Lake, 4078","MER","Special Education Program"]
[1674,"Grand Avenue State School","Cnr Centennial Way & Grand Avenue","Forest Lake",4078,"Cnr Centennial Way & Grand Avenue, Forest Lake, 4078","MER","State School"]
[145,"Grandchester State School","School Road","Grandchester",4340,"School Road, Grandchester, 4340","MER","State School"]
[1051,"Grantham State School","15 Victor Street","Grantham",4347,"15 Victor Street, Grantham, 4347","DSR","State School"]
[5711,"Granville SS - Special Education Program","Cambridge Street","Granville",4650,"Cambridge Street, Granville, 4650","NCR","Special Education Program"]
[193,"Granville State School","Cambridge Street","Granville",4650,"Cambridge Street, Granville, 4650","NCR","State School"]
[6145,"Great Alternate Programme","234 Torquay Terrace","Torquay",4655,"234 Torquay Terrace, Torquay, 4655","NCR","Support Unit (Other)"]
[7583,"Great Barrier Reef International Marine College","55-61 Tingira Street","Portsmith",4870,"55-61 Tingira Street, Portsmith, 4870","FNR","Support Unit (Other)"]
[5710,"Greenbank SS - Special Education Program","12-54 Goodna Road","Greenbank",4124,"12-54 Goodna Road, Greenbank, 4124","SER","Special Education Program"]
[695,"Greenbank State School","12-54 Goodna Road","Greenbank",4124,"12-54 Goodna Road, Greenbank, 4124","SER","State School"]
[925,"Greenlands State School","1209 Texas Road","Greenlands",4380,"1209 Texas Road, Greenlands, 4380","DSR","State School"]
[976,"Greenmount State School","Haldon Street","Greenmount",4359,"Haldon Street, Greenmount, 4359","DSR","State School"]
[614,"Greenslopes State School","559 Logan Road","Greenslopes",4120,"559 Logan Road, Greenslopes, 4120","MER","State School"]
[334,"Greenvale State School","Cassia Court","Greenvale",4816,"Cassia Court, Greenvale, 4816","NQR","State School"]
[9998,"Griffin SS - Special Education Program","19 Wesley Road","Griffin",4503,"19 Wesley Road, Griffin, 4503","NCR","Special Education Program"]
[9339,"Griffin State School","19 Wesley Road","Griffin",4503,"19 Wesley Road, Griffin, 4503","NCR","State School"]
[1056,"Grosmont State School","2524 Grosmont Road","Grosmont",4419,"2524 Grosmont Road, Grosmont, 4419","DSR","State School"]
[2389,"Grovely SS - Special Education Program","B Block, 200 Dawson Parade","Keperra",4054,"B Block, 200 Dawson Parade, Keperra, 4054","MER","Special Education Program"]
[1136,"Grovely State School","200 Dawson Parade","Keperra",4054,"200 Dawson Parade, Keperra, 4054","MER","State School"]
[5695,"Groves Christian College (Distance)","70 Laughlin Street","Kingston",4114,"70 Laughlin Street, Kingston, 4114","SER","Non State School Distance Education"]
[1860,"Groves Christian College (Laughlin St - Kingston)","10 - 24  Velorum Drive","Kingston",4114,"10 - 24  Velorum Drive, Kingston, 4114","SER","Non-State School"]
[5552,"Groves Christian College (Velorum Dr, Kingston)","10-18 Velorum Drive","Kingston",4114,"10-18 Velorum Drive, Kingston, 4114","SER","Associated Facility"]
[5113,"Guardian Angels' Catholic Primary School (Ashmore)","Edmund Rice Drive","Ashmore",4214,"Edmund Rice Drive, Ashmore, 4214","SER","Non-State School"]
[5006,"Guardian Angels' Primary School (Wynnum)","188 Bay Terrace","Wynnum",4178,"188 Bay Terrace, Wynnum, 4178","MER","Non-State School"]
[5895,"Gulf Christian College (Brown St, Normanton)","24-30 Brown Street","Normanton",4890,"24-30 Brown Street, Normanton, 4890","NQR","Non-State School"]
["A014","Gulf Christian College (Thompson St, Normanton)","84 Thompson Street","Normanton",4890,"84 Thompson Street, Normanton, 4890","NQR","Associated Facility"]
[1549,"Guluguba State School","Fosters Road","Guluguba",4418,"Fosters Road, Guluguba, 4418","DSR","State School"]
[6597,"Gumdale SS - Special Education Program","677 New Cleveland Road","Gumdale",4154,"677 New Cleveland Road, Gumdale, 4154","MER","Special Education Program"]
[1608,"Gumdale State School","677 New Cleveland Road","Gumdale",4154,"677 New Cleveland Road, Gumdale, 4154","MER","State School"]
[1391,"Gumlu State School","De Salis Street","Gumlu",4805,"De Salis Street, Gumlu, 4805","NQR","State School"]
[58,"Gunalda State School","King Street","Gunalda",4570,"King Street, Gunalda, 4570","NCR","State School"]
[821,"Gundiah State School","23 Gundiah School Road","Gundiah",4650,"23 Gundiah School Road, Gundiah, 4650","NCR","State School"]
[49,"Gympie Central State School","Lawrence Street","Gympie",4570,"Lawrence Street, Gympie, 4570","NCR","State School"]
[482,"Gympie East State School","219 Cedar Pocket Road","Greens Creek",4570,"219 Cedar Pocket Road, Greens Creek, 4570","NCR","State School"]
[7611,"Gympie Flexible Learning Centre (Gympie)","2 Bowen Lane","Gympie",4570,"2 Bowen Lane, Gympie, 4570","NCR","Non-State School"]
[9915,"Gympie Schools Trade Training Centre","71 Cartwright Road","Gympie",4570,"71 Cartwright Road, Gympie, 4570","NCR","Associated Unit (Other)"]
[2298,"Gympie SHS - Special Education Program","2 Everson Road","Gympie",4570,"2 Everson Road, Gympie, 4570","NCR","Special Education Program"]
[2199,"Gympie South SS - Special Education Program","Gympie South SS, 50 Exhibition Road","Southside",4570,"Gympie South SS, 50 Exhibition Road, Southside, 4570","NCR","Special Education Program"]
[1221,"Gympie South State School","50 Exhibition Road","Southside",4570,"50 Exhibition Road, Southside, 4570","NCR","State School"]
[3007,"Gympie Special School","52 Cootharaba Road","Gympie",4570,"52 Cootharaba Road, Gympie, 4570","NCR","Special School"]
[2007,"Gympie State High School","2 Everson Road","Gympie",4570,"2 Everson Road, Gympie, 4570","NCR","State High School"]
[2240,"Gympie West SS - Special Education Program","41 Cartwright Road","Gympie",4570,"41 Cartwright Road, Gympie, 4570","NCR","Special Education Program"]
[560,"Gympie West State School","41 Cartwright Road","Gympie",4570,"41 Cartwright Road, Gympie, 4570","NCR","State School"]
[1329,"Haden State School","1520 Haden-Crow's Nest Road","Haden",4353,"1520 Haden-Crow's Nest Road, Haden, 4353","DSR","State School"]
[114,"Haigslea State School","Thagoona-Haigslea Road","Haigslea",4306,"Thagoona-Haigslea Road, Haigslea, 4306","MER","State School"]
[213,"Halifax State School","17 Victoria Terrace","Halifax",4850,"17 Victoria Terrace, Halifax, 4850","NQR","State School"]
[335,"Hambledon SS - Special Education Program","77-83 Stokes Street","Edmonton",4869,"77-83 Stokes Street, Edmonton, 4869","FNR","Special Education Program"]
[538,"Hambledon State School","77-83 Stokes Street","Edmonton",4869,"77-83 Stokes Street, Edmonton, 4869","FNR","State School"]
[1962,"Hamilton Island State School","Hamilton Island","Whitsundays",4803,"Hamilton Island, Whitsundays, 4803","NQR","State School"]
[1130,"Hamilton State School","Oxford Street","Hamilton",4007,"Oxford Street, Hamilton, 4007","MER","State School"]
[529,"Hampden State School","2880 Bruce Highway","Hampden",4741,"2880 Bruce Highway, Hampden, 4741","CQR","State School"]
[1849,"Hannaford State School","Hannaford Road","Hannaford",4406,"Hannaford Road, Hannaford, 4406","DSR","State School"]
[843,"Happy Valley State School","Brilliant Street","Happy Valley",4825,"Brilliant Street, Happy Valley, 4825","NQR","State School"]
[978,"Harlaxton State School","110 Ruthven Street","Harlaxton",4350,"110 Ruthven Street, Harlaxton, 4350","DSR","State School"]
[902,"Harlin State School","Brisbane Valley Highway","Harlin",4306,"Brisbane Valley Highway, Harlin, 4306","DSR","State School"]
[5905,"Harris Fields SS - Special Education Program","10-38 Smith Road","Woodridge",4114,"10-38 Smith Road, Woodridge, 4114","SER","Special Education Program"]
[359,"Harris Fields State School","10-38 Smith Road","Woodridge",4114,"10-38 Smith Road, Woodridge, 4114","SER","State School"]
[2318,"Harristown SHS - Special Education Program","341-367 South Street","Harristown",4350,"341-367 South Street, Harristown, 4350","DSR","Special Education Program"]
["A000","Harristown SHS Intensive English Centre","341-367 South Street","Harristown",4350,"341-367 South Street, Harristown, 4350","DSR","Intensive English Centre"]
[6245,"Harristown SS - Special Education Program","332 South Street","Harristown",4350,"332 South Street, Harristown, 4350","DSR","Special Education Program"]
[2038,"Harristown State High School","341-367 South Street","Harristown",4350,"341-367 South Street, Harristown, 4350","DSR","State High School"]
[1292,"Harristown State School","332 South Street","Harristown",4350,"332 South Street, Harristown, 4350","DSR","State School"]
["A770","Harrisville SS - Special Education Program","17 Hall Street","Harrisville",4307,"17 Hall Street, Harrisville, 4307","SER","Special Education Program"]
[621,"Harrisville State School","17 Hall Street","Harrisville",4307,"17 Hall Street, Harrisville, 4307","SER","State School"]
[5907,"Hatton Vale SS - Special Education Program","Hannant Road","Hatton Vale",4341,"Hannant Road, Hatton Vale, 4341","DSR","Special Education Program"]
[390,"Hatton Vale State School","Hannant Road","Hatton Vale",4341,"Hannant Road, Hatton Vale, 4341","DSR","State School"]
[1060,"Hayman Island State School","Hayman Island","Whitsundays",4802,"Hayman Island, Whitsundays, 4802","NQR","State School"]
[232,"Healy State School","5-9 Thomson Road","Healy",4825,"5-9 Thomson Road, Healy, 4825","NQR","State School"]
[2120,"Heatley Secondary College","Cnr Hanlon Street & Fulham Road","Heatley",4814,"Cnr Hanlon Street & Fulham Road, Heatley, 4814","NQR","State High School"]
[3241,"Heatley Secondary College - Special Education Program","Special Education Unit, Cnr Hanlon Street & Fulham Road","Heatley",4814,"Special Education Unit, Cnr Hanlon Street & Fulham Road, Heatley, 4814","NQR","Special Education Program"]
[3536,"Heatley SS - Special Education Program","410 Fulham Road","Heatley",4814,"410 Fulham Road, Heatley, 4814","NQR","Special Education Program"]
[305,"Heatley State School","410 Fulham Road","Heatley",4814,"410 Fulham Road, Heatley, 4814","NQR","State School"]
[954,"Hebel State School","Maud Street","Hebel",4486,"Maud Street, Hebel, 4486","DSR","State School"]
[5899,"Heights College (North Rockhampton)","276 Carlton Street","North Rockhampton",4701,"276 Carlton Street, North Rockhampton, 4701","CQR","Non-State School"]
["A691","Helensvale Learning Centre","1/46 Siganto Drive","Helensvale",4212,"1/46 Siganto Drive, Helensvale, 4212","SER","Support Unit (Other)"]
[1643,"Helensvale SHS - Special Education Program","243 Discovery Drive","Helensvale",4212,"243 Discovery Drive, Helensvale, 4212","SER","Special Education Program"]
[5908,"Helensvale SS - Special Education Program","8 Lindfield Road","Helensvale",4212,"8 Lindfield Road, Helensvale, 4212","SER","Special Education Program"]
[2184,"Helensvale State High School","243 Discovery Drive","Helensvale",4212,"243 Discovery Drive, Helensvale, 4212","SER","State High School"]
[1929,"Helensvale State School","8 Lindfield Road","Helensvale",4212,"8 Lindfield Road, Helensvale, 4212","SER","State School"]
[52,"Helidon State School","16 School Street","Helidon",4344,"16 School Street, Helidon, 4344","DSR","State School"]
[8192,"Hemmant Flexible Learning Centre (Hemmant)","56 Hemmant-Tingalpa Road","Hemmant",4174,"56 Hemmant-Tingalpa Road, Hemmant, 4174","MER","Non-State School"]
[33,"Hendra State School","309 Nudgee Road","Hendra",4011,"309 Nudgee Road, Hendra, 4011","MER","State School"]
["A650","Herberton P-10 - Special Education Program","Elwyn Phillips Memorial Drive","Moomin",4887,"Elwyn Phillips Memorial Drive, Moomin, 4887","FNR","Special Education Program"]
[254,"Herberton State School","Elwyn Phillips Memorial Drive","Moomin",4887,"Elwyn Phillips Memorial Drive, Moomin, 4887","FNR","State School"]
[6140,"Herberton State School - Primary Campus","Elwyn Phillips Memorial Drive","Moomin",4887,"Elwyn Phillips Memorial Drive, Moomin, 4887","FNR","Campus"]
[6141,"Herberton State School - Secondary Campus","Grace Street","Herberton",4887,"Grace Street, Herberton, 4887","FNR","Campus"]
[3269,"Hercules Road SS - Special Education Program","Hercules Road","Kippa-Ring",4021,"Hercules Road, Kippa-Ring, 4021","NCR","Special Education Program"]
[1858,"Hercules Road State School","Hercules Road","Kippa-Ring",4021,"Hercules Road, Kippa-Ring, 4021","NCR","State School"]
[873,"Hermit Park State School","Cnr Surrey & Sussex Streets","Hyde Park",4812,"Cnr Surrey & Sussex Streets, Hyde Park, 4812","NQR","State School"]
[5719,"Hervey Bay Positive Learning Centre","c/- Hervey Bay SHS, Alice Street","Pialba",4655,"c/- Hervey Bay SHS, Alice Street, Pialba, 4655","NCR","Positive Learning Centre"]
[5217,"Hervey Bay SHS - Special Education Program","Beach Road","Pialba",4655,"Beach Road, Pialba, 4655","NCR","Special Education Program"]
[3057,"Hervey Bay Special School","23 Frangipanni Avenue","Kawungan",4655,"23 Frangipanni Avenue, Kawungan, 4655","NCR","Special School"]
[2093,"Hervey Bay State High School","Beach Road","Pialba",4655,"Beach Road, Pialba, 4655","NCR","State High School"]
[2385,"Highfields SS - Special Education Program","10459 New England Highway","Highfields",4352,"10459 New England Highway, Highfields, 4352","DSR","Special Education Program"]
[9937,"Highfields SSC - Special Education Program","10 O'Brien Road","Highfields",4352,"10 O'Brien Road, Highfields, 4352","DSR","Special Education Program"]
[53,"Highfields State School","10459 New England Highway","Highfields",4352,"10459 New England Highway, Highfields, 4352","DSR","State School"]
[9340,"Highfields State Secondary College","10 O'Brien Road","Highfields",4352,"10 O'Brien Road, Highfields, 4352","DSR","State High School"]
[7957,"Highland Reserve SS - Special Education Program","570 Reserve Road","Upper Coomera",4210,"570 Reserve Road, Upper Coomera, 4210","SER","Special Education Program"]
[6135,"Highland Reserve State School","570 Reserve Road","Upper Coomera",4209,"570 Reserve Road, Upper Coomera, 4209","SER","State School"]
[5862,"Highlands Christian College (Toowoomba)","505 Hume Street","Toowoomba",4350,"505 Hume Street, Toowoomba, 4350","DSR","Non-State School"]
["A640","Hilder Road SS - Special Education Program","Kaloma Road","The Gap",4061,"Kaloma Road, The Gap, 4061","MER","Special Education Program"]
[1887,"Hilder Road State School","Kaloma Road","The Gap",4061,"Kaloma Road, The Gap, 4061","MER","State School"]
[5441,"Hillbrook Anglican School (Enoggera)","45 Hurdcotte Street","Enoggera",4051,"45 Hurdcotte Street, Enoggera, 4051","MER","Non-State School"]
[5571,"Hillcrest Christian College (Reedy Creek)","21 Bridgman Drive","Reedy Creek",4227,"21 Bridgman Drive, Reedy Creek, 4227","SER","Non-State School"]
[3513,"Hilliard SS - Special Education Program","Cnr Alexandra Circuit & Hanover Drive","Alexandra Hills",4161,"Cnr Alexandra Circuit & Hanover Drive, Alexandra Hills, 4161","SER","Special Education Program"]
[1986,"Hilliard State School","Cnr Alexandra Circuit & Hanover Drive","Alexandra Hills",4161,"Cnr Alexandra Circuit & Hanover Drive, Alexandra Hills, 4161","SER","State School"]
[5798,"Hills International College (Jimboomba)","105-111 Johanna Street","Jimboomba",4280,"105-111 Johanna Street, Jimboomba, 4280","SER","Non-State School"]
[541,"Hillview State School","1623 Christmas Creek Road","Hillview",4285,"1623 Christmas Creek Road, Hillview, 4285","SER","State School"]
[5698,"Hinchinbrook Christian School (Distance)","Independent Baptist Church, Halifax Road","Ingham",4850,"Independent Baptist Church, Halifax Road, Ingham, 4850","NQR","Non State School Distance Education"]
[5589,"Hinchinbrook Christian School (Ingham)","77 Halifax Road","Ingham",4850,"77 Halifax Road, Ingham, 4850","NQR","Non-State School"]
[9939,"Holland Park SHS - Special Education Program","Bapaume Road","Holland Park West",4121,"Bapaume Road, Holland Park West, 4121","MER","Special Education Program"]
[2125,"Holland Park State High School","Bapaume Road","Holland Park West",4121,"Bapaume Road, Holland Park West, 4121","MER","State High School"]
[1593,"Holland Park State School","59 Abbotsleigh Street","Holland Park",4121,"59 Abbotsleigh Street, Holland Park, 4121","MER","State School"]
[3582,"Holloways Beach Environmental Education Centre","46 Poinsettia Street","Holloways Beach",4878,"46 Poinsettia Street, Holloways Beach, 4878","FNR","Outdoor and Environmental Education Centre"]
[5891,"Holy Cross School (Trinity Park)","Reed Road","Trinity Park",4879,"Reed Road, Trinity Park, 4879","FNR","Non-State School"]
[5009,"Holy Cross School (Wooloowin)","40 Morris Street","Wooloowin",4030,"40 Morris Street, Wooloowin, 4030","MER","Non-State School"]
[5010,"Holy Family Primary School (Indooroopilly)","37 Ward Street","Indooroopilly",4068,"37 Ward Street, Indooroopilly, 4068","MER","Non-State School"]
[5146,"Holy Name Primary School (Toowoomba)","188 Bridge Street","Toowoomba",4350,"188 Bridge Street, Toowoomba, 4350","DSR","Non-State School"]
[5233,"Holy Spirit Catholic School (Cranbrook)","Hatchett Street","Cranbrook",4814,"Hatchett Street, Cranbrook, 4814","NQR","Non-State School"]
[8742,"Holy Spirit College (Cooktown)","Cnr Hope and Burkitt Streets","Cooktown",4895,"Cnr Hope and Burkitt Streets, Cooktown, 4895","FNR","Non-State School"]
[8739,"Holy Spirit College (Manoora)","13 Moignard Street","Manoora",4870,"13 Moignard Street, Manoora, 4870","FNR","Associated Facility"]
[374,"Holy Spirit College (Mount Pleasant)","Baxter Drive","Mount Pleasant",4740,"Baxter Drive, Mount Pleasant, 4740","CQR","Non-State School"]
[5013,"Holy Spirit School (Bray Park)","102 Sparkes Road","Bray Park",4500,"102 Sparkes Road, Bray Park, 4500","NCR","Non-State School"]
[5012,"Holy Spirit School (New Farm)","36 Villiers Street","New Farm",4005,"36 Villiers Street, New Farm, 4005","MER","Non-State School"]
[6191,"Home Hill SHS - Special Education Program","First Street","Home Hill",4806,"First Street, Home Hill, 4806","NQR","Special Education Program"]
[2094,"Home Hill State High School","First Street","Home Hill",4806,"First Street, Home Hill, 4806","NQR","State High School"]
[1380,"Home Hill State School","113 Fourteenth Avenue","Home Hill",4806,"113 Fourteenth Avenue, Home Hill, 4806","NQR","State School"]
["A009","Homebush SS - Special Education Program","1181 Homebush Road","Homebush",4740,"1181 Homebush Road, Homebush, 4740","CQR","Special Education Program"]
[470,"Homebush State School","1181 Homebush Road","Homebush",4740,"1181 Homebush Road, Homebush, 4740","CQR","State School"]
[241,"Homestead State School","Flinders Highway","Homestead",4816,"Flinders Highway, Homestead, 4816","NQR","State School"]
[5483,"Hope Adventist School (North Bundaberg)","18 Walters Street","North Bundaberg",4670,"18 Walters Street, North Bundaberg, 4670","NCR","Non-State School"]
[243,"Hopevale Campus of CYAAA","Cnr Thiele & Poland Streets","Hope Vale",4895,"Cnr Thiele & Poland Streets, Hope Vale, 4895","FNR","Campus"]
[9714,"Horizons College of Learning and Enrichment (Caboolture)","2 King Street","Caboolture",4510,"2 King Street, Caboolture, 4510","NCR","Non-State School"]
["A761","Howard SS - Special Education Program","108 William Street","Howard",4659,"108 William Street, Howard, 4659","NCR","Special Education Program"]
[345,"Howard State School","108 William Street","Howard",4659,"108 William Street, Howard, 4659","NCR","State School"]
[2373,"Hubbard's School (Milton)","Level 1, 15 Lang Parade","Milton",4064,"Level 1, 15 Lang Parade, Milton, 4064","MER","Non-State School"]
[388,"Hughenden State School","12 Moran Street","Hughenden",4821,"12 Moran Street, Hughenden, 4821","NQR","State School"]
[1639,"Humpybong SS - Special Education Program","H Block, Ernest Street","Margate",4019,"H Block, Ernest Street, Margate, 4019","NCR","Special Education Program"]
[164,"Humpybong State School","Ernest Street","Margate",4019,"Ernest Street, Margate, 4019","NCR","State School"]
[6309,"Hymba Yumba Independent School (Springfield)","6 Springfield Parkway","Springfield",4300,"6 Springfield Parkway, Springfield, 4300","MER","Non-State School"]
[5424,"Ignatius Park College (Cranbrook)","368-384 Ross River Road","Cranbrook",4814,"368-384 Ross River Road, Cranbrook, 4814","NQR","Non-State School"]
[713,"Ilfracombe State School","20 McMaster Drive","Ilfracombe",4727,"20 McMaster Drive, Ilfracombe, 4727","CQR","State School"]
[5016,"Immaculate Heart School (Leichhardt)","24 Old Toowoomba Road","Leichhardt",4305,"24 Old Toowoomba Road, Leichhardt, 4305","MER","Non-State School"]
[5499,"Immanuel Lutheran College (Buderim)","126-142 Wises Road","Buderim",4556,"126-142 Wises Road, Buderim, 4556","NCR","Non-State School"]
[8578,"Inala Flexible Learning Centre (Inala)","67 Poinsettia Street","Inala",4077,"67 Poinsettia Street, Inala, 4077","MER","Non-State School"]
[2384,"Inala SS - Special Education Program","Rosemary Street","Inala",4077,"Rosemary Street, Inala, 4077","MER","Special Education Program"]
[1116,"Inala State School","Rosemary Street","Inala",4077,"Rosemary Street, Inala, 4077","MER","State School"]
[5980,"Indooroopilly SHS - Special Education Program","Ward Street","Indooroopilly",4068,"Ward Street, Indooroopilly, 4068","MER","Special Education Program"]
[5667,"Indooroopilly Special Education Unit (ESL)","Ward Street","Indooroopilly",4068,"Ward Street, Indooroopilly, 4068","MER","Intensive English Centre"]
[5981,"Indooroopilly SS - Special Education Program","c/- Indooroopilly State School, Cnr Moggill Road & Russell Terrace","Indooroopilly",4068,"c/- Indooroopilly State School, Cnr Moggill Road & Russell Terrace, Indooroopilly, 4068","MER","Special Education Program"]
[2034,"Indooroopilly State High School","Ward Street","Indooroopilly",4068,"Ward Street, Indooroopilly, 4068","MER","State High School"]
[585,"Indooroopilly State School","Cnr Moggill Road & Russell Terrace","Indooroopilly",4068,"Cnr Moggill Road & Russell Terrace, Indooroopilly, 4068","MER","State School"]
[5291,"Ingham SHS - Special Education Program","12 Menzies Street","Ingham",4850,"12 Menzies Street, Ingham, 4850","NQR","Special Education Program"]
[5910,"Ingham SS - Special Education Program","28 McIlwraith Street","Ingham",4850,"28 McIlwraith Street, Ingham, 4850","NQR","Special Education Program"]
[2027,"Ingham State High School","12 Menzies Street","Ingham",4850,"12 Menzies Street, Ingham, 4850","NQR","State High School"]
[450,"Ingham State School","28 McIlwraith Street","Ingham",4850,"28 McIlwraith Street, Ingham, 4850","NQR","State School"]
[661,"Ingleside State School","893 Tallebudgera Creek Road","Tallebudgera Valley",4228,"893 Tallebudgera Creek Road, Tallebudgera Valley, 4228","SER","State School"]
[8785,"Inglewood SS - Special Education Program","Chilcott Street","Inglewood",4387,"Chilcott Street, Inglewood, 4387","DSR","Special Education Program"]
[55,"Inglewood State School","Chilcott Street","Inglewood",4387,"Chilcott Street, Inglewood, 4387","DSR","State School"]
[1723,"Injune P-10 State School","Cnr Hutton Street & Fourth Avenue","Injune",4454,"Cnr Hutton Street & Fourth Avenue, Injune, 4454","DSR","State School"]
[1660,"Innisfail East State School","92 Mourilyan Road","East Innisfail",4860,"92 Mourilyan Road, East Innisfail, 4860","FNR","State School"]
[6463,"Innisfail State College","45 Flying Fish Point Road","Innisfail Estate",4860,"45 Flying Fish Point Road, Innisfail Estate, 4860","FNR","State High School"]
[3046,"Innisfail State College - Diverse Learning Centre","45 Flying Fish Point Road","Innisfail Estate",4860,"45 Flying Fish Point Road, Innisfail Estate, 4860","FNR","Special Campus"]
[5282,"Innisfail State College - Early Childhood Developmental Program","45 Flying Fish Point Road","Innisfail Estate",4860,"45 Flying Fish Point Road, Innisfail Estate, 4860","FNR","Special Education Program"]
[5280,"Innisfail State College - Special Education Program","45 Flying Fish Point Road","Innisfail Estate",4860,"45 Flying Fish Point Road, Innisfail Estate, 4860","FNR","Special Education Program"]
[527,"Innisfail State School","7 Emily Street","Innisfail",4860,"7 Emily Street, Innisfail, 4860","FNR","State School"]
[5295,"Iona College (Lindum)","85 North Road","Lindum",4178,"85 North Road, Lindum, 4178","MER","Non-State School"]
[5479,"Ipswich Adventist School (Brassall)","56 Hunter Street","Brassall",4305,"56 Hunter Street, Brassall, 4305","MER","Non-State School"]
[3493,"Ipswich Central SS - Special Education Program","Griffith Road","Ipswich",4305,"Griffith Road, Ipswich, 4305","MER","Special Education Program"]
[59,"Ipswich Central State School","Griffith Road","Ipswich",4305,"Griffith Road, Ipswich, 4305","MER","State School"]
[5982,"Ipswich East SS - Special Education Program","c/- Ipswich East State School, Jacaranda Street","East Ipswich",4305,"c/- Ipswich East State School, Jacaranda Street, East Ipswich, 4305","MER","Special Education Program"]
[575,"Ipswich East State School","Jacaranda Street","East Ipswich",4305,"Jacaranda Street, East Ipswich, 4305","MER","State School"]
[7922,"Ipswich Flexible Learning Centre (Ipswich)","Milford Place, 1 Queen Victoria Parade","Ipswich",4305,"Milford Place, 1 Queen Victoria Parade, Ipswich, 4305","MER","Non-State School"]
[5513,"Ipswich Girls' Grammar School (East Ipswich)","Cnr Queen Victoria Parade & Chermside Road","East Ipswich",4305,"Cnr Queen Victoria Parade & Chermside Road, East Ipswich, 4305","MER","Non-State School"]
[5514,"Ipswich Grammar School (Ipswich)","Darling Street","Ipswich",4305,"Darling Street, Ipswich, 4305","MER","Non-State School"]
["A804","Ipswich Hospital Class","Ipswich Hospital, Chelmsford Avenue","Ipswich",4305,"Ipswich Hospital, Chelmsford Avenue, Ipswich, 4305","MER","Support Unit (Other)"]
[61,"Ipswich North State School","Downs Street","North Ipswich",4305,"Downs Street, North Ipswich, 4305","MER","State School"]
[2284,"Ipswich Positive Learning Centre","12 Blackwood Street","East Ipswich",4305,"12 Blackwood Street, East Ipswich, 4305","MER","Positive Learning Centre"]
[2404,"Ipswich SHS - Special Education Program","1 Hunter Street","Brassall",4305,"1 Hunter Street, Brassall, 4305","MER","Special Education Program"]
[9959,"Ipswich SPEC S - Early Childhood Development Program","2a Milford Street","Ipswich",4305,"2a Milford Street, Ipswich, 4305","MER","Special Education Program"]
[3018,"Ipswich Special School","2a Milford Street","Ipswich",4305,"2a Milford Street, Ipswich, 4305","MER","Special School"]
[2069,"Ipswich State High School","1 Hunter Street","Brassall",4305,"1 Hunter Street, Brassall, 4305","MER","State High School"]
[3015,"Ipswich West Special School","Cnr Omar & Tiger Streets","West Ipswich",4305,"Cnr Omar & Tiger Streets, West Ipswich, 4305","MER","Special School"]
[366,"Ipswich West State School","Cnr Omar & Keogh Streets","West Ipswich",4305,"Cnr Omar & Keogh Streets, West Ipswich, 4305","MER","State School"]
[108,"Ironside State School","2 Hawken Drive","St Lucia",4067,"2 Hawken Drive, St Lucia, 4067","MER","State School"]
[519,"Irvinebank State School","High Street","Irvinebank",4887,"High Street, Irvinebank, 4887","FNR","State School"]
[5911,"Isabella SS - Special Education Program","Walker Road","Edmonton",4869,"Walker Road, Edmonton, 4869","FNR","Special Education Program"]
[1721,"Isabella State School","Walker Road","Edmonton",4869,"Walker Road, Edmonton, 4869","FNR","State School"]
[6192,"Isis District SHS - Special Education Program","3 Ridgway Street","Childers",4660,"3 Ridgway Street, Childers, 4660","NCR","Special Education Program"]
[2063,"Isis District State High School","3 Ridgway Street","Childers",4660,"3 Ridgway Street, Childers, 4660","NCR","State High School"]
[63,"Isisford State School","14 St Helena Street","Isisford",4731,"14 St Helena Street, Isisford, 4731","CQR","State School"]
[91,"Islamic College of Brisbane (Karawatha)","45 Acacia Road","Karawatha",4117,"45 Acacia Road, Karawatha, 4117","MER","Non-State School"]
[9786,"Ithaca Creek SS - Special Education Program","Lugg Street","Bardon",4065,"Lugg Street, Bardon, 4065","MER","Special Education Program"]
[455,"Ithaca Creek State School","Lugg Street","Bardon",4065,"Lugg Street, Bardon, 4065","MER","State School"]
["A731","Jabiru CC (Zillmere) Non-State School","69 Pineapple Street","Zillmere",4034,"69 Pineapple Street, Zillmere, 4034","MER","Non-State School"]
[3552,"Jacobs Well Environmental Education Centre","Cnr Behm's & Pimpama-Jacobs Well Roads","Norwell",4208,"Cnr Behm's & Pimpama-Jacobs Well Roads, Norwell, 4208","SER","Outdoor and Environmental Education Centre"]
[1659,"Jambin State School","Threeways Road","Smoky Creek",4702,"Threeways Road, Smoky Creek, 4702","CQR","State School"]
[3480,"Jamboree Heights SS - Special Education Program","35 Beanland Street","Jamboree Heights",4074,"35 Beanland Street, Jamboree Heights, 4074","MER","Special Education Program"]
[276,"Jamboree Heights State School","35 Beanland Street","Jamboree Heights",4074,"35 Beanland Street, Jamboree Heights, 4074","MER","State School"]
[5541,"James Nash SHS - Special Education Program","109 Myall Street","Gympie",4570,"109 Myall Street, Gympie, 4570","NCR","Special Education Program"]
[2137,"James Nash State High School","109 Myall Street","Gympie",4570,"109 Myall Street, Gympie, 4570","NCR","State High School"]
[537,"Jandowae Prep-10 State School","44 George Street","Jandowae",4410,"44 George Street, Jandowae, 4410","DSR","State School"]
[798,"Jarvisfield State School","Rita Island Road","Jarvisfield",4807,"Rita Island Road, Jarvisfield, 4807","NQR","State School"]
[206,"Jericho State School","Pasteur Street","Jericho",4728,"Pasteur Street, Jericho, 4728","CQR","State School"]
[2306,"Jimboomba SS - Special Education Program","Mount Lindesay Highway","Jimboomba",4280,"Mount Lindesay Highway, Jimboomba, 4280","SER","Special Education Program"]
[604,"Jimboomba State School","Mount Lindesay Highway","Jimboomba",4280,"Mount Lindesay Highway, Jimboomba, 4280","SER","State School"]
[1558,"Jimbour State School","2421 Dalby-Jandowae Road","Jimbour East",4406,"2421 Dalby-Jandowae Road, Jimbour East, 4406","DSR","State School"]
[3294,"Jindalee SS - Special Education Program","Jindalee State School, 114 Burrendah Road","Jindalee",4074,"Jindalee State School, 114 Burrendah Road, Jindalee, 4074","MER","Special Education Program"]
[402,"Jindalee State School","114 Burrendah Road","Jindalee",4074,"114 Burrendah Road, Jindalee, 4074","MER","State School"]
[2399,"Jinibara SS - Special Education Program","50 Cottontree Drive","Narangba",4504,"50 Cottontree Drive, Narangba, 4504","NCR","Special Education Program"]
[180,"Jinibara State School","50 Cottontree Drive","Narangba",4504,"50 Cottontree Drive, Narangba, 4504","NCR","State School"]
[5590,"John Paul College (Daisy Hill)","John Paul Drive","Daisy Hill",4127,"John Paul Drive, Daisy Hill, 4127","SER","Non-State School"]
[64,"Jondaryan State School","Scott Road","Jondaryan",4403,"Scott Road, Jondaryan, 4403","DSR","State School"]
[6193,"Jones Hill SS - Special Education Program","21 McIntosh Creek Road","Jones Hill",4570,"21 McIntosh Creek Road, Jones Hill, 4570","NCR","Special Education Program"]
[649,"Jones Hill State School","21 McIntosh Creek Road","Jones Hill",4570,"21 McIntosh Creek Road, Jones Hill, 4570","NCR","State School"]
["A623","Josiah College (Carrara)","1 Emerald Lakes Drive","Carrara",4211,"1 Emerald Lakes Drive, Carrara, 4211","SER","Non-State School"]
[5882,"Jubilee Christian College (Atherton)","52 Grau Street","Atherton",4883,"52 Grau Street, Atherton, 4883","FNR","Non-State School"]
[5697,"Jubilee Christian College (Atherton)(Distance)","49-57 Loder Street","Atherton",4883,"49-57 Loder Street, Atherton, 4883","FNR","Non State School Distance Education"]
[2263,"Jubilee Primary School (Pacific Pines)","34 Manra Way","Pacific Pines",4211,"34 Manra Way, Pacific Pines, 4211","SER","Non-State School"]
[1809,"Julatten State School","1141 Euluma Creek Road","Julatten",4871,"1141 Euluma Creek Road, Julatten, 4871","FNR","State School"]
[1289,"Julia Creek State School","Burke Street","Julia Creek",4823,"Burke Street, Julia Creek, 4823","NQR","State School"]
[9940,"Junction Park SS - Special Education Program","50 Waldheim Street","Annerley",4103,"50 Waldheim Street, Annerley, 4103","MER","Special Education Program"]
[514,"Junction Park State School","50 Waldheim Street","Annerley",4103,"50 Waldheim Street, Annerley, 4103","MER","State School"]
[910,"Jundah State School","11 Garrick Street","Jundah",4736,"11 Garrick Street, Jundah, 4736","CQR","State School"]
[1187,"Kaimkillenbun State School","Messenger Street","Kaimkillenbun",4406,"Messenger Street, Kaimkillenbun, 4406","DSR","State School"]
[1279,"Kairi State School","McGeehan Street","Kairi",4872,"McGeehan Street, Kairi, 4872","FNR","State School"]
[9630,"Kairos Community College (Deception Bay)","100-166 Maine Terrace","Deception Bay",4508,"100-166 Maine Terrace, Deception Bay, 4508","NCR","Non-State School"]
[1494,"Kalamia State School","Kalamia Estate, Lilliesmere Road","Brandon",4808,"Kalamia Estate, Lilliesmere Road, Brandon, 4808","NQR","State School"]
["A633","Kalbar SS - Special Education Program","George Street","Kalbar",4309,"George Street, Kalbar, 4309","SER","Special Education Program"]
[343,"Kalbar State School","George Street","Kalbar",4309,"George Street, Kalbar, 4309","SER","State School"]
[5912,"Kalkie SS - Special Education Program","Bargara Road","Kalkie",4670,"Bargara Road, Kalkie, 4670","NCR","Special Education Program"]
[277,"Kalkie State School","Bargara Road","Kalkie",4670,"Bargara Road, Kalkie, 4670","NCR","State School"]
[6194,"Kallangur SS - Special Education Program","139 School Road","Kallangur",4503,"139 School Road, Kallangur, 4503","NCR","Special Education Program"]
[605,"Kallangur State School","139 School Road","Kallangur",4503,"139 School Road, Kallangur, 4503","NCR","State School"]
[1478,"Kandanga State School","84 Main Street","Kandanga",4570,"84 Main Street, Kandanga, 4570","NCR","State School"]
[5913,"Karalee SS - Special Education Program","77 Arthur Summervilles Road","Karalee",4306,"77 Arthur Summervilles Road, Karalee, 4306","MER","Special Education Program"]
[1938,"Karalee State School","77 Arthur Summervilles Road","Karalee",4306,"77 Arthur Summervilles Road, Karalee, 4306","MER","State School"]
[1145,"Karara State School","Recreation Reserve, Karara School Road","Karara",4352,"Recreation Reserve, Karara School Road, Karara, 4352","DSR","State School"]
[449,"Karumba State School","5 Yappar Street","Karumba",4891,"5 Yappar Street, Karumba, 4891","NQR","State School"]
[5653,"Kawana Waters State College","119 Sportsmans Parade","Bokarina",4575,"119 Sportsmans Parade, Bokarina, 4575","NCR","State School"]
[5237,"Kawana Waters State College - Special Education Program","119 Sportsmans Parade","Bokarina",4575,"119 Sportsmans Parade, Bokarina, 4575","NCR","Special Education Program"]
[3537,"Kawungan SS - Special Education Program","Grevillea Street","Kawungan",4655,"Grevillea Street, Kawungan, 4655","NCR","Special Education Program"]
[1987,"Kawungan State School","Grevillea Street","Kawungan",4655,"Grevillea Street, Kawungan, 4655","NCR","State School"]
[3599,"Kay Hass Memorial Cycle Track (Maryborough)","c/- Maryborough Special School, 164 Woodstock Street","Maryborough",4650,"c/- Maryborough Special School, 164 Woodstock Street, Maryborough, 4650","NCR","Support Unit (Other)"]
[3243,"Kedron SHS - Special Education Program","Park Road","Kedron",4031,"Park Road, Kedron, 4031","MER","Special Education Program"]
[2427,"Kedron SHS Special Education Unit (ESL)","Park Road","Kedron",4031,"Park Road, Kedron, 4031","MER","Intensive English Centre"]
[9721,"Kedron SS - Special Education Program","Leckie Road","Kedron",4031,"Leckie Road, Kedron, 4031","MER","Special Education Program"]
[2039,"Kedron State High School","Park Road","Kedron",4031,"Park Road, Kedron, 4031","MER","State High School"]
[371,"Kedron State School","Leckie Road","Kedron",4031,"Leckie Road, Kedron, 4031","MER","State School"]
[6605,"Keebra Park Alternate Pathways Centre","Ashmore PCYC, Dominions Road","Ashmore",4214,"Ashmore PCYC, Dominions Road, Ashmore, 4214","SER","Support Unit (Other)"]
[6195,"Keebra Park SHS - Special Education Program","Anne Street","Southport",4215,"Anne Street, Southport, 4215","SER","Special Education Program"]
[3256,"Keebra Park Special Education Unit (ESL)","Anne Street","Southport",4215,"Anne Street, Southport, 4215","SER","Intensive English Centre"]
[2046,"Keebra Park State High School","Anne Street","Southport",4215,"Anne Street, Southport, 4215","SER","State High School"]
[1960,"Kelso State School","Yvette Street","Kelso",4815,"Yvette Street, Kelso, 4815","NQR","State School"]
[2409,"Kelvin Grove State College","L'Estrange Terrace","Kelvin Grove",4059,"L'Estrange Terrace, Kelvin Grove, 4059","MER","State School"]
[5274,"Kelvin Grove State College - Special Education Program","L'Estrange Terrace","Kelvin Grove",4059,"L'Estrange Terrace, Kelvin Grove, 4059","MER","Special Education Program"]
[1309,"Kenilworth State Community College","3717 Maleny-Kenilworth Road","Kenilworth",4574,"3717 Maleny-Kenilworth Road, Kenilworth, 4574","NCR","State School"]
[7944,"Kenilworth State Community College - Special Education Program","3717 Maleny-Kenilworth Road","Kenilworth",4574,"3717 Maleny-Kenilworth Road, Kenilworth, 4574","NCR","Special Education Program"]
[85,"Kenmore SHS - Special Education Program","60 Aberfeldy Street","Kenmore",4069,"60 Aberfeldy Street, Kenmore, 4069","MER","Special Education Program"]
[9784,"Kenmore South SS - Special Education Program","16 Kersley Road","Kenmore",4069,"16 Kersley Road, Kenmore, 4069","MER","Special Education Program"]
[1143,"Kenmore South State School","16 Kersley Road","Kenmore",4069,"16 Kersley Road, Kenmore, 4069","MER","State School"]
[3462,"Kenmore SS - Special Education Program","2052 Moggill Road","Kenmore",4069,"2052 Moggill Road, Kenmore, 4069","MER","Special Education Program"]
[2132,"Kenmore State High School","60 Aberfeldy Street","Kenmore",4069,"60 Aberfeldy Street, Kenmore, 4069","MER","State High School"]
[923,"Kenmore State School","2052 Moggill Road","Kenmore",4069,"2052 Moggill Road, Kenmore, 4069","MER","State School"]
[868,"Kennedy State School","161 Kennedy Creek Road","Kennedy",4816,"161 Kennedy Creek Road, Kennedy, 4816","FNR","State School"]
[710,"Kentville State School","Turpin Road","Kentville",4341,"Turpin Road, Kentville, 4341","DSR","State School"]
[2074,"Kepnock SHS - Special Education Program","Kepnock Road","Kepnock",4670,"Kepnock Road, Kepnock, 4670","NCR","Special Education Program"]
[2095,"Kepnock State High School","Kepnock Road","Kepnock",4670,"Kepnock Road, Kepnock, 4670","NCR","State High School"]
[670,"Keppel Sands State School","1325 Keppel Sands Road","Keppel Sands",4702,"1325 Keppel Sands Road, Keppel Sands, 4702","CQR","State School"]
[1707,"Kia-Ora State School","2754 Anderleigh Road","Kia Ora",4570,"2754 Anderleigh Road, Kia Ora, 4570","NCR","State School"]
[7945,"Kilcoy SHS - Special Education Program","Seib Street","Kilcoy",4515,"Seib Street, Kilcoy, 4515","NCR","Special Education Program"]
[2133,"Kilcoy State High School","Seib Street","Kilcoy",4515,"Seib Street, Kilcoy, 4515","NCR","State High School"]
[679,"Kilcoy State School","47 Royston Street","Kilcoy",4515,"47 Royston Street, Kilcoy, 4515","NCR","State School"]
[787,"Kilcummin State School","190 East West Road","Kilcummin",4721,"190 East West Road, Kilcummin, 4721","CQR","State School"]
[6197,"Kilkivan SS - Special Education Program","6 Council Street","Kilkivan",4600,"6 Council Street, Kilkivan, 4600","NCR","Special Education Program"]
[168,"Kilkivan State School","6 Council Street","Kilkivan",4600,"6 Council Street, Kilkivan, 4600","NCR","State School"]
[163,"Killarney P-10 State School","Acacia Street","Killarney",4373,"Acacia Street, Killarney, 4373","DSR","State School"]
[6198,"Killarney SS - Special Education Program","Acacia Street","Killarney",4373,"Acacia Street, Killarney, 4373","DSR","Special Education Program"]
[2226,"Kimberley College (Carbrook)","35-41 Kruger Road","Carbrook",4130,"35-41 Kruger Road, Carbrook, 4130","SER","Non-State School"]
[5914,"Kimberley Park SS - Special Education Program","Floret Street","Shailer Park",4128,"Floret Street, Shailer Park, 4128","SER","Special Education Program"]
[1937,"Kimberley Park State School","Floret Street","Shailer Park",4128,"Floret Street, Shailer Park, 4128","SER","State School"]
[9725,"Kin Kin SS - Special Education Program","Main Street","Kin Kin",4571,"Main Street, Kin Kin, 4571","NCR","Special Education Program"]
[1534,"Kin Kin State School","Main Street","Kin Kin",4571,"Main Street, Kin Kin, 4571","NCR","State School"]
[5915,"Kin Kora SS - Special Education Program","43 Hibiscus Avenue","Kin Kora",4680,"43 Hibiscus Avenue, Kin Kora, 4680","CQR","Special Education Program"]
[1912,"Kin Kora State School","43 Hibiscus Avenue","Kin Kora",4680,"43 Hibiscus Avenue, Kin Kora, 4680","CQR","State School"]
[3579,"Kinchant Dam Outdoor Education Centre","Kinchant Dam Road","Kinchant Dam",4741,"Kinchant Dam Road, Kinchant Dam, 4741","CQR","Outdoor and Environmental Education Centre"]
[753,"Kindon State School","14034 Gore Highway","Kindon",4390,"14034 Gore Highway, Kindon, 4390","DSR","State School"]
[2196,"Kingaroy SHS - Special Education Program","Kingaroy SHS, Toomey Street","Kingaroy",4610,"Kingaroy SHS, Toomey Street, Kingaroy, 4610","DSR","Special Education Program"]
[3439,"Kingaroy SS - Special Education Program","William Street","Kingaroy",4610,"William Street, Kingaroy, 4610","DSR","Special Education Program"]
[2044,"Kingaroy State High School","Toomey Street","Kingaroy",4610,"Toomey Street, Kingaroy, 4610","DSR","State High School"]
[995,"Kingaroy State School","61 Alford Street","Kingaroy",4610,"61 Alford Street, Kingaroy, 4610","DSR","State School"]
["A713","King's Christian College (Chambers Flat)","38-112 Anzac Avenue","Chambers Flat",4133,"38-112 Anzac Avenue, Chambers Flat, 4133","SER","Associated Facility"]
[9675,"King's Christian College (Pimpama)","198 Pimpama-Jacobs Well Road","Pimpama",4209,"198 Pimpama-Jacobs Well Road, Pimpama, 4209","SER","Associated Facility"]
[5582,"King's Christian College (Reedy Creek)","68 Gemvale Road","Reedy Creek",4227,"68 Gemvale Road, Reedy Creek, 4227","SER","Non-State School"]
[9975,"Kingsley College (Distance)","2 Schoolhouse Street","North Rockhampton",4701,"2 Schoolhouse Street, North Rockhampton, 4701","CQR","Non State School Distance Education"]
[5595,"Kingsley College (North Rockhampton)","2 Schoolhouse Street","Berserker",4701,"2 Schoolhouse Street, Berserker, 4701","CQR","Non-State School"]
[1274,"Kingsthorpe State School","Goombungee Road","Kingsthorpe",4400,"Goombungee Road, Kingsthorpe, 4400","DSR","State School"]
[3705,"Kingston Centre for Continuing Secondary Education","62-84 Bega Road","Kingston",4114,"62-84 Bega Road, Kingston, 4114","SER","Centre for Continuing Secondary Education"]
[3461,"Kingston SS - Special Education Program","50 Juers Street","Kingston",4114,"50 Juers Street, Kingston, 4114","SER","Special Education Program"]
[2139,"Kingston State College","62-84 Bega Road","Kingston",4114,"62-84 Bega Road, Kingston, 4114","SER","State High School"]
[5916,"Kingston State College - Special Education Program","62-84 Bega Road","Kingston",4114,"62-84 Bega Road, Kingston, 4114","SER","Special Education Program"]
[1348,"Kingston State School","50 Juers Street","Kingston",4114,"50 Juers Street, Kingston, 4114","SER","State School"]
[415,"Kioma State School","Kioma Road","Kioma",4498,"Kioma Road, Kioma, 4498","DSR","State School"]
[5917,"Kippa-Ring SS - Special Education Program","400 Elizabeth Avenue","Kippa-Ring",4021,"400 Elizabeth Avenue, Kippa-Ring, 4021","NCR","Special Education Program"]
[616,"Kippa-Ring State School","400 Elizabeth Avenue","Kippa-Ring",4021,"400 Elizabeth Avenue, Kippa-Ring, 4021","NCR","State School"]
[3215,"Kirwan SHS - Special Education Program","Hudson Street","Kirwan",4817,"Hudson Street, Kirwan, 4817","NQR","Special Education Program"]
[3484,"Kirwan SS - Special Education Program","21 Burnda Street","Kirwan",4817,"21 Burnda Street, Kirwan, 4817","NQR","Special Education Program"]
[2146,"Kirwan State High School","Hudson Street","Kirwan",4817,"Hudson Street, Kirwan, 4817","NQR","State High School"]
[1862,"Kirwan State School","21 Burnda Street","Kirwan",4817,"21 Burnda Street, Kirwan, 4817","NQR","State School"]
[1078,"Kogan State School","High Street","Kogan",4406,"High Street, Kogan, 4406","DSR","State School"]
[279,"Kolan South State School","2297 Gin Gin Road","South Kolan",4670,"2297 Gin Gin Road, South Kolan, 4670","NCR","State School"]
[1780,"Koumala State School","Bull Street","Koumala",4738,"Bull Street, Koumala, 4738","CQR","State School"]
[5918,"Kowanyama SS - Special Education Program","345 Kowanyama Street","Kowanyama",4892,"345 Kowanyama Street, Kowanyama, 4892","FNR","Special Education Program"]
[460,"Kowanyama State School","345 Kowanyama Street","Kowanyama",4892,"345 Kowanyama Street, Kowanyama, 4892","FNR","State School"]
[2392,"Kruger SS - Special Education Program","Kruger Parade","Bellbird Park",4300,"Kruger Parade, Bellbird Park, 4300","MER","Special Education Program"]
[1878,"Kruger State School","Kruger Parade","Bellbird Park",4300,"Kruger Parade, Bellbird Park, 4300","MER","State School"]
[1472,"Kulpi State School","9 Beckman Street","Kulpi",4352,"9 Beckman Street, Kulpi, 4352","DSR","State School"]
[3476,"Kuluin SS - Special Education Program","Tallow Wood Drive","Kuluin",4558,"Tallow Wood Drive, Kuluin, 4558","NCR","Special Education Program"]
[1968,"Kuluin State School","Tallow Wood Drive","Kuluin",4558,"Tallow Wood Drive, Kuluin, 4558","NCR","State School"]
[1423,"Kumbia State School","Bell Street","Kumbia",4610,"Bell Street, Kumbia, 4610","DSR","State School"]
[3040,"Kuraby Special School","83 Alpita Street","Kuraby",4112,"83 Alpita Street, Kuraby, 4112","MER","Special School"]
[6598,"Kuraby SS - Special Education Program","1523 Beenleigh Road","Kuraby",4112,"1523 Beenleigh Road, Kuraby, 4112","MER","Special Education Program"]
[1462,"Kuraby State School","1523 Beenleigh Road","Kuraby",4112,"1523 Beenleigh Road, Kuraby, 4112","MER","State School"]
[5968,"Kuranda District College - Special Education Program","c/- Kuranda District College, 260 Myola Road","Kuranda",4881,"c/- Kuranda District College, 260 Myola Road, Kuranda, 4881","FNR","Special Education Program"]
[5689,"Kuranda District State College","260 Myola Road","Kuranda",4881,"260 Myola Road, Kuranda, 4881","FNR","State School"]
[5919,"Kurwongbah SS - Special Education Program","Eacham Street","Petrie",4502,"Eacham Street, Petrie, 4502","NCR","Special Education Program"]
[1958,"Kurwongbah State School","Eacham Street","Petrie",4502,"Eacham Street, Petrie, 4502","NCR","State School"]
["A793","Kutta Mulla Gorinna Special Assistance School (Mackay)","133 Alfred Street","Mackay",4740,"133 Alfred Street, Mackay, 4740","CQR","Non-State School"]
[3533,"Labrador SS - Special Education Program","c/- Labrador SS, Gordon Street","Labrador",4215,"c/- Labrador SS, Gordon Street, Labrador, 4215","SER","Special Education Program"]
[6449,"Labrador SS Intensive English Centre","Gordon Street","Labrador",4215,"Gordon Street, Labrador, 4215","SER","Intensive English Centre"]
[443,"Labrador State School","Gordon Street","Labrador",4215,"Gordon Street, Labrador, 4215","SER","State School"]
[2339,"Laidley District SS - Special Education Program","232 Patrick Street","Laidley",4341,"232 Patrick Street, Laidley, 4341","DSR","Special Education Program"]
[1676,"Laidley District State School","232 Patrick Street","Laidley",4341,"232 Patrick Street, Laidley, 4341","DSR","State School"]
[5292,"Laidley SHS - Special Education Program","98 Alfred Street","Laidley",4341,"98 Alfred Street, Laidley, 4341","DSR","Special Education Program"]
[2163,"Laidley State High School","98 Alfred Street","Laidley",4341,"98 Alfred Street, Laidley, 4341","DSR","State High School"]
[9927,"Lake Clarendon SS - Special Education Program","35 Lake Clarendon Road","Lake Clarendon",4343,"35 Lake Clarendon Road, Lake Clarendon, 4343","DSR","Special Education Program"]
[1009,"Lake Clarendon State School","35 Lake Clarendon Road","Lake Clarendon",4343,"35 Lake Clarendon Road, Lake Clarendon, 4343","DSR","State School"]
[202,"Lakeland State School","Cnr Peninsula & Cooktown Development Roads","Lakeland",4871,"Cnr Peninsula & Cooktown Development Roads, Lakeland, 4871","FNR","State School"]
[67,"Lakes Creek State School","445 Paterson Street","Lakes Creek",4701,"445 Paterson Street, Lakes Creek, 4701","CQR","State School"]
[9991,"Landsborough SS - Special Education Program","41 Gympie Street North","Landsborough",4550,"41 Gympie Street North, Landsborough, 4550","NCR","Special Education Program"]
[349,"Landsborough State School","41 Gympie Street North","Landsborough",4550,"41 Gympie Street North, Landsborough, 4550","NCR","State School"]
[7563,"Laser 3 Retrieval Unit","Aspley Special School, 751 Zillmere Road","Aspley",4034,"Aspley Special School, 751 Zillmere Road, Aspley, 4034","MER","Support Unit (Other)"]
[583,"Laura State School","Terminus Street","Laura",4892,"Terminus Street, Laura, 4892","FNR","State School"]
[5920,"Lawnton SS - Special Education Program","Todds Road","Lawnton",4501,"Todds Road, Lawnton, 4501","NCR","Special Education Program"]
[329,"Lawnton State School","Todds Road","Lawnton",4501,"Todds Road, Lawnton, 4501","NCR","State School"]
["A791","Lee Street State Special School","33 Lee Street","Caboolture",4510,"33 Lee Street, Caboolture, 4510","NCR","Special School"]
[5921,"Leichhardt SS - Special Education Program","72 Samford Road","Leichhardt",4305,"72 Samford Road, Leichhardt, 4305","MER","Special Education Program"]
[1148,"Leichhardt State School","72 Samford Road","Leichhardt",4305,"72 Samford Road, Leichhardt, 4305","MER","State School"]
[68,"Leyburn State School","34 Peter Street","Leyburn",4365,"34 Peter Street, Leyburn, 4365","DSR","State School"]
[1,"Lighthouse Christian School (Norman Gardens)","480 Norman Road","Norman Gardens",4701,"480 Norman Road, Norman Gardens, 4701","CQR","Non-State School"]
[980,"Linville State School","George Street","Linville",4306,"George Street, Linville, 4306","DSR","State School"]
[2331,"Living Faith Lutheran Primary School (Murrumba Downs)","50 Brays Road","Murrumba Downs",4503,"50 Brays Road, Murrumba Downs, 4503","NCR","Non-State School"]
[2417,"Livingstone Christian College (Ormeau)","62 Reedmans Road","Ormeau",4208,"62 Reedmans Road, Ormeau, 4208","SER","Non-State School"]
[1119,"Lochington State School","Glenlee Road","Lochington",4722,"Glenlee Road, Lochington, 4722","CQR","State School"]
[9929,"Lockhart SS - Special Education Program","Puchewoo Street","Lockhart River",4892,"Puchewoo Street, Lockhart River, 4892","FNR","Special Education Program"]
[505,"Lockhart State School","Puchewoo Street","Lockhart River",4892,"Puchewoo Street, Lockhart River, 4892","FNR","State School"]
[1061,"Lockrose State School","17 Zabel Road","Lockrose",4342,"17 Zabel Road, Lockrose, 4342","DSR","State School"]
[89,"Lockyer District SHS - Special Education Program","100 William Street","Gatton",4343,"100 William Street, Gatton, 4343","DSR","Special Education Program"]
[2062,"Lockyer District State High School","100 William Street","Gatton",4343,"100 William Street, Gatton, 4343","DSR","State High School"]
[3367,"Logan City SPEC S - Early Childhood Development Program","20 Charles Avenue","Logan Central",4114,"20 Charles Avenue, Logan Central, 4114","SER","Special Education Program"]
[3001,"Logan City Special School","133 Wembley Road","Logan Central",4114,"133 Wembley Road, Logan Central, 4114","SER","Special School"]
[8085,"Logan Hospital AMHU Class","Logan Hospital, Cnr Loganlea Road & Armstrong Road","Meadowbrook",4131,"Logan Hospital, Cnr Loganlea Road & Armstrong Road, Meadowbrook, 4131","SER","Support Unit (Other)"]
[6199,"Logan Reserve SS - Special Education Program","369-379 School Road","Logan Reserve",4133,"369-379 School Road, Logan Reserve, 4133","SER","Special Education Program"]
[69,"Logan Reserve State School","369-379 School Road","Logan Reserve",4133,"369-379 School Road, Logan Reserve, 4133","SER","State School"]
[5922,"Logan Village SS - Special Education Program","North Street","Logan Village",4207,"North Street, Logan Village, 4207","SER","Special Education Program"]
[123,"Logan Village State School","North Street","Logan Village",4207,"North Street, Logan Village, 4207","SER","State School"]
[5923,"Loganholme SS - Special Education Program","Wandilla Crescent","Loganholme",4129,"Wandilla Crescent, Loganholme, 4129","SER","Special Education Program"]
[70,"Loganholme State School","Wandilla Crescent","Loganholme",4129,"Wandilla Crescent, Loganholme, 4129","SER","State School"]
[554,"Loganlea SHS - Special Education Program","Neridah Street","Loganlea",4131,"Neridah Street, Loganlea, 4131","SER","Special Education Program"]
[2153,"Loganlea State High School","Neridah Street","Loganlea",4131,"Neridah Street, Loganlea, 4131","SER","State High School"]
[3449,"Longreach Cluster - Special Education Program","Kingfisher Street","Longreach",4730,"Kingfisher Street, Longreach, 4730","CQR","Special Education Program"]
[3611,"Longreach School of Distance Education","Sir James Walker Drive","Longreach",4730,"Sir James Walker Drive, Longreach, 4730","CQR","School of Distance Education"]
[2112,"Longreach State High School","34  Jabiru Street","Longreach",4730,"34  Jabiru Street, Longreach, 4730","CQR","State High School"]
[711,"Longreach State School","125 Ibis Street","Longreach",4730,"125 Ibis Street, Longreach, 4730","CQR","State School"]
[5349,"Loreto College Coorparoo (Coorparoo)","415 Cavendish Road","Coorparoo",4151,"415 Cavendish Road, Coorparoo, 4151","MER","Non-State School"]
[9722,"Lota SS - Special Education Program","26 Richard Street","Lota",4179,"26 Richard Street, Lota, 4179","MER","Special Education Program"]
[882,"Lota State School","26 Richard Street","Lota",4179,"26 Richard Street, Lota, 4179","MER","State School"]
[5350,"Lourdes Hill College (Hawthorne)","86 Hawthorne Road","Hawthorne",4171,"86 Hawthorne Road, Hawthorne, 4171","MER","Non-State School"]
[1010,"Lower Tully State School","6 Collins Road","Lower Tully",4854,"6 Collins Road, Lower Tully, 4854","FNR","State School"]
[1140,"Lowmead State School","3077-3083 Lowmead Road","Lowmead",4676,"3077-3083 Lowmead Road, Lowmead, 4676","NCR","State School"]
[5293,"Lowood SHS - Special Education Program","A Block, Prospect Street","Lowood",4311,"A Block, Prospect Street, Lowood, 4311","MER","Special Education Program"]
[3519,"Lowood SS - Special Education Program","Peace Street","Lowood",4311,"Peace Street, Lowood, 4311","MER","Special Education Program"]
[2160,"Lowood State High School","Prospect Street","Lowood",4311,"Prospect Street, Lowood, 4311","MER","State High School"]
[242,"Lowood State School","Peace Street","Lowood",4311,"Peace Street, Lowood, 4311","MER","State School"]
[418,"Lundavra State School","LOT 12 Lienassie Road","Lundavra",4390,"LOT 12 Lienassie Road, Lundavra, 4390","DSR","State School"]
[5529,"Lutheran Ormeau Rivers District School (Pimpama)","68 Mirambeena Drive","Pimpama",4209,"68 Mirambeena Drive, Pimpama, 4209","SER","Non-State School"]
[383,"Ma Ma Creek State School","803 Gatton-Clifton Road","Ma Ma Creek",4347,"803 Gatton-Clifton Road, Ma Ma Creek, 4347","DSR","State School"]
[2307,"Mabel Park SHS - Special Education Program","72-116 Paradise Road","Slacks Creek",4127,"72-116 Paradise Road, Slacks Creek, 4127","SER","Special Education Program"]
[2204,"Mabel Park SS - Special Education Program","c/- Mabel Park SS, Borman Street","Slacks Creek",4127,"c/- Mabel Park SS, Borman Street, Slacks Creek, 4127","SER","Special Education Program"]
[2161,"Mabel Park State High School","72-116 Paradise Road","Slacks Creek",4127,"72-116 Paradise Road, Slacks Creek, 4127","SER","State High School"]
[356,"Mabel Park State School","Borman Street","Slacks Creek",4127,"Borman Street, Slacks Creek, 4127","SER","State School"]
[2295,"MacGregor SHS - Special Education Program","Blackwattle Street","Macgregor",4109,"Blackwattle Street, Macgregor, 4109","MER","Special Education Program"]
[3248,"MacGregor Special Education Unit (ESL)","Macgregor SHS, Blackwattle Street","Macgregor",4109,"Macgregor SHS, Blackwattle Street, Macgregor, 4109","MER","Intensive English Centre"]
[3521,"MacGregor SS - Special Education Program","McCullough Street","Macgregor",4109,"McCullough Street, Macgregor, 4109","MER","Special Education Program"]
[2124,"MacGregor State High School","Blackwattle Street","Macgregor",4109,"Blackwattle Street, Macgregor, 4109","MER","State High School"]
[192,"MacGregor State School","McCullough Street","Macgregor",4109,"McCullough Street, Macgregor, 4109","MER","State School"]
[758,"Machans Beach State School","61 Machan Street","Machans Beach",4878,"61 Machan Street, Machans Beach, 4878","FNR","State School"]
["A762","Mackay Central SS - Special Education Program","Alfred Street","Mackay",4740,"Alfred Street, Mackay, 4740","CQR","Special Education Program"]
[71,"Mackay Central State School","Alfred Street","Mackay",4740,"Alfred Street, Mackay, 4740","CQR","State School"]
[5699,"Mackay Christian College (Ambrose Way, North Mackay)","17 Ambrose Way","North Mackay",4740,"17 Ambrose Way, North Mackay, 4740","CQR","Associated Facility"]
[5888,"Mackay Christian College (Quarry St, North Mackay)","9 Quarry Street","North Mackay",4740,"9 Quarry Street, North Mackay, 4740","CQR","Non-State School"]
[3082,"Mackay District Special School","63 Mansfield Drive","Beaconsfield",4740,"63 Mansfield Drive, Beaconsfield, 4740","CQR","Special School"]
[7225,"Mackay Engineering College","171-201 Boundary Road","Ooralea",4740,"171-201 Boundary Road, Ooralea, 4740","CQR","Support Unit (Other)"]
[1647,"Mackay North SHS - Special Education Program","Valley Street","North Mackay",4740,"Valley Street, North Mackay, 4740","CQR","Special Education Program"]
[3403,"Mackay North SS - Special Education Program","Willis Street","North Mackay",4740,"Willis Street, North Mackay, 4740","CQR","Special Education Program"]
[2096,"Mackay North State High School","Valley Street","North Mackay",4740,"Valley Street, North Mackay, 4740","CQR","State High School"]
[746,"Mackay North State School","Cnr Evans Avenue & Harvey Street","North Mackay",4740,"Cnr Evans Avenue & Harvey Street, North Mackay, 4740","CQR","State School"]
[8780,"Mackay Northern Beaches SHS - Special Education Program","30 Rosewood Drive","Rural View",4740,"30 Rosewood Drive, Rural View, 4740","CQR","Special Education Program"]
[7873,"Mackay Northern Beaches State High School","30 Rosewood Drive","Rural View",4740,"30 Rosewood Drive, Rural View, 4740","CQR","State High School"]
[5672,"Mackay Positive Learning Centre","Shakespeare street","East Mackay",4740,"Shakespeare street, East Mackay, 4740","CQR","Positive Learning Centre"]
[548,"Mackay SHS - Special Education Program","123 Milton Street","South Mackay",4740,"123 Milton Street, South Mackay, 4740","CQR","Special Education Program"]
[2009,"Mackay State High School","123 Milton Street","South Mackay",4740,"123 Milton Street, South Mackay, 4740","CQR","State High School"]
[3549,"Mackay West SS - Special Education Program","Brooks Street","West Mackay",4740,"Brooks Street, West Mackay, 4740","CQR","Special Education Program"]
[501,"Mackay West State School","Pinder Street","West Mackay",4740,"Pinder Street, West Mackay, 4740","CQR","State School"]
[608,"Mackenzie State Primary School","26 Vivaldi Place","Mackenzie",4156,"26 Vivaldi Place, Mackenzie, 4156","MER","State School"]
[3012,"Mackenzie State Special School","26 Vivaldi Place","Mackenzie",4156,"26 Vivaldi Place, Mackenzie, 4156","MER","Special School"]
[8148,"MacKillop Catholic College (Mount Peter)","1 Mackillop Road, Cnr Mount Peter Road","Mount Peter",4869,"1 Mackillop Road, Cnr Mount Peter Road, Mount Peter, 4869","FNR","Non-State School"]
[98,"MacKillop Catholic Primary School (Andergrove)","20 Nadarmi Drive","Andergrove",4740,"20 Nadarmi Drive, Andergrove, 4740","CQR","Non-State School"]
[324,"Macknade State School","79 Farrell Drive","Macknade",4850,"79 Farrell Drive, Macknade, 4850","NQR","State School"]
["A002","MacLeay Island SS - Special Education Program","145-155 High Central Road","Macleay Island",4184,"145-155 High Central Road, Macleay Island, 4184","SER","Special Education Program"]
[1959,"MacLeay Island State School","145-155 High Central Road","Macleay Island",4184,"145-155 High Central Road, Macleay Island, 4184","SER","State School"]
[7936,"Magnetic Island SS - Special Education Program","10-16 Mandalay Avenue","Nelly Bay",4819,"10-16 Mandalay Avenue, Nelly Bay, 4819","NQR","Special Education Program"]
[1219,"Magnetic Island State School","10-16 Mandalay Avenue","Nelly Bay",4819,"10-16 Mandalay Avenue, Nelly Bay, 4819","NQR","State School"]
[1214,"Maidavale State School","Maidavale Road","Airville",4807,"Maidavale Road, Airville, 4807","NQR","State School"]
[9930,"Malanda SHS - Special Education Program","Memorial Drive","Malanda",4885,"Memorial Drive, Malanda, 4885","FNR","Special Education Program"]
[5924,"Malanda SS - Special Education Program","24 Mary Street","Malanda",4885,"24 Mary Street, Malanda, 4885","FNR","Special Education Program"]
[2067,"Malanda State High School","Memorial Drive","Malanda",4885,"Memorial Drive, Malanda, 4885","FNR","State High School"]
[1396,"Malanda State School","24 Mary Street","Malanda",4885,"24 Mary Street, Malanda, 4885","FNR","State School"]
["A629","Maleny Independent School (Maleny)","23 Coral Street","Maleny",4552,"23 Coral Street, Maleny, 4552","NCR","Non-State School"]
[493,"Maleny SHS - Special Education Program","50 Bunya Street","Maleny",4552,"50 Bunya Street, Maleny, 4552","NCR","Special Education Program"]
[9994,"Maleny SS - Special Education Program","16 Bunya Street","Maleny",4552,"16 Bunya Street, Maleny, 4552","NCR","Special Education Program"]
[2177,"Maleny State High School","50 Bunya Street","Maleny",4552,"50 Bunya Street, Maleny, 4552","NCR","State High School"]
[1390,"Maleny State School","16 Bunya Street","Maleny",4552,"16 Bunya Street, Maleny, 4552","NCR","State School"]
[7954,"Mango Hill SS - Special Education Program","Bonnet Parade","Mango Hill",4509,"Bonnet Parade, Mango Hill, 4509","NCR","Special Education Program"]
["A858","Mango Hill SSC - Special Education Program","Richard Road","Mango Hill ",4509,"Richard Road, Mango Hill , 4509","NCR","Special Education Program"]
[7575,"Mango Hill State School","Bonnet Parade","Mango Hill",4509,"Bonnet Parade, Mango Hill, 4509","NCR","State School"]
["A787","Mango Hill State Secondary College","Richard Road","Mango Hill",4509,"Richard Road, Mango Hill, 4509","NCR","State High School"]
[9724,"Manly SS - Special Education Program","63 Ernest Street","Manly",4179,"63 Ernest Street, Manly, 4179","MER","Special Education Program"]
[1222,"Manly State School","63 Ernest Street","Manly",4179,"63 Ernest Street, Manly, 4179","MER","State School"]
["A011","Manly West SS - Special Education Program","226 Manly Road","Manly West",4179,"226 Manly Road, Manly West, 4179","MER","Special Education Program"]
[264,"Manly West State School","226 Manly Road","Manly West",4179,"226 Manly Road, Manly West, 4179","MER","State School"]
[5984,"Mansfield SHS - Special Education Program","Mansfield SHS, Corner Broadwater & Ham Road","Mansfield",4122,"Mansfield SHS, Corner Broadwater & Ham Road, Mansfield, 4122","MER","Special Education Program"]
[5983,"Mansfield SS - Special Education Program","c/- Mansfield State School, 174 Ham Road","Mansfield",4122,"c/- Mansfield State School, 174 Ham Road, Mansfield, 4122","MER","Special Education Program"]
[2059,"Mansfield State High School","Corner Broadwater & Ham Road","Mansfield",4122,"Corner Broadwater & Ham Road, Mansfield, 4122","MER","State High School"]
[143,"Mansfield State School","174 Ham Road","Mansfield",4122,"174 Ham Road, Mansfield, 4122","MER","State School"]
[7946,"Mapleton SS - Special Education Program","Flaxton Drive","Mapleton",4560,"Flaxton Drive, Mapleton, 4560","NCR","Special Education Program"]
[878,"Mapleton State School","Flaxton Drive","Mapleton",4560,"Flaxton Drive, Mapleton, 4560","NCR","State School"]
[320,"Marburg State School","Louisa Street","Marburg",4346,"Louisa Street, Marburg, 4346","MER","State School"]
[2197,"Mareeba SHS - Special Education Program","c/- Mareeba SHS, Jasper Street","Mareeba",4880,"c/- Mareeba SHS, Jasper Street, Mareeba, 4880","FNR","Special Education Program"]
[3440,"Mareeba SS - Special Education Program","Constance Street","Mareeba",4880,"Constance Street, Mareeba, 4880","FNR","Special Education Program"]
[2058,"Mareeba State High School","Jasper Street","Mareeba",4880,"Jasper Street, Mareeba, 4880","FNR","State High School"]
[653,"Mareeba State School","Constance Street","Mareeba",4880,"Constance Street, Mareeba, 4880","FNR","State School"]
[5139,"Marian Catholic School (Currajong)","198 - 208 Hugh Street","Currajong",4812,"198 - 208 Hugh Street, Currajong, 4812","NQR","Non-State School"]
[518,"Marian State School","137 Anzac Avenue","Marian",4753,"137 Anzac Avenue, Marian, 4753","CQR","State School"]
["A896","Maridahdi Brisbane Primary School (Wynnum) ","Shop 6, 89 Bay Terrace","Wynnum",4178,"Shop 6, 89 Bay Terrace, Wynnum, 4178","MER","Non-State School"]
[5524,"Maridahdi Early Childhood Community School (Toowoomba)","3-7 Bowtell Street","Toowoomba",4350,"3-7 Bowtell Street, Toowoomba, 4350","DSR","Non-State School"]
[204,"Marist College (Emerald)","Jeppesen Drive","Emerald",4720,"Jeppesen Drive, Emerald, 4720","CQR","Non-State School"]
[5307,"Marist College Ashgrove (Ashgrove)","142 Frasers Road","Ashgrove",4060,"142 Frasers Road, Ashgrove, 4060","MER","Non-State School"]
[1584,"Marlborough State School","Magog Road","Marlborough",4705,"Magog Road, Marlborough, 4705","CQR","State School"]
[1122,"Marmor State School","Rogers Street","Marmor",4702,"Rogers Street, Marmor, 4702","CQR","State School"]
[2397,"Maroochydore SHS - Special Education Program","160 Maroochydore Road","Maroochydore",4558,"160 Maroochydore Road, Maroochydore, 4558","NCR","Special Education Program"]
[5241,"Maroochydore SS - Special Education Program","Pikki Street","Maroochydore",4558,"Pikki Street, Maroochydore, 4558","NCR","Special Education Program"]
[2097,"Maroochydore State High School","160 Maroochydore Road","Maroochydore",4558,"160 Maroochydore Road, Maroochydore, 4558","NCR","State High School"]
[1711,"Maroochydore State School","56-68 Primary School Court","Maroochydore",4558,"56-68 Primary School Court, Maroochydore, 4558","NCR","State School"]
[3550,"Maroon Outdoor Education Centre","Complex - 26 Sunwater Dr, 123 Maroon Dam Road","Maroon",4310,"Complex - 26 Sunwater Dr, 123 Maroon Dam Road, Maroon, 4310","SER","Outdoor and Environmental Education Centre"]
[640,"Maroon State School","2772 Boonah-Rathdowney Road","Maroon",4310,"2772 Boonah-Rathdowney Road, Maroon, 4310","SER","State School"]
[1251,"Maroondan State School","31 Duke Stehbens Road","Maroondan",4671,"31 Duke Stehbens Road, Maroondan, 4671","NCR","State School"]
[2308,"Marsden SHS - Special Education Program","106-130 Muchow Road","Waterford West",4133,"106-130 Muchow Road, Waterford West, 4133","SER","Special Education Program"]
[3450,"Marsden SS - Special Education Program","Hickory Street","Marsden",4132,"Hickory Street, Marsden, 4132","SER","Special Education Program"]
[2176,"Marsden State High School","106-130 Muchow Road","Waterford West",4133,"106-130 Muchow Road, Waterford West, 4133","SER","State High School"]
[1875,"Marsden State School","Hickory Street","Marsden",4132,"Hickory Street, Marsden, 4132","SER","State School"]
[5985,"Marshall Road SS - Special Education Program","c/- Marshall Road State School, Kurts Street","Holland Park West",4121,"c/- Marshall Road State School, Kurts Street, Holland Park West, 4121","MER","Special Education Program"]
[708,"Marshall Road State School","Kurts Street","Holland Park West",4121,"Kurts Street, Holland Park West, 4121","MER","State School"]
[5020,"Mary Immaculate Primary School (Annerley)","616 Ipswich Road","Annerley",4103,"616 Ipswich Road, Annerley, 4103","MER","Non-State School"]
[2493,"Mary MacKillop Catholic College (Highfields)","75 Highfields Road","Highfields",4352,"75 Highfields Road, Highfields, 4352","DSR","Non-State School"]
[5347,"Mary MacKillop College (Nundah)","60 Bage Street","Nundah",4012,"60 Bage Street, Nundah, 4012","MER","Non-State School"]
[465,"Mary Valley State College","15 Edward Street","Imbil",4570,"15 Edward Street, Imbil, 4570","NCR","State School"]
[5925,"Mary Valley State College - Special Education Program","15 Edward Street","Imbil",4570,"15 Edward Street, Imbil, 4570","NCR","Special Education Program"]
[5227,"Maryborough Central SS - Special Education Program","471 Kent Street","Maryborough",4650,"471 Kent Street, Maryborough, 4650","NCR","Special Education Program"]
[72,"Maryborough Central State School","471 Kent Street","Maryborough",4650,"471 Kent Street, Maryborough, 4650","NCR","State School"]
[5926,"Maryborough SHS - Special Education Program","Kent Street","Maryborough",4650,"Kent Street, Maryborough, 4650","NCR","Special Education Program"]
[3017,"Maryborough Special School","164 Woodstock Street","Maryborough",4650,"164 Woodstock Street, Maryborough, 4650","NCR","Special School"]
[2020,"Maryborough State High School","Kent Street","Maryborough",4650,"Kent Street, Maryborough, 4650","NCR","State High School"]
[2304,"Maryborough West SS - Special Education Program","153 North Street","Maryborough",4650,"153 North Street, Maryborough, 4650","NCR","Special Education Program"]
[485,"Maryborough West State School","149 North Street","Maryborough",4650,"149 North Street, Maryborough, 4650","NCR","State School"]
[5381,"Marymount College (Burleigh Waters)","261-283 Reedy Creek Road","Burleigh Waters",4220,"261-283 Reedy Creek Road, Burleigh Waters, 4220","SER","Non-State School"]
[5115,"Marymount Primary School (Burleigh Heads)","261-283 Reedy Creek Road","Burleigh Waters",4220,"261-283 Reedy Creek Road, Burleigh Waters, 4220","SER","Non-State School"]
[1389,"Maryvale State School","81 Taylor Street","Maryvale",4370,"81 Taylor Street, Maryvale, 4370","DSR","State School"]
[5021,"Mater Dei Catholic Primary School (Ashgrove West)","7 Lynwood Crescent","Ashgrove West",4060,"7 Lynwood Crescent, Ashgrove West, 4060","MER","Non-State School"]
[5150,"Mater Dei Primary School (Toowoomba)","53 Curzon Street","Toowoomba",4350,"53 Curzon Street, Toowoomba, 4350","DSR","Non-State School"]
[5455,"Matthew Flinders Anglican College (Buderim)","Stringybark Road","Buderim",4556,"Stringybark Road, Buderim, 4556","NCR","Non-State School"]
["A900","Mawarra Independent School (Kybong) ","899 - 967 Old Bruce Highway","Kybong",4570,"899 - 967 Old Bruce Highway, Kybong, 4570","NCR","Non-State School"]
[1090,"Mayfield State School","Paget Street","Carina",4152,"Paget Street, Carina, 4152","MER","State School"]
[9961,"McAuley College (Beaudesert)","30 Oakland Way","Beaudesert",4285,"30 Oakland Way, Beaudesert, 4285","SER","Non-State School"]
[1400,"McDonnell Creek State School","69273 Bruce Highway","Fishery Falls",4871,"69273 Bruce Highway, Fishery Falls, 4871","FNR","State School"]
[5927,"McDowall SS - Special Education Program","1018 Rode Road","Mcdowall",4053,"1018 Rode Road, Mcdowall, 4053","MER","Special Education Program"]
[378,"McDowall State School","1018 Rode Road","Mcdowall",4053,"1018 Rode Road, Mcdowall, 4053","MER","State School"]
[1394,"McIlwraith State School","322 McIlwraith Road","Mcilwraith",4671,"322 McIlwraith Road, Mcilwraith, 4671","NCR","State School"]
[1473,"Meandarra State School","Sara Street","Meandarra",4422,"Sara Street, Meandarra, 4422","DSR","State School"]
["A847","Men of Business Academy ","5 Nerang Road","Southport",4215,"5 Nerang Road, Southport, 4215","SER","Non-State School"]
[1673,"Mena Creek State School","Mena Creek Road","Mena Creek",4871,"Mena Creek Road, Mena Creek, 4871","FNR","State School"]
[5412,"Mercy College (Mackay)","2 Penn Street","Mackay",4740,"2 Penn Street, Mackay, 4740","CQR","Non-State School"]
[1733,"Meridan State College","214 Parklands Boulevard","Meridan Plains",4551,"214 Parklands Boulevard, Meridan Plains, 4551","NCR","State School"]
[6593,"Meridan State College - Special Education Program","214 Parklands Boulevard","Meridan Plains",4551,"214 Parklands Boulevard, Meridan Plains, 4551","NCR","Special Education Program"]
[806,"Merinda State School","Bergl Street","Bowen",4805,"Bergl Street, Bowen, 4805","NQR","State School"]
[179,"Meringandan State School","10 School Road","Meringandan West",4352,"10 School Road, Meringandan West, 4352","DSR","State School"]
[280,"Merrimac SHS - Special Education Program","Dunlop Court","Mermaid Waters",4218,"Dunlop Court, Mermaid Waters, 4218","SER","Special Education Program"]
[6205,"Merrimac SS - Special Education Program","2 Boowaggan Road","Merrimac",4226,"2 Boowaggan Road, Merrimac, 4226","SER","Special Education Program"]
[2147,"Merrimac State High School","Dunlop Court","Mermaid Waters",4218,"Dunlop Court, Mermaid Waters, 4218","SER","State High School"]
[1586,"Merrimac State School","2 Boowaggan Road","Merrimac",4226,"2 Boowaggan Road, Merrimac, 4226","SER","State School"]
[1291,"Miallo State School","Miallo Bamboo Creek Road","Miallo",4873,"Miallo Bamboo Creek Road, Miallo, 4873","FNR","State School"]
[3236,"Miami SHS - Special Education Program","c/- Miami SHS, 2137-2205 Gold Coast Highway","Miami",4220,"c/- Miami SHS, 2137-2205 Gold Coast Highway, Miami, 4220","SER","Special Education Program"]
[3464,"Miami SS - Special Education Program","18-36 Oceanic Drive","Mermaid Waters",4218,"18-36 Oceanic Drive, Mermaid Waters, 4218","SER","Special Education Program"]
[2086,"Miami State High School","2137-2205 Gold Coast Highway","Miami",4220,"2137-2205 Gold Coast Highway, Miami, 4220","SER","State High School"]
[1890,"Miami State School","18-36 Oceanic Drive","Mermaid Waters",4218,"18-36 Oceanic Drive, Mermaid Waters, 4218","SER","State School"]
[6206,"Middle Park SS - Special Education Program","Cnr Sumners Road & Macfarlane Street","Middle Park",4074,"Cnr Sumners Road & Macfarlane Street, Middle Park, 4074","MER","Special Education Program"]
[1969,"Middle Park State School","Cnr Sumners Road & Macfarlane Street","Middle Park",4074,"Cnr Sumners Road & Macfarlane Street, Middle Park, 4074","MER","State School"]
[5928,"Middle Ridge SS - Special Education Program","203 Spring Street","Middle Ridge",4350,"203 Spring Street, Middle Ridge, 4350","DSR","Special Education Program"]
[414,"Middle Ridge State School","203 Spring Street","Middle Ridge",4350,"203 Spring Street, Middle Ridge, 4350","DSR","State School"]
[1905,"Middlemount Community School","James Randell Drive","Middlemount",4746,"James Randell Drive, Middlemount, 4746","CQR","State School"]
[7935,"Middlemount CS - Special Education Program","James Randell Drive","Middlemount",4746,"James Randell Drive, Middlemount, 4746","CQR","Special Education Program"]
[5987,"Miles SS - Special Education Program","c/- Miles State School, Constance Street","Miles",4415,"c/- Miles State School, Constance Street, Miles, 4415","DSR","Special Education Program"]
[2144,"Miles State High School","Pine Street","Miles",4415,"Pine Street, Miles, 4415","DSR","State High School"]
[341,"Miles State School","Constance Street","Miles",4415,"Constance Street, Miles, 4415","DSR","State School"]
[9931,"Millaa Millaa SS - Special Education Program","1 Beech Street","Millaa Millaa",4886,"1 Beech Street, Millaa Millaa, 4886","FNR","Special Education Program"]
[771,"Millaa Millaa State School","1 Beech Street","Millaa Millaa",4886,"1 Beech Street, Millaa Millaa, 4886","FNR","State School"]
[867,"Millaroo State School","Cunningham Street","Millaroo",4807,"Cunningham Street, Millaroo, 4807","NQR","State School"]
[157,"Millchester State School","Cnr Bluff & Phillipson Roads","Millchester",4820,"Cnr Bluff & Phillipson Roads, Millchester, 4820","NQR","State School"]
[176,"Millmerran State School","19 Simmons Street","Millmerran",4357,"19 Simmons Street, Millmerran, 4357","DSR","State School"]
[1120,"Milman State School","335 Milman Road","Milman",4702,"335 Milman Road, Milman, 4702","CQR","State School"]
[2024,"Milpera State High School","Parker Street","Chelmer",4068,"Parker Street, Chelmer, 4068","MER","State High School"]
[5989,"Milton SS - Special Education Program","c/- Milton State School, Bayswater Street","Milton",4064,"c/- Milton State School, Bayswater Street, Milton, 4064","MER","Special Education Program"]
[551,"Milton State School","Bayswater Street","Milton",4064,"Bayswater Street, Milton, 4064","MER","State School"]
[294,"Minden State School","1032 Lowood-Minden Road","Minden",4311,"1032 Lowood-Minden Road, Minden, 4311","MER","State School"]
[2311,"Minimbah SS - Special Education Program","Cnr Walkers Road & Minimbah Drive","Morayfield",4506,"Cnr Walkers Road & Minimbah Drive, Morayfield, 4506","NCR","Special Education Program"]
[265,"Minimbah State School","Cnr Walkers Road & Minimbah Drive","Morayfield",4506,"Cnr Walkers Road & Minimbah Drive, Morayfield, 4506","NCR","State School"]
[7931,"Mirani SHS - Special Education Program","Augusta Street","Mirani",4754,"Augusta Street, Mirani, 4754","CQR","Special Education Program"]
[2117,"Mirani State High School","Augusta Street","Mirani",4754,"Augusta Street, Mirani, 4754","CQR","State High School"]
[658,"Mirani State School","12 Maud Street","Mirani",4754,"12 Maud Street, Mirani, 4754","CQR","State School"]
[792,"Miriam Vale State School","15 Roe Street","Miriam Vale",4677,"15 Roe Street, Miriam Vale, 4677","CQR","State School"]
[1382,"Mirriwinni State School","3 Whitman Street","Mirriwinni",4871,"3 Whitman Street, Mirriwinni, 4871","FNR","State School"]
[1324,"Mission Beach State School","Webb Road","Wongaling Beach",4852,"Webb Road, Wongaling Beach, 4852","FNR","State School"]
[1919,"Mistake Creek State School","6652 Clermont Alpha Road","Clermont",4721,"6652 Clermont Alpha Road, Clermont, 4721","CQR","State School"]
[27,"Mitchell State School","105 Cambridge Street","Mitchell",4465,"105 Cambridge Street, Mitchell, 4465","DSR","State School"]
[516,"Mitchelton Early Childhood Development Program","Kedron Avenue","Mitchelton",4053,"Kedron Avenue, Mitchelton, 4053","MER","Special Education Program"]
[2127,"Mitchelton SHS - Special Education Program","754 Samford Road","Mitchelton",4053,"754 Samford Road, Mitchelton, 4053","MER","Special Education Program"]
[5671,"Mitchelton SHS Positive Learning Centre","83 Gilston Street","Keperra",4054,"83 Gilston Street, Keperra, 4054","MER","Positive Learning Centre"]
[3005,"Mitchelton Special School","Kedron Avenue","Mitchelton",4053,"Kedron Avenue, Mitchelton, 4053","MER","Special School"]
[6000,"Mitchelton SS - Special Education Program","c/- Mitchelton State School, 47 Glen Retreat Road","Mitchelton",4053,"c/- Mitchelton State School, 47 Glen Retreat Road, Mitchelton, 4053","MER","Special Education Program"]
[2040,"Mitchelton State High School","754 Samford Road","Mitchelton",4053,"754 Samford Road, Mitchelton, 4053","MER","State High School"]
[1538,"Mitchelton State School","47 Glen Retreat Road","Mitchelton",4053,"47 Glen Retreat Road, Mitchelton, 4053","MER","State School"]
[701,"Moffatdale State School","892 Barambah Road","Moffatdale",4605,"892 Barambah Road, Moffatdale, 4605","DSR","State School"]
[9986,"Moggill SS - Special Education Program","3417 Moggill Road","Moggill",4070,"3417 Moggill Road, Moggill, 4070","MER","Special Education Program"]
[73,"Moggill State School","3417 Moggill Road","Moggill",4070,"3417 Moggill Road, Moggill, 4070","MER","State School"]
[417,"Monkland State School","220 Brisbane Road","Monkland",4570,"220 Brisbane Road, Monkland, 4570","NCR","State School"]
[1513,"Monogorilby State School","2199 Monogorilby Road","Monogorilby",4626,"2199 Monogorilby Road, Monogorilby, 4626","DSR","State School"]
[5533,"Montessori International College (Forest Glen)","880-932 Maroochydore Road","Forest Glen",4556,"880-932 Maroochydore Road, Forest Glen, 4556","NCR","Non-State School"]
["A055","Montessori Noosa (Sunshine Beach)","2 Bicentennial Drive","Sunshine Beach",4567,"2 Bicentennial Drive, Sunshine Beach, 4567","NCR","Non-State School"]
[5929,"Monto Cluster - Special Education Program","Mouatt Street","Monto",4630,"Mouatt Street, Monto, 4630","CQR","Special Education Program"]
[2098,"Monto State High School","Mouatt Street","Monto",4630,"Mouatt Street, Monto, 4630","CQR","State High School"]
[1831,"Monto State School","3 Leichhardt Street","Monto",4630,"3 Leichhardt Street, Monto, 4630","CQR","State School"]
[7947,"Montville SS - Special Education Program","Main Street","Montville",4560,"Main Street, Montville, 4560","NCR","Special Education Program"]
[776,"Montville State School","Main Street","Montville",4560,"Main Street, Montville, 4560","NCR","State School"]
[7948,"Mooloolaba SS - Special Education Program","Cnr Meta & Douglas Streets","Mooloolaba",4557,"Cnr Meta & Douglas Streets, Mooloolaba, 4557","NCR","Special Education Program"]
[1818,"Mooloolaba State School","Cnr Meta & Douglas Streets","Mooloolaba",4557,"Cnr Meta & Douglas Streets, Mooloolaba, 4557","NCR","State School"]
[309,"Mooloolah State School","King Road","Mooloolah Valley",4553,"King Road, Mooloolah Valley, 4553","NCR","State School"]
[511,"Moonie State School","11305 Moonie Highway","Moonie",4406,"11305 Moonie Highway, Moonie, 4406","DSR","State School"]
[1739,"Moore Park Beach State School","14 Murdochs Linking Road","Moore Park Beach",4670,"14 Murdochs Linking Road, Moore Park Beach, 4670","NCR","State School"]
[9987,"Moorooka SS - Special Education Program","Sherley Street","Moorooka",4105,"Sherley Street, Moorooka, 4105","MER","Special Education Program"]
[1637,"Moorooka State School","Sherley Street","Moorooka",4105,"Sherley Street, Moorooka, 4105","MER","State School"]
[1908,"Moranbah East State School","4 Williams Street","Moranbah",4744,"4 Williams Street, Moranbah, 4744","CQR","State School"]
[5930,"Moranbah SHS - Special Education Program","Mills Avenue","Moranbah",4744,"Mills Avenue, Moranbah, 4744","CQR","Special Education Program"]
[3404,"Moranbah SS - Special Education Program","Belyando Avenue","Moranbah",4744,"Belyando Avenue, Moranbah, 4744","CQR","Special Education Program"]
[2135,"Moranbah State High School","Mills Avenue","Moranbah",4744,"Mills Avenue, Moranbah, 4744","CQR","State High School"]
[896,"Moranbah State School","Belyando Avenue","Moranbah",4744,"Belyando Avenue, Moranbah, 4744","CQR","State School"]
[3538,"Morayfield East SS - Special Education Program","107 Graham Road","Morayfield",4506,"107 Graham Road, Morayfield, 4506","NCR","Special Education Program"]
[1985,"Morayfield East State School","107 Graham Road","Morayfield",4506,"107 Graham Road, Morayfield, 4506","NCR","State School"]
[486,"Morayfield SHS - Special Education Program","Visentin Road","Morayfield",4506,"Visentin Road, Morayfield, 4506","NCR","Special Education Program"]
[5546,"Morayfield SS - Special Education Program","196-230 Morayfield Road","Morayfield",4506,"196-230 Morayfield Road, Morayfield, 4506","NCR","Special Education Program"]
[2154,"Morayfield State High School","Visentin Road","Morayfield",4506,"Visentin Road, Morayfield, 4506","NCR","State High School"]
[125,"Morayfield State School","196-230 Morayfield Road","Morayfield",4506,"196-230 Morayfield Road, Morayfield, 4506","NCR","State School"]
[2478,"Moreton Bay Boys' College (Manly West) ","258-302 Manly Road","Manly West",4179,"258-302 Manly Road, Manly West, 4179","MER","Non-State School"]
[5551,"Moreton Bay College (Manly West)","450 Wondall Road","Manly West",4179,"450 Wondall Road, Manly West, 4179","MER","Non-State School"]
[3567,"Moreton Bay Environmental Education Centre","162 Stradbroke Avenue","Wynnum",4178,"162 Stradbroke Avenue, Wynnum, 4178","MER","Outdoor and Environmental Education Centre"]
[2205,"Moreton Downs SS - Special Education Program","c/- Moreton Downs SEU, Parsons Boulevard","Deception Bay",4508,"c/- Moreton Downs SEU, Parsons Boulevard, Deception Bay, 4508","NCR","Special Education Program"]
[1753,"Moreton Downs State School","Parsons Boulevard","Deception Bay",4508,"Parsons Boulevard, Deception Bay, 4508","NCR","State School"]
[5931,"Morningside SS - Special Education Program","67 Pashen Street","Morningside",4170,"67 Pashen Street, Morningside, 4170","MER","Special Education Program"]
[1803,"Morningside State School","67 Pashen Street","Morningside",4170,"67 Pashen Street, Morningside, 4170","MER","State School"]
[6602,"Mornington Island SS - Special Education Program","Lardil Street - Mornington Island","Wellesley Islands",4892,"Lardil Street - Mornington Island, Wellesley Islands, 4892","NQR","Special Education Program"]
[291,"Mornington Island State School","Lardil Street - Mornington Island","Wellesley Islands",4892,"Lardil Street - Mornington Island, Wellesley Islands, 4892","NQR","State School"]
[525,"Morven State School","Albert Street","Morven",4468,"Albert Street, Morven, 4468","DSR","State School"]
[5467,"Mossman SHS - Special Education Program","46-62 Front Street","Mossman",4873,"46-62 Front Street, Mossman, 4873","FNR","Special Education Program"]
[2002,"Mossman State High School","46-62 Front Street","Mossman",4873,"46-62 Front Street, Mossman, 4873","FNR","State High School"]
[167,"Mossman State School","30-34 Front Street","Mossman",4873,"30-34 Front Street, Mossman, 4873","FNR","State School"]
[5265,"Mother of Good Counsel School (Cairns North)","394 Sheridan Street","Cairns North",4870,"394 Sheridan Street, Cairns North, 4870","FNR","Non-State School"]
[6142,"Mother Teresa Primary School (Ormeau)","169 Eggersdorf Road","Ormeau",4208,"169 Eggersdorf Road, Ormeau, 4208","SER","Non-State School"]
["A771","Mount Alford SS - Special Education Program","942 Reckumpilla Street","Mount Alford",4310,"942 Reckumpilla Street, Mount Alford, 4310","SER","Special Education Program"]
[381,"Mount Alford State School","942 Reckumpilla Street","Mount Alford",4310,"942 Reckumpilla Street, Mount Alford, 4310","SER","State School"]
[5353,"Mount Alvernia College (Kedron)","82 Cremorne Road","Kedron",4031,"82 Cremorne Road, Kedron, 4031","MER","Non-State School"]
[3472,"Mount Archer SS - Special Education Program","8, 242 Thozet Road","Koongal",4701,"8, 242 Thozet Road, Koongal, 4701","CQR","Special Education Program"]
[1914,"Mount Archer State School","242 Thozet Road","Koongal",4701,"242 Thozet Road, Koongal, 4701","CQR","State School"]
[6209,"Mount Cotton SS - Special Education Program","1246 Mount Cotton Road","Mount Cotton",4165,"1246 Mount Cotton Road, Mount Cotton, 4165","SER","Special Education Program"]
[284,"Mount Cotton State School","1246 Mount Cotton Road","Mount Cotton",4165,"1246 Mount Cotton Road, Mount Cotton, 4165","SER","State School"]
[5932,"Mount Crosby SS - Special Education Program","Mount Crosby Road","Karana Downs",4306,"Mount Crosby Road, Karana Downs, 4306","MER","Special Education Program"]
[267,"Mount Crosby State School","Mount Crosby Road","Karana Downs",4306,"Mount Crosby Road, Karana Downs, 4306","MER","State School"]
[1975,"Mount Fox State School","2957 Mt Fox Road","Mount Fox",4850,"2957 Mt Fox Road, Mount Fox, 4850","NQR","State School"]
[944,"Mount Garnet State School","Garnet Street","Mount Garnet",4872,"Garnet Street, Mount Garnet, 4872","FNR","State School"]
[660,"Mount Gravatt East State School","Newnham Road","Mount Gravatt East",4122,"Newnham Road, Mount Gravatt East, 4122","MER","State School"]
[532,"Mount Gravatt SHS - Special Education Program","Loreburn Street","Mount Gravatt",4122,"Loreburn Street, Mount Gravatt, 4122","MER","Special Education Program"]
[3414,"Mount Gravatt SS - Special Education Program","1263 Logan Road","Mount Gravatt",4122,"1263 Logan Road, Mount Gravatt, 4122","MER","Special Education Program"]
[2056,"Mount Gravatt State High School","Loreburn Street","Mount Gravatt",4122,"Loreburn Street, Mount Gravatt, 4122","MER","State High School"]
[198,"Mount Gravatt State School","1263 Logan Road","Mount Gravatt",4122,"1263 Logan Road, Mount Gravatt, 4122","MER","State School"]
[1067,"Mount Isa Central State School","49 Miles Street","Mount Isa",4825,"49 Miles Street, Mount Isa, 4825","NQR","State School"]
[6606,"Mount Isa Flexible Learning Centre (Sunset)","74 Abel Smith Parade","Sunset",4825,"74 Abel Smith Parade, Sunset, 4825","NQR","Non-State School"]
[3604,"Mount Isa School of the Air","137-143 Abel Smith Parade","Pioneer",4825,"137-143 Abel Smith Parade, Pioneer, 4825","NQR","School of Distance Education"]
[3004,"Mount Isa Special School","116 Marian Street","Pioneer",4825,"116 Marian Street, Pioneer, 4825","NQR","Special School"]
[1166,"Mount Kilcoy State School","251 Jenkinsons Road","Mount Kilcoy",4515,"251 Jenkinsons Road, Mount Kilcoy, 4515","NCR","State School"]
[300,"Mount Larcom State School","Raglan Street","Mount Larcom",4695,"Raglan Street, Mount Larcom, 4695","CQR","State School"]
[1189,"Mount Marrow State School","272 Thagoona-Haigslea Road","Mount Marrow",4306,"272 Thagoona-Haigslea Road, Mount Marrow, 4306","MER","State School"]
[690,"Mount Mee State School","1368 Mt Mee Road","Mount Mee",4521,"1368 Mt Mee Road, Mount Mee, 4521","NCR","State School"]
[1109,"Mount Molloy State School","Fraser Road","Mount Molloy",4871,"Fraser Road, Mount Molloy, 4871","FNR","State School"]
["A891","Mount Morgan - Special Education Program","44 Morgan Street","Mount Morgan",4714,"44 Morgan Street, Mount Morgan, 4714","CQR","Special Education Program"]
[526,"Mount Morgan Central State School","44 Morgan Street","Mount Morgan",4714,"44 Morgan Street, Mount Morgan, 4714","CQR","State School"]
[2010,"Mount Morgan State High School","4 Central Street","Mount Morgan",4714,"4 Central Street, Mount Morgan, 4714","CQR","State High School"]
[1511,"Mount Murchison State School","Lot 137 Dawson Highway","Mount Murchison",4715,"Lot 137 Dawson Highway, Mount Murchison, 4715","CQR","State School"]
[737,"Mount Nebo State School","Mount Nebo Road","Mount Nebo",4520,"Mount Nebo Road, Mount Nebo, 4520","MER","State School"]
[5655,"Mount Ommaney SPEC S - Early Childhood Development Program","94 Capitol Drive","Mount Ommaney",4074,"94 Capitol Drive, Mount Ommaney, 4074","MER","Special Education Program"]
[3088,"Mount Ommaney Special School","94 Capitol Drive","Mount Ommaney",4074,"94 Capitol Drive, Mount Ommaney, 4074","MER","Special School"]
[75,"Mount Perry State School","Annie Street","Mount Perry",4671,"Annie Street, Mount Perry, 4671","CQR","State School"]
[7949,"Mount Samson SS - Special Education Program","1060 Winn Road","Mount Samson",4520,"1060 Winn Road, Mount Samson, 4520","NCR","Special Education Program"]
[377,"Mount Samson State School","1060 Winn Road","Mount Samson",4520,"1060 Winn Road, Mount Samson, 4520","NCR","State School"]
[5438,"Mount St Bernard College (Broadway St, Herberton)","15 Broadway Street","Herberton",4887,"15 Broadway Street, Herberton, 4887","FNR","Non-State School"]
[1531,"Mount Surprise State School","Garland Street","Mount Surprise",4871,"Garland Street, Mount Surprise, 4871","FNR","State School"]
[464,"Mount Sylvia State School","6 Left Hand Branch Road","Mount Sylvia",4343,"6 Left Hand Branch Road, Mount Sylvia, 4343","DSR","State School"]
[1111,"Mount Tarampa State School","9 Profkes Road","Mount Tarampa",4311,"9 Profkes Road, Mount Tarampa, 4311","MER","State School"]
[1037,"Mount Tyson State School","Main Street","Mount Tyson",4356,"Main Street, Mount Tyson, 4356","DSR","State School"]
[2390,"Mount Warren Park SS - Special Education Program","125 Mount Warren Boulevard","Mount Warren Park",4207,"125 Mount Warren Boulevard, Mount Warren Park, 4207","SER","Special Education Program"]
[1906,"Mount Warren Park State School","125 Mount Warren Boulevard","Mount Warren Park",4207,"125 Mount Warren Boulevard, Mount Warren Park, 4207","SER","State School"]
[495,"Mount Whitestone State School","1313 Gatton-Clifton Road","Mount Whitestone",4347,"1313 Gatton-Clifton Road, Mount Whitestone, 4347","DSR","State School"]
[1636,"Mountain Creek SHS - Special Education Program","Lady Musgrave Drive","Mountain Creek",4557,"Lady Musgrave Drive, Mountain Creek, 4557","NCR","Special Education Program"]
[5244,"Mountain Creek SS - Special Education Program","Lady Musgrave Drive","Mountain Creek",4557,"Lady Musgrave Drive, Mountain Creek, 4557","NCR","Special Education Program"]
[2190,"Mountain Creek State High School","Lady Musgrave Drive","Mountain Creek",4557,"Lady Musgrave Drive, Mountain Creek, 4557","NCR","State High School"]
[1999,"Mountain Creek State School","Lady Musgrave Drive","Mountain Creek",4557,"Lady Musgrave Drive, Mountain Creek, 4557","NCR","State School"]
[3405,"Moura SS - Special Education Program","Gillespie Street","Moura",4718,"Gillespie Street, Moura, 4718","CQR","Special Education Program"]
[2136,"Moura State High School","Gillespie Street","Moura",4718,"Gillespie Street, Moura, 4718","CQR","State High School"]
[932,"Moura State School","Gillespie Street","Moura",4718,"Gillespie Street, Moura, 4718","CQR","State School"]
[957,"Mourilyan State School","34 Mourilyan Harbour Road","Mourilyan",4858,"34 Mourilyan Harbour Road, Mourilyan, 4858","FNR","State School"]
[5001,"Mt Maria College - Petrie (Petrie)","Armstrong Street","Petrie",4502,"Armstrong Street, Petrie, 4502","NCR","Non-State School"]
[5651,"Mt Maria College (Mitchelton)","54 Prospect Road","Mitchelton",4053,"54 Prospect Road, Mitchelton, 4053","MER","Non-State School"]
[5355,"Mt St Michael's College (Ashgrove)","67 Elimatta Drive","Ashgrove",4060,"67 Elimatta Drive, Ashgrove, 4060","MER","Non-State School"]
[5716,"Mudgeeraba Creek SS - Special Education Program","Gold Coast-Springbrook Road","Mudgeeraba",4213,"Gold Coast-Springbrook Road, Mudgeeraba, 4213","SER","Special Education Program"]
[159,"Mudgeeraba Creek State School","Gold Coast-Springbrook Road","Mudgeeraba",4213,"Gold Coast-Springbrook Road, Mudgeeraba, 4213","SER","State School"]
[3049,"Mudgeeraba Special School","4-6 School Street","Mudgeeraba",4213,"4-6 School Street, Mudgeeraba, 4213","SER","Special School"]
[272,"Mudgeeraba SS - Special Education Program","Old Coach Road","Mudgeeraba",4213,"Old Coach Road, Mudgeeraba, 4213","SER","Special Education Program"]
[663,"Mudgeeraba State School","Old Coach Road","Mudgeeraba",4213,"Old Coach Road, Mudgeeraba, 4213","SER","State School"]
[5591,"Mueller College (Rothwell)","75 Morris Road","Rothwell",4022,"75 Morris Road, Rothwell, 4022","NCR","Non-State School"]
[1418,"Mulgildie State School","Brigalow Street","Mulgildie",4630,"Brigalow Street, Mulgildie, 4630","CQR","State School"]
[6210,"Mundingburra SS - Special Education Program","77 Ross River Road","Mundingburra",4812,"77 Ross River Road, Mundingburra, 4812","NQR","Special Education Program"]
[436,"Mundingburra State School","77 Ross River Road","Mundingburra",4812,"77 Ross River Road, Mundingburra, 4812","NQR","State School"]
[722,"Mundoo State School","100 Cardier Road","Wangan",4871,"100 Cardier Road, Wangan, 4871","FNR","State School"]
[1640,"Mundubbera SS - Special Education Program","57 Bunce Street","Mundubbera",4626,"57 Bunce Street, Mundubbera, 4626","CQR","Special Education Program"]
[1420,"Mundubbera State School","57 Bunce Street","Mundubbera",4626,"57 Bunce Street, Mundubbera, 4626","CQR","State School"]
["A684","Mungalla Silver Lining School (Mutarnee)","Spiegelhauer Road","Mutarnee",4816,"Spiegelhauer Road, Mutarnee, 4816","NQR","Non-State School"]
[507,"Mungallala State School","24 Redford Street","Mungallala",4467,"24 Redford Street, Mungallala, 4467","DSR","State School"]
[217,"Mungar State School","1143 Mungar Road","Mungar",4650,"1143 Mungar Road, Mungar, 4650","NCR","State School"]
[1469,"Murarrie State School","Garrett Street","Murarrie",4172,"Garrett Street, Murarrie, 4172","MER","State School"]
[6211,"Murgon SHS - Special Education Program","2 Dutton Street","Murgon",4605,"2 Dutton Street, Murgon, 4605","DSR","Special Education Program"]
[2052,"Murgon State High School","2 Dutton Street","Murgon",4605,"2 Dutton Street, Murgon, 4605","DSR","State High School"]
[871,"Murgon State School","91 Gore Street","Murgon",4605,"91 Gore Street, Murgon, 4605","DSR","State School"]
[76,"Murphy's Creek State School","49 Murphys Creek School Road","Murphys Creek",4352,"49 Murphys Creek School Road, Murphys Creek, 4352","DSR","State School"]
[1030,"Murray River Upper State School","1 Middle Murray Road","Murray Upper",4854,"1 Middle Murray Road, Murray Upper, 4854","FNR","State School"]
[1177,"Murray's Bridge State School","1378 Killarney Road","Murrays Bridge",4370,"1378 Killarney Road, Murrays Bridge, 4370","DSR","State School"]
[7953,"Murrumba State SC - Special Education Program","201-207 Goodfellows Road","Murrumba Downs",4503,"201-207 Goodfellows Road, Murrumba Downs, 4503","NCR","Special Education Program"]
[7574,"Murrumba State Secondary College","201-207 Goodfellows Road","Murrumba Downs",4503,"201-207 Goodfellows Road, Murrumba Downs, 4503","NCR","State High School"]
[3385,"Musgrave Hill SS - Early Childhood Development Program","Nakina Street","Southport",4215,"Nakina Street, Southport, 4215","SER","Special Education Program"]
[2301,"Musgrave Hill SS - Special Education Program","Nakina Street","Southport",4215,"Nakina Street, Southport, 4215","SER","Special Education Program"]
[1678,"Musgrave Hill State School","Nakina Street","Southport",4215,"Nakina Street, Southport, 4215","SER","State School"]
[6137,"Music Industry College (Fortitude Valley)","38 Berwick Street","Fortitude Valley",4006,"38 Berwick Street, Fortitude Valley, 4006","MER","Non-State School"]
[1317,"Mutarnee State School","School Road","Mutarnee",4816,"School Road, Mutarnee, 4816","NQR","State School"]
[993,"Mutchilba State School","33 Marsterson Street","Mutchilba",4872,"33 Marsterson Street, Mutchilba, 4872","FNR","State School"]
[152,"Mutdapilly State School","4 Mutdapilly-Churchbank Weir Road","Mutdapilly",4307,"4 Mutdapilly-Churchbank Weir Road, Mutdapilly, 4307","SER","State School"]
[304,"Muttaburra State School","42 Sword Street","Muttaburra",4732,"42 Sword Street, Muttaburra, 4732","CQR","State School"]
[1481,"Nagoorin State School","2 Ubobo Street","Boyne Valley",4680,"2 Ubobo Street, Boyne Valley, 4680","CQR","State School"]
[5886,"Nambour Christian College (Woombye)","2 McKenzie Road","Woombye",4559,"2 McKenzie Road, Woombye, 4559","NCR","Non-State School"]
[3039,"Nambour Special School","70 Windsor Road","Burnside",4560,"70 Windsor Road, Burnside, 4560","NCR","Special School"]
[2031,"Nambour State College","1 Carroll Street","Nambour",4560,"1 Carroll Street, Nambour, 4560","NCR","State School"]
[363,"Nambour State College - Junior School","Coronation Avenue","Nambour",4560,"Coronation Avenue, Nambour, 4560","NCR","Campus"]
[6322,"Nambour State College - Junior School Intensive English Centre","Coronation Avenue","Nambour",4560,"Coronation Avenue, Nambour, 4560","NCR","Intensive English Centre"]
[3293,"Nambour State College - Junior School Special Education Program","Coronation Avenue","Nambour",4560,"Coronation Avenue, Nambour, 4560","NCR","Special Education Program"]
[2252,"Nambour State College - Senior School Special Education Program","Nambour State High School, 1 Carroll Street","Nambour",4560,"Nambour State High School, 1 Carroll Street, Nambour, 4560","NCR","Special Education Program"]
[6212,"Nanango SHS - Special Education Program","54 Elk Street","Nanango",4615,"54 Elk Street, Nanango, 4615","DSR","Special Education Program"]
[3406,"Nanango SS - Special Education Program","39 Drayton Street","Nanango",4615,"39 Drayton Street, Nanango, 4615","DSR","Special Education Program"]
[2157,"Nanango State High School","54 Elk Street","Nanango",4615,"54 Elk Street, Nanango, 4615","DSR","State High School"]
[77,"Nanango State School","39 Drayton Street","Nanango",4615,"39 Drayton Street, Nanango, 4615","DSR","State School"]
[5934,"Narangba SS - Special Education Program","School Street","Narangba",4504,"School Street, Narangba, 4504","NCR","Special Education Program"]
[1200,"Narangba State School","School Street","Narangba",4504,"School Street, Narangba, 4504","NCR","State School"]
[5266,"Narangba Valley SHS - Special Education Program","Harris Avenue","Narangba",4504,"Harris Avenue, Narangba, 4504","NCR","Special Education Program"]
[6594,"Narangba Valley SS - Special Education Program","Creekside Drive","Narangba",4504,"Creekside Drive, Narangba, 4504","NCR","Special Education Program"]
[444,"Narangba Valley State High School","Harris Avenue","Narangba",4504,"Harris Avenue, Narangba, 4504","NCR","State High School"]
[1725,"Narangba Valley State School","Creekside Drive","Narangba",4504,"Creekside Drive, Narangba, 4504","NCR","State School"]
[3321,"Narbethong SPEC S - Early Childhood Development Program","25 Salisbury Street","Woolloongabba",4102,"25 Salisbury Street, Woolloongabba, 4102","MER","Special Education Program"]
[3140,"Narbethong State Special School","25 Salisbury Street","Woolloongabba",4102,"25 Salisbury Street, Woolloongabba, 4102","MER","Special School"]
[479,"Nashville State School","Cnr Baskerville & Douglas Streets","Brighton",4017,"Cnr Baskerville & Douglas Streets, Brighton, 4017","MER","State School"]
[184,"Nebo State School","34 Oxford Street","Nebo",4742,"34 Oxford Street, Nebo, 4742","CQR","State School"]
[2303,"Nerang SHS - Special Education Program","Weedons Road","Nerang",4211,"Weedons Road, Nerang, 4211","SER","Special Education Program"]
[6213,"Nerang SS - Special Education Program","3 Nerang Street","Nerang",4211,"3 Nerang Street, Nerang, 4211","SER","Special Education Program"]
[2169,"Nerang State High School","1-35 Weedons Road","Nerang",4211,"1-35 Weedons Road, Nerang, 4211","SER","State High School"]
[218,"Nerang State School","3 Nerang Street","Nerang",4211,"3 Nerang Street, Nerang, 4211","SER","State School"]
["A864","New Farm SS - Special Education Program","Cnr James & Heal Streets","New Farm ",4005,"Cnr James & Heal Streets, New Farm , 4005","MER","Special Education Program"]
[943,"New Farm State School","Cnr James & Heal Streets","New Farm",4005,"Cnr James & Heal Streets, New Farm, 4005","MER","State School"]
[228,"Newmarket State School","15 Banks Street","Newmarket",4051,"15 Banks Street, Newmarket, 4051","MER","State School"]
["A887","Newtown SS - Special Education Program","24 Albert Street","Newtown",4350,"24 Albert Street, Newtown, 4350","DSR","Special Education Program"]
[1227,"Newtown State School","24 Albert Street","Newtown",4350,"24 Albert Street, Newtown, 4350","DSR","State School"]
[1735,"Nobby State School","4 Davenport Street","Nobby",4360,"4 Davenport Street, Nobby, 4360","DSR","State School"]
[5303,"Noosa Christian College (Cooroy)","20 Cooroy Belli Creek Road","Cooroy",4563,"20 Cooroy Belli Creek Road, Cooroy, 4563","NCR","Non-State School"]
[3235,"Noosa District SHS - Special Education Program","Tulip Street","Cooroy",4563,"Tulip Street, Cooroy, 4563","NCR","Special Education Program"]
[2088,"Noosa District State High School","Tulip Street","Cooroy",4563,"Tulip Street, Cooroy, 4563","NCR","State High School"]
["A661","Noosa District State High School - Belli Park Campus","280-338 Newspaper Hill Road","Belli Park",4562,"280-338 Newspaper Hill Road, Belli Park, 4562","NCR","Support Unit (Other)"]
[2292,"Noosa District State High School - Pomona Campus","120 Summit Road","Pomona",4568,"120 Summit Road, Pomona, 4568","NCR","Campus"]
[5638,"Noosa Flexible Learning Centre (Sunshine Beach)","2 Girraween Court","Sunshine Beach",4567,"2 Girraween Court, Sunshine Beach, 4567","NCR","Non-State School"]
[270,"Noosa Pengari Steiner School (Doonan)","86 Nyell Road","Doonan",4562,"86 Nyell Road, Doonan, 4562","NCR","Non-State School"]
[2241,"Noosaville SS - Special Education Program","75 Beckmans Road","Noosaville",4566,"75 Beckmans Road, Noosaville, 4566","NCR","Special Education Program"]
[175,"Noosaville State School","75 Beckmans Road","Noosaville",4566,"75 Beckmans Road, Noosaville, 4566","NCR","State School"]
[7372,"Norfolk Village SS - Special Education Program","83 Halfway Drive","Ormeau",4208,"83 Halfway Drive, Ormeau, 4208","SER","Special Education Program"]
[1741,"Norfolk Village State School","83 Halfway Drive","Ormeau",4208,"83 Halfway Drive, Ormeau, 4208","SER","State School"]
[926,"Norman Park State School","68-88 Agnew Street","Norman Park",4170,"68-88 Agnew Street, Norman Park, 4170","MER","State School"]
[6603,"Normanton SS - Special Education Program","Little Brown Street","Normanton",4890,"Little Brown Street, Normanton, 4890","NQR","Special Education Program"]
[360,"Normanton State School","Little Brown Street","Normanton",4890,"Little Brown Street, Normanton, 4890","NQR","State School"]
[5936,"Norris Road SS - Special Education Program","28 Greenore Street","Bracken Ridge",4017,"28 Greenore Street, Bracken Ridge, 4017","MER","Special Education Program"]
[1863,"Norris Road State School","28 Greenore Street","Bracken Ridge",4017,"28 Greenore Street, Bracken Ridge, 4017","MER","State School"]
[469,"North Arm State School","Cnr Fairhill & Yandina Creek Road","North Arm",4561,"Cnr Fairhill & Yandina Creek Road, North Arm, 4561","NCR","State School"]
[3207,"North Coast Intensive English Centre","c/- Nambour SHS, 1 Carroll Street","Nambour",4560,"c/- Nambour SHS, 1 Carroll Street, Nambour, 4560","NCR","Intensive English Centre"]
[731,"North Eton State School","Kinchant Dam Road","North Eton",4741,"Kinchant Dam Road, North Eton, 4741","CQR","State School"]
[3571,"North Keppel Island Environmental Education Centre","North Keppel Island","The Keppels",4703,"North Keppel Island, The Keppels, 4703","CQR","Outdoor and Environmental Education Centre"]
[2324,"North Lakes State College","Joyner Circuit","North Lakes",4509,"Joyner Circuit, North Lakes, 4509","NCR","State School"]
[5937,"North Lakes State College - Special Education Program","Memorial Drive","North Lakes",4509,"Memorial Drive, North Lakes, 4509","NCR","Special Education Program"]
[2251,"North Rockhampton SHS - Special Education Program","North Rockhampton SHS, Berserker Street","Frenchville",4701,"North Rockhampton SHS, Berserker Street, Frenchville, 4701","CQR","Special Education Program"]
[2041,"North Rockhampton State High School","Berserker Street","Frenchville",4701,"Berserker Street, Frenchville, 4701","CQR","State High School"]
["A639","North Shore SS - Special Education Program","9 Langford Street","Burdell",4818,"9 Langford Street, Burdell, 4818","NQR","Special Education Program"]
["A069","North Shore State School","9 Langford Street","Burdell",4818,"9 Langford Street, Burdell, 4818","NQR","State School"]
[5938,"Northern Beaches SHS - Special Education Program","Meranti Street","Deeragun",4818,"Meranti Street, Deeragun, 4818","NQR","Special Education Program"]
[211,"Northern Beaches State High School","Meranti Street","Deeragun",4818,"Meranti Street, Deeragun, 4818","NQR","State High School"]
[3473,"Northern Coalfields - Special Education Program","1 Kitchener Street","Clermont",4721,"1 Kitchener Street, Clermont, 4721","CQR","Special Education Program"]
[5703,"Northern Peninsula Area College - Bamaga Junior Campus","Anu Street","Bamaga",4876,"Anu Street, Bamaga, 4876","FNR","Campus"]
[5704,"Northern Peninsula Area College - Injinoo Junior","Francis Street","Injinoo",4876,"Francis Street, Injinoo, 4876","FNR","Campus"]
[5939,"Northern Peninsula Area College - Special Education Program","Sagaukaz Street","Bamaga",4876,"Sagaukaz Street, Bamaga, 4876","FNR","Special Education Program"]
[1243,"Northern Peninsula Area State College","Sagaukaz Street","Bamaga",4876,"Sagaukaz Street, Bamaga, 4876","FNR","State School"]
[5971,"Northern Peninsula Area State College - Senior Campus","Sagaukaz Street","Bamaga",4876,"Sagaukaz Street, Bamaga, 4876","FNR","Campus"]
[281,"Northgate State School","128 Amelia Street","Nundah",4012,"128 Amelia Street, Nundah, 4012","MER","State School"]
[5476,"Northpine Christian College (Dakabin)","29 Hughes Road East","Dakabin",4503,"29 Hughes Road East, Dakabin, 4503","NCR","Non-State School"]
[5578,"Northside Christian College (Everton Park)","151 Flockton Street","Everton Park",4053,"151 Flockton Street, Everton Park, 4053","MER","Non-State School"]
[3525,"Northview SS - Special Education Program","54 Pioneer Street","Mount Pleasant",4740,"54 Pioneer Street, Mount Pleasant, 4740","CQR","Special Education Program"]
[1957,"Northview State School","54 Pioneer Street","Mount Pleasant",4740,"54 Pioneer Street, Mount Pleasant, 4740","CQR","State School"]
[3511,"Norville SS - Special Education Program","Dr Mays Road","Norville",4670,"Dr Mays Road, Norville, 4670","NCR","Special Education Program"]
[445,"Norville State School","Dr Mays Road","Norville",4670,"Dr Mays Road, Norville, 4670","NCR","State School"]
[3590,"Nudgee Beach Environmental Education Centre","1588 Nudgee Road","Nudgee Beach",4014,"1588 Nudgee Road, Nudgee Beach, 4014","MER","Outdoor and Environmental Education Centre"]
[3558,"Numinbah Valley Environmental Education Centre","1721 Nerang-Murwillumbah Road","Numinbah Valley",4211,"1721 Nerang-Murwillumbah Road, Numinbah Valley, 4211","SER","Outdoor and Environmental Education Centre"]
[785,"Numinbah Valley State School","2270 Nerang-Murwillumbah Road","Numinbah Valley",4211,"2270 Nerang-Murwillumbah Road, Numinbah Valley, 4211","SER","State School"]
[6599,"Nundah SS - Special Education Program","41 Bage Street","Nundah",4012,"41 Bage Street, Nundah, 4012","MER","Special Education Program"]
[43,"Nundah State School","41 Bage Street","Nundah",4012,"41 Bage Street, Nundah, 4012","MER","State School"]
[3084,"Nursery Road State Special School","49 Nursery Road","Holland Park West",4121,"49 Nursery Road, Holland Park West, 4121","MER","Special School"]
[3382,"Nursery Road State Special School - Early Childhood Development Program","49 Nursery Road","Holland Park West",4121,"49 Nursery Road, Holland Park West, 4121","MER","Special Education Program"]
[1238,"Oakenden State School","177 Oakenden School Road","Oakenden",4741,"177 Oakenden School Road, Oakenden, 4741","CQR","State School"]
[5705,"Oakey SHS - Special Education Program","1 Campbell Street","Oakey",4401,"1 Campbell Street, Oakey, 4401","DSR","Special Education Program"]
[2386,"Oakey SS - Special Education Program","24 Campbell Street","Oakey",4401,"24 Campbell Street, Oakey, 4401","DSR","Special Education Program"]
[2099,"Oakey State High School","1 Campbell Street","Oakey",4401,"1 Campbell Street, Oakey, 4401","DSR","State High School"]
[166,"Oakey State School","24 Campbell Street","Oakey",4401,"24 Campbell Street, Oakey, 4401","DSR","State School"]
[331,"Oakleigh State School","Buxton Street","Ashgrove",4060,"Buxton Street, Ashgrove, 4060","MER","State School"]
[620,"Oakwood State School","125 Oakwood School Road","Oakwood",4670,"125 Oakwood School Road, Oakwood, 4670","NCR","State School"]
[2387,"One Mile SS - Special Education Program","John Street","Gympie",4570,"John Street, Gympie, 4570","NCR","Special Education Program"]
[51,"One Mile State School","John Street","Gympie",4570,"John Street, Gympie, 4570","NCR","State School"]
[2421,"OneSchool Global QLD (Wakerley) ","190 Ingleston Road","Wakerley",4154,"190 Ingleston Road, Wakerley, 4154","MER","Non-State School"]
["A774","Ontrack College Emerald (Emerald)","26274 Capricorn Highway","Emerald ",4720,"26274 Capricorn Highway, Emerald , 4720","CQR","Non-State School"]
[5940,"Oonoonba SS - Special Education Program","Fairfield Waters Drive","Idalia",4811,"Fairfield Waters Drive, Idalia, 4811","NQR","Special Education Program"]
[556,"Oonoonba State School","Fairfield Waters Drive","Idalia",4811,"Fairfield Waters Drive, Idalia, 4811","NQR","State School"]
[1271,"Orion State School","1002 Ten Chain Road","Orion",4722,"1002 Ten Chain Road, Orion, 4722","CQR","State School"]
[5990,"Ormeau SS - Special Education Program","Ormeau State School, 29 Mirambeena Drive","Pimpama",4209,"Ormeau State School, 29 Mirambeena Drive, Pimpama, 4209","SER","Special Education Program"]
[336,"Ormeau State School","29 Mirambeena Drive","Pimpama",4209,"29 Mirambeena Drive, Pimpama, 4209","SER","State School"]
[6215,"Ormeau Woods SHS - Special Education Program","Goldmine Road","Ormeau",4208,"Goldmine Road, Ormeau, 4208","SER","Special Education Program"]
[6136,"Ormeau Woods State High School","Goldmine Road","Ormeau",4208,"Goldmine Road, Ormeau, 4208","SER","State High School"]
[5796,"Ormiston College (Ormiston)","97 Dundas Street West","Ormiston",4160,"97 Dundas Street West, Ormiston, 4160","SER","Non-State School"]
[7373,"Ormiston SS - Special Education Program","82-110 Gordon Street","Ormiston",4160,"82-110 Gordon Street, Ormiston, 4160","SER","Special Education Program"]
[23,"Ormiston State School","82-110 Gordon Street","Ormiston",4160,"82-110 Gordon Street, Ormiston, 4160","SER","State School"]
[74,"Osborne State School","Kirknie Road","Osborne",4806,"Kirknie Road, Osborne, 4806","NQR","State School"]
[5267,"Our Lady Help of Christians School (Earlville)","18 Balaclava Road","Earlville",4870,"18 Balaclava Road, Earlville, 4870","FNR","Non-State School"]
[5024,"Our Lady Help of Christians School (Hendra)","23 Bowman Street","Hendra",4011,"23 Bowman Street, Hendra, 4011","MER","Non-State School"]
[5026,"Our Lady of Dolours School (Mitchelton)","2 Willcocks Street","Mitchelton",4053,"2 Willcocks Street, Mitchelton, 4053","MER","Non-State School"]
[5027,"Our Lady of Fatima Primary School (Acacia Ridge)","350 Mortimer Road","Acacia Ridge",4110,"350 Mortimer Road, Acacia Ridge, 4110","MER","Non-State School"]
[5117,"Our Lady of Good Counsel School (Gatton)","20 Maitland Street","Gatton",4343,"20 Maitland Street, Gatton, 4343","DSR","Non-State School"]
[5236,"Our Lady of Lourdes Primary School (Ingham)","18 Abbott Street","Ingham",4850,"18 Abbott Street, Ingham, 4850","NQR","Non-State School"]
[5028,"Our Lady of Lourdes Primary School (Sunnybank)","Shearwin Street","Sunnybank",4109,"Shearwin Street, Sunnybank, 4109","MER","Non-State School"]
[5153,"Our Lady of Lourdes Primary School (Toowoomba)","2 Ascot Street","Toowoomba",4350,"2 Ascot Street, Toowoomba, 4350","DSR","Non-State School"]
[5030,"Our Lady of Mount Carmel School (Coorparoo)","Norfolk Street","Coorparoo",4151,"Norfolk Street, Coorparoo, 4151","MER","Non-State School"]
[5031,"Our Lady of the Angels' School (Wavell Heights)","30 Warraba Avenue","Wavell Heights",4012,"30 Warraba Avenue, Wavell Heights, 4012","MER","Non-State School"]
[5032,"Our Lady of the Assumption School (Enoggera)","9 Hurdcotte Street","Enoggera",4051,"9 Hurdcotte Street, Enoggera, 4051","MER","Non-State School"]
[5137,"Our Lady of the Rosary School (Caloundra)","Alfred Street","Caloundra",4551,"Alfred Street, Caloundra, 4551","NCR","Non-State School"]
[5033,"Our Lady of the Rosary School (Kenmore)","1 Kenmore Road","Kenmore",4069,"1 Kenmore Road, Kenmore, 4069","MER","Non-State School"]
[5034,"Our Lady of the Sacred Heart Catholic Primary School (Darra)","115 Darra Station Road","Darra",4076,"115 Darra Station Road, Darra, 4076","MER","Non-State School"]
[5192,"Our Lady of the Sacred Heart Catholic Primary School (Springsure)","Gap Street","Springsure",4722,"Gap Street, Springsure, 4722","CQR","Non-State School"]
[2463,"Our Lady of the Sacred Heart School (Hammond Island)","Lot 11 Church Street","Hammond Island",4875,"Lot 11 Church Street, Hammond Island, 4875","FNR","Associated Facility"]
[5268,"Our Lady of the Sacred Heart School (Thursday Island)","Normanby Street","Thursday Island",4875,"Normanby Street, Thursday Island, 4875","FNR","Non-State School"]
[5189,"Our Lady of the Southern Cross College (Dalby)","2 Nicholson Street","Dalby",4405,"2 Nicholson Street, Dalby, 4405","DSR","Non-State School"]
[5035,"Our Lady of the Way School (Petrie)","38 Armstrong Street","Petrie",4502,"38 Armstrong Street, Petrie, 4502","NCR","Non-State School"]
[5413,"Our Lady's Catholic Primary School (Longreach)","85 Eagle Street","Longreach",4730,"85 Eagle Street, Longreach, 4730","CQR","Non-State School"]
[5356,"Our Lady's College (Annerley)","15 Chester Road","Annerley",4103,"15 Chester Road, Annerley, 4103","MER","Non-State School"]
[6214,"Oxenford SS - Special Education Program","90 Michigan Drive","Oxenford",4210,"90 Michigan Drive, Oxenford, 4210","SER","Special Education Program"]
[1970,"Oxenford State School","90 Michigan Drive","Oxenford",4210,"90 Michigan Drive, Oxenford, 4210","SER","State School"]
[79,"Oxley State School","Bannerman Street","Oxley",4075,"Bannerman Street, Oxley, 4075","MER","State School"]
[2330,"Pacific Lutheran College (Meridan Plains)","Woodlands Boulevard","Meridan Plains",4551,"Woodlands Boulevard, Meridan Plains, 4551","NCR","Non-State School"]
[5941,"Pacific Paradise SS - Special Education Program","14-24 Menzies Drive","Pacific Paradise",4564,"14-24 Menzies Drive, Pacific Paradise, 4564","NCR","Special Education Program"]
[1991,"Pacific Paradise State School","14-24 Menzies Drive","Pacific Paradise",4564,"14-24 Menzies Drive, Pacific Paradise, 4564","NCR","State School"]
[6216,"Pacific Pines SHS - Special Education Program","Archipelago Street","Pacific Pines",4211,"Archipelago Street, Pacific Pines, 4211","SER","Special Education Program"]
[5991,"Pacific Pines SS - Special Education Program","Pacific Pines State School, Santa Isobel Boulevard","Pacific Pines",4211,"Pacific Pines State School, Santa Isobel Boulevard, Pacific Pines, 4211","SER","Special Education Program"]
[1745,"Pacific Pines State High School","Archipelago Street","Pacific Pines",4211,"Archipelago Street, Pacific Pines, 4211","SER","State High School"]
[1744,"Pacific Pines State School","Santa Isobel Boulevard","Pacific Pines",4211,"Santa Isobel Boulevard, Pacific Pines, 4211","SER","State School"]
[5300,"Padua College (Kedron)","80 Turner Road","Kedron",4031,"80 Turner Road, Kedron, 4031","MER","Non-State School"]
["A861","Pallara SS - Special Education Program","39 Ritchie Road","Pallara",4110,"39 Ritchie Road, Pallara, 4110","MER","Special Education Program"]
[831,"Pallara State School","39 Ritchie Road","Pallara",4110,"39 Ritchie Road, Pallara, 4110","MER","State School"]
[6217,"Palm Beach SS - Special Education Program","13-19 Nineteenth Avenue","Palm Beach",4221,"13-19 Nineteenth Avenue, Palm Beach, 4221","SER","Special Education Program"]
[240,"Palm Beach State School","13-19 Nineteenth Avenue","Palm Beach",4221,"13-19 Nineteenth Avenue, Palm Beach, 4221","SER","State School"]
[5442,"Palm Beach-Currumbin SHS - Special Education Program","c/- PBC State High School, Thrower Drive","Palm Beach",4221,"c/- PBC State High School, Thrower Drive, Palm Beach, 4221","SER","Special Education Program"]
[2129,"Palm Beach-Currumbin State High School","Thrower Drive","Palm Beach",4221,"Thrower Drive, Palm Beach, 4221","SER","State High School"]
[9727,"Palmwoods SS - Special Education Program","111 Palmwoods-Montville Road","Palmwoods",4555,"111 Palmwoods-Montville Road, Palmwoods, 4555","NCR","Special Education Program"]
[592,"Palmwoods State School","111 Palmwoods-Montville Road","Palmwoods",4555,"111 Palmwoods-Montville Road, Palmwoods, 4555","NCR","State School"]
[3568,"Paluma Environmental Education Centre","53 Mt Spec Road","Paluma",4816,"53 Mt Spec Road, Paluma, 4816","NQR","Outdoor and Environmental Education Centre"]
[3389,"Park Avenue SS - Special Education Program","Farrell Street","Park Avenue",4701,"Farrell Street, Park Avenue, 4701","CQR","Special Education Program"]
[983,"Park Avenue State School","Main Street","Park Avenue",4701,"Main Street, Park Avenue, 4701","CQR","State School"]
[6218,"Park Lake SS - Special Education Program","1 Shoalhaven Avenue","Pacific Pines",4211,"1 Shoalhaven Avenue, Pacific Pines, 4211","SER","Special Education Program"]
[5700,"Park Lake State School","1 Shoalhaven Avenue","Pacific Pines",4211,"1 Shoalhaven Avenue, Pacific Pines, 4211","SER","State School"]
[2296,"Park Ridge SHS - Special Education Program","14-30 Lancewood Street","Park Ridge",4125,"14-30 Lancewood Street, Park Ridge, 4125","SER","Special Education Program"]
[5942,"Park Ridge SS - Special Education Program","3776 Mt Lindesay Highway","Park Ridge",4125,"3776 Mt Lindesay Highway, Park Ridge, 4125","SER","Special Education Program"]
[2187,"Park Ridge State High School","14-30 Lancewood Street","Park Ridge",4125,"14-30 Lancewood Street, Park Ridge, 4125","SER","State High School"]
[515,"Park Ridge State School","3776 Mt Lindesay Highway","Park Ridge",4125,"3776 Mt Lindesay Highway, Park Ridge, 4125","SER","State School"]
[1467,"Parke State School","400 Teddington Road","Tinana South",4650,"400 Teddington Road, Tinana South, 4650","NCR","State School"]
[7932,"Parkhurst SS - Special Education Program","11 Mason Avenue","Parkhurst",4702,"11 Mason Avenue, Parkhurst, 4702","CQR","Special Education Program"]
[922,"Parkhurst State School","11 Mason Avenue","Parkhurst",4702,"11 Mason Avenue, Parkhurst, 4702","CQR","State School"]
[2327,"Parklands Christian College (Park Ridge)","11 Hillcrest Road","Park Ridge",4125,"11 Hillcrest Road, Park Ridge, 4125","SER","Non-State School"]
[3540,"Parramatta SS - Special Education Program","122 Mulgrave Road","Parramatta Park",4870,"122 Mulgrave Road, Parramatta Park, 4870","FNR","Special Education Program"]
[639,"Parramatta State School","122 Mulgrave Road","Parramatta Park",4870,"122 Mulgrave Road, Parramatta Park, 4870","FNR","State School"]
[1486,"Patrick Estate State School","816 Mahon Road","Patrick Estate",4311,"816 Mahon Road, Patrick Estate, 4311","MER","State School"]
[5943,"Patricks Road SS - Special Education Program","Patricks Road","Ferny Hills",4055,"Patricks Road, Ferny Hills, 4055","MER","Special Education Program"]
[1864,"Patricks Road State School","Patricks Road","Ferny Hills",4055,"Patricks Road, Ferny Hills, 4055","MER","State School"]
[5944,"Payne Road SS - Special Education Program","171 Payne Road","The Gap",4061,"171 Payne Road, The Gap, 4061","MER","Special Education Program"]
[286,"Payne Road State School","171 Payne Road","The Gap",4061,"171 Payne Road, The Gap, 4061","MER","State School"]
[5772,"Peace Lutheran College (Kamerunga)","Cowley Street","Kamerunga",4870,"Cowley Street, Kamerunga, 4870","FNR","Non-State School"]
[5762,"Peace Lutheran Primary School (Gatton)","36 East Street","Gatton",4343,"36 East Street, Gatton, 4343","DSR","Non-State School"]
[672,"Peachester State School","966 Peachester Road","Peachester",4519,"966 Peachester Road, Peachester, 4519","NCR","State School"]
["A767","Peak Crossing SS - Special Education Program","Ipswich-Boonah Road","Peak Crossing",4306,"Ipswich-Boonah Road, Peak Crossing, 4306","SER","Special Education Program"]
[86,"Peak Crossing State School","Ipswich-Boonah Road","Peak Crossing",4306,"Ipswich-Boonah Road, Peak Crossing, 4306","SER","State School"]
[467,"Pentland State School","Gilmore Street","Pentland",4816,"Gilmore Street, Pentland, 4816","NQR","State School"]
[2415,"Peregian Beach College (Peregian Beach)","41 Old Emu Mountain Road","Peregian Beach",4573,"41 Old Emu Mountain Road, Peregian Beach, 4573","NCR","Non-State School"]
[7951,"Peregian Springs SS - Special Education Program","191 The Avenue","Peregian Springs",4573,"191 The Avenue, Peregian Springs, 4573","NCR","Special Education Program"]
[1712,"Peregian Springs State School","191 The Avenue","Peregian Springs",4573,"191 The Avenue, Peregian Springs, 4573","NCR","State School"]
[5945,"Petrie SS - Special Education Program","42 Dayboro Road","Petrie",4502,"42 Dayboro Road, Petrie, 4502","NCR","Special Education Program"]
[183,"Petrie State School","42 Dayboro Road","Petrie",4502,"42 Dayboro Road, Petrie, 4502","NCR","State School"]
[3460,"Petrie Terrace SS - Special Education Program","C Block, 40 Moreton Street","Paddington",4064,"C Block, 40 Moreton Street, Paddington, 4064","MER","Special Education Program"]
[80,"Petrie Terrace State School","40 Moreton Street","Paddington",4064,"40 Moreton Street, Paddington, 4064","MER","State School"]
[3458,"Pialba SS - Special Education Program","Alice Street","Pialba",4655,"Alice Street, Pialba, 4655","NCR","Special Education Program"]
[419,"Pialba State School","Alice Street","Pialba",4655,"Alice Street, Pialba, 4655","NCR","State School"]
["A635","Picnic Creek SS - Special Education Program","25 Edwardson Drive","Coomera",4209,"25 Edwardson Drive, Coomera, 4209","SER","Special Education Program"]
[9315,"Picnic Creek State School","25 Edwardson Drive","Coomera",4209,"25 Edwardson Drive, Coomera, 4209","SER","State School"]
[422,"Pilton State School","24 Pilton Valley Road","Pilton",4361,"24 Pilton Valley Road, Pilton, 4361","DSR","State School"]
[5992,"Pimlico SHS - Special Education Program","Pimlico State High School, Fulham Road","Gulliver",4812,"Pimlico State High School, Fulham Road, Gulliver, 4812","NQR","Special Education Program"]
[2049,"Pimlico State High School","Fulham Road","Gulliver",4812,"Fulham Road, Gulliver, 4812","NQR","State High School"]
[6219,"Pimpama SS - Special Education Program","9 Hotham Creek Road North","Pimpama",4209,"9 Hotham Creek Road North, Pimpama, 4209","SER","Special Education Program"]
[9938,"Pimpama SSC - Special Education Program","Dixon Drive","Pimpama",4209,"Dixon Drive, Pimpama, 4209","SER","Special Education Program"]
["A001","Pimpama State Prim College - Special Education Program","Cunningham Drive North","Pimpama",4209,"Cunningham Drive North, Pimpama, 4209","SER","Special Education Program"]
[9331,"Pimpama State Primary College","Cunningham Drive North","Pimpama",4209,"Cunningham Drive North, Pimpama, 4209","SER","State School"]
[81,"Pimpama State School","9 Hotham Creek Road North","Pimpama",4209,"9 Hotham Creek Road North, Pimpama, 4209","SER","State School"]
[8044,"Pimpama State Secondary College","Dixon Drive","Pimpama",4209,"Dixon Drive, Pimpama, 4209","SER","State High School"]
[1408,"Pindi Pindi State School","5923 Bruce Highway","Pindi Pindi",4798,"5923 Bruce Highway, Pindi Pindi, 4798","CQR","State School"]
[5793,"Pine Community School (Arana Hills)","123 Bunya Road","Arana Hills",4054,"123 Bunya Road, Arana Hills, 4054","MER","Non-State School"]
[513,"Pine Rivers SHS - Special Education Program","Gympie Road","Strathpine",4500,"Gympie Road, Strathpine, 4500","NCR","Special Education Program"]
[3365,"Pine Rivers SPEC S - Early Childhood Development Program","10 Lawnton Pocket Road","Lawnton",4501,"10 Lawnton Pocket Road, Lawnton, 4501","NCR","Special Education Program"]
[3011,"Pine Rivers Special School","10 Lawnton Pocket Road","Lawnton",4501,"10 Lawnton Pocket Road, Lawnton, 4501","NCR","Special School"]
[2102,"Pine Rivers State High School","Gympie Road","Strathpine",4500,"Gympie Road, Strathpine, 4500","NCR","State High School"]
["A922","Pinnacle Academic College (Distance)","10 Narangba Road","Kallangur",4503,"10 Narangba Road, Kallangur, 4503","NCR","Non State School Distance Education"]
["A909","Pinnacle Academic College (Kallangur)","10 Narangba Road","Kallangur",4503,"10 Narangba Road, Kallangur, 4503","NCR","Non-State School"]
[1141,"Pinnacle State School","Pinnacle Street","Pinnacle",4741,"Pinnacle Street, Pinnacle, 4741","CQR","State School"]
[543,"Pioneer SHS - Special Education Program","Bedford Road","Andergrove",4740,"Bedford Road, Andergrove, 4740","CQR","Special Education Program"]
[2168,"Pioneer State High School","Bedford Road","Andergrove",4740,"Bedford Road, Andergrove, 4740","CQR","State High School"]
[5714,"Pioneer Valley Cluster Special Education Program","137 Anzac Avenue","Marian",4753,"137 Anzac Avenue, Marian, 4753","CQR","Special Education Program"]
[5664,"Pittsworth SHS - Special Education Program","c/- Pittsworth SHS, Factory Street","Pittsworth",4356,"c/- Pittsworth SHS, Factory Street, Pittsworth, 4356","DSR","Special Education Program"]
[2119,"Pittsworth State High School","Factory Street","Pittsworth",4356,"Factory Street, Pittsworth, 4356","DSR","State High School"]
[373,"Pittsworth State School","Hume Street","Pittsworth",4356,"Hume Street, Pittsworth, 4356","DSR","State School"]
[2283,"PLACE","Wembley Road","Logan Central",4114,"Wembley Road, Logan Central, 4114","SER","Positive Learning Centre"]
[720,"Pomona State School","74 Station Street","Pomona",4568,"74 Station Street, Pomona, 4568","NCR","State School"]
["A074","Pormpuraaw SS - Special Education Program","Pormpuraaw Street","Pormpuraaw",4892,"Pormpuraaw Street, Pormpuraaw, 4892","FNR","Special Education Program"]
[457,"Pormpuraaw State School","Pormpuraaw Street","Pormpuraaw",4892,"Pormpuraaw Street, Pormpuraaw, 4892","FNR","State School"]
[208,"Port Curtis Road State School","Port Curtis Road","Port Curtis",4700,"Port Curtis Road, Port Curtis, 4700","CQR","State School"]
[1979,"Port Douglas State School","Endeavour Street","Port Douglas",4877,"Endeavour Street, Port Douglas, 4877","FNR","State School"]
[2285,"POWER Positive Learning Centre","Sheaves Road","Kallangur",4503,"Sheaves Road, Kallangur, 4503","NCR","Positive Learning Centre"]
[1704,"Pozieres State School","Pozieres School Road","Pozieres",4352,"Pozieres School Road, Pozieres, 4352","DSR","State School"]
[488,"Prairie State School","Savage Street","Prairie",4816,"Savage Street, Prairie, 4816","NQR","State School"]
[238,"Prenzlau State School","357 Prenzlau Road","Prenzlau",4311,"357 Prenzlau Road, Prenzlau, 4311","MER","State School"]
[5757,"Prince of Peace Lutheran College (Henderson Rd, Everton Hills)","25 Henderson Road","Everton Hills",4053,"25 Henderson Road, Everton Hills, 4053","MER","Associated Facility"]
[5767,"Prince of Peace Lutheran College (Rogers Pde West, Everton Hills)","20 Rogers Parade West","Everton Park",4053,"20 Rogers Parade West, Everton Park, 4053","MER","Non-State School"]
[5545,"Proserpine SHS - Special Education Program","4 Ruge Street","Proserpine",4800,"4 Ruge Street, Proserpine, 4800","NQR","Special Education Program"]
[3407,"Proserpine SS - Special Education Program","33 Renwick Road","Proserpine",4800,"33 Renwick Road, Proserpine, 4800","NQR","Special Education Program"]
[2090,"Proserpine State High School","4 Ruge Street","Proserpine",4800,"4 Ruge Street, Proserpine, 4800","NQR","State High School"]
[779,"Proserpine State School","33 Renwick Road","Proserpine",4800,"33 Renwick Road, Proserpine, 4800","NQR","State School"]
[1655,"Prospect Creek State School","12935 Dawson Highway","Prospect",4715,"12935 Dawson Highway, Prospect, 4715","CQR","State School"]
[1155,"Proston State School","94 Rodney Street","Proston",4613,"94 Rodney Street, Proston, 4613","DSR","State School"]
[3565,"Pullenvale Environmental Education Centre","250 Grandview Road","Pullenvale",4069,"250 Grandview Road, Pullenvale, 4069","MER","Outdoor and Environmental Education Centre"]
["A772","Pullenvale SS - Special Education Program","120 Grandview Road","Pullenvale",4069,"120 Grandview Road, Pullenvale, 4069","MER","Special Education Program"]
[140,"Pullenvale State School","120 Grandview Road","Pullenvale",4069,"120 Grandview Road, Pullenvale, 4069","MER","State School"]
["A075","Pumicestone SS - Special Education Program","75 Cottrill Road","Caboolture",4510,"75 Cottrill Road, Caboolture, 4510","NCR","Special Education Program"]
[9324,"Pumicestone State School","75 Cottrill Road","Caboolture",4510,"75 Cottrill Road, Caboolture, 4510","NCR","State School"]
["A829","QCHS - Adolescent Extended Treatment Centre","78 Farnell Street","Chermside",4032,"78 Farnell Street, Chermside, 4032","MER","Support Unit (Other)"]
[3100,"QCHS - Royal Brisbane and ACT for Kids Campus","Level 1 Woolworths Medical Building, Corner Herston Road & Bramston Terrace","Royal Brisbane Hospital",4029,"Level 1 Woolworths Medical Building, Corner Herston Road & Bramston Terrace, Royal Brisbane Hospital, 4029","MER","Campus"]
[2483,"Queen of Apostles Primary School (Chuter St, Stafford)","46 Chuter Street","Stafford",4053,"46 Chuter Street, Stafford, 4053","MER","Associated Facility"]
[5038,"Queen of Apostles Primary School (Thuruna St, Stafford)","10 Thuruna Street","Stafford",4053,"10 Thuruna Street, Stafford, 4053","MER","Non-State School"]
[1194,"Queens Beach State School","39 Tracey Street","Bowen",4805,"39 Tracey Street, Bowen, 4805","NQR","State School"]
[5685,"Queensland Academy for Creative Industries","61 - 73 Musk Avenue","Kelvin Grove",4059,"61 - 73 Musk Avenue, Kelvin Grove, 4059","MER","State High School"]
[5727,"Queensland Academy for Health Sciences","102 Edmund Rice Drive","Southport",4215,"102 Edmund Rice Drive, Southport, 4215","SER","State High School"]
[5684,"Queensland Academy for Science Mathematics and Technology","78 Bywong Street","Toowong",4066,"78 Bywong Street, Toowong, 4066","MER","State High School"]
[3102,"Queensland Children's Hospital School","Level 8 Children's Hospital, Raymond Terrace","South Brisbane",4101,"Level 8 Children's Hospital, Raymond Terrace, South Brisbane, 4101","MER","Specific Purpose School"]
[5641,"Queensland College of Wine Tourism","c/- Stanthorpe SHS, 2 McGlew Street","Stanthorpe",4380,"c/- Stanthorpe SHS, 2 McGlew Street, Stanthorpe, 4380","DSR","Support Unit (Other)"]
[3036,"Queensland Pathways State College","347 Old Cleveland Road","Coorparoo",4151,"347 Old Cleveland Road, Coorparoo, 4151","MER","State High School"]
["A085","Queensland Pathways State College - Bracken Ridge Campus","157 Norris Road","Bracken Ridge",4017,"157 Norris Road, Bracken Ridge, 4017","MER","Campus"]
["A070","Queensland Pathways State College - Bundamba Campus","Cnr Mary & Byrne Streets","Bundamba",4304,"Cnr Mary & Byrne Streets, Bundamba, 4304","MER","Campus"]
[9956,"Queensland Pathways State College - Goodna Campus","45 Queen Street","Goodna",4300,"45 Queen Street, Goodna, 4300","MER","Campus"]
["A653","Queensland Pathways State College - Inner City Campus","347 Old Cleveland Road","Coorparoo",4151,"347 Old Cleveland Road, Coorparoo, 4151","MER","Campus"]
[9199,"Queensland Pathways State College - Mt Gravatt Campus","1030 Cavendish Road","Mount Gravatt East",4122,"1030 Cavendish Road, Mount Gravatt East, 4122","MER","Campus"]
["A104","Queensland Pathways State College - Townsville Campus","H Block, TAFE Queensland North, Desailly Street","Gulliver",4812,"H Block, TAFE Queensland North, Desailly Street, Gulliver, 4812","NQR","Campus"]
[1594,"Quilpie State College","Cnr Chulungra & Boonkai Streets","Quilpie",4480,"Cnr Chulungra & Boonkai Streets, Quilpie, 4480","DSR","State School"]
[6222,"Quilpie State College - Early Childhood Development Program","Cnr Chulungra & Boonkai Streets","Quilpie",4480,"Cnr Chulungra & Boonkai Streets, Quilpie, 4480","DSR","Special Education Program"]
[958,"Quinalow Prep-10 State School","7 Progress Street","Quinalow",4403,"7 Progress Street, Quinalow, 4403","DSR","State School"]
[5993,"Raceview SS - Special Education Program","c/- Raceview State School, 96 Wildey Street","Raceview",4305,"c/- Raceview State School, 96 Wildey Street, Raceview, 4305","MER","Special Education Program"]
[975,"Raceview State School","96 Wildey Street","Raceview",4305,"96 Wildey Street, Raceview, 4305","MER","State School"]
[5970,"Radiant Life College (East Innisfail)","1 Riley Street","East Innisfail",4860,"1 Riley Street, East Innisfail, 4860","FNR","Non-State School"]
[1530,"Railway Estate State School","39 Railway Avenue","Railway Estate",4810,"39 Railway Avenue, Railway Estate, 4810","NQR","State School"]
[1955,"Rainbow Beach State School","Warooga Road","Rainbow Beach",4581,"Warooga Road, Rainbow Beach, 4581","NCR","State School"]
[1491,"Rainworth State School","185 Boundary Road","Bardon",4065,"185 Boundary Road, Bardon, 4065","MER","State School"]
[29,"Ramsay State School","173 Ramsay School Road","Ramsay",4358,"173 Ramsay School Road, Ramsay, 4358","DSR","State School"]
[5285,"Rangeville SS - Special Education Program","32A High Street","Rangeville",4350,"32A High Street, Rangeville, 4350","DSR","Special Education Program"]
[1174,"Rangeville State School","32A High Street","Rangeville",4350,"32A High Street, Rangeville, 4350","DSR","State School"]
[3286,"Rasmussen SS - Special Education Program","Allambie Lane","Rasmussen",4815,"Allambie Lane, Rasmussen, 4815","NQR","Special Education Program"]
[1870,"Rasmussen State School","Allambie Lane","Rasmussen",4815,"Allambie Lane, Rasmussen, 4815","NQR","State School"]
[1332,"Rathdowney State School","Mount Lindesay Highway","Rathdowney",4287,"Mount Lindesay Highway, Rathdowney, 4287","SER","State School"]
[5548,"Ravenshoe Cluster Special Education Program","Moore Street","Ravenshoe",4888,"Moore Street, Ravenshoe, 4888","FNR","Special Education Program"]
[1315,"Ravenshoe State School","Moore Street","Ravenshoe",4888,"Moore Street, Ravenshoe, 4888","FNR","State School"]
[6147,"Ravenshoe State School - Junior Campus","Ascham Street","Ravenshoe",4888,"Ascham Street, Ravenshoe, 4888","FNR","Campus"]
[6148,"Ravenshoe State School - Senior Campus","Moore Street","Ravenshoe",4888,"Moore Street, Ravenshoe, 4888","FNR","Campus"]
[141,"Ravenswood State School","School Street","Ravenswood",4816,"School Street, Ravenswood, 4816","NQR","State School"]
[2316,"Red Hill SPEC S - Early Childhood Development Program","72 Waterworks Road","Red Hill",4059,"72 Waterworks Road, Red Hill, 4059","MER","Special Education Program"]
[3085,"Red Hill Special School","72 Waterworks Road","Red Hill",4059,"72 Waterworks Road, Red Hill, 4059","MER","Special School"]
["A652","Red Hill Special School - Ithaca Campus","1 Block 1, 109 Fulcher Road","Red Hill",4059,"1 Block 1, 109 Fulcher Road, Red Hill, 4059","MER","Campus"]
[2191,"Redbank Plains SHS - Special Education Program","c/- Redbank Plains SHS, Willow Road","Redbank Plains",4301,"c/- Redbank Plains SHS, Willow Road, Redbank Plains, 4301","MER","Special Education Program"]
[2202,"Redbank Plains SS - Special Education Program","39-53 School Road","Redbank Plains",4301,"39-53 School Road, Redbank Plains, 4301","MER","Special Education Program"]
[2174,"Redbank Plains State High School","Willow Road","Redbank Plains",4301,"Willow Road, Redbank Plains, 4301","MER","State High School"]
[88,"Redbank Plains State School","39-53 School Road","Redbank Plains",4301,"39-53 School Road, Redbank Plains, 4301","MER","State School"]
[719,"Redbank State School","9 Brisbane Road","Redbank",4301,"9 Brisbane Road, Redbank, 4301","MER","State School"]
[2254,"Redcliffe SHS - Special Education Program","Cnr Klingner Road & Oxley Avenue","Redcliffe",4020,"Cnr Klingner Road & Oxley Avenue, Redcliffe, 4020","NCR","Special Education Program"]
[3009,"Redcliffe Special School","Klingner Road","Redcliffe",4020,"Klingner Road, Redcliffe, 4020","NCR","Special School"]
[2045,"Redcliffe State High School","55 Klingner Road","Redcliffe",4020,"55 Klingner Road, Redcliffe, 4020","NCR","State High School"]
[5781,"Redeemer Lutheran College (Rochedale)","745 Rochedale Road","Rochedale",4123,"745 Rochedale Road, Rochedale, 4123","MER","Non-State School"]
[5765,"Redeemer Lutheran College, Biloela (Biloela)","2 Collard Street","Biloela",4715,"2 Collard Street, Biloela, 4715","CQR","Non-State School"]
[5994,"Redland Bay SS - Special Education Program","c/- Redland Bay State School, Gordon Road","Redland Bay",4165,"c/- Redland Bay State School, Gordon Road, Redland Bay, 4165","SER","Special Education Program"]
[229,"Redland Bay State School","Gordon Road","Redland Bay",4165,"Gordon Road, Redland Bay, 4165","SER","State School"]
[3387,"Redland District SPEC S - Early Childhood Development Program","Redland Early Childhood Dev Un, 51-53 Panorama Drive","Thornlands",4164,"Redland Early Childhood Dev Un, 51-53 Panorama Drive, Thornlands, 4164","SER","Special Education Program"]
[3033,"Redland District Special School","51-53 Panorama Drive","Thornlands",4164,"51-53 Panorama Drive, Thornlands, 4164","SER","Special School"]
[5801,"Redlands College (Wellington Point)","38 Anson Road","Wellington Point",4160,"38 Anson Road, Wellington Point, 4160","SER","Non-State School"]
[1336,"Redlynch State College","Jungara Road","Redlynch",4870,"Jungara Road, Redlynch, 4870","FNR","State School"]
[3265,"Redlynch State College - Special Education Program","Jungara Road","Redlynch",4870,"Jungara Road, Redlynch, 4870","FNR","Special Education Program"]
[9948,"Redwood College (Burpengary)","6 Gleeson Road","Burpengary",4505,"6 Gleeson Road, Burpengary, 4505","NCR","Non-State School"]
["A663","Redwood College (Distance)","6 Gleeson Road","Burpengary",4505,"6 Gleeson Road, Burpengary, 4505","NCR","Non State School Distance Education"]
[3287,"Regents Park SS - Special Education Program","Emerald Drive","Regents Park",4118,"Emerald Drive, Regents Park, 4118","SER","Special Education Program"]
[1996,"Regents Park State School","Emerald Drive","Regents Park",4118,"Emerald Drive, Regents Park, 4118","SER","State School"]
["A808","Remote Area Teaching Education Program (RATEP)","13-15 Taylor Street","Toowoomba",4350,"13-15 Taylor Street, Toowoomba, 4350","DSR","Support Unit (Other)"]
["A078","Richlands East SS - Special Education Program","99 Poinsettia Street","Inala",4077,"99 Poinsettia Street, Inala, 4077","MER","Special Education Program"]
[721,"Richlands East State School","99 Poinsettia Street","Inala",4077,"99 Poinsettia Street, Inala, 4077","MER","State School"]
[733,"Richmond Hill State School","Cnr Baker & Burdekin Streets","Richmond Hill",4820,"Cnr Baker & Burdekin Streets, Richmond Hill, 4820","NQR","State School"]
[576,"Richmond State School","88 Crawford Street","Richmond",4822,"88 Crawford Street, Richmond, 4822","NQR","State School"]
[1489,"Ridgelands State School","43 Dalma-Ridgelands Road","Ridgelands",4702,"43 Dalma-Ridgelands Road, Ridgelands, 4702","CQR","State School"]
["A863","Ripley Valley SS - Special Education Program","110 Botany Drive","South Ripley",4306,"110 Botany Drive, South Ripley, 4306","MER","Special Education Program"]
["A883","Ripley Valley SSC - Special Education Program","18 Parkway Avenue","Ripley Valley ",4306,"18 Parkway Avenue, Ripley Valley , 4306","MER","Special Education Program"]
["A790","Ripley Valley State School","110 Botany Drive","South Ripley",4306,"110 Botany Drive, South Ripley, 4306","MER","State School"]
["A797","Ripley Valley State Secondary College","18 Parkway Avenue","Ripley Valley",4306,"18 Parkway Avenue, Ripley Valley, 4306","MER","State High School"]
[5593,"Rivermount College (Yatala)","Rivermount Drive","Yatala",4207,"Rivermount Drive, Yatala, 4207","SER","Non-State School"]
[5487,"Riverside Adventist Christian School (Aitkenvale)","59 Leopold Street","Aitkenvale",4814,"59 Leopold Street, Aitkenvale, 4814","NQR","Non-State School"]
[5696,"Riverside Christian College (Distance)","23 Royle Street","Maryborough",4650,"23 Royle Street, Maryborough, 4650","NCR","Non State School Distance Education"]
[5860,"Riverside Christian College (Maryborough)","23 Royle Street","Maryborough",4650,"23 Royle Street, Maryborough, 4650","NCR","Non-State School"]
[6591,"Riverview SS - Special Education Program","131 Old Ipswich Road","Riverview",4303,"131 Old Ipswich Road, Riverview, 4303","MER","Special Education Program"]
[1865,"Riverview State School","131 Old Ipswich Road","Riverview",4303,"131 Old Ipswich Road, Riverview, 4303","MER","State School"]
[582,"Roadvale State School","111 Roadvale Road","Roadvale",4310,"111 Roadvale Road, Roadvale, 4310","SER","State School"]
[6225,"Robertson SS - Special Education Program","688 Musgrave Road","Robertson",4109,"688 Musgrave Road, Robertson, 4109","MER","Special Education Program"]
[1899,"Robertson State School","688 Musgrave Road","Robertson",4109,"688 Musgrave Road, Robertson, 4109","MER","State School"]
["A830","Robina Hospital Day Program Class","Robina Hospital, 2 Bayberry Lane","Robina",4226,"Robina Hospital, 2 Bayberry Lane, Robina, 4226","SER","Support Unit (Other)"]
[8084,"Robina Hospital Inpatient Unit Class","Robina Hospital, 2 Bayberry Lane","Robina",4226,"Robina Hospital, 2 Bayberry Lane, Robina, 4226","SER","Support Unit (Other)"]
[5946,"Robina SHS - Special Education Program","Investigator Drive","Robina",4226,"Investigator Drive, Robina, 4226","SER","Special Education Program"]
[5947,"Robina SS - Special Education Program","Killarney Avenue","Robina",4226,"Killarney Avenue, Robina, 4226","SER","Special Education Program"]
[195,"Robina State High School","Investigator Drive","Robina",4226,"Investigator Drive, Robina, 4226","SER","State High School"]
[1982,"Robina State School","Killarney Avenue","Robina",4226,"Killarney Avenue, Robina, 4226","SER","State School"]
[5948,"Rochedale SHS - Special Education Program","249 Priestdale Road","Rochedale",4123,"249 Priestdale Road, Rochedale, 4123","MER","Special Education Program"]
[5949,"Rochedale South SS - Special Education Program","Wendron Street","Rochedale South",4123,"Wendron Street, Rochedale South, 4123","SER","Special Education Program"]
[1886,"Rochedale South State School","Wendron Street","Rochedale South",4123,"Wendron Street, Rochedale South, 4123","SER","State School"]
[5950,"Rochedale SS - Special Education Program","694 Rochedale Road","Rochedale",4123,"694 Rochedale Road, Rochedale, 4123","MER","Special Education Program"]
[2158,"Rochedale State High School","249 Priestdale Road","Rochedale",4123,"249 Priestdale Road, Rochedale, 4123","MER","State High School"]
[1638,"Rochedale State School","694 Rochedale Road","Rochedale",4123,"694 Rochedale Road, Rochedale, 4123","MER","State School"]
[9803,"Rockhampton Flexible Learning Centre (Rockhampton)","210 Upper Dawson Road","Rockhampton",4700,"210 Upper Dawson Road, Rockhampton, 4700","CQR","Non-State School"]
[5505,"Rockhampton Girls Grammar School (Rockhampton)","Cnr Denham and Agnes Streets","Rockhampton",4700,"Cnr Denham and Agnes Streets, Rockhampton, 4700","CQR","Non-State School"]
["A801","Rockhampton Hospital Class","Rockhampton Hospital, Canning Street","Rockhampton",4700,"Rockhampton Hospital, Canning Street, Rockhampton, 4700","CQR","Support Unit (Other)"]
[9713,"Rockhampton Intensive English Centre","241-259 Farm Street","Kawana",4701,"241-259 Farm Street, Kawana, 4701","CQR","Intensive English Centre"]
[3038,"Rockhampton North Special School","353-359 Dean Street","Frenchville",4701,"353-359 Dean Street, Frenchville, 4701","CQR","Special School"]
[5721,"Rockhampton Positive Learning Centre","The Hall State School, Murray Street","Wandal",4700,"The Hall State School, Murray Street, Wandal, 4700","CQR","Positive Learning Centre"]
[2195,"Rockhampton SHS - Special Education Program","Rockhampton SHS, Campbell Street","Wandal",4700,"Rockhampton SHS, Campbell Street, Wandal, 4700","CQR","Special Education Program"]
[3010,"Rockhampton Special School","91 - 115 William Street","Rockhampton",4700,"91 - 115 William Street, Rockhampton, 4700","CQR","Special School"]
[2011,"Rockhampton State High School","Campbell Street","Wandal",4700,"Campbell Street, Wandal, 4700","CQR","State High School"]
[454,"Rocklea State School","19 Elmes Road","Rocklea",4106,"19 Elmes Road, Rocklea, 4106","MER","State School"]
[9719,"Rockville SS - Special Education Program","3 Holberton Street","Rockville",4350,"3 Holberton Street, Rockville, 4350","DSR","Special Education Program"]
[1786,"Rockville State School","3 Holberton Street","Rockville",4350,"3 Holberton Street, Rockville, 4350","DSR","State School"]
[92,"Rolleston State School","16 Warrijo Street","Rolleston",4702,"16 Warrijo Street, Rolleston, 4702","CQR","State School"]
[1325,"Rollingstone State School","Fred Williams Drive","Rollingstone",4816,"Fred Williams Drive, Rollingstone, 4816","NQR","State School"]
[5666,"Roma State College","Cottell Street","Roma",4455,"Cottell Street, Roma, 4455","DSR","State School"]
[144,"Roma State College - Junior Campus","28 Bowen Street","Roma",4455,"28 Bowen Street, Roma, 4455","DSR","Campus"]
[1973,"Roma State College - Middle Campus","Cottell Street","Roma",4455,"Cottell Street, Roma, 4455","DSR","Campus"]
[5668,"Roma State College - Senior Campus","Timbury Street","Roma",4455,"Timbury Street, Roma, 4455","DSR","Campus"]
[321,"Roma State College - Special Education Program","Cottell Street","Roma",4455,"Cottell Street, Roma, 4455","DSR","Special Education Program"]
[613,"Ropeley State School","4 Hoger Road","Ropeley",4343,"4 Hoger Road, Ropeley, 4343","DSR","State School"]
[5951,"Rosedale SS - Special Education Program","21 James Street","Rosedale",4674,"21 James Street, Rosedale, 4674","NCR","Special Education Program"]
[759,"Rosedale State School","21 James Street","Rosedale",4674,"21 James Street, Rosedale, 4674","NCR","State School"]
[3002,"Rosella Park School","20 Park Street","West Gladstone",4680,"20 Park Street, West Gladstone, 4680","CQR","Special School"]
[5549,"Rosewood SHS - Special Education Program","46 Lanefield Road","Rosewood",4340,"46 Lanefield Road, Rosewood, 4340","MER","Special Education Program"]
[2151,"Rosewood State High School","46 Lanefield Road","Rosewood",4340,"46 Lanefield Road, Rosewood, 4340","MER","State High School"]
[131,"Rosewood State School","School Street","Rosewood",4340,"School Street, Rosewood, 4340","MER","State School"]
[1977,"Rossville State School","Angus Gully Road","Rossville",4895,"Angus Gully Road, Rossville, 4895","FNR","State School"]
[7192,"Runaway Bay Sport and Leadership Excellence Centre","Cnr Sports Drive & Morala Ave","Runaway Bay",4216,"Cnr Sports Drive & Morala Ave, Runaway Bay, 4216","SER","Sport Education Centre"]
[5952,"Runcorn Heights SS - Special Education Program","200 Nemies Road","Runcorn",4113,"200 Nemies Road, Runcorn, 4113","MER","Special Education Program"]
[472,"Runcorn Heights State School","200 Nemies Road","Runcorn",4113,"200 Nemies Road, Runcorn, 4113","MER","State School"]
[3227,"Runcorn SHS - Special Education Program","132 Hill Road","Runcorn",4113,"132 Hill Road, Runcorn, 4113","MER","Special Education Program"]
[2297,"Runcorn SS - Special Education Program","646 Beenleigh Road","Sunnybank",4109,"646 Beenleigh Road, Sunnybank, 4109","MER","Special Education Program"]
[2167,"Runcorn State High School","132 Hill Road","Runcorn",4113,"132 Hill Road, Runcorn, 4113","MER","State High School"]
[968,"Runcorn State School","646 Beenleigh Road","Sunnybank",4109,"646 Beenleigh Road, Sunnybank, 4109","MER","State School"]
[6227,"Russell Island SS - Special Education Program","38-64 High Street","Russell Island",4184,"38-64 High Street, Russell Island, 4184","SER","Special Education Program"]
[1488,"Russell Island State School","38-64 High Street","Russell Island",4184,"38-64 High Street, Russell Island, 4184","SER","State School"]
[5331,"Ryan Catholic College (Kirwan)","59 Canterbury Road","Kirwan",4817,"59 Canterbury Road, Kirwan, 4817","NQR","Non-State School"]
[5196,"Sacred Heart Catholic Primary School (Yeppoon)","14 Barracuda Crescent","Yeppoon",4703,"14 Barracuda Crescent, Yeppoon, 4703","CQR","Non-State School"]
[5158,"Sacred Heart Primary School (Cunnamulla)","46 John Street","Cunnamulla",4490,"46 John Street, Cunnamulla, 4490","DSR","Non-State School"]
[5044,"Sacred Heart Primary School (Sandgate)","92 Brighton Road","Sandgate",4017,"92 Brighton Road, Sandgate, 4017","MER","Non-State School"]
[5159,"Sacred Heart Primary School (Toowoomba)","263 Tor Street","Toowoomba",4350,"263 Tor Street, Toowoomba, 4350","DSR","Non-State School"]
[5042,"Sacred Heart School (Booval)","25 Cothill Road","Booval",4304,"25 Cothill Road, Booval, 4304","MER","Non-State School"]
[5387,"Saint Mary's Catholic College (Kingaroy)","10 Kent Street","Kingaroy",4610,"10 Kent Street, Kingaroy, 4610","DSR","Non-State School"]
[268,"Saint Stephen's College (Coomera)","31 Reserve Road","Coomera",4209,"31 Reserve Road, Coomera, 4209","SER","Non-State School"]
["A773","Salisbury SS - Special Education Program","19 Cripps Street","Salisbury",4107,"19 Cripps Street, Salisbury, 4107","MER","Special Education Program"]
[1690,"Salisbury State School","19 Cripps Street","Salisbury",4107,"19 Cripps Street, Salisbury, 4107","MER","State School"]
[5953,"Samford SS - Special Education Program","School Road","Samford Village",4520,"School Road, Samford Village, 4520","MER","Special Education Program"]
[94,"Samford State School","School Road","Samford Village",4520,"School Road, Samford Village, 4520","MER","State School"]
[5816,"Samford Valley Steiner School (Wights Mountain)","Narrawa Drive","Wights Mountain",4520,"Narrawa Drive, Wights Mountain, 4520","MER","Non-State School"]
[5359,"San Sisto College (Carina)","97 Mayfield Road","Carina",4152,"97 Mayfield Road, Carina, 4152","MER","Non-State School"]
[2047,"Sandgate District State High School","41 Braun Street","Deagon",4017,"41 Braun Street, Deagon, 4017","MER","State High School"]
[323,"Sandgate SHS - Special Education Program","41 Braun Street","Deagon",4017,"41 Braun Street, Deagon, 4017","MER","Special Education Program"]
[5954,"Sandgate SS - Special Education Program","54 Rainbow Street","Sandgate",4017,"54 Rainbow Street, Sandgate, 4017","MER","Special Education Program"]
[153,"Sandgate State School","54 Rainbow Street","Sandgate",4017,"54 Rainbow Street, Sandgate, 4017","MER","State School"]
[5658,"Sandy Strait SS - Special Education Program","c/- Sandy Strait SS, Robert Street","Urangan",4655,"c/- Sandy Strait SS, Robert Street, Urangan, 4655","NCR","Special Education Program"]
[1754,"Sandy Strait State School","Robert Street","Urangan",4655,"Robert Street, Urangan, 4655","NCR","State School"]
[5955,"Sarina SHS - Special Education Program","Anzac Street","Sarina",4737,"Anzac Street, Sarina, 4737","CQR","Special Education Program"]
[3411,"Sarina SS - Special Education Program","Broad Street","Sarina",4737,"Broad Street, Sarina, 4737","CQR","Special Education Program"]
[2101,"Sarina State High School","Anzac Street","Sarina",4737,"Anzac Street, Sarina, 4737","CQR","State High School"]
[546,"Sarina State School","Broad Street","Sarina",4737,"Broad Street, Sarina, 4737","CQR","State School"]
[2398,"Scarborough SS - Special Education Program","Eversleigh Road","Scarborough",4020,"Eversleigh Road, Scarborough, 4020","NCR","Special Education Program"]
[1560,"Scarborough State School","Eversleigh Road","Scarborough",4020,"Eversleigh Road, Scarborough, 4020","NCR","State School"]
[1632,"School and Family Support Team","Aviation High School, Widdop Street","Hendra",4011,"Aviation High School, Widdop Street, Hendra, 4011","MER","Support Unit (Other)"]
[475,"Scottville State School","21 Eleventh Avenue","Scottville",4804,"21 Eleventh Avenue, Scottville, 4804","NQR","State School"]
["A005","Seaforth SS - Special Education Program","2092 Seaforth Road","Seaforth",4741,"2092 Seaforth Road, Seaforth, 4741","CQR","Special Education Program"]
[1479,"Seaforth State School","2092 Seaforth Road","Seaforth",4741,"2092 Seaforth Road, Seaforth, 4741","CQR","State School"]
[5956,"Serviceton South SS - Special Education Program","59 Lorikeet Street","Inala",4077,"59 Lorikeet Street, Inala, 4077","MER","Special Education Program"]
[590,"Serviceton South State School","59 Lorikeet Street","Inala",4077,"59 Lorikeet Street, Inala, 4077","MER","State School"]
[5360,"Seton College (Mount Gravatt East)","1148 Cavendish Road","Mount Gravatt East",4122,"1148 Cavendish Road, Mount Gravatt East, 4122","MER","Non-State School"]
["A079","Seven Hills SS - Special Education Program","152 D'Arcy Road","Seven Hills",4170,"152 D'Arcy Road, Seven Hills, 4170","MER","Special Education Program"]
[1026,"Seven Hills State School","152 D'Arcy Road","Seven Hills",4170,"152 D'Arcy Road, Seven Hills, 4170","MER","State School"]
[1007,"Severnlea State School","14 Turner Road","Severnlea",4380,"14 Turner Road, Severnlea, 4380","DSR","State School"]
[5261,"Seville Road SS - Special Education Program","Cnr Oates Avenue & Roscoe Street","Holland Park",4121,"Cnr Oates Avenue & Roscoe Street, Holland Park, 4121","MER","Special Education Program"]
[1131,"Seville Road State School","Cnr Oates Avenue & Roscoe Street","Holland Park",4121,"Cnr Oates Avenue & Roscoe Street, Holland Park, 4121","MER","State School"]
[5230,"Shailer Park SHS - Special Education Program","Leaf Street","Shailer Park",4128,"Leaf Street, Shailer Park, 4128","SER","Special Education Program"]
[5234,"Shailer Park SS - Special Education Program","Bulwarna Street","Shailer Park",4128,"Bulwarna Street, Shailer Park, 4128","SER","Special Education Program"]
[2149,"Shailer Park State High School","Leaf Street","Shailer Park",4128,"Leaf Street, Shailer Park, 4128","SER","State High School"]
[1916,"Shailer Park State School","Bulwarna Street","Shailer Park",4128,"Bulwarna Street, Shailer Park, 4128","SER","State School"]
["A683","Shalom Christian College Condon Campus (Condon)","190 Hervey Range Road","Condon",4815,"190 Hervey Range Road, Condon, 4815","NQR","Non-State School"]
[5406,"Shalom College (Bundaberg)","9 Fitzgerald Street","Bundaberg",4670,"9 Fitzgerald Street, Bundaberg, 4670","NCR","Non-State School"]
[400,"Sharon State School","18 Sharon School Road","Sharon",4670,"18 Sharon School Road, Sharon, 4670","NCR","State School"]
[597,"Sheldon College (Sheldon)","43 - 77 Taylor Road","Sheldon",4157,"43 - 77 Taylor Road, Sheldon, 4157","SER","Non-State School"]
[78,"Sherwood State School","464 Oxley Road","Sherwood",4075,"464 Oxley Road, Sherwood, 4075","MER","State School"]
[1623,"Shorncliffe State School","Yundah Street","Shorncliffe",4017,"Yundah Street, Shorncliffe, 4017","MER","State School"]
[480,"Siena Catholic College (Sippy Downs)","60 Sippy Downs Drive","Sippy Downs",4556,"60 Sippy Downs Drive, Sippy Downs, 4556","NCR","Non-State School"]
[2359,"Siena Catholic Primary School (Sippy Downs)","58 Sippy Downs Drive","Sippy Downs",4556,"58 Sippy Downs Drive, Sippy Downs, 4556","NCR","Non-State School"]
[2246,"Silkstone SS - Special Education Program","Prospect Street","Silkstone",4304,"Prospect Street, Silkstone, 4304","MER","Special Education Program"]
[247,"Silkstone State School","Molloy Street","Silkstone",4304,"Molloy Street, Silkstone, 4304","MER","State School"]
[738,"Silkwood School (Mount Nathan)","27 & 39 Shepherd Hill Lane","Mount Nathan",4211,"27 & 39 Shepherd Hill Lane, Mount Nathan, 4211","SER","Non-State School"]
[1528,"Silkwood State School","Japoon Road","Silkwood",4856,"Japoon Road, Silkwood, 4856","FNR","State School"]
["A743","Silver Lining School (Ficks Crossing)","14722 Bunya Highway","Ficks Crossing",4606,"14722 Bunya Highway, Ficks Crossing, 4606","DSR","Non-State School"]
[5587,"Sinai College (Burbank)","20 Moxon Road","Burbank",4156,"20 Moxon Road, Burbank, 4156","MER","Non-State School"]
[1853,"Slade Point State School","362 Slade Point Road","Slade Point",4740,"362 Slade Point Road, Slade Point, 4740","CQR","State School"]
[5811,"Somerset College (Mudgeeraba)","Somerset Drive","Mudgeeraba",4213,"Somerset Drive, Mudgeeraba, 4213","SER","Non-State School"]
[3455,"Somerset Hills SS - Special Education Program","Cnr Webster & Kitchener Roads","Stafford Heights",4053,"Cnr Webster & Kitchener Roads, Stafford Heights, 4053","MER","Special Education Program"]
[692,"Somerset Hills State School","Cnr Webster & Kitchener Roads","Stafford Heights",4053,"Cnr Webster & Kitchener Roads, Stafford Heights, 4053","MER","State School"]
[5469,"Somerville House (South Brisbane)","17 Graham Street","South Brisbane",4101,"17 Graham Street, South Brisbane, 4101","MER","Non-State School"]
[1518,"South Johnstone State School","East Avenue","South Johnstone",4859,"East Avenue, South Johnstone, 4859","FNR","State School"]
[1241,"Southbrook Central State School","1 School Road","Southbrook",4363,"1 School Road, Southbrook, 4363","DSR","State School"]
[2487,"Southern Cross Catholic College (Kippa Ring)","110 Nottingham Street","Kippa Ring",4021,"110 Nottingham Street, Kippa Ring, 4021","NCR","Associated Facility"]
[14,"Southern Cross Catholic College (Scarborough)","307 Scarborough Road","Scarborough",4020,"307 Scarborough Road, Scarborough, 4020","NCR","Non-State School"]
[1591,"Southern Cross Catholic College (Townsville)","Gartrell Drive","Annandale",4814,"Gartrell Drive, Annandale, 4814","NQR","Non-State School"]
[2488,"Southern Cross Catholic College (Woody Point)","84 Collins Street","Woody Point",4019,"84 Collins Street, Woody Point, 4019","NCR","Associated Facility"]
[9757,"Southport Flexible Learning Centre (Southport)","2 Nakina Street","Southport",4215,"2 Nakina Street, Southport, 4215","SER","Non-State School"]
[2302,"Southport SHS - Special Education Program","75 Smith Street","Southport",4215,"75 Smith Street, Southport, 4215","SER","Special Education Program"]
[3026,"Southport Special School","Cnr Kumbari Avenue & Smith Street","Southport",4215,"Cnr Kumbari Avenue & Smith Street, Southport, 4215","SER","Special School"]
[3477,"Southport SS - Special Education Program","215 Queen Street","Southport",4215,"215 Queen Street, Southport, 4215","SER","Special Education Program"]
[2037,"Southport State High School","75 Smith Street","Southport",4215,"75 Smith Street, Southport, 4215","SER","State High School"]
[368,"Southport State School","215 Queen Street","Southport",4215,"215 Queen Street, Southport, 4215","SER","State School"]
[5299,"Spinifex State College - Junior Campus Special Education Program","Fifth Avenue","Parkside",4825,"Fifth Avenue, Parkside, 4825","NQR","Special Education Program"]
[5149,"Spinifex State College - Mount Isa - Junior Campus","6-12 Fifth Avenue","Parkside",4825,"6-12 Fifth Avenue, Parkside, 4825","NQR","Campus"]
[5148,"Spinifex State College - Mount Isa - Senior Campus","145 - 163 Abel Smith Parade","Pioneer",4825,"145 - 163 Abel Smith Parade, Pioneer, 4825","NQR","Campus"]
[5151,"Spinifex State College - Mount Isa - Student Residential","83 - 85 Transmission Street","Healy",4825,"83 - 85 Transmission Street, Healy, 4825","NQR","Student Residential"]
[5147,"Spinifex State College - Mount Isa Education and Training Precinct","Fifth Avenue","Parkside",4825,"Fifth Avenue, Parkside, 4825","NQR","State High School"]
[7394,"Spinifex State College - Senior Campus Special Education Program","Spinifex SC Senior Campus, 145 - 163 Abel Smith Parade","Pioneer",4825,"Spinifex SC Senior Campus, 145 - 163 Abel Smith Parade, Pioneer, 4825","NQR","Special Education Program"]
["A885","Spring Mountain SS - Special Education Program","56 Dublin Avenue","Spring Mountain ",4300,"56 Dublin Avenue, Spring Mountain , 4300","MER","Special Education Program"]
["A657","Spring Mountain State School","56 Dublin Avenue","Spring Mountain",4300,"56 Dublin Avenue, Spring Mountain, 4300","MER","State School"]
[1931,"Springbrook State School","2327 Springbrook Road","Springbrook",4213,"2327 Springbrook Road, Springbrook, 4213","SER","State School"]
[7937,"Springfield Central SHS - Special Education Program","90 Parkland Drive","Springfield Central",4300,"90 Parkland Drive, Springfield Central, 4300","MER","Special Education Program"]
["A865","Springfield Central SS - Special Education Program","257 Grande Avenue","Springfield Central ",4300,"257 Grande Avenue, Springfield Central , 4300","MER","Special Education Program"]
[7131,"Springfield Central State High School","90 Parkland Drive","Springfield Central",4300,"90 Parkland Drive, Springfield Central, 4300","MER","State High School"]
[7123,"Springfield Central State School","257 Grande Avenue","Springfield Central",4300,"257 Grande Avenue, Springfield Central, 4300","MER","State School"]
[5995,"Springfield Lakes SS - Special Education Program","c/- Springfield Lakes SS, 63 Springfield Lakes Boulevard","Springfield Lakes",4300,"c/- Springfield Lakes SS, 63 Springfield Lakes Boulevard, Springfield Lakes, 4300","MER","Special Education Program"]
[5556,"Springfield Lakes State School","63 Springfield Lakes Boulevard","Springfield Lakes",4300,"63 Springfield Lakes Boulevard, Springfield Lakes, 4300","MER","State School"]
[102,"Springsure State School","55 Eclipse Street","Springsure",4722,"55 Eclipse Street, Springsure, 4722","CQR","State School"]
[3416,"Springwood Central SS - Special Education Program","26-34 Dennis Road","Springwood",4127,"26-34 Dennis Road, Springwood, 4127","SER","Special Education Program"]
[1869,"Springwood Central State School","26-34 Dennis Road","Springwood",4127,"26-34 Dennis Road, Springwood, 4127","SER","State School"]
[5996,"Springwood Road SS - Special Education Program","Springwood Road SS, 94-120 Springwood Road","Rochedale South",4123,"Springwood Road SS, 94-120 Springwood Road, Rochedale South, 4123","SER","Special Education Program"]
[358,"Springwood Road State School","94-120 Springwood Road","Rochedale South",4123,"94-120 Springwood Road, Rochedale South, 4123","SER","State School"]
[5957,"Springwood SHS - Special Education Program","202 Springwood Road","Springwood",4127,"202 Springwood Road, Springwood, 4127","SER","Special Education Program"]
[2140,"Springwood State High School","202 Springwood Road","Springwood",4127,"202 Springwood Road, Springwood, 4127","SER","State High School"]
[5045,"St Agatha's Primary School (Clayfield)","6 Hunter Lane","Clayfield",4011,"6 Hunter Lane, Clayfield, 4011","MER","Non-State School"]
[5046,"St Agnes School (Mount Gravatt)","29 Tudor Street","Mount Gravatt",4122,"29 Tudor Street, Mount Gravatt, 4122","MER","Non-State School"]
[5448,"St Aidan's Anglican Girls School (Corinda)","11 Ruthven Street","Corinda",4075,"11 Ruthven Street, Corinda, 4075","MER","Non-State School"]
[5047,"St Ambrose's Primary School (Newmarket)","23 Davidson Street","Newmarket",4051,"23 Davidson Street, Newmarket, 4051","MER","Non-State School"]
[2480,"St Andrew's Anglican College (Peregian Springs)","40 Peregian Springs Drive","Peregian Springs",4573,"40 Peregian Springs Drive, Peregian Springs, 4573","NCR","Non-State School"]
[2266,"St Andrew's Catholic College Redlynch Valley (Redlynch)","185-205 Intake Road","Redlynch",4870,"185-205 Intake Road, Redlynch, 4870","FNR","Non-State School"]
[5110,"St Andrew's Catholic School (Ferny Grove)","89 Hogarth Road","Ferny Grove",4055,"89 Hogarth Road, Ferny Grove, 4055","MER","Non-State School"]
[5771,"St Andrews Lutheran College (Tallebudgera)","175 Tallebudgera Creek Road","Tallebudgera",4228,"175 Tallebudgera Creek Road, Tallebudgera, 4228","SER","Non-State School"]
[5198,"St Anne's Catholic Primary School (Sarina)","3 Range Road","Sarina",4737,"3 Range Road, Sarina, 4737","CQR","Non-State School"]
["A680","St Ann's School (Redbank Plains)","67-87 Halletts Road","Redbank Plains",4301,"67-87 Halletts Road, Redbank Plains, 4301","MER","Non-State School"]
[5373,"St Anthony's Catholic College (Veales Rd and Joanne St, Deeragun)","Cnr Veales Road and Joanne Street","Deeragun",4818,"Cnr Veales Road and Joanne Street, Deeragun, 4818","NQR","Non-State School"]
[5222,"St Anthony's Catholic College (Veales Rd, Deeragun)","Veales Road","Deeragun",4818,"Veales Road, Deeragun, 4818","NQR","Associated Facility"]
[5199,"St Anthony's Catholic Primary School (North Rockhampton)","390b Feez Street","North Rockhampton",4701,"390b Feez Street, North Rockhampton, 4701","CQR","Non-State School"]
[5107,"St Anthony's School (Alexandra Hills)","St Anthony's Drive","Alexandra Hills",4161,"St Anthony's Drive, Alexandra Hills, 4161","SER","Non-State School"]
[5270,"St Anthony's School (Dimbulah)","3 Hyde Street","Dimbulah",4872,"3 Hyde Street, Dimbulah, 4872","FNR","Non-State School"]
[5048,"St Anthony's School (Kedron)","121 Somerset Road","Kedron",4031,"121 Somerset Road, Kedron, 4031","MER","Non-State School"]
[5160,"St Anthony's School (Toowoomba)","9 Memory Street","Toowoomba",4350,"9 Memory Street, Toowoomba, 4350","DSR","Non-State School"]
[2501,"St Augustine's College (Augustine Heights)","St Augustine's Drive","Augustine Heights",4300,"St Augustine's Drive, Augustine Heights, 4300","MER","Non-State School"]
[5337,"St Augustine's College (Cairns)","251 Draper Street","Cairns",4870,"251 Draper Street, Cairns, 4870","FNR","Non-State School"]
[5119,"St Augustine's Parish Primary School (Currumbin Waters)","Galleon Way","Currumbin Waters",4223,"Galleon Way, Currumbin Waters, 4223","SER","Non-State School"]
[5271,"St Augustine's School (Mossman)","Grogan Street","Mossman",4873,"Grogan Street, Mossman, 4873","FNR","Non-State School"]
[5759,"St Benedict's Catholic Primary School (Yeppoon)","1 Laceys Road, Pacific Heights","Yeppoon",4703,"1 Laceys Road, Pacific Heights, Yeppoon, 4703","CQR","Non-State School"]
["A034","St Benedict's Catholic School (Shaw)","890 Dalrymple Road","Shaw",4818,"890 Dalrymple Road, Shaw, 4818","NQR","Non-State School"]
[7595,"St Benedict's College (Mango Hill)","21 St Benedict's Close","Mango Hill",4509,"21 St Benedict's Close, Mango Hill, 4509","NCR","Non-State School"]
[5683,"St Benedict's Primary School (Mango Hill)","22 St Benedict's Close","Mango Hill",4509,"22 St Benedict's Close, Mango Hill, 4509","NCR","Non-State School"]
["A632","St Bernard SS - Special Education Program","1-19 School Road","Tamborine Mountain",4272,"1-19 School Road, Tamborine Mountain, 4272","SER","Special Education Program"]
[1425,"St Bernard State School","1-19 School Road","Tamborine Mountain",4272,"1-19 School Road, Tamborine Mountain, 4272","SER","State School"]
[5056,"St Bernardine's School (Regents Park)","25 Vergulde Road","Regents Park",4118,"25 Vergulde Road, Regents Park, 4118","SER","Non-State School"]
[5050,"St Bernard's School (Upper Mount Gravatt)","1823 Logan Road","Upper Mount Gravatt",4122,"1823 Logan Road, Upper Mount Gravatt, 4122","MER","Non-State School"]
[9621,"St Brendan's Catholic Primary School (Mackay)","799 Mackay-Bucasia Road","Rural View, Mackay",4740,"799 Mackay-Bucasia Road, Rural View, Mackay, 4740","CQR","Non-State School"]
[5415,"St Brendan's College (Yeppoon)","139 Adelaide Park Road","Yeppoon",4703,"139 Adelaide Park Road, Yeppoon, 4703","CQR","Non-State School"]
[5051,"St Brendan's Primary School (Moorooka)","Hawtree Street","Moorooka",4105,"Hawtree Street, Moorooka, 4105","MER","Non-State School"]
[8613,"St Brigid's Catholic Primary School (Emerald)","Gregory Highway","Emerald",4720,"Gregory Highway, Emerald, 4720","CQR","Non-State School"]
[5522,"St Brigid's Catholic Primary School (Nerang)","39-49 McLaren Road","Nerang",4211,"39-49 McLaren Road, Nerang, 4211","SER","Non-State School"]
[5120,"St Brigid's Primary School (Rosewood)","Railway Street","Rosewood",4340,"Railway Street, Rosewood, 4340","MER","Non-State School"]
[7578,"St Catherine's Catholic College The Whitsundays (Proserpine)","90-110 Renwick Road","Proserpine",4800,"90-110 Renwick Road, Proserpine, 4800","NQR","Non-State School"]
[5053,"St Catherines Catholic Primary School (Wishart)","388 Newnham Road","Wishart",4122,"388 Newnham Road, Wishart, 4122","MER","Non-State School"]
[6138,"St Clare's Catholic School (Burdell)","Burdell Drive","Burdell",4818,"Burdell Drive, Burdell, 4818","NQR","Non-State School"]
[9962,"St Clare's Primary School (Yarrabilba)","2-48 Combs Street","Yarrabilba",4207,"2-48 Combs Street, Yarrabilba, 4207","SER","Non-State School"]
[5273,"St Clare's School (Tully)","13 Mars Street","Tully",4854,"13 Mars Street, Tully, 4854","FNR","Non-State School"]
[5239,"St Colman's School (Home Hill)","Eleventh Avenue","Home Hill",4806,"Eleventh Avenue, Home Hill, 4806","NQR","Non-State School"]
[5302,"St Columban's College (Caboolture)","100 McKean Street","Caboolture",4510,"100 McKean Street, Caboolture, 4510","NCR","Non-State School"]
[5055,"St Columba's Primary School (Wilston)","Kedron Brook Road","Wilston",4051,"Kedron Brook Road, Wilston, 4051","MER","Non-State School"]
[5057,"St Dympna's Parish School (Aspley)","491 Robinson Road","Aspley",4034,"491 Robinson Road, Aspley, 4034","MER","Non-State School"]
[5364,"St Edmund's College (Woodend)","16 Mary Street","Woodend",4305,"16 Mary Street, Woodend, 4305","MER","Non-State School"]
[5004,"St Edward the Confessor School (Daisy Hill)","104 Chatswood Road","Daisy Hill",4127,"104 Chatswood Road, Daisy Hill, 4127","SER","Non-State School"]
[5059,"St Elizabeth's School (Tarragindi)","55 Effingham Street","Tarragindi",4121,"55 Effingham Street, Tarragindi, 4121","MER","Non-State School"]
[5431,"St Eugene College (Burpengary)","138 Station Road","Burpengary",4505,"138 Station Road, Burpengary, 4505","NCR","Non-State School"]
[5062,"St Finbarr's School (Ashgrove)","Betheden Terrace","Ashgrove",4060,"Betheden Terrace, Ashgrove, 4060","MER","Non-State School"]
[5165,"St Finbarr's School (Quilpie)","Jabiru Street","Quilpie",4480,"Jabiru Street, Quilpie, 4480","DSR","Non-State School"]
[5063,"St Flannan's School (Zillmere)","420 Beams Road","Zillmere",4034,"420 Beams Road, Zillmere, 4034","MER","Non-State School"]
[5400,"St Francis Catholic Primary School (Tannum Sands)","Francis Way","Tannum Sands",4680,"Francis Way, Tannum Sands, 4680","CQR","Non-State School"]
[5242,"St Francis Catholic School (Hughenden)","8 Flinders Street","Hughenden",4821,"8 Flinders Street, Hughenden, 4821","NQR","Non-State School"]
[5164,"St Francis College (Crestmead) ","64 Julie Street","Crestmead",4132,"64 Julie Street, Crestmead, 4132","SER","Non-State School"]
[5166,"St Francis De Sales School (Clifton)","16 Meara Place","Clifton",4361,"16 Meara Place, Clifton, 4361","DSR","Non-State School"]
[5243,"St Francis School (Ayr)","99 Edwards Street","Ayr",4807,"99 Edwards Street, Ayr, 4807","NQR","Non-State School"]
[5200,"St Francis Xavier Catholic Primary School (Mackay West)","Mackenzie Street","Mackay West",4740,"Mackenzie Street, Mackay West, 4740","CQR","Non-State School"]
[5064,"St Francis Xavier School (Goodna)","6 Church Street","Goodna",4300,"6 Church Street, Goodna, 4300","MER","Non-State School"]
[5121,"St Francis Xavier School (Runaway Bay)","160 Bayview Street","Runaway Bay",4216,"160 Bayview Street, Runaway Bay, 4216","SER","Non-State School"]
[5275,"St Francis Xavier's School (Manunda)","5 Atkinson Street","Manunda",4870,"5 Atkinson Street, Manunda, 4870","FNR","Non-State School"]
[2207,"St George SS - Special Education Program","c/- St George SS, Grey Street","St George",4487,"c/- St George SS, Grey Street, St George, 4487","DSR","Special Education Program"]
[2143,"St George State High School","2 Victoria Street","St George",4487,"2 Victoria Street, St George, 4487","DSR","State High School"]
[134,"St George State School","Grey Street","St George",4487,"Grey Street, St George, 4487","DSR","State School"]
[5065,"St Gerard Majella Primary School (Woree)","63 Anderson Road","Woree",4868,"63 Anderson Road, Woree, 4868","FNR","Non-State School"]
[236,"St Helens State School","891 Saltwater Creek Road","St Helens",4650,"891 Saltwater Creek Road, St Helens, 4650","NCR","State School"]
[5457,"St Hilda's School (Southport)","52 High Street","Southport",4215,"52 High Street, Southport, 4215","SER","Non-State School"]
[5066,"St Ignatius School (Toowong)","46 Grove Street","Toowong",4066,"46 Grove Street, Toowong, 4066","MER","Non-State School"]
[5067,"St Ita's Regional Primary School (Dutton Park)","249 Gladstone Road","Dutton Park",4102,"249 Gladstone Road, Dutton Park, 4102","MER","Non-State School"]
[5304,"St James College (Brisbane)","201 Boundary Street","Brisbane",4000,"201 Boundary Street, Brisbane, 4000","MER","Non-State School"]
[5311,"St James Lutheran College (Urraween)","138-172 Pantlins Lane","Urraween",4655,"138-172 Pantlins Lane, Urraween, 4655","NCR","Non-State School"]
[5069,"St James Primary School (Coorparoo)","92 Kirkland Avenue","Coorparoo",4151,"92 Kirkland Avenue, Coorparoo, 4151","MER","Non-State School"]
[5070,"St Joachim's School (Holland Park)","41 Yuletide Street","Holland Park",4121,"41 Yuletide Street, Holland Park, 4121","MER","Non-State School"]
[5245,"St John Bosco Catholic School (Collinsville)","25 Blake Street","Collinsville",4804,"25 Blake Street, Collinsville, 4804","NQR","Non-State School"]
[5346,"St John Fisher College (Bracken Ridge)","John Fisher Drive","Bracken Ridge",4017,"John Fisher Drive, Bracken Ridge, 4017","MER","Non-State School"]
[5202,"St John the Baptist Catholic Primary School (Gladstone)","15 J Hickey Avenue","Gladstone",4680,"15 J Hickey Avenue, Gladstone, 4680","CQR","Non-State School"]
[5072,"St John Vianney's Primary School (Manly)","15 Oceana Terrace","Manly",4179,"15 Oceana Terrace, Manly, 4179","MER","Non-State School"]
[2490,"St John's Anglican College (Alpine Pl, Forest Lake)","Alpine Place","Forest Lake",4078,"Alpine Place, Forest Lake, 4078","MER","Associated Facility"]
[5459,"St John's Anglican College (College Ave, Forest Lake)","College Avenue","Forest Lake",4078,"College Avenue, Forest Lake, 4078","MER","Non-State School"]
[5201,"St John's Catholic Primary School (Walkerston)","23 Creek Street","Walkerston",4751,"23 Creek Street, Walkerston, 4751","CQR","Non-State School"]
[5125,"St John's College (Nambour)","Perwillowen Road","Nambour",4560,"Perwillowen Road, Nambour, 4560","NCR","Non-State School"]
[5766,"St John's Lutheran Primary School (Bundaberg)","24 George Street","Bundaberg",4670,"24 George Street, Bundaberg, 4670","NCR","Non-State School"]
[5770,"St John's Lutheran School (Kingaroy)","84-94 Ivy Street","Kingaroy",4610,"84-94 Ivy Street, Kingaroy, 4610","DSR","Non-State School"]
[5324,"St John's School (Roma)","Bowen Street","Roma",4455,"Bowen Street, Roma, 4455","DSR","Non-State School"]
[5277,"St John's School (Silkwood)","Harold Street","Silkwood",4856,"Harold Street, Silkwood, 4856","FNR","Non-State School"]
[5204,"St Joseph's Catholic Primary School (Barcaldine)","23 Willow Street","Barcaldine",4725,"23 Willow Street, Barcaldine, 4725","CQR","Non-State School"]
[5205,"St Joseph's Catholic Primary School (Biloela)","66 Rainbow Street","Biloela",4715,"66 Rainbow Street, Biloela, 4715","CQR","Non-State School"]
[5206,"St Joseph's Catholic Primary School (Blackall)","109 Thistle Street","Blackall",4472,"109 Thistle Street, Blackall, 4472","CQR","Non-State School"]
[5080,"St Joseph's Catholic Primary School (Bracken Ridge)","30 Eldorado Street","Bracken Ridge",4017,"30 Eldorado Street, Bracken Ridge, 4017","MER","Non-State School"]
[5207,"St Joseph's Catholic Primary School (Bundaberg)","22  Barolin Street","Bundaberg",4670,"22  Barolin Street, Bundaberg, 4670","NCR","Non-State School"]
[5208,"St Joseph's Catholic Primary School (Clermont)","50 Box Street","Clermont",4721,"50 Box Street, Clermont, 4721","CQR","Non-State School"]
[5210,"St Joseph's Catholic Primary School (North Mackay)","4 Canberra Street","North Mackay",4740,"4 Canberra Street, North Mackay, 4740","CQR","Non-State School"]
[5211,"St Joseph's Catholic Primary School (Park Avenue)","Main Street","Park Avenue",4701,"Main Street, Park Avenue, 4701","CQR","Non-State School"]
[5212,"St Joseph's Catholic Primary School (Wandal)","4 Herbert Street","Wandal",4700,"4 Herbert Street, Wandal, 4700","CQR","Non-State School"]
[5247,"St Joseph's Catholic School (Cloncurry)","Sheaffe Street","Cloncurry",4824,"Sheaffe Street, Cloncurry, 4824","NQR","Non-State School"]
[5251,"St Joseph's Catholic School, The Strand (North Ward)","Fryer Street","North Ward",4810,"Fryer Street, North Ward, 4810","NQR","Non-State School"]
[5305,"St Joseph's College (Brisbane)","285 Gregory Terrace","Brisbane",4000,"285 Gregory Terrace, Brisbane, 4000","MER","Non-State School"]
["A107","St Joseph's College (Coomera)","49-103 Kerkin Road South","Coomera",4209,"49-103 Kerkin Road South, Coomera, 4209","SER","Non-State School"]
[6154,"St Joseph's College (Spring Hill)","40 Quarry Street","Spring Hill",4000,"40 Quarry Street, Spring Hill, 4000","MER","Associated Facility"]
[5323,"St Joseph's College (Toowoomba)","54 James Street","Toowoomba",4350,"54 James Street, Toowoomba, 4350","DSR","Non-State School"]
[5366,"St Joseph's Nudgee College (Boondall)","2199 Sandgate Road","Boondall",4034,"2199 Sandgate Road, Boondall, 4034","MER","Non-State School"]
[9627,"St Joseph's Parish School (Weipa)","Boundary Road","Weipa",4874,"Boundary Road, Weipa, 4874","FNR","Non-State School"]
[5074,"St Joseph's Primary School (Corinda)","28 Clewley Street","Corinda",4075,"28 Clewley Street, Corinda, 4075","MER","Non-State School"]
[5075,"St Joseph's Primary School (Kangaroo Point)","26-36 Leopard Street","Kangaroo Point",4169,"26-36 Leopard Street, Kangaroo Point, 4169","MER","Non-State School"]
[5384,"St Joseph's Primary School (Nambour)","177 Currie Street","Nambour",4560,"177 Currie Street, Nambour, 4560","NCR","Non-State School"]
[5278,"St Joseph's School (Atherton)","Cnr Jack and Alice Streets","Atherton",4883,"Cnr Jack and Alice Streets, Atherton, 4883","FNR","Non-State School"]
[5073,"St Joseph's School (Bardon)","41 The Drive","Bardon",4065,"41 The Drive, Bardon, 4065","MER","Non-State School"]
[5279,"St Joseph's School (Cairns)","13 Loeven Street","Parramatta Park",4870,"13 Loeven Street, Parramatta Park, 4870","FNR","Non-State School"]
[5122,"St Joseph's School (Childers)","40 Churchill Street","Childers",4660,"40 Churchill Street, Childers, 4660","NCR","Non-State School"]
[5168,"St Joseph's School (Chinchilla)","74 Middle Street","Chinchilla",4413,"74 Middle Street, Chinchilla, 4413","DSR","Non-State School"]
[5123,"St Joseph's School (Gayndah)","38 Meson Street","Gayndah",4625,"38 Meson Street, Gayndah, 4625","CQR","Non-State School"]
[5170,"St Joseph's School (Millmerran)","25 Walpole Street","Millmerran",4357,"25 Walpole Street, Millmerran, 4357","DSR","Non-State School"]
[5250,"St Joseph's School (Mount Isa)","50-64 Twenty Third Avenue","Mount Isa",4825,"50-64 Twenty Third Avenue, Mount Isa, 4825","NQR","Non-State School"]
[5248,"St Joseph's School (Mundingburra)","65-75 Ross River Road","Mundingburra",4812,"65-75 Ross River Road, Mundingburra, 4812","NQR","Non-State School"]
[5124,"St Joseph's School (Murgon)","32 Angel Avenue","Murgon",4605,"32 Angel Avenue, Murgon, 4605","DSR","Non-State School"]
[5076,"St Joseph's School (North Ipswich)","42 Pine Mountain Road","North Ipswich",4305,"42 Pine Mountain Road, North Ipswich, 4305","MER","Non-State School"]
[5078,"St Joseph's School (Nundah)","16 Leslie Street","Nundah",4012,"16 Leslie Street, Nundah, 4012","MER","Non-State School"]
[5398,"St Joseph's School (Stanthorpe) ","100 High Street","Stanthorpe",4380,"100 High Street, Stanthorpe, 4380","DSR","Non-State School"]
[5172,"St Joseph's School (Tara)","3 Fry Street","Tara",4421,"3 Fry Street, Tara, 4421","DSR","Non-State School"]
[5079,"St Joseph's Tobruk Memorial School (Beenleigh)","53 Kokoda Street","Beenleigh",4207,"53 Kokoda Street, Beenleigh, 4207","SER","Non-State School"]
[5136,"St Kevin's School (Benowa)","312 Benowa Road","Benowa",4217,"312 Benowa Road, Benowa, 4217","SER","Non-State School"]
[5081,"St Kevin's School (Geebung)","249 Newman Road","Geebung",4034,"249 Newman Road, Geebung, 4034","MER","Non-State School"]
[5226,"St Kieran's Catholic School (Mount Isa)","Short Street","Mount Isa",4825,"Short Street, Mount Isa, 4825","NQR","Non-State School"]
[5082,"St Kieran's School (Brighton)","15 Greenwood Street","Brighton",4017,"15 Greenwood Street, Brighton, 4017","MER","Non-State School"]
[5306,"St Laurence's College (South Brisbane)","82 Stephens Road","South Brisbane",4101,"82 Stephens Road, South Brisbane, 4101","MER","Non-State School"]
[103,"St Lawrence State School","Macartney Street","St Lawrence",4707,"Macartney Street, St Lawrence, 4707","CQR","State School"]
[5458,"St Luke's Anglican School (Bundaberg)","4 Mezger Street","Kalkie, Bundaberg",4670,"4 Mezger Street, Kalkie, Bundaberg, 4670","NCR","Non-State School"]
[5601,"St Luke's Catholic Parish School (Capalaba)","45 Degen Road","Capalaba",4157,"45 Degen Road, Capalaba, 4157","SER","Non-State School"]
[5429,"St Margaret Mary's College (Hyde Park)","1-9 Crowle Street","Hyde Park",4812,"1-9 Crowle Street, Hyde Park, 4812","NQR","Non-State School"]
[5450,"St Margaret's Anglican Girls School (Ascot)","11 Petrie Street","Ascot",4007,"11 Petrie Street, Ascot, 4007","MER","Non-State School"]
[5176,"St Maria Goretti School (Inglewood)","Elizabeth Street","Inglewood",4387,"Elizabeth Street, Inglewood, 4387","DSR","Non-State School"]
[5086,"St Mark's School (Inala)","92 Lilac Street","Inala",4077,"92 Lilac Street, Inala, 4077","MER","Non-State School"]
[5087,"St Martin's School (Carina)","66 Broadway Street","Carina",4152,"66 Broadway Street, Carina, 4152","MER","Non-State School"]
[596,"St Mary MacKillop Primary School (Birkdale)","10 Hardy Road","Birkdale",4159,"10 Hardy Road, Birkdale, 4159","SER","Non-State School"]
[5011,"St Mary of the Cross School (Windsor)","22 Grafton Street","Windsor",4030,"22 Grafton Street, Windsor, 4030","MER","Non-State School"]
[5439,"St Mary's Catholic College (Woree)","53 Anderson Road","Woree",4868,"53 Anderson Road, Woree, 4868","FNR","Non-State School"]
[5213,"St Mary's Catholic Primary School (Bundaberg)","Frank Gilbert Drive","Bundaberg",4670,"Frank Gilbert Drive, Bundaberg, 4670","NCR","Non-State School"]
[5215,"St Mary's Catholic Primary School (Mackay South)","42 Juliet Street","Mackay South",4740,"42 Juliet Street, Mackay South, 4740","CQR","Non-State School"]
[5214,"St Mary's Catholic Primary School (North Rockhampton)","135 Nobbs Street","North Rockhampton",4701,"135 Nobbs Street, North Rockhampton, 4701","CQR","Non-State School"]
[5255,"St Mary's Catholic School (Bowen)","39 Poole Street","Bowen",4805,"39 Poole Street, Bowen, 4805","NQR","Non-State School"]
[5368,"St Mary's College (Ipswich)","Mary Street","Ipswich",4305,"Mary Street, Ipswich, 4305","MER","Non-State School"]
[5386,"St Mary's College (Maryborough)","51 Lennox Street","Maryborough",4650,"51 Lennox Street, Maryborough, 4650","NCR","Non-State School"]
[5327,"St Mary's College (Toowoomba)","129 West Street","Toowoomba",4350,"129 West Street, Toowoomba, 4350","DSR","Non-State School"]
[5088,"St Mary's Primary School (Ipswich)","Mary Street","Ipswich",4305,"Mary Street, Ipswich, 4305","MER","Non-State School"]
[5130,"St Mary's Primary School (Maryborough)","167 John Street","Maryborough",4650,"167 John Street, Maryborough, 4650","NCR","Non-State School"]
[5179,"St Mary's School (163 Palmerin St, Warwick)","163 Palmerin Street","Warwick",4370,"163 Palmerin Street, Warwick, 4370","DSR","Non-State School"]
[2484,"St Mary's School (175 Palmerin St, Warwick)","175 Palmerin Street","Warwick",4370,"175 Palmerin Street, Warwick, 4370","DSR","Associated Facility"]
["A626","St Mary's School (25-27 Brisbane St, Goondiwindi)","25-27 Brisbane Street","Goondiwindi",4390,"25-27 Brisbane Street, Goondiwindi, 4390","DSR","Associated Facility"]
[5177,"St Mary's School (26 Brisbane St, Goondiwindi)","Brisbane Street","Goondiwindi",4390,"Brisbane Street, Goondiwindi, 4390","DSR","Non-State School"]
[5127,"St Mary's School (Beaudesert)","1 Bromelton Street","Beaudesert",4285,"1 Bromelton Street, Beaudesert, 4285","SER","Non-State School"]
[5182,"St Mary's School (Charleville)","66 Watson Street","Charleville",4470,"66 Watson Street, Charleville, 4470","DSR","Non-State School"]
[5129,"St Mary's School (Laidley)","John Street","Laidley",4341,"John Street, Laidley, 4341","DSR","Non-State School"]
[5104,"St Matthew's School (Cornubia)","172-180 Bryants Road","Cornubia",4130,"172-180 Bryants Road, Cornubia, 4130","SER","Non-State School"]
[5260,"St Michael's Catholic School (Palm Island)","Banfield Highway","Palm Island",4816,"Banfield Highway, Palm Island, 4816","NQR","Non-State School"]
[5574,"St Michael's College (Caboolture)","1-63 The Abbey Place","Caboolture",4510,"1-63 The Abbey Place, Caboolture, 4510","NCR","Non-State School"]
[5378,"St Michael's College (Merrimac)","Jondique Avenue","Merrimac",4226,"Jondique Avenue, Merrimac, 4226","SER","Non-State School"]
[5281,"St Michael's School (Gordonvale)","58 Mill Street","Gordonvale",4865,"58 Mill Street, Gordonvale, 4865","FNR","Non-State School"]
[5440,"St Monica's College (Cairns)","177 Abbott Street","Cairns",4870,"177 Abbott Street, Cairns, 4870","FNR","Non-State School"]
[5181,"St Monica's School (Oakey)","75 Lorrimer Street","Oakey",4401,"75 Lorrimer Street, Oakey, 4401","DSR","Non-State School"]
[5000,"St Oliver Plunkett School (Cannon Hill)","17 Beauvardia Street","Cannon Hill",4170,"17 Beauvardia Street, Cannon Hill, 4170","MER","Non-State School"]
[5218,"St Patrick's Catholic Primary School (Bundaberg)","35 Mulgrave Street","Bundaberg West",4670,"35 Mulgrave Street, Bundaberg West, 4670","NCR","Non-State School"]
[5216,"St Patrick's Catholic Primary School (Emerald)","41 Yamala Street","Emerald",4720,"41 Yamala Street, Emerald, 4720","CQR","Non-State School"]
[5258,"St Patrick's Catholic School (Winton)","Oondooroo Street","Winton",4735,"Oondooroo Street, Winton, 4735","CQR","Non-State School"]
[5389,"St Patrick's College (Gympie)","Church Street","Gympie",4570,"Church Street, Gympie, 4570","NCR","Non-State School"]
[5343,"St Patrick's College (Mackay)","Gregory Street","Mackay",4740,"Gregory Street, Mackay, 4740","CQR","Non-State School"]
[5308,"St Patrick's College (Shorncliffe)","60 Park Parade","Shorncliffe",4017,"60 Park Parade, Shorncliffe, 4017","MER","Non-State School"]
[5432,"St Patrick's College Townsville (Townsville)","45 The Strand","Townsville",4810,"45 The Strand, Townsville, 4810","NQR","Non-State School"]
[5132,"St Patrick's Primary School (Gympie)","18-26 Church Street","Gympie",4570,"18-26 Church Street, Gympie, 4570","NCR","Non-State School"]
[5185,"St Patrick's Primary School (Mitchell)","100 Alice Street","Mitchell",4465,"100 Alice Street, Mitchell, 4465","DSR","Non-State School"]
[5133,"St Patrick's Primary School (Nanango)","16 Alfred Street","Nanango",4615,"16 Alfred Street, Nanango, 4615","DSR","Non-State School"]
[5183,"St Patrick's School (Allora)","35 Arnold Street","Allora",4362,"35 Arnold Street, Allora, 4362","DSR","Non-State School"]
[5184,"St Patrick's School (St George)","36-44 Balonne Street","St George",4487,"36-44 Balonne Street, St George, 4487","DSR","Non-State School"]
[5435,"St Paul's Catholic Primary School (Gracemere)","Breakspear Street","Gracemere",4702,"Breakspear Street, Gracemere, 4702","CQR","Non-State School"]
[5769,"St Paul's Lutheran Primary School (Caboolture)","55 Smiths Road","Caboolture",4510,"55 Smiths Road, Caboolture, 4510","NCR","Non-State School"]
[5449,"St Paul's School (Bald Hills)","34 Strathpine Road","Bald Hills",4036,"34 Strathpine Road, Bald Hills, 4036","MER","Non-State School"]
[5091,"St Paul's School (Woodridge)","3 St Paul's Drive","Woodridge",4114,"3 St Paul's Drive, Woodridge, 4114","SER","Non-State School"]
[5094,"St Peter Chanel Primary School (The Gap)","41 Chaprowe Road","The Gap",4061,"41 Chaprowe Road, The Gap, 4061","MER","Non-State School"]
[5370,"St Peter Claver College (Riverview)","10 Old Ipswich Road","Riverview",4303,"10 Old Ipswich Road, Riverview, 4303","MER","Non-State School"]
[5095,"St Peter's Catholic Primary School (Caboolture)","30 Beerburrum Road","Caboolture",4510,"30 Beerburrum Road, Caboolture, 4510","NCR","Non-State School"]
[5219,"St Peter's Catholic Primary School (Rockhampton)","170 Upper Dawson Road","Rockhampton",4700,"170 Upper Dawson Road, Rockhampton, 4700","CQR","Non-State School"]
[5259,"St Peter's Catholic School (Halifax)","15-17 Anderssen Street","Halifax",4850,"15-17 Anderssen Street, Halifax, 4850","NQR","Non-State School"]
[5496,"St Peters Lutheran College (Indooroopilly)","66 Harts Road","Indooroopilly",4068,"66 Harts Road, Indooroopilly, 4068","MER","Non-State School"]
[5738,"St Peters Lutheran College Springfield (Springfield Central)","42 Wellness Way","Springfield Central",4300,"42 Wellness Way, Springfield Central, 4300","MER","Non-State School"]
[5097,"St Peter's Primary School (Rochedale)","955 Rochedale Road","Rochedale",4123,"955 Rochedale Road, Rochedale, 4123","MER","Non-State School"]
[2224,"St Philomena School (Park Ridge)","61-71 Koplick Road","Park Ridge",4125,"61-71 Koplick Road, Park Ridge, 4125","SER","Non-State School"]
[5098,"St Pius' Primary School (Banyo)","Apperley Street","Banyo",4014,"Apperley Street, Banyo, 4014","MER","Non-State School"]
[5099,"St Pius X School (Salisbury)","73 Golda Avenue","Salisbury",4107,"73 Golda Avenue, Salisbury, 4107","MER","Non-State School"]
[5372,"St Rita's College (Clayfield)","41 Enderley Road","Clayfield",4011,"41 Enderley Road, Clayfield, 4011","MER","Non-State School"]
[5594,"St Rita's Primary School (Victoria Point)","39 Benfer Road","Victoria Point",4165,"39 Benfer Road, Victoria Point, 4165","SER","Non-State School"]
[5283,"St Rita's School (Babinda)","7-13 Church Street","Babinda",4861,"7-13 Church Street, Babinda, 4861","FNR","Non-State School"]
[5284,"St Rita's School (South Johnstone)","8 Green Street","South Johnstone",4859,"8 Green Street, South Johnstone, 4859","FNR","Non-State School"]
[5402,"St Saviour's College (Toowoomba)","Neil Street","Toowoomba",4350,"Neil Street, Toowoomba, 4350","DSR","Non-State School"]
[5186,"St Saviour's Primary School (Toowoomba)","14 Lawrence Street","Toowoomba",4350,"14 Lawrence Street, Toowoomba, 4350","DSR","Non-State School"]
[5101,"St Sebastian's Primary School (Yeronga)","141 Kadumba Street","Yeronga",4104,"141 Kadumba Street, Yeronga, 4104","MER","Non-State School"]
[5143,"St Stephen's Catholic College (Mareeba)","Lot 3 McIver Road","Mareeba",4880,"Lot 3 McIver Road, Mareeba, 4880","FNR","Non-State School"]
[2495,"St Stephen's School (Algester)","156 Ridgewood Road","Algester",4115,"156 Ridgewood Road, Algester, 4115","MER","Non-State School"]
[5187,"St Stephen's School (Pittsworth)","Murray Street","Pittsworth",4356,"Murray Street, Pittsworth, 4356","DSR","Non-State School"]
[2494,"St Teresa's Catholic College (Noosaville)","Sea Eagle Drive","Noosaville",4566,"Sea Eagle Drive, Noosaville, 4566","NCR","Non-State School"]
[5434,"St Teresa's College (Abergowrie)","3819 Abergowrie Road","Abergowrie",4850,"3819 Abergowrie Road, Abergowrie, 4850","NQR","Non-State School"]
[5286,"St Teresa's School (Ravenshoe)","6 Moffatt Street","Ravenshoe",4888,"6 Moffatt Street, Ravenshoe, 4888","FNR","Non-State School"]
[5220,"St Therese's Catholic Primary School (Monto)","Rayleigh Street","Monto",4630,"Rayleigh Street, Monto, 4630","CQR","Non-State School"]
[5287,"St Therese's School (Bentley Park)","135 Robert Road","Bentley Park",4869,"135 Robert Road, Bentley Park, 4869","FNR","Non-State School"]
[5374,"St Thomas More College (Sunnybank)","Cnr Troughton Road and Turton Street","Sunnybank",4109,"Cnr Troughton Road and Turton Street, Sunnybank, 4109","MER","Non-State School"]
[5428,"St Thomas More Primary School (Sunshine Beach)","Ben Lexcen Drive","Sunshine Beach",4567,"Ben Lexcen Drive, Sunshine Beach, 4567","NCR","Non-State School"]
[5188,"St Thomas More's Primary School (Toowoomba)","152 South Street","Toowoomba",4350,"152 South Street, Toowoomba, 4350","DSR","Non-State School"]
[5288,"St Thomas' School  (Mareeba)","63 Constance Street","Mareeba",4880,"63 Constance Street, Mareeba, 4880","FNR","Non-State School"]
[5103,"St Thomas' School (Camp Hill)","10 Stephen Street","Camp Hill",4152,"10 Stephen Street, Camp Hill, 4152","MER","Non-State School"]
[5404,"St Ursula's College (Toowoomba)","38 Taylor Street","Toowoomba",4350,"38 Taylor Street, Toowoomba, 4350","DSR","Non-State School"]
[5419,"St Ursula's College (Yeppoon)","Queen Street","Yeppoon",4703,"Queen Street, Yeppoon, 4703","CQR","Non-State School"]
[5135,"St Vincent's Primary School (Surfers Paradise)","Fairway Drive","Clear Island Waters",4226,"Fairway Drive, Clear Island Waters, 4226","SER","Non-State School"]
[5105,"St William's Primary School (Grovely)","67 Dawson Parade","Keperra",4054,"67 Dawson Parade, Keperra, 4054","MER","Non-State School"]
[1016,"Stafford Heights State School","95 Redwood Street","Stafford Heights",4053,"95 Redwood Street, Stafford Heights, 4053","MER","State School"]
[3463,"Stafford SS - Special Education Program","Stafford SS, 314 Stafford Road","Stafford",4053,"Stafford SS, 314 Stafford Road, Stafford, 4053","MER","Special Education Program"]
[487,"Stafford State School","314 Stafford Road","Stafford",4053,"314 Stafford Road, Stafford, 4053","MER","State School"]
[5423,"Staines Memorial College (Redbank Plains)","227 - 243 School Road","Redbank Plains",4301,"227 - 243 School Road, Redbank Plains, 4301","MER","Non-State School"]
[3551,"Stanley River Environmental Education Centre","3856 Esk-Kilcoy Road","Hazeldean",4515,"3856 Esk-Kilcoy Road, Hazeldean, 4515","NCR","Outdoor and Environmental Education Centre"]
[8783,"Stanthorpe SHS - Special Education Program","2 McGlew Street","Stanthorpe",4380,"2 McGlew Street, Stanthorpe, 4380","DSR","Special Education Program"]
[3453,"Stanthorpe SS - Special Education Program","Marsh Street","Stanthorpe",4380,"Marsh Street, Stanthorpe, 4380","DSR","Special Education Program"]
[2064,"Stanthorpe State High School","2 McGlew Street","Stanthorpe",4380,"2 McGlew Street, Stanthorpe, 4380","DSR","State High School"]
[132,"Stanthorpe State School","Marsh Street","Stanthorpe",4380,"Marsh Street, Stanthorpe, 4380","DSR","State School"]
[1861,"Stanton Lodge Support Unit","36 Boundary Street","Railway Estate",4810,"36 Boundary Street, Railway Estate, 4810","NQR","Support Unit (Other)"]
[129,"Stanwell State School","10 Teakle Street","Stanwell",4702,"10 Teakle Street, Stanwell, 4702","CQR","State School"]
[5197,"Star of the Sea Catholic Primary School (Gladstone)","181 Goondoon Street","Gladstone",4680,"181 Goondoon Street, Gladstone, 4680","CQR","Non-State School"]
[5134,"Star of the Sea Catholic School (Torquay)","Hughes Road","Torquay",4655,"Hughes Road, Torquay, 4655","NCR","Non-State School"]
[5735,"Star of the Sea Primary School (Cleveland)","53 Passage Street","Cleveland",4163,"53 Passage Street, Cleveland, 4163","SER","Non-State School"]
[5138,"Stella Maris School (Maroochydore)","McKenzie Drive","Maroochydore",4558,"McKenzie Drive, Maroochydore, 4558","NCR","Non-State School"]
[6325,"STEPS Positive Learning Centre","Cnr Fryar & River Hills Roads","Eagleby",4207,"Cnr Fryar & River Hills Roads, Eagleby, 4207","SER","Positive Learning Centre"]
[933,"Stonehenge State School","27 Bulford Street","Stonehenge",4730,"27 Bulford Street, Stonehenge, 4730","CQR","State School"]
[5959,"Strathpine SS - Special Education Program","Don Court","Strathpine",4500,"Don Court, Strathpine, 4500","NCR","Special Education Program"]
[1245,"Strathpine State School","Don Court","Strathpine",4500,"Don Court, Strathpine, 4500","NCR","State School"]
[6592,"Strathpine West SS - Special Education Program","Garbala Drive","Strathpine",4500,"Garbala Drive, Strathpine, 4500","NCR","Special Education Program"]
[1910,"Strathpine West State School","Garbala Drive","Strathpine",4500,"Garbala Drive, Strathpine, 4500","NCR","State School"]
[5554,"Stretton State College","226 Illaweena Street","Stretton",4116,"226 Illaweena Street, Stretton, 4116","MER","State School"]
[5960,"Stretton State College - Special Education Program","Gowan Road","Stretton",4116,"Gowan Road, Stretton, 4116","MER","Special Education Program"]
[5096,"Sts Peter and Paul's School (Bulimba)","33 Alexandra Street","Bulimba",4171,"33 Alexandra Street, Bulimba, 4171","MER","Non-State School"]
[5362,"Stuartholme School (Toowong)","365 Birdwood Terrace","Toowong",4066,"365 Birdwood Terrace, Toowong, 4066","MER","Non-State School"]
["A103","Students With A Goal Program","Sunshine Coast PCYC, 3 Youth Avenue","Burnside",4560,"Sunshine Coast PCYC, 3 Youth Avenue, Burnside, 4560","NCR","Support Unit (Other)"]
[5713,"Sunbury SS - Special Education Program","545 Alice Street","Maryborough",4650,"545 Alice Street, Maryborough, 4650","NCR","Special Education Program"]
[622,"Sunbury State School","545 Alice Street","Maryborough",4650,"545 Alice Street, Maryborough, 4650","NCR","State School"]
[5864,"Suncoast Christian College (Woombye)","Cnr Schubert and Kiel Mountain Roads","Woombye",4559,"Cnr Schubert and Kiel Mountain Roads, Woombye, 4559","NCR","Non-State School"]
[2198,"Sunnybank Hills SS - Special Education Program","c/- Sunnybank Hills SS, 77 Symons Road","Sunnybank Hills",4109,"c/- Sunnybank Hills SS, 77 Symons Road, Sunnybank Hills, 4109","MER","Special Education Program"]
[1889,"Sunnybank Hills State School","77 Symons Road","Sunnybank Hills",4109,"77 Symons Road, Sunnybank Hills, 4109","MER","State School"]
[5174,"Sunnybank SHS - Special Education Program","Boorman Street","Sunnybank",4109,"Boorman Street, Sunnybank, 4109","MER","Special Education Program"]
[9944,"Sunnybank SPEC S - Early Childhood Development Program","79 Troughton Road","Sunnybank",4109,"79 Troughton Road, Sunnybank, 4109","MER","Special Education Program"]
[3255,"Sunnybank Special Education Unit (ESL)","Boorman Street","Sunnybank",4109,"Boorman Street, Sunnybank, 4109","MER","Intensive English Centre"]
[3078,"Sunnybank Special School","79 Troughton Road","Sunnybank",4109,"79 Troughton Road, Sunnybank, 4109","MER","Special School"]
[9785,"Sunnybank SS - Special Education Program","50 Eddington Street","Sunnybank",4109,"50 Eddington Street, Sunnybank, 4109","MER","Special Education Program"]
[2080,"Sunnybank State High School","Boorman Street","Sunnybank",4109,"Boorman Street, Sunnybank, 4109","MER","State High School"]
[62,"Sunnybank State School","50 Eddington Street","Sunnybank",4109,"50 Eddington Street, Sunnybank, 4109","MER","State School"]
[3526,"Sunset SS - Special Education Program","Abel Smith Parade","Sunset",4825,"Abel Smith Parade, Sunset, 4825","NQR","Special Education Program"]
[965,"Sunset State School","Abel Smith Parade","Sunset",4825,"Abel Smith Parade, Sunset, 4825","NQR","State School"]
[2401,"Sunshine Beach SHS - Special Education Program","45 Ben Lexcen Drive","Sunshine Beach",4567,"45 Ben Lexcen Drive, Sunshine Beach, 4567","NCR","Special Education Program"]
[5961,"Sunshine Beach SS - Special Education Program","105 Ben Lexcen Drive","Sunshine Beach",4567,"105 Ben Lexcen Drive, Sunshine Beach, 4567","NCR","Special Education Program"]
[2108,"Sunshine Beach State High School","45 Ben Lexcen Drive","Sunshine Beach",4567,"45 Ben Lexcen Drive, Sunshine Beach, 4567","NCR","State High School"]
[1917,"Sunshine Beach State School","105 Ben Lexcen Drive","Sunshine Beach",4567,"105 Ben Lexcen Drive, Sunshine Beach, 4567","NCR","State School"]
[3580,"Sunshine Coast Environmental Education Centre","Maroochy Wetlands Sanctuary, Sports Road","Bli Bli",4560,"Maroochy Wetlands Sanctuary, Sports Road, Bli Bli, 4560","NCR","Outdoor and Environmental Education Centre"]
[3559,"Sunshine Coast Environmental Education Centre - Sunday Creek Campsite","Sunday Creek Road","Jimna",4515,"Sunday Creek Road, Jimna, 4515","NCR","Support Unit (Other)"]
[599,"Sunshine Coast Grammar School (Forest Glen)","372 Mons Road","Forest Glen",4556,"372 Mons Road, Forest Glen, 4556","NCR","Non-State School"]
["A799","Sunshine Coast University Hospital AMHU Class","Sunshine Coast University Hosp, 6 Doherty Street","Birtinya",4575,"Sunshine Coast University Hosp, 6 Doherty Street, Birtinya, 4575","NCR","Support Unit (Other)"]
["A608","Sunshine Coast University Hospital Paediatric Class","Sunshine Coast University Hosp, 6 Doherty Street","Birtinya",4575,"Sunshine Coast University Hosp, 6 Doherty Street, Birtinya, 4575","NCR","Support Unit (Other)"]
[142,"Surat State School","55 Robert Street","Surat",4417,"55 Robert Street, Surat, 4417","DSR","State School"]
[3544,"Surfers Paradise Special Education Unit (ESL)","42 St Andrews Avenue","Surfers Paradise",4217,"42 St Andrews Avenue, Surfers Paradise, 4217","SER","Intensive English Centre"]
[6230,"Surfers Paradise SS - Special Education Program","42 St Andrews Avenue","Surfers Paradise",4217,"42 St Andrews Avenue, Surfers Paradise, 4217","SER","Special Education Program"]
[1295,"Surfers Paradise State School","42 St Andrews Avenue","Surfers Paradise",4217,"42 St Andrews Avenue, Surfers Paradise, 4217","SER","State School"]
["A008","Swayneville SS - Special Education Program","952 Sarina Marlborough Road","Sarina",4737,"952 Sarina Marlborough Road, Sarina, 4737","CQR","Special Education Program"]
[1595,"Swayneville State School","952 Sarina Marlborough Road","Sarina",4737,"952 Sarina Marlborough Road, Sarina, 4737","CQR","State School"]
[6231,"Taabinga SS - Special Education Program","Rae Street","Kingaroy",4610,"Rae Street, Kingaroy, 4610","DSR","Special Education Program"]
[1096,"Taabinga State School","Rae Street","Kingaroy",4610,"Rae Street, Kingaroy, 4610","DSR","State School"]
[5726,"Tagai State College","District Office, 31 Hargrave Street","Thursday Island",4875,"District Office, 31 Hargrave Street, Thursday Island, 4875","FNR","State School"]
[1940,"Tagai State College - Badu Island Campus",null,"Badu Island",4875,", Badu Island, 4875","FNR","Campus"]
[1944,"Tagai State College - Darnley Island Campus","Darnley Island aka","Erub Island",4875,"Darnley Island aka, Erub Island, 4875","FNR","Campus"]
[1950,"Tagai State College - Dauan Island Campus",null,"Dauan Island",4875,", Dauan Island, 4875","FNR","Campus"]
[1995,"Tagai State College - Horn Island Campus","Nawie Street","Horn Island",4875,"Nawie Street, Horn Island, 4875","FNR","Campus"]
[1949,"Tagai State College - Kubin Campus","Kubin Village","Moa Island",4875,"Kubin Village, Moa Island, 4875","FNR","Campus"]
[1942,"Tagai State College - Mabuiag Island Campus",null,"Mabuiag Island",4875,", Mabuiag Island, 4875","FNR","Campus"]
[1941,"Tagai State College - Malu Kiwai Campus","School Road","Boigu Island",4875,"School Road, Boigu Island, 4875","FNR","Campus"]
[1943,"Tagai State College - Mer Campus","Murray Island Community","Mer Island",4875,"Murray Island Community, Mer Island, 4875","FNR","Campus"]
[1951,"Tagai State College - Poruma Campus","Olandi Street","Poruma Island",4875,"Olandi Street, Poruma Island, 4875","FNR","Campus"]
[1946,"Tagai State College - Saibai Island Campus",null,"Saibai Island",4875,", Saibai Island, 4875","FNR","Campus"]
[2242,"Tagai State College - Special Education Program","Summers Street","Thursday Island",4875,"Summers Street, Thursday Island, 4875","FNR","Special Education Program"]
[1953,"Tagai State College - St Pauls Campus","Moa Island","Moa Island",4875,"Moa Island, Moa Island, 4875","FNR","Campus"]
[1952,"Tagai State College - Stephen Island Campus",null,"Ugar Island",4875,", Ugar Island, 4875","FNR","Campus"]
[463,"Tagai State College - Thursday Island Primary Campus","Summers Street","Thursday Island",4875,"Summers Street, Thursday Island, 4875","FNR","Campus"]
[2114,"Tagai State College - Thursday Island Secondary","21 Aplin Road","Thursday Island",4875,"21 Aplin Road, Thursday Island, 4875","FNR","Campus"]
[1948,"Tagai State College - Warraber Island Campus",null,"Warraber Islet",4875,", Warraber Islet, 4875","FNR","Campus"]
[1947,"Tagai State College - Yam Island Campus","Yam Island aka","Iama Island",4875,"Yam Island aka, Iama Island, 4875","FNR","Campus"]
[1945,"Tagai State College - Yorke Island Campus","Yorke Island aka","Masig Island",4875,"Yorke Island aka, Masig Island, 4875","FNR","Campus"]
[5962,"Taigum SS - Special Education Program","266 Handford Road","Taigum",4018,"266 Handford Road, Taigum, 4018","MER","Special Education Program"]
[1112,"Taigum State School","266 Handford Road","Taigum",4018,"266 Handford Road, Taigum, 4018","MER","State School"]
[462,"Talara Primary College","Talara Street","Currimundi",4551,"Talara Street, Currimundi, 4551","NCR","State School"]
[5253,"Talara Primary College - Special Education Program","Talara Street","Currimundi",4551,"Talara Street, Currimundi, 4551","NCR","Special Education Program"]
[3555,"Tallebudgera Outdoor and Environmental Education Centre","1525 Gold Coast Highway","Palm Beach",4221,"1525 Gold Coast Highway, Palm Beach, 4221","SER","Outdoor and Environmental Education Centre"]
[6232,"Tallebudgera SS - Special Education Program","492 Guineas Creek Road","Tallebudgera",4228,"492 Guineas Creek Road, Tallebudgera, 4228","SER","Special Education Program"]
[201,"Tallebudgera State School","492 Guineas Creek Road","Tallebudgera",4228,"492 Guineas Creek Road, Tallebudgera, 4228","SER","State School"]
[1615,"Talwood State School","17 Recreation Street","North Talwood",4496,"17 Recreation Street, North Talwood, 4496","DSR","State School"]
[7374,"Tambo SS - Early Childhood Development Program","20 Mitchell Street","Tambo",4478,"20 Mitchell Street, Tambo, 4478","DSR","Special Education Program"]
[150,"Tambo State School","A Block, 20 Mitchell Street","Tambo",4478,"A Block, 20 Mitchell Street, Tambo, 4478","DSR","State School"]
[9,"Tamborine Mountain College (North Tamborine)","80 Beacon Road","North Tamborine",4272,"80 Beacon Road, North Tamborine, 4272","SER","Non-State School"]
[6444,"Tamborine Mountain SHS - Special Education Program","Holt Road","Tamborine Mountain",4272,"Holt Road, Tamborine Mountain, 4272","SER","Special Education Program"]
[5224,"Tamborine Mountain SS - Special Education Program","Curtis Road","Tamborine Mountain",4272,"Curtis Road, Tamborine Mountain, 4272","SER","Special Education Program"]
[2265,"Tamborine Mountain State High School","Holt Road","Tamborine Mountain",4272,"Holt Road, Tamborine Mountain, 4272","SER","State High School"]
[913,"Tamborine Mountain State School","Curtis Road","Tamborine Mountain",4272,"Curtis Road, Tamborine Mountain, 4272","SER","State School"]
[1252,"Tamrookum State School","9019 Mount Lindesay Highway","Tamrookum",4285,"9019 Mount Lindesay Highway, Tamrookum, 4285","SER","State School"]
[1446,"Tanduringie State School","32 Tanduringie School Road","Pimpimbudgee",4615,"32 Tanduringie School Road, Pimpimbudgee, 4615","DSR","State School"]
[5963,"Tannum Sands SHS - Special Education Program","65 Coronation Drive","Tannum Sands",4680,"65 Coronation Drive, Tannum Sands, 4680","CQR","Special Education Program"]
[6324,"Tannum Sands SHS Business and Information Technology Skills Centre","Handley Drive","Boyne Island",4680,"Handley Drive, Boyne Island, 4680","CQR","Support Unit (Other)"]
[5964,"Tannum Sands SS - Special Education Program","Waratah Crescent","Tannum Sands",4680,"Waratah Crescent, Tannum Sands, 4680","CQR","Special Education Program"]
[231,"Tannum Sands State High School","65 Coronation Drive","Tannum Sands",4680,"65 Coronation Drive, Tannum Sands, 4680","CQR","State High School"]
[1921,"Tannum Sands State School","Waratah Crescent","Tannum Sands",4680,"Waratah Crescent, Tannum Sands, 4680","CQR","State School"]
[2075,"Tara Shire College - Special Education Program","22 Binnie Street","Tara",4421,"22 Binnie Street, Tara, 4421","DSR","Special Education Program"]
[1357,"Tara Shire State College","22 Binnie Street","Tara",4421,"22 Binnie Street, Tara, 4421","DSR","State School"]
[271,"Tarampa State School","18 Manthey Road","Tarampa",4311,"18 Manthey Road, Tarampa, 4311","MER","State School"]
[3291,"Taranganba SS - Special Education Program","Taranganba SS, Taranganba Road","Taranganba",4703,"Taranganba SS, Taranganba Road, Taranganba, 4703","CQR","Special Education Program"]
[1992,"Taranganba State School","Taranganba Road","Taranganba",4703,"Taranganba Road, Taranganba, 4703","CQR","State School"]
[105,"Taroom State School","Wolsey Street","Taroom",4420,"Wolsey Street, Taroom, 4420","DSR","State School"]
[5687,"Tec-NQ (Douglas)","54 Discovery Drive","Douglas",4814,"54 Discovery Drive, Douglas, 4814","NQR","Non-State School"]
["A796","Tec-NQ (North Ward)","19 Eyre Street","North Ward",4810,"19 Eyre Street, North Ward, 4810","NQR","Associated Facility"]
[494,"Teelba State School","Teelba Road","Teelba",4423,"Teelba Road, Teelba, 4423","DSR","State School"]
[106,"Tent Hill Lower State School","90 Lower Tenthill Road","Lower Tenthill",4343,"90 Lower Tenthill Road, Lower Tenthill, 4343","DSR","State School"]
[3497,"Tewantin SS - Special Education Program","Werin Street","Tewantin",4565,"Werin Street, Tewantin, 4565","NCR","Special Education Program"]
[181,"Tewantin State School","Werin Street","Tewantin",4565,"Werin Street, Tewantin, 4565","NCR","State School"]
[437,"Texas P-10 State School","1 Flemming Street","Texas",4385,"1 Flemming Street, Texas, 4385","DSR","State School"]
[8782,"Texas SS - Special Education Program","1 Flemming Street","Texas",4385,"1 Flemming Street, Texas, 4385","DSR","Special Education Program"]
[1573,"Thabeban State School","270 Goodwood Road","Thabeban",4670,"270 Goodwood Road, Thabeban, 4670","NCR","State School"]
[1278,"Thallon State School","15 Henry Street","Thallon",4497,"15 Henry Street, Thallon, 4497","DSR","State School"]
[1840,"Thangool State School","2 Aerodrome Road","Thangool",4716,"2 Aerodrome Road, Thangool, 4716","CQR","State School"]
[409,"Thargomindah State School","Dowling Street","Thargomindah",4492,"Dowling Street, Thargomindah, 4492","DSR","State School"]
["A898","The BUSY School (Cairns) ","1 Wilkinson Street","Manunda",4870,"1 Wilkinson Street, Manunda, 4870","FNR","Non-State School"]
[5436,"The Cathedral College (Rockhampton)","189 William Street","Rockhampton",4700,"189 William Street, Rockhampton, 4700","CQR","Non-State School"]
[5454,"The Cathedral School of St Anne and St James (Mundingburra)","154 Ross River Road","Mundingburra",4812,"154 Ross River Road, Mundingburra, 4812","NQR","Non-State School"]
[1018,"The Caves State School","1 Barmoya Road","The Caves",4702,"1 Barmoya Road, The Caves, 4702","CQR","State School"]
[1665,"The Centre Education Programme (Kingston)","108 Mudgee Street","Kingston",4114,"108 Mudgee Street, Kingston, 4114","SER","Non-State School"]
[5965,"The Gap SHS - Special Education Program","1020 Waterworks Road","The Gap",4061,"1020 Waterworks Road, The Gap, 4061","MER","Special Education Program"]
[5276,"The Gap SS - Special Education Program","Cnr Waterworks & Settlement Roads","The Gap",4061,"Cnr Waterworks & Settlement Roads, The Gap, 4061","MER","Special Education Program"]
[2053,"The Gap State High School","1020 Waterworks Road","The Gap",4061,"1020 Waterworks Road, The Gap, 4061","MER","State High School"]
[1302,"The Gap State School","Cnr Waterworks & Settlement Roads","The Gap",4061,"Cnr Waterworks & Settlement Roads, The Gap, 4061","MER","State School"]
[5859,"The Glenleighden School (Fig Tree Pocket)","33 Cubberla Street","Fig Tree Pocket",4069,"33 Cubberla Street, Fig Tree Pocket, 4069","MER","Non-State School"]
[5461,"The Glennie School (Toowoomba)","246A - 248 Herries Street","Toowoomba",4350,"246A - 248 Herries Street, Toowoomba, 4350","DSR","Non-State School"]
[1360,"The Gums State School","12051 Coomrith Road","The Gums",4406,"12051 Coomrith Road, The Gums, 4406","DSR","State School"]
[3545,"The Hall SS - Special Education Program","The Hall SS, Murray Street","Wandal",4700,"The Hall SS, Murray Street, Wandal, 4700","CQR","Special Education Program"]
[1195,"The Hall State School","Murray Street","Wandal",4700,"Murray Street, Wandal, 4700","CQR","State School"]
[5468,"The Kooralbyn International School (Kooralbyn)","Ogilvie Place","Kooralbyn",4285,"Ogilvie Place, Kooralbyn, 4285","SER","Non-State School"]
[5403,"The Lakes College (North Lakes)","2 College Street","North Lakes",4509,"2 College Street, North Lakes, 4509","NCR","Non-State School"]
["A662","The Rainforest School (Maria Creeks)","18 South Maria Creek Close","Maria Creeks",4855,"18 South Maria Creek Close, Maria Creeks, 4855","FNR","Non-State School"]
[96,"The River School (Maleny)","251 Bridge Creek Road","Maleny",4552,"251 Bridge Creek Road, Maleny, 4552","NCR","Non-State School"]
[5517,"The Rockhampton Grammar School (Agnes St, Rockhampton)","53 - 89 Agnes Street","Rockhampton",4700,"53 - 89 Agnes Street, Rockhampton, 4700","CQR","Non-State School"]
[9736,"The Rockhampton Grammar School (Quarry St, Rockhampton)","124 Quarry Street","Rockhampton",4700,"124 Quarry Street, Rockhampton, 4700","CQR","Associated Facility"]
[5502,"The School of Total Education (Warwick)","2 Freestone Road","Warwick",4370,"2 Freestone Road, Warwick, 4370","DSR","Non-State School"]
[2477,"The SCOTS PGC College (Locke St, Warwick)","4 Locke Street","Warwick",4370,"4 Locke Street, Warwick, 4370","DSR","Associated Facility"]
[5560,"The SCOTS PGC College (Oxenham St, Warwick)","60 Oxenham Street","Warwick",4370,"60 Oxenham Street, Warwick, 4370","DSR","Non-State School"]
[5453,"The Southport School (Southport)","Winchester Street","Southport",4215,"Winchester Street, Southport, 4215","SER","Non-State School"]
["A016","The Spot Academy (Parkinson)","Level 3, 61 Sandstone Place","Parkinson",4115,"Level 3, 61 Sandstone Place, Parkinson, 4115","MER","Non-State School"]
[1850,"The Springfield Anglican College (Springfield College Dr, Springfield)","Springfield College Drive","Springfield",4300,"Springfield College Drive, Springfield, 4300","MER","Associated Facility"]
[5686,"The Springfield Anglican College (Springfield Greenbank Arterial, Springfield)","68 Springfield Greenbank Arterial","Springfield",4300,"68 Springfield Greenbank Arterial, Springfield, 4300","MER","Non-State School"]
[1714,"The Summit State School","Taggart's Road","The Summit",4377,"Taggart's Road, The Summit, 4377","DSR","State School"]
["A038","The Sycamore School (Alexandra Hills)","TAFE Campus, 29 Windemere Road","Alexandra Hills",4161,"TAFE Campus, 29 Windemere Road, Alexandra Hills, 4161","SER","Non-State School"]
[5659,"The Willows SS - Special Education Program","c/- The Willows SS, Bilberry Street","Kirwan",4817,"c/- The Willows SS, Bilberry Street, Kirwan, 4817","NQR","Special Education Program"]
[287,"The Willows State School","Bilberry Street","Kirwan",4817,"Bilberry Street, Kirwan, 4817","NQR","State School"]
[579,"Theebine State School","Scrub Road","Theebine",4570,"Scrub Road, Theebine, 4570","NCR","State School"]
[676,"Theodore State School","The Boulevard","Theodore",4719,"The Boulevard, Theodore, 4719","CQR","State School"]
[3456,"Thornlands SS - Special Education Program","Panorama Drive","Thornlands",4164,"Panorama Drive, Thornlands, 4164","SER","Special Education Program"]
[1240,"Thornlands State School","Panorama Drive","Thornlands",4164,"Panorama Drive, Thornlands, 4164","SER","State School"]
[245,"Thornton State School","4 Thornton School Road","Thornton",4341,"4 Thornton School Road, Thornton, 4341","DSR","State School"]
[803,"Thulimbah State School","146 Thulimbah School Road","Thulimbah",4376,"146 Thulimbah School Road, Thulimbah, 4376","DSR","State School"]
[2249,"Thuringowa SHS - Special Education Program","26 - 54 Vickers Road South","Condon",4815,"26 - 54 Vickers Road South, Condon, 4815","NQR","Special Education Program"]
[2172,"Thuringowa State High School","26 - 54 Vickers Road South","Condon",4815,"26 - 54 Vickers Road South, Condon, 4815","NQR","State High School"]
[107,"Tiaro State School","1 Forgan Terrace","Tiaro",4650,"1 Forgan Terrace, Tiaro, 4650","NCR","State School"]
[1926,"Tieri State School","Bottlebrush Lane","Tieri",4709,"Bottlebrush Lane, Tieri, 4709","CQR","State School"]
[2299,"Tin Can Bay SS - Special Education Program","2 Schnapper Creek Road","Tin Can Bay",4580,"2 Schnapper Creek Road, Tin Can Bay, 4580","NCR","Special Education Program"]
[577,"Tin Can Bay State School","2 Schnapper Creek Road","Tin Can Bay",4580,"2 Schnapper Creek Road, Tin Can Bay, 4580","NCR","State School"]
[5966,"Tinana SS - Special Education Program","239 Gympie Road","Tinana",4650,"239 Gympie Road, Tinana, 4650","NCR","Special Education Program"]
[216,"Tinana State School","239 Gympie Road","Tinana",4650,"239 Gympie Road, Tinana, 4650","NCR","State School"]
[3583,"Tinaroo Environmental Education Centre","Black Gully Road","Lake Tinaroo",4872,"Black Gully Road, Lake Tinaroo, 4872","FNR","Outdoor and Environmental Education Centre"]
["A720","Tinaroo Environmental Education Centre - Barron River Site","30-46 Tinaroo Falls Dam Road","Tinaroo",4872,"30-46 Tinaroo Falls Dam Road, Tinaroo, 4872","FNR","Support Unit (Other)"]
[127,"Tingalpa State School","1546 Wynnum Road","Tingalpa",4173,"1546 Wynnum Road, Tingalpa, 4173","MER","State School"]
[864,"Tingoora State School","6 Main Street","Tingoora",4608,"6 Main Street, Tingoora, 4608","DSR","State School"]
[224,"Tivoli State School","108 Mount Crosby Road","Tivoli",4305,"108 Mount Crosby Road, Tivoli, 4305","MER","State School"]
[629,"Tolga State School","Main Street","Tolga",4882,"Main Street, Tolga, 4882","FNR","State School"]
["A026","Tom Quinn Community Centre Alternative School (Bundaberg)","8 Killer Street","Bundaberg",4670,"8 Killer Street, Bundaberg, 4670","NCR","Non-State School"]
[1777,"Toobanna State School","Bruce Highway","Toobanna",4850,"Bruce Highway, Toobanna, 4850","NQR","State School"]
[1802,"Toogoolawa School (Ormeau)","138 Reedmans Road","Ormeau",4208,"138 Reedmans Road, Ormeau, 4208","SER","Non-State School"]
[2179,"Toogoolawah State High School","76 Old Mount Beppo Road","Toogoolawah",4313,"76 Old Mount Beppo Road, Toogoolawah, 4313","DSR","State High School"]
[1069,"Toogoolawah State School","Gardner Street","Toogoolawah",4313,"Gardner Street, Toogoolawah, 4313","DSR","State School"]
[2260,"Toohey Forest Environmental Education Centre","Floor 1 Toohey Forest EEC, South Ring Road","Nathan",4111,"Floor 1 Toohey Forest EEC, South Ring Road, Nathan, 4111","MER","Outdoor and Environmental Education Centre"]
[6155,"Toolooa SHS - Flexible Learning Centre","Philip Street","South Gladstone",4680,"Philip Street, South Gladstone, 4680","CQR","Support Unit (Other)"]
[5779,"Toolooa SHS - Special Education Program","Philip Street","South Gladstone",4680,"Philip Street, South Gladstone, 4680","CQR","Special Education Program"]
[2152,"Toolooa State High School","Philip Street","South Gladstone",4680,"Philip Street, South Gladstone, 4680","CQR","State High School"]
[5707,"Toowong SS - Special Education Program","37 St Osyth Street","Toowong",4066,"37 St Osyth Street, Toowong, 4066","MER","Special Education Program"]
[13,"Toowong State School","37 St Osyth Street","Toowong",4066,"37 St Osyth Street, Toowong, 4066","MER","State School"]
[5444,"Toowoomba Anglican School (Toowoomba)","2 Campbell Street","Toowoomba",4350,"2 Campbell Street, Toowoomba, 4350","DSR","Non-State School"]
[5581,"Toowoomba Christian College (Highfields)","10852 New England Highway","Highfields",4352,"10852 New England Highway, Highfields, 4352","DSR","Non-State School"]
[3366,"Toowoomba Early Childhood Development Program","13 Bowtell Street","Rangeville",4350,"13 Bowtell Street, Rangeville, 4350","DSR","Special Education Program"]
[5782,"Toowoomba East SS - Special Education Program","Cnr Arthur & Mary Streets","East Toowoomba",4350,"Cnr Arthur & Mary Streets, East Toowoomba, 4350","DSR","Special Education Program"]
[499,"Toowoomba East State School","Cnr Arthur & Mary Streets","East Toowoomba",4350,"Cnr Arthur & Mary Streets, East Toowoomba, 4350","DSR","State School"]
[5516,"Toowoomba Grammar School (East Toowoomba)","24 Margaret Street","East Toowoomba",4350,"24 Margaret Street, East Toowoomba, 4350","DSR","Non-State School"]
["A805","Toowoomba Hospital Class","Toowoomba Hospital, 154 Pechey Strreet","Toowoomba",4350,"Toowoomba Hospital, 154 Pechey Strreet, Toowoomba, 4350","DSR","Support Unit (Other)"]
[5783,"Toowoomba North SS - Special Education Program","Cnr Mort & Taylor Streets","Toowoomba",4350,"Cnr Mort & Taylor Streets, Toowoomba, 4350","DSR","Special Education Program"]
[110,"Toowoomba North State School","Cnr Mort & Taylor Streets","Toowoomba",4350,"Cnr Mort & Taylor Streets, Toowoomba, 4350","DSR","State School"]
[5722,"Toowoomba Positive Learning Centre","Denise Kable Campus, 58 Ramsay Street","Centenary Heights",4350,"Denise Kable Campus, 58 Ramsay Street, Centenary Heights, 4350","DSR","Positive Learning Centre"]
[535,"Toowoomba SHS - Special Education Program","Stuart Street","Mount Lofty",4350,"Stuart Street, Mount Lofty, 4350","DSR","Special Education Program"]
[2013,"Toowoomba State High School","Stuart Street","Mount Lofty",4350,"Stuart Street, Mount Lofty, 4350","DSR","State High School"]
[9928,"Toowoomba West SPEC S - Early Childhood Development Program","26 Gladstone Street","Newtown",4350,"26 Gladstone Street, Newtown, 4350","DSR","Special Education Program"]
[3032,"Toowoomba West Special School","26 Gladstone Street","Newtown",4350,"26 Gladstone Street, Newtown, 4350","DSR","Special School"]
[522,"Torbanlea State School","Pialba Road","Torbanlea",4662,"Pialba Road, Torbanlea, 4662","NCR","State School"]
[6233,"Torquay SS - Special Education Program","Tavistock Street","Torquay",4655,"Tavistock Street, Torquay, 4655","NCR","Special Education Program"]
[945,"Torquay State School","Tavistock Street","Torquay",4655,"Tavistock Street, Torquay, 4655","NCR","State School"]
[7576,"Townsville AIUDS Class","Kirwan Health Campus, 138 Thuringowa Drive","Kirwan",4817,"Kirwan Health Campus, 138 Thuringowa Drive, Kirwan, 4817","NQR","Support Unit (Other)"]
[113,"Townsville Central State School","4 Warburton Street","North Ward",4810,"4 Warburton Street, North Ward, 4810","NQR","State School"]
[9973,"Townsville Christian College (Vincent)","210 Palmerston Street","Vincent",4814,"210 Palmerston Street, Vincent, 4814","NQR","Non-State School"]
[2376,"Townsville Community Learning Centre - A State Special School","78 Thompson Street","Mundingburra",4812,"78 Thompson Street, Mundingburra, 4812","NQR","Special School"]
[5639,"Townsville Flexible Learning Centre (West End, Townsville)","26 Ingham Road","West End, Townsville",4810,"26 Ingham Road, West End, Townsville, 4810","NQR","Non-State School"]
[2481,"Townsville Grammar School (Annandale)","1 Brazier Drive","Annandale",4814,"1 Brazier Drive, Annandale, 4814","NQR","Associated Facility"]
[9293,"Townsville Grammar School (Burdell)","Cnr Erskine Place & North Shore Boulevard","Burdell",4818,"Cnr Erskine Place & North Shore Boulevard, Burdell, 4818","NQR","Associated Facility"]
[5506,"Townsville Grammar School (North Ward)","45 Paxton Street","North Ward",4810,"45 Paxton Street, North Ward, 4810","NQR","Non-State School"]
["A802","Townsville Hospital Class","Townsville Hospital, 100 Angus Smith Drive","Douglas",4814,"Townsville Hospital, 100 Angus Smith Drive, Douglas, 4814","NQR","Support Unit (Other)"]
[5669,"Townsville Positive Learning Centre","36 Boundary Street","Railway Estate",4810,"36 Boundary Street, Railway Estate, 4810","NQR","Positive Learning Centre"]
[5785,"Townsville SHS - Special Education Program","36 Boundary Street","Railway Estate",4810,"36 Boundary Street, Railway Estate, 4810","NQR","Special Education Program"]
[9663,"Townsville SHS Intensive English Centre","36 Boundary Street","Railway Estate",4810,"36 Boundary Street, Railway Estate, 4810","NQR","Intensive English Centre"]
[303,"Townsville South State School","78 Tully Street","South Townsville",4810,"78 Tully Street, South Townsville, 4810","NQR","State School"]
[2100,"Townsville State High School","36 Boundary Street","Railway Estate",4810,"36 Boundary Street, Railway Estate, 4810","NQR","State High School"]
[498,"Townsville West State School","Wilson Street","West End",4810,"Wilson Street, West End, 4810","NQR","State School"]
[3704,"Townsville-Thuringowa Centre for Continuing Secondary Education","Cnr Hanlon Street & Fulham Road","Heatley",4814,"Cnr Hanlon Street & Fulham Road, Heatley, 4814","NQR","Centre for Continuing Secondary Education"]
[1203,"Townview State School","64-72 Clarke Street","Townview",4825,"64-72 Clarke Street, Townview, 4825","NQR","State School"]
[1118,"Trebonne State School","71 Stone River Road","Trebonne",4850,"71 Stone River Road, Trebonne, 4850","NQR","State School"]
[420,"Tresswell State School","Tambo Road","Nandowrie",4722,"Tambo Road, Nandowrie, 4722","CQR","State School"]
[2485,"Trinity Anglican School (Kewarra Beach)","Poolwood Road","Kewarra Beach",4879,"Poolwood Road, Kewarra Beach, 4879","FNR","Associated Facility"]
[5447,"Trinity Anglican School (White Rock)","Progress Road","White Rock",4868,"Progress Road, White Rock, 4868","FNR","Non-State School"]
[2380,"Trinity Bay SHS - Special Education Program","26-62 Hoare Street","Manunda",4870,"26-62 Hoare Street, Manunda, 4870","FNR","Special Education Program"]
[6485,"Trinity Bay SHS Intensive English Centre","26-62 Hoare Street","Manunda",4870,"26-62 Hoare Street, Manunda, 4870","FNR","Intensive English Centre"]
[2057,"Trinity Bay State High School","26-62 Hoare Street","Manunda",4870,"26-62 Hoare Street, Manunda, 4870","FNR","State High School"]
[5367,"Trinity College (Beenleigh)","Scott Street","Beenleigh",4207,"Scott Street, Beenleigh, 4207","SER","Non-State School"]
[5577,"Trinity College (Gladstone)","4 Archer Street","Gladstone",4680,"4 Archer Street, Gladstone, 4680","CQR","Non-State School"]
[2442,"Trinity Lutheran College (Ashmore Rd, Ashmore)","641 Ashmore Road","Ashmore",4214,"641 Ashmore Road, Ashmore, 4214","SER","Non-State School"]
[2443,"Trinity Lutheran College (Cotlew St, Ashmore)","251 Cotlew Street","Ashmore",4214,"251 Cotlew Street, Ashmore, 4214","SER","Associated Facility"]
[3233,"Tropical North Learning Academy - Smithfield SHS - Special Education Program","c/- Smithfield SHS, O'Brien Road","Smithfield",4878,"c/- Smithfield SHS, O'Brien Road, Smithfield, 4878","FNR","Special Education Program"]
[2159,"Tropical North Learning Academy - Smithfield State High School","O'Brien Road","Smithfield",4878,"O'Brien Road, Smithfield, 4878","FNR","State High School"]
[3527,"Tropical North Learning Academy - Trinity Beach SS - Special Education Program","Huon Street","Trinity Beach",4879,"Huon Street, Trinity Beach, 4879","FNR","Special Education Program"]
[1893,"Tropical North Learning Academy - Trinity Beach State School","Wewak Street","Trinity Beach",4879,"Wewak Street, Trinity Beach, 4879","FNR","State School"]
[2194,"Tullawong SHS - Special Education Program","c/- Tullawong SHS, Del Rosso Road","Caboolture",4510,"c/- Tullawong SHS, Del Rosso Road, Caboolture, 4510","NCR","Special Education Program"]
[503,"Tullawong SS - Special Education Program","60-94 Smiths Road","Caboolture",4510,"60-94 Smiths Road, Caboolture, 4510","NCR","Special Education Program"]
[2188,"Tullawong State High School","Del Rosso Road","Caboolture",4510,"Del Rosso Road, Caboolture, 4510","NCR","State High School"]
[1994,"Tullawong State School","60-94 Smiths Road","Caboolture",4510,"60-94 Smiths Road, Caboolture, 4510","NCR","State School"]
[5550,"Tully District SHS - Special Education Program","59337 Bruce Highway","Tully",4854,"59337 Bruce Highway, Tully, 4854","FNR","Special Education Program"]
[5988,"Tully SS - Special Education Program","c/- Tully State School, 21 Mars Street","Tully",4854,"c/- Tully State School, 21 Mars Street, Tully, 4854","FNR","Special Education Program"]
[2103,"Tully State High School","59337 Bruce Highway","Tully",4854,"59337 Bruce Highway, Tully, 4854","FNR","State High School"]
[1008,"Tully State School","21 Mars Street","Tully",4854,"21 Mars Street, Tully, 4854","FNR","State School"]
[2287,"Turning Point Positive Learning Centre","Capalaba State College, School Road","Capalaba",4157,"Capalaba State College, School Road, Capalaba, 4157","SER","Positive Learning Centre"]
[361,"Two Mile State School","288 Bruce Highway North","Two Mile, Gympie",4570,"288 Bruce Highway North, Two Mile, Gympie, 4570","NCR","State School"]
[879,"Ubobo State School","Cedarvale Road","Boyne Valley",4680,"Cedarvale Road, Boyne Valley, 4680","CQR","State School"]
[3271,"Undurba SS - Special Education Program","49-57 Ogg Road","Murrumba Downs",4503,"49-57 Ogg Road, Murrumba Downs, 4503","NCR","Special Education Program"]
[1877,"Undurba State School","49-57 Ogg Road","Murrumba Downs",4503,"49-57 Ogg Road, Murrumba Downs, 4503","NCR","State School"]
[5475,"Unity College (Caloundra West)","47 Lomond Crescent, Bellvista Estate","Caloundra West",4551,"47 Lomond Crescent, Bellvista Estate, Caloundra West, 4551","NCR","Non-State School"]
[1501,"Upper Brookfield State School","496 Upper Brookfield Road","Upper Brookfield",4069,"496 Upper Brookfield Road, Upper Brookfield, 4069","MER","State School"]
[2340,"Upper Coomera State College","137 Reserve Road","Upper Coomera",4209,"137 Reserve Road, Upper Coomera, 4209","SER","State School"]
[5297,"Upper Coomera State College - Special Education Program","137 Reserve Road","Upper Coomera",4209,"137 Reserve Road, Upper Coomera, 4209","SER","Special Education Program"]
[9787,"Upper Mount Gravatt SS - Special Education Program","1899 Logan Road","Upper Mount Gravatt",4122,"1899 Logan Road, Upper Mount Gravatt, 4122","MER","Special Education Program"]
[128,"Upper Mount Gravatt State School","1899 Logan Road","Upper Mount Gravatt",4122,"1899 Logan Road, Upper Mount Gravatt, 4122","MER","State School"]
[1755,"Urandangi State School","Margaret Street","Piturie",4825,"Margaret Street, Piturie, 4825","NQR","State School"]
[6236,"Urangan Point SS - Special Education Program","Miller Street","Urangan",4655,"Miller Street, Urangan, 4655","NCR","Special Education Program"]
[1536,"Urangan Point State School","Miller Street","Urangan",4655,"Miller Street, Urangan, 4655","NCR","State School"]
[5997,"Urangan SHS - Special Education Program","c/- Urangan State High School, Robert Street","Urangan",4655,"c/- Urangan State High School, Robert Street, Urangan, 4655","NCR","Special Education Program"]
[2110,"Urangan State High School","Robert Street","Urangan",4655,"Robert Street, Urangan, 4655","NCR","State High School"]
[844,"Vale View State School","873 Drayton Connection Road","Vale View",4352,"873 Drayton Connection Road, Vale View, 4352","DSR","State School"]
[403,"Valkyrie State School","Fitzroy Developmental Road","Valkyrie",4742,"Fitzroy Developmental Road, Valkyrie, 4742","CQR","State School"]
[1759,"Varsity College","198 Varsity Parade","Varsity Lakes",4227,"198 Varsity Parade, Varsity Lakes, 4227","SER","State School"]
[5787,"Varsity College - Special Education Program","198 Varsity Parade","Varsity Lakes",4227,"198 Varsity Parade, Varsity Lakes, 4227","SER","Special Education Program"]
["A012","Varsity Learning Centre","Suite B6, 1 Bellevue Drive","Varsity Lakes",4227,"Suite B6, 1 Bellevue Drive, Varsity Lakes, 4227","SER","Support Unit (Other)"]
["A769","Veresdale Scrub SS - Special Education Program","354 Veresdale Scrub School Road","Veresdale Scrub",4285,"354 Veresdale Scrub School Road, Veresdale Scrub, 4285","SER","Special Education Program"]
[869,"Veresdale Scrub State School","354 Veresdale Scrub School Road","Veresdale Scrub",4285,"354 Veresdale Scrub School Road, Veresdale Scrub, 4285","SER","State School"]
[5788,"Victoria Park SS - Special Education Program","15 Goldsmith Street","East Mackay",4740,"15 Goldsmith Street, East Mackay, 4740","CQR","Special Education Program"]
[1855,"Victoria Park State School","15 Goldsmith Street","East Mackay",4740,"15 Goldsmith Street, East Mackay, 4740","CQR","State School"]
[628,"Victoria Plantation State School","244 Forrest Beach Road","Victoria Plantation",4850,"244 Forrest Beach Road, Victoria Plantation, 4850","NQR","State School"]
[5660,"Victoria Point SHS - Special Education Program","c/- Victoria Point SHS, 93-131 Benfer Road","Victoria Point",4165,"c/- Victoria Point SHS, 93-131 Benfer Road, Victoria Point, 4165","SER","Special Education Program"]
[5433,"Victoria Point SS - Special Education Program","c/- Victoria Point SS, School Road","Victoria Point",4165,"c/- Victoria Point SS, School Road, Victoria Point, 4165","SER","Special Education Program"]
[234,"Victoria Point State High School","93-131 Benfer Road","Victoria Point",4165,"93-131 Benfer Road, Victoria Point, 4165","SER","State High School"]
[1512,"Victoria Point State School","School Road","Victoria Point",4165,"School Road, Victoria Point, 4165","SER","State School"]
[5869,"Victory College (Gympie)","173 Old Maryborough Road","Gympie",4570,"173 Old Maryborough Road, Gympie, 4570","NCR","Non-State School"]
[7958,"Vienna Woods SS - Special Education Program","12 Heffernan Road","Alexandra Hills",4161,"12 Heffernan Road, Alexandra Hills, 4161","SER","Special Education Program"]
[1936,"Vienna Woods State School","12 Heffernan Road","Alexandra Hills",4161,"12 Heffernan Road, Alexandra Hills, 4161","SER","State School"]
[5310,"Villanova College (Coorparoo)","24 Sixth Avenue","Coorparoo",4151,"24 Sixth Avenue, Coorparoo, 4151","MER","Non-State School"]
[3301,"Vincent SS - Early Childhood Development Program","280 Palmerston Street","Vincent",4814,"280 Palmerston Street, Vincent, 4814","NQR","Special Education Program"]
[3498,"Vincent SS - Special Education Program","280 Palmerston Street","Vincent",4814,"280 Palmerston Street, Vincent, 4814","NQR","Special Education Program"]
[948,"Vincent State School","280 Palmerston Street","Vincent",4814,"280 Palmerston Street, Vincent, 4814","NQR","State School"]
[5789,"Virginia SS - Special Education Program","1678 Sandgate Road","Virginia",4014,"1678 Sandgate Road, Virginia, 4014","MER","Special Education Program"]
[1675,"Virginia State School","1678 Sandgate Road","Virginia",4014,"1678 Sandgate Road, Virginia, 4014","MER","State School"]
["A817","Vocational Training Queensland","99 Wolston Park Road","Wacol",4076,"99 Wolston Park Road, Wacol, 4076","MER","Support Unit (Other)"]
[5521,"Wadja Wadja High School (Woorabinda)","116 Munns Drive","Woorabinda",4713,"116 Munns Drive, Woorabinda, 4713","CQR","Non-State School"]
[760,"Walkamin State School","40 Wattle Street","Walkamin",4872,"40 Wattle Street, Walkamin, 4872","FNR","State School"]
[353,"Walkerston State School","13a Mc Coll Street","Walkerston",4751,"13a Mc Coll Street, Walkerston, 4751","CQR","State School"]
[2377,"Walkervale SS - Special Education Program","46a Hurst Street","Walkervale",4670,"46a Hurst Street, Walkervale, 4670","NCR","Special Education Program"]
[536,"Walkervale State School","46a Hurst Street","Walkervale",4670,"46a Hurst Street, Walkervale, 4670","NCR","State School"]
[458,"Wallangarra State School","50 Callandoon Street","Wallangarra",4383,"50 Callandoon Street, Wallangarra, 4383","DSR","State School"]
[1192,"Wallaville State School","7 Grey Street","Wallaville",4671,"7 Grey Street, Wallaville, 4671","NCR","State School"]
[7938,"Walloon SS - Special Education Program","Karrabin-Rosewood Road","Walloon",4306,"Karrabin-Rosewood Road, Walloon, 4306","MER","Special Education Program"]
[285,"Walloon State School","Karrabin-Rosewood Road","Walloon",4306,"Karrabin-Rosewood Road, Walloon, 4306","MER","State School"]
[182,"Wallumbilla State School","22 High Street","Wallumbilla",4428,"22 High Street, Wallumbilla, 4428","DSR","State School"]
[1724,"Wamuran State School","1066-1086 D'Aguilar Highway","Wamuran",4512,"1066-1086 D'Aguilar Highway, Wamuran, 4512","NCR","State School"]
[1296,"Wandoan State School P-10","49 North Street","Wandoan",4419,"49 North Street, Wandoan, 4419","DSR","State School"]
[2026,"Wanpa-rda Matilda Outback Education Centre","Barcaldine Heritage Centre, Cnr Ash & Willow Streets","Barcaldine",4725,"Barcaldine Heritage Centre, Cnr Ash & Willow Streets, Barcaldine, 4725","CQR","Outdoor and Environmental Education Centre"]
[7933,"Waraburra SS - Special Education Program","55 Johnson Road","Gracemere",4702,"55 Johnson Road, Gracemere, 4702","CQR","Special Education Program"]
[1971,"Waraburra State School","55 Johnson Road","Gracemere",4702,"55 Johnson Road, Gracemere, 4702","CQR","State School"]
[386,"Warra State School","Robinson Street","Warra",4411,"Robinson Street, Warra, 4411","DSR","State School"]
[3417,"Warrigal Road SS - Special Education Program","314 Warrigal Road","Eight Mile Plains",4113,"314 Warrigal Road, Eight Mile Plains, 4113","MER","Special Education Program"]
[1885,"Warrigal Road State School","314 Warrigal Road","Eight Mile Plains",4113,"314 Warrigal Road, Eight Mile Plains, 4113","MER","State School"]
[1230,"Warrill View State School","Cunningham Highway","Warrill View",4307,"Cunningham Highway, Warrill View, 4307","SER","State School"]
[1159,"Wartburg State School","585 Coast Road","Baffle Creek",4674,"585 Coast Road, Baffle Creek, 4674","NCR","State School"]
[6238,"Warwick Central SS - Special Education Program","Cnr Guy & Percy Streets","Warwick",4370,"Cnr Guy & Percy Streets, Warwick, 4370","DSR","Special Education Program"]
[116,"Warwick Central State School","Cnr Guy & Percy Streets","Warwick",4370,"Cnr Guy & Percy Streets, Warwick, 4370","DSR","State School"]
[5681,"Warwick Christian College (Canningvale Rd, Warwick)","62 Canningvale Road","Warwick",4370,"62 Canningvale Road, Warwick, 4370","DSR","Associated Facility - Special Assistance School"]
["A757","Warwick Christian College (Glengallan Rd, Warwick)","106 Glengallan Road","Warwick",4370,"106 Glengallan Road, Warwick, 4370","DSR","Associated Facility - Special Assistance School"]
[8387,"Warwick Christian College (Horsman Rd, Warwick)","70 Horsman Road","Warwick",4370,"70 Horsman Road, Warwick, 4370","DSR","Non-State School"]
[3441,"Warwick East SS - Special Education Program","Fitzroy Street","Warwick",4370,"Fitzroy Street, Warwick, 4370","DSR","Special Education Program"]
[225,"Warwick East State School","Fitzroy Street","Warwick",4370,"Fitzroy Street, Warwick, 4370","DSR","State School"]
[3234,"Warwick SHS - Special Education Program","Palmerin Street","Warwick",4370,"Palmerin Street, Warwick, 4370","DSR","Special Education Program"]
[2015,"Warwick State High School","Palmerin Street","Warwick",4370,"Palmerin Street, Warwick, 4370","DSR","State High School"]
[2243,"Warwick West SS - Special Education Program","17 George Street","Warwick",4370,"17 George Street, Warwick, 4370","DSR","Special Education Program"]
[1152,"Warwick West State School","17 George Street","Warwick",4370,"17 George Street, Warwick, 4370","DSR","State School"]
[2394,"Waterford SS - Special Education Program","Jordan Street","Waterford",4133,"Jordan Street, Waterford, 4133","SER","Special Education Program"]
[130,"Waterford State School","40 Nerang Street","Waterford",4133,"40 Nerang Street, Waterford, 4133","SER","State School"]
[3264,"Waterford West SS - Special Education Program","John Street","Waterford West",4133,"John Street, Waterford West, 4133","SER","Special Education Program"]
[1856,"Waterford West State School","John Street","Waterford West",4133,"John Street, Waterford West, 4133","SER","State School"]
[584,"Watson Road State School","210 Watson Road","Acacia Ridge",4110,"210 Watson Road, Acacia Ridge, 4110","MER","State School"]
[1149,"Wavell Heights State School","Minore Street","Wavell Heights",4012,"Minore Street, Wavell Heights, 4012","MER","State School"]
[5221,"Wavell SHS - Special Education Program","Telopia Avenue","Wavell Heights",4012,"Telopia Avenue, Wavell Heights, 4012","MER","Special Education Program"]
[2048,"Wavell State High School","Telopia Avenue","Wavell Heights",4012,"Telopia Avenue, Wavell Heights, 4012","MER","State High School"]
[5998,"Weir SS - Special Education Program","c/- Weir State School, 592 Ross River Road","Thuringowa Central",4817,"c/- Weir State School, 592 Ross River Road, Thuringowa Central, 4817","NQR","Special Education Program"]
[395,"Weir State School","592 Ross River Road","Thuringowa Central",4817,"592 Ross River Road, Thuringowa Central, 4817","NQR","State School"]
[855,"Wellcamp State School","609 Drayton-Wellcamp Road","Wellcamp",4350,"609 Drayton-Wellcamp Road, Wellcamp, 4350","DSR","State School"]
[1844,"Wellers Hill State School","190 Toohey Road","Tarragindi",4121,"190 Toohey Road, Tarragindi, 4121","MER","State School"]
[5169,"Wellington Point SHS - Special Education Program","Badgen Road","Wellington Point",4160,"Badgen Road, Wellington Point, 4160","SER","Special Education Program"]
[6443,"Wellington Point SS - Special Education Program","476 Main Road","Wellington Point",4160,"476 Main Road, Wellington Point, 4160","SER","Special Education Program"]
[2178,"Wellington Point State High School","2-36 Badgen Road","Wellington Point",4160,"2-36 Badgen Road, Wellington Point, 4160","SER","State High School"]
[273,"Wellington Point State School","476 Main Road","Wellington Point",4160,"476 Main Road, Wellington Point, 4160","SER","State School"]
["A884","West End SS - Special Education Program","24 Vulture Street","West End ",4101,"24 Vulture Street, West End , 4101","MER","Special Education Program"]
[212,"West End State School","24 Vulture Street","West End",4101,"24 Vulture Street, West End, 4101","MER","State School"]
[5456,"West Moreton Anglican College (Karrabin)","Keswick Road","Karrabin",4306,"Keswick Road, Karrabin, 4306","MER","Non-State School"]
[5399,"Western Cape College","Central Avenue","Rocky Point",4874,"Central Avenue, Rocky Point, 4874","FNR","State School"]
[82,"Western Cape College - Mapoon","Red Beach Road","Mapoon",4874,"Red Beach Road, Mapoon, 4874","FNR","Campus"]
[5539,"Western Cape College - Special Education Program","Central Avenue","Rocky Point",4874,"Central Avenue, Rocky Point, 4874","FNR","Special Education Program"]
[1407,"Western Cape College - Weipa","Central Avenue","Rocky Point",4874,"Central Avenue, Rocky Point, 4874","FNR","Campus"]
["A054","Western Cape College Enrichment Centre","Lot 1 Hibberd Drive","Rocky Point",4874,"Lot 1 Hibberd Drive, Rocky Point, 4874","FNR","Support Unit (Other)"]
[8014,"Western Cape College Residential Centre","Western Cape College, Lot 50 Tamarind Road","Rocky Point",4874,"Western Cape College, Lot 50 Tamarind Road, Rocky Point, 4874","FNR","Student Residential"]
[3014,"Western Suburbs State Special School","Glenala Road","Inala",4077,"Glenala Road, Inala, 4077","MER","Special School"]
[1244,"Westmar State School","18425 Moonie Highway","Westmar",4422,"18425 Moonie Highway, Westmar, 4422","DSR","State School"]
[2474,"Westside Christian College (110 Stuart St, Goodna)","110 Stuart Street","Goodna",4300,"110 Stuart Street, Goodna, 4300","MER","Associated Facility"]
[5580,"Westside Christian College (65 Stuart St, Goodna)","65 Stuart Street","Goodna",4300,"65 Stuart Street, Goodna, 4300","MER","Non-State School"]
[119,"Westwood State School","108 Herbert Street","Westwood",4702,"108 Herbert Street, Westwood, 4702","CQR","State School"]
[1405,"Wheatlands State School","422 Byee Road","Wheatlands",4606,"422 Byee Road, Wheatlands, 4606","DSR","State School"]
[1147,"Wheatvale State School","4194 Leyburn-Cunningham Road","Wheatvale",4370,"4194 Leyburn-Cunningham Road, Wheatvale, 4370","DSR","State School"]
[7379,"White Rock SS - Special Education Program","Progress Road","White Rock",4868,"Progress Road, White Rock, 4868","FNR","Special Education Program"]
[1978,"White Rock State School","Progress Road","White Rock",4868,"Progress Road, White Rock, 4868","FNR","State School"]
[2410,"Whites Hill State College","138 Burn Street","Camp Hill",4152,"138 Burn Street, Camp Hill, 4152","MER","State School"]
[6616,"Whites Hill State College - Special Education Program","138 Burn Street","Camp Hill",4152,"138 Burn Street, Camp Hill, 4152","MER","Special Education Program"]
[3546,"Whitfield SS - Special Education Program","42-74 McManus Street","Whitfield",4870,"42-74 McManus Street, Whitfield, 4870","FNR","Special Education Program"]
[1980,"Whitfield State School","42-74 McManus Street","Whitfield",4870,"42-74 McManus Street, Whitfield, 4870","FNR","State School"]
[5890,"Whitsunday Anglican School (Beaconsfield)","Celeber Drive","Beaconsfield",4740,"Celeber Drive, Beaconsfield, 4740","CQR","Non-State School"]
[587,"Whitsunday Christian College (Cannonvale)","20 - 26 Paluma Road","Cannonvale",4802,"20 - 26 Paluma Road, Cannonvale, 4802","NQR","Non-State School"]
[669,"Widgee State School","2156 Gympie-Woolooga Road","Widgee",4570,"2156 Gympie-Woolooga Road, Widgee, 4570","NCR","State School"]
[5673,"William Duncan Positive Learning Centre","114-136 Alexander Drive","Highland Park",4211,"114-136 Alexander Drive, Highland Park, 4211","SER","Positive Learning Centre"]
[3548,"William Duncan SS - Special Education Program","114-136 Alexander Drive","Highland Park",4211,"114-136 Alexander Drive, Highland Park, 4211","SER","Special Education Program"]
[1972,"William Duncan State School","114-136 Alexander Drive","Highland Park",4211,"114-136 Alexander Drive, Highland Park, 4211","SER","State School"]
[307,"William Ross SHS - Special Education Program","Mervyn Crossman Drive","Annandale",4814,"Mervyn Crossman Drive, Annandale, 4814","NQR","Special Education Program"]
[2186,"William Ross State High School","Mervyn Crossman Drive","Annandale",4814,"Mervyn Crossman Drive, Annandale, 4814","NQR","State High School"]
[3569,"Wilsonton Agricultural Environmental Education Centre","275 North Street","Wilsonton Heights",4350,"275 North Street, Wilsonton Heights, 4350","DSR","Outdoor and Environmental Education Centre"]
["A076","Wilsonton SHS - Special Education Program","275 North Street","Wilsonton Heights",4350,"275 North Street, Wilsonton Heights, 4350","DSR","Special Education Program"]
[3482,"Wilsonton SS - Special Education Program","429 Bridge Street","Wilsonton",4350,"429 Bridge Street, Wilsonton, 4350","DSR","Special Education Program"]
[468,"Wilsonton State High School","275 North Street","Wilsonton Heights",4350,"275 North Street, Wilsonton Heights, 4350","DSR","State High School"]
[394,"Wilsonton State School","429 Bridge Street","Wilsonton",4350,"429 Bridge Street, Wilsonton, 4350","DSR","State School"]
[9989,"Wilston SS - Special Education Program","Primrose Street","Grange",4051,"Primrose Street, Grange, 4051","MER","Special Education Program"]
[1485,"Wilston State School","Primrose Street","Grange",4051,"Primrose Street, Grange, 4051","MER","State School"]
[3481,"Windaroo SS - Special Education Program","300 Mount Warren Boulevard","Mount Warren Park",4207,"300 Mount Warren Boulevard, Mount Warren Park, 4207","SER","Special Education Program"]
[1990,"Windaroo State School","300 Mount Warren Boulevard","Mount Warren Park",4207,"300 Mount Warren Boulevard, Mount Warren Park, 4207","SER","State School"]
[5799,"Windaroo Valley SHS - Special Education Program","240 Beaudesert Beenleigh Road","Bahrs Scrub",4207,"240 Beaudesert Beenleigh Road, Bahrs Scrub, 4207","SER","Special Education Program"]
[2189,"Windaroo Valley State High School","240 Beaudesert Beenleigh Road","Bahrs Scrub",4207,"240 Beaudesert Beenleigh Road, Bahrs Scrub, 4207","SER","State High School"]
[292,"Windera State School","2588 Gayndah - Murgon Road","Windera",4605,"2588 Gayndah - Murgon Road, Windera, 4605","DSR","State School"]
[461,"Windorah State School","8 Victoria Street","Windorah",4481,"8 Victoria Street, Windorah, 4481","CQR","State School"]
[100,"Windsor SS - Special Education Program","Harris Street","Windsor",4030,"Harris Street, Windsor, 4030","MER","Special Education Program"]
[11,"Windsor State School","Harris Street","Windsor",4030,"Harris Street, Windsor, 4030","MER","State School"]
[603,"Winfield State School","1091 Winfield Road","Winfield",4670,"1091 Winfield Road, Winfield, 4670","NCR","State School"]
[478,"Winton State School","71 Cork Street","Winton",4735,"71 Cork Street, Winton, 4735","CQR","State School"]
[6157,"Wisdom College (Calamvale)","97 Formby Street","Calamvale",4116,"97 Formby Street, Calamvale, 4116","MER","Non-State School"]
[5999,"Wishart SS - Special Education Program","c/- Wishart State School, Morella Street","Wishart",4122,"c/- Wishart State School, Morella Street, Wishart, 4122","MER","Special Education Program"]
[633,"Wishart State School","Morella Street","Wishart",4122,"Morella Street, Wishart, 4122","MER","State School"]
[1930,"Withcott State School","26 Biggs Road","Withcott",4352,"26 Biggs Road, Withcott, 4352","DSR","State School"]
[881,"Wolvi State School","936 Kin Kin Road","Wolvi",4570,"936 Kin Kin Road, Wolvi, 4570","NCR","State School"]
[8786,"Wondai SS - Special Education Program","32 Kent Street","Wondai",4606,"32 Kent Street, Wondai, 4606","DSR","Special Education Program"]
[1065,"Wondai State School","32 Kent Street","Wondai",4606,"32 Kent Street, Wondai, 4606","DSR","State School"]
[5657,"Wondall Heights SS - Special Education Program","Wondall Heights SS, Wondall Road","Manly West",4179,"Wondall Heights SS, Wondall Road, Manly West, 4179","MER","Special Education Program"]
[416,"Wondall Heights State School","Wondall Road","Manly West",4179,"Wondall Road, Manly West, 4179","MER","State School"]
[1614,"Wonga Beach State School","48-74 Snapper Island Drive","Wonga Beach",4873,"48-74 Snapper Island Drive, Wonga Beach, 4873","FNR","State School"]
[456,"Woodcrest State College","38 Nev Smith Drive","Springfield",4300,"38 Nev Smith Drive, Springfield, 4300","MER","State School"]
[2208,"Woodcrest State College - Early Childhood Development Program","c/-Woodcrest College, 38 Nev Smith Drive","Springfield",4300,"c/-Woodcrest College, 38 Nev Smith Drive, Springfield, 4300","MER","Special Education Program"]
[5225,"Woodcrest State College - Special Education Program","38 Nev Smith Drive","Springfield",4300,"38 Nev Smith Drive, Springfield, 4300","MER","Special Education Program"]
[3528,"Woodford SS - Special Education Program","171 Archer Street","Woodford",4514,"171 Archer Street, Woodford, 4514","NCR","Special Education Program"]
[370,"Woodford State School","171 Archer Street","Woodford",4514,"171 Archer Street, Woodford, 4514","NCR","State School"]
[122,"Woodhill State School","6027 Mount Lindesay Highway","Woodhill",4285,"6027 Mount Lindesay Highway, Woodhill, 4285","SER","State School"]
[9942,"Woodlinks SS - Special Education Program","WoodLinks Way","Collingwood Park",4301,"WoodLinks Way, Collingwood Park, 4301","MER","Special Education Program"]
[7121,"WoodLinks State School","WoodLinks Way","Collingwood Park",4301,"WoodLinks Way, Collingwood Park, 4301","MER","State School"]
[5802,"Woodridge North SS - Special Education Program","Arthur Street","Woodridge",4114,"Arthur Street, Woodridge, 4114","SER","Special Education Program"]
[647,"Woodridge North State School","Arthur Street","Woodridge",4114,"Arthur Street, Woodridge, 4114","SER","State School"]
[2309,"Woodridge SHS - Special Education Program","Wembley Road","Logan Central",4114,"Wembley Road, Logan Central, 4114","SER","Special Education Program"]
[6326,"Woodridge SHS - Special Education Unit (ESL)","Wembley Road","Logan Central",4114,"Wembley Road, Logan Central, 4114","SER","Intensive English Centre"]
[3522,"Woodridge SS - Special Education Program","113-131 Cnr Wembley Road & Railway Parade","Logan Central",4114,"113-131 Cnr Wembley Road & Railway Parade, Logan Central, 4114","SER","Special Education Program"]
[2128,"Woodridge State High School","Wembley Road","Logan Central",4114,"Wembley Road, Logan Central, 4114","SER","State High School"]
[704,"Woodridge State School","113-131 Cnr Wembley Road & Railway Parade","Logan Central",4114,"113-131 Cnr Wembley Road & Railway Parade, Logan Central, 4114","SER","State School"]
[6483,"Woodridge State School Special Education Unit (ESL)","113-131 Cnr Wembley Road & Railway Parade","Logan Central",4114,"113-131 Cnr Wembley Road & Railway Parade, Logan Central, 4114","SER","Intensive English Centre"]
[615,"Woodstock State School","Woodstock Avenue","Woodstock",4816,"Woodstock Avenue, Woodstock, 4816","NQR","State School"]
[3349,"Woody Point SPEC S - Early Childhood Development Program","85 Georgina Street","Woody Point",4019,"85 Georgina Street, Woody Point, 4019","NCR","Special Education Program"]
[3042,"Woody Point Special School","85 Georgina Street","Woody Point",4019,"85 Georgina Street, Woody Point, 4019","NCR","Special School"]
[1378,"Woolooga State School","Edwards Road","Woolooga",4570,"Edwards Road, Woolooga, 4570","NCR","State School"]
[1463,"Wooloowin State School","663 Lutwyche Road","Wooloowin",4030,"663 Lutwyche Road, Wooloowin, 4030","MER","State School"]
["A631","Woombye SS - Special Education Program","95 Pine Grove Road","Woombye",4559,"95 Pine Grove Road, Woombye, 4559","NCR","Special Education Program"]
[476,"Woombye State School","95 Pine Grove Road","Woombye",4559,"95 Pine Grove Road, Woombye, 4559","NCR","State School"]
[6240,"Woongarra SS - Special Education Program","468 Elliott Heads Road","Woongarra",4670,"468 Elliott Heads Road, Woongarra, 4670","NCR","Special Education Program"]
[350,"Woongarra State School","468 Elliott Heads Road","Woongarra",4670,"468 Elliott Heads Road, Woongarra, 4670","NCR","State School"]
["A768","Woongoolba SS - Special Education Program","1219 Jacobs Well Road","Woongoolba",4207,"1219 Jacobs Well Road, Woongoolba, 4207","SER","Special Education Program"]
[39,"Woongoolba State School","1219 Jacobs Well Road","Woongoolba",4207,"1219 Jacobs Well Road, Woongoolba, 4207","SER","State School"]
[7934,"Woorabinda SS - Special Education Program","Carbine Street","Woorabinda",4713,"Carbine Street, Woorabinda, 4713","CQR","Special Education Program"]
[617,"Woorabinda State School","Carbine Street","Woorabinda",4713,"Carbine Street, Woorabinda, 4713","CQR","State School"]
[947,"Wooroolin State School","34 Frederick Street","Wooroolin",4608,"34 Frederick Street, Wooroolin, 4608","DSR","State School"]
[7383,"Woree SHS - SchoolTech Campus","Trpcl NthQLDTAFE Cairns BlockG, Eureka Street","Manunda",4870,"Trpcl NthQLDTAFE Cairns BlockG, Eureka Street, Manunda, 4870","FNR","Campus"]
[3230,"Woree SHS - Special Education Program","c/- Woree SHS, Rigg Street","Woree",4868,"c/- Woree SHS, Rigg Street, Woree, 4868","FNR","Special Education Program"]
[3530,"Woree SS - Special Education Program","Cnr Rigg & Windarra Streets","Woree",4868,"Cnr Rigg & Windarra Streets, Woree, 4868","FNR","Special Education Program"]
[2162,"Woree State High School","Rigg Street","Woree",4868,"Rigg Street, Woree, 4868","FNR","State High School"]
[1902,"Woree State School","Cnr Rigg & Windarra Streets","Woree",4868,"Cnr Rigg & Windarra Streets, Woree, 4868","FNR","State School"]
[3289,"Worongary SS - Special Education Program","Delta Cove Drive","Worongary",4213,"Delta Cove Drive, Worongary, 4213","SER","Special Education Program"]
[1993,"Worongary State School","Delta Cove Drive","Worongary",4213,"Delta Cove Drive, Worongary, 4213","SER","State School"]
[919,"Wowan State School","Don Street","Wowan",4702,"Don Street, Wowan, 4702","CQR","State School"]
[6241,"Wulguru SS - Special Education Program","Edison Street","Wulguru",4811,"Edison Street, Wulguru, 4811","NQR","Special Education Program"]
[547,"Wulguru State School","Edison Street","Wulguru",4811,"Edison Street, Wulguru, 4811","NQR","State School"]
[802,"Wyandra State School","Moody Street","Wyandra",4489,"Moody Street, Wyandra, 4489","DSR","State School"]
[6242,"Wynnum SHS - Special Education Program","Peel Street","Wynnum",4178,"Peel Street, Wynnum, 4178","MER","Special Education Program"]
[7381,"Wynnum SS - Early Childhood Developmental Program","81 Boxgrove Avenue","Wynnum",4178,"81 Boxgrove Avenue, Wynnum, 4178","MER","Special Education Program"]
[7382,"Wynnum SS - Special Education Program","81 Boxgrove Avenue","Wynnum",4178,"81 Boxgrove Avenue, Wynnum, 4178","MER","Special Education Program"]
[2021,"Wynnum State High School","Peel Street","Wynnum",4178,"Peel Street, Wynnum, 4178","MER","State High School"]
[6981,"Wynnum State School","81 Boxgrove Avenue","Wynnum",4178,"81 Boxgrove Avenue, Wynnum, 4178","MER","State School"]
[5803,"Wynnum West SS - Special Education Program","2036 Wynnum Road","Wynnum West",4178,"2036 Wynnum Road, Wynnum West, 4178","MER","Special Education Program"]
[1765,"Wynnum West State School","2036 Wynnum Road","Wynnum West",4178,"2036 Wynnum Road, Wynnum West, 4178","MER","State School"]
[524,"Wyreema State School","12 High Street","Wyreema",4352,"12 High Street, Wyreema, 4352","DSR","State School"]
[5262,"Xavier - Early Childhood Development Program","49 Nursery Road","Holland Park West",4121,"49 Nursery Road, Holland Park West, 4121","MER","Special Education Program"]
[2489,"Xavier Catholic College (Hervey Bay)","1 Wide Bay Drive","Hervey Bay",4655,"1 Wide Bay Drive, Hervey Bay, 4655","NCR","Non-State School"]
[1634,"Yandaran State School","School Lane","Yandaran",4673,"School Lane, Yandaran, 4673","NCR","State School"]
[7952,"Yandina SS - Special Education Program","48 School Road","Yandina",4561,"48 School Road, Yandina, 4561","NCR","Special Education Program"]
[491,"Yandina State School","48 School Road","Yandina",4561,"48 School Road, Yandina, 4561","NCR","State School"]
[151,"Yangan State School","King Street","Yangan",4371,"King Street, Yangan, 4371","DSR","State School"]
[7677,"Yannanda - Toowoomba AMHU Class","Toowoomba Hospital, 154 Pechey Street","Toowoomba",4350,"Toowoomba Hospital, 154 Pechey Street, Toowoomba, 4350","DSR","Support Unit (Other)"]
[553,"Yarrabah SS - Special Education Program","Gribble Street","Yarrabah",4871,"Gribble Street, Yarrabah, 4871","FNR","Special Education Program"]
[1303,"Yarrabah State School","Gribble Street","Yarrabah",4871,"Gribble Street, Yarrabah, 4871","FNR","State School"]
[6129,"Yarrabah State School - Kindergarten Campus","Workshop Street","Yarrabah",4871,"Workshop Street, Yarrabah, 4871","FNR","Campus"]
[6127,"Yarrabah State School - Primary Campus","Gribble Street","Yarrabah",4871,"Gribble Street, Yarrabah, 4871","FNR","Campus"]
[6128,"Yarrabah State School - Secondary Campus","Back Beach Road","Yarrabah",4871,"Back Beach Road, Yarrabah, 4871","FNR","Campus"]
["A638","Yarrabilba SS - Special Education Program","1 Darnell Street","Yarrabilba",4207,"1 Darnell Street, Yarrabilba, 4207","SER","Special Education Program"]
["A857","Yarrabilba SSC - SEP Special Education Program","22-60 McKinnon Drive","Yarrabilba",4207,"22-60 McKinnon Drive, Yarrabilba, 4207","SER","Special Education Program"]
["A068","Yarrabilba State School","1 Darnell Street","Yarrabilba",4207,"1 Darnell Street, Yarrabilba, 4207","SER","State School"]
["A789","Yarrabilba State Secondary College","22-60 McKinnon Drive","Yarrabilba",4207,"22-60 McKinnon Drive, Yarrabilba, 4207","SER","State High School"]
[967,"Yarraman State School","17 John Street","Yarraman",4614,"17 John Street, Yarraman, 4614","DSR","State School"]
[9817,"Yarranlea Primary School (Mount Gravatt)","Griffith Uni Mt Gravatt Campus, 176 Messines Ridge Road","Mount Gravatt",4122,"Griffith Uni Mt Gravatt Campus, 176 Messines Ridge Road, Mount Gravatt, 4122","MER","Non-State School"]
[6243,"Yarrilee SS - Special Education Program","15 Scrub Hill Road","Urraween",4655,"15 Scrub Hill Road, Urraween, 4655","NCR","Special Education Program"]
[1746,"Yarrilee State School","15 Scrub Hill Road","Urraween",4655,"15 Scrub Hill Road, Urraween, 4655","NCR","State School"]
[1098,"Yarwun State School","35 Butler Street","Yarwun",4694,"35 Butler Street, Yarwun, 4694","CQR","State School"]
[3304,"Yeerongpilly SS - Early Childhood Development Program","Entry Via School Road","Yeerongpilly",4105,"Entry Via School Road, Yeerongpilly, 4105","MER","Special Education Program"]
[1346,"Yelarbon State School","17 Eena Street","Yelarbon",4388,"17 Eena Street, Yelarbon, 4388","DSR","State School"]
[550,"Yeppoon SHS - Special Education Program","Rawlings Street","Yeppoon",4703,"Rawlings Street, Yeppoon, 4703","CQR","Special Education Program"]
[3474,"Yeppoon SS - Special Education Program","Tucker Street","Yeppoon",4703,"Tucker Street, Yeppoon, 4703","CQR","Special Education Program"]
[2123,"Yeppoon State High School","Rawlings Street","Yeppoon",4703,"Rawlings Street, Yeppoon, 4703","CQR","State High School"]
[442,"Yeppoon State School","Tucker Street","Yeppoon",4703,"Tucker Street, Yeppoon, 4703","CQR","State School"]
["A642","Yeronga SHS - Special Education Program","159 Villa Street","Yeronga",4104,"159 Villa Street, Yeronga, 4104","MER","Special Education Program"]
[3242,"Yeronga Special Education Unit (ESL)","159 Villa Street","Yeronga",4104,"159 Villa Street, Yeronga, 4104","MER","Intensive English Centre"]
[2054,"Yeronga State High School","159 Villa Street","Yeronga",4104,"159 Villa Street, Yeronga, 4104","MER","State High School"]
[8,"Yeronga State School","122 Park Road","Yeronga",4104,"122 Park Road, Yeronga, 4104","MER","State School"]
["A855","YMCA Vocational School - Brisbane South ","12-24 Mannington Road","Acacia Ridge",4110,"12-24 Mannington Road, Acacia Ridge, 4110","MER","Non-State School"]
["A853","YMCA Vocational School - Ipswich","Cnr River Road And Mary Street","Bundamba",4304,"Cnr River Road And Mary Street, Bundamba, 4304","MER","Non-State School"]
["A854","YMCA Vocational School - Ipswich (Limestone St) ","98 Limestone Street","Ipswich",4305,"98 Limestone Street, Ipswich, 4305","MER","Associated Facility"]
["A849","YMCA Vocational School - Logan (Kingston)","53 Mary Street","Kingston",4114,"53 Mary Street, Kingston, 4114","SER","Associated Facility"]
["A848","YMCA Vocational School - Logan (Mary St, Kingston)","41-45 Mary Street","Kingston",4114,"41-45 Mary Street, Kingston, 4114","SER","Non-State School"]
["A850","YMCA Vocational School - Logan (Victoria Point) ","128 Link Road","Victoria Point",4165,"128 Link Road, Victoria Point, 4165","SER","Associated Facility"]
["A852","YMCA Vocational School - Moreton Bay (Mango Hill) ","22 Halpine Drive","Mango Hill",4509,"22 Halpine Drive, Mango Hill, 4509","NCR","Associated Facility"]
["A851","YMCA Vocational School - Moreton Bay (North Lakes)","Cnr Endeavour Boulevard & Lakefield Drive","North Lakes",4509,"Cnr Endeavour Boulevard & Lakefield Drive, North Lakes, 4509","MER","Non-State School"]
[757,"Yorkeys Knob State School","Clinton Street","Yorkeys Knob",4878,"Clinton Street, Yorkeys Knob, 4878","FNR","State School"]
["A658","YOS Lawnton (Goodna)","27 Smiths Road","Goodna",4300,"27 Smiths Road, Goodna, 4300","MER","Associated Facility"]
[9922,"YOS Lawnton (Lawnton)","27-29 Lawnton Pocket Road","Lawnton",4501,"27-29 Lawnton Pocket Road, Lawnton, 4501","NCR","Non-State School"]
[2367,"Youth and Community Learning Centre (Toowoomba)","63 Ruthven Street","Toowoomba",4350,"63 Ruthven Street, Toowoomba, 4350","DSR","Non-State School"]
[2383,"Yugumbir SS - Special Education Program","Vansittart Road","Regents Park",4118,"Vansittart Road, Regents Park, 4118","SER","Special Education Program"]
[1954,"Yugumbir State School","Vansittart Road","Regents Park",4118,"Vansittart Road, Regents Park, 4118","SER","State School"]
[372,"Yuleba State School","Perry Street","Yuleba",4427,"Perry Street, Yuleba, 4427","DSR","State School"]
[1002,"Yungaburra State School","4 Maple Street","Yungaburra",4884,"4 Maple Street, Yungaburra, 4884","FNR","State School"]
[3486,"Zillmere SS - Special Education Program","Murphy Road","Zillmere",4034,"Murphy Road, Zillmere, 4034","MER","Special Education Program"]
[275,"Zillmere State School","Murphy Road","Zillmere",4034,"Murphy Road, Zillmere, 4034","MER","State School"]